Workbook

Sheet Intro
B2: Buttons for running a tournament: | R2: Setup Tabs
R3: Presentation Tabs
R4: Round Results
R5: Other
B19: Buttons for practising:

Sheet Setup
A1: SCORING SETUP | D1: Group/Ind Swiss? | E1: Group | G1: Individual Tie Breaks | J1: Group Tie Breaks
G2: Player | J2: Group
A3: Points for… | D3: Name of First Bonus | E3: Bonus1 | G3: Points | H3: Order | J3: Points | K3: Order
A4: Win by at least 2 TD | B4: 2 | D4: Name of Second Bonus | E4: Bonus2 | G4: TD For | J4: TD For
A5: Win by 1 TD | B5: 2 | G5: TD Against | J5: TD Against
A6: Draw | B6: 1 | G6: TD Net | H6: 2 | J6: Net TDs | K6: 3
A7: Lose by 1 TD | B7: 0 | G7: Cas For | J7: Cas For
A8: Lose by at least 2 TD | B8: 0 | G8: Cas Against | J8: Cas Against
G9: Cas Net | H9: 3 | J9: Net Cas | K9: 4
A10: Bonus points for TD/Cas etc | D10: Test Individual Scoring System Here | G10: =Working!AG16 -> Bonus1 | J10: ="Group Total "&Working!AG16 -> Group Total Bonus1
A11: Points per TD | B11: 0 | D11: Your Score (required) | E11: 1 | G11: =Working!AG17 -> Bonus2 | J11: ="Group Total "&Working!AG17 -> Group Total Bonus2
A12: Max TD Bonus Pts | B12: 0 | D12: Opponent Score (required) | E12: 0 | G12: Wins | J12: Group Wins
A13: Points per Cas | B13: 0 | D13: Your Cas (optional) | G13: Draws | J13: Groups Draws
A14: Max Cas Bonus Pts | B14: 0 | D14: ="Your "&Working!AG16&" (optional)" -> Your Bonus1 (optional) | G14: Losses | J14: Group Losses
A15: =Working!AG16&" Max Bonus Pts" -> Bonus1 Max Bonus Pts | B15: 0 | D15: ="Your "&Working!AG17&" (optional)" -> Your Bonus2 (optional) | G15: Opp Score | H15: 1 | J15: Individual Wins
A16: =Working!AG17&" Max Bonus Pts" -> Bonus2 Max Bonus Pts | B16: 0 | J16: Individual Draws
D17: Your Points | E17: =fctScore(E11,E12,E13,E14,E15) -> 2 | J17: Individual Losses
A18: Group Scoring Options | J18: Total Individual Points | K18: 1
A19: Points for a win | B19: 0 | J19: Opponent Score | K19: 2
A20: Points for a draw | B20: 0
A21: Points for a loss | B21: 0
A22: Points for a group win | B22: 2
A23: Points for a group draw | B23: 1
A24: Points for a group loss | B24: 0

Sheet Players
A1: Num | B1: Display Name | C1: NAF Name | D1: NAF Number | E1: Race | F1: Group | G1: Stunty | H1: Adjustment | M1: Groups | O1: Team Size | P1: 4
A2: =IF(C2="","",MAX(A$1:A1)+1) -> 1 | B2: 8ulldog | C2: 8ulldog | D2: 18620 | E2: Orc | F2: 2 Die Docks | G2: FALSE | M2: 2 Die Docks
A3: =IF(C3="","",MAX(A$1:A2)+1) -> 2 | B3: BigMace | C3: BigMace | D3: 32560 | E3: Chaos Renegade | F3: 2 Die Docks | G3: FALSE | M3: 2 Up 2 Down
A4: =IF(C4="","",MAX(A$1:A3)+1) -> 3 | B4: Vido | C4: Vido | D4: 35807 | E4: Necromantic Horror | F4: 2 Die Docks | G4: FALSE | M4: ABBL
A5: =IF(C5="","",MAX(A$1:A4)+1) -> 4 | B5: NickBell | C5: NickBell | D5: 36131 | E5: Dark Elf | F5: 2 Die Docks | G5: FALSE | M5: All The Presidents Men
A6: =IF(C6="","",MAX(A$1:A5)+1) -> 5 | B6: Bgmclean | C6: Bgmclean | D6: 26021 | E6: Amazon | F6: 2 Up 2 Down | G6: FALSE | M6: Awesome Party People
A7: =IF(C7="","",MAX(A$1:A6)+1) -> 6 | B7: Blockparty87 | C7: Blockparty87 | D7: 29052 | E7: Halfling | F7: 2 Up 2 Down | G7: FALSE | M7: Awesome Party People Part Deux
A8: =IF(C8="","",MAX(A$1:A7)+1) -> 7 | B8: Squigthrower | C8: Squigthrower | D8: 30295 | E8: Snotling | F8: 2 Up 2 Down | G8: 1 | M8: Bang Average Blood Bowlers
A9: =IF(C9="","",MAX(A$1:A8)+1) -> 8 | B9: Fingers | C9: Fingers | D9: 33910 | E9: Necromantic Horror | F9: 2 Up 2 Down | G9: FALSE | M9: BolognaBowl
A10: =IF(C10="","",MAX(A$1:A9)+1) -> 9 | B10: 03philpota | C10: 03philpota | D10: 30042 | E10: Elf Union | F10: ABBL | G10: FALSE | M10: Cheltenham IGBB Raiders
A11: =IF(C11="","",MAX(A$1:A10)+1) -> 10 | B11: N'Sh'Koben | C11: Non-NAF | D11: NEW | E11: Old World Alliance | F11: ABBL | G11: FALSE | M11: Chins Chumps and C.H.I.P.S.
A12: =IF(C12="","",MAX(A$1:A11)+1) -> 11 | B12: Ratmaninov | C12: Non-NAF | D12: NEW | E12: Skaven | F12: ABBL | G12: FALSE | M12: CLAW on Tour
A13: =IF(C13="","",MAX(A$1:A12)+1) -> 12 | B13: Sam_Clark | C13: Non-NAF | D13: NEW | E13: Human | F13: ABBL | G13: FALSE | M13: DBL Tropicana
A14: =IF(C14="","",MAX(A$1:A13)+1) -> 13 | B14: Lycos | C14: Lycos | D14: 2870 | E14: Vampire | F14: All The Presidents Men | G14: FALSE | M14: Deeside Double Skulls
A15: =IF(C15="","",MAX(A$1:A14)+1) -> 14 | B15: Joemanji | C15: Joemanji | D15: 3312 | E15: Amazon | F15: All The Presidents Men | G15: FALSE | M15: Dice In The Alley
A16: =IF(C16="","",MAX(A$1:A15)+1) -> 15 | B16: Purplegoo | C16: Purplegoo | D16: 11777 | E16: Tomb Kings | F16: All The Presidents Men | G16: FALSE | M16: Dice on Tour Team 1
A17: =IF(C17="","",MAX(A$1:A16)+1) -> 16 | B17: JimJimany | C17: JimJimany | D17: 12403 | E17: Gnome | F17: All The Presidents Men | G17: 1 | M17: Doom League
A18: =IF(C18="","",MAX(A$1:A17)+1) -> 17 | B18: Shaniepoo1 | C18: Shaniepoo1 | D18: 1123 | E18: Nurgle | F18: Awesome Party People | G18: FALSE | M18: Dragons
A19: =IF(C19="","",MAX(A$1:A18)+1) -> 18 | B19: Munch | C19: Munch | D19: 20554 | E19: Human | F19: Awesome Party People | G19: FALSE | M19: Dutch Pirates
A20: =IF(C20="","",MAX(A$1:A19)+1) -> 19 | B20: Forgotmytea | C20: Forgotmytea | D20: 26717 | E20: Dark Elf | F20: Awesome Party People | G20: FALSE | M20: ECBBL Aspiring Adequates
A21: =IF(C21="","",MAX(A$1:A20)+1) -> 20 | B21: Elperas | C21: Elperas | D21: 22362 | E21: Ogre | F21: Awesome Party People | G21: 1 | M21: ECBBL Blackshirts
A22: =IF(C22="","",MAX(A$1:A21)+1) -> 21 | B22: Valen | C22: Valen | D22: 1538 | E22: Necromantic Horror | F22: Awesome Party People Part Deux | G22: FALSE | M22: ECBBL Ten-Tackles
A23: =IF(C23="","",MAX(A$1:A22)+1) -> 22 | B23: Jordellfb | C23: Jordellfb | D23: 2085 | E23: Lizardmen | F23: Awesome Party People Part Deux | G23: FALSE | M23: Elyud Dimkok
A24: =IF(C24="","",MAX(A$1:A23)+1) -> 23 | B24: Nobbla | C24: Nobbla | D24: 19741 | E24: Orc | F24: Awesome Party People Part Deux | G24: FALSE | M24: Famous Tomb Guardians
A25: =IF(C25="","",MAX(A$1:A24)+1) -> 24 | B25: Deepfruit | C25: Deepfruit | D25: 19742 | E25: Skaven | F25: Awesome Party People Part Deux | G25: FALSE | M25: Fellowship of the GBBL
A26: =IF(C26="","",MAX(A$1:A25)+1) -> 25 | B26: Dayday | C26: Dayday | D26: 26629 | E26: Lizardmen | F26: Bang Average Blood Bowlers | G26: FALSE | M26: Granite City Seagulls
A27: =IF(C27="","",MAX(A$1:A26)+1) -> 26 | B27: Hendy | C27: Hendy | D27: 30511 | E27: Orc | F27: Bang Average Blood Bowlers | G27: FALSE | M27: HEBBL Team A
A28: =IF(C28="","",MAX(A$1:A27)+1) -> 27 | B28: DrTechnoTrousers | C28: DrTechnoTrousers | D28: 32137 | E28: Ogre | F28: Bang Average Blood Bowlers | G28: 1 | M28: HEBBL Team B
A29: =IF(C29="","",MAX(A$1:A28)+1) -> 28 | B29: HexBaron | C29: HexBaron | D29: 32494 | E29: Norse | F29: Bang Average Blood Bowlers | G29: FALSE | M29: Hell n El Productions
A30: =IF(C30="","",MAX(A$1:A29)+1) -> 29 | B30: Dirold | C30: Dirold | D30: 5900 | E30: Amazon | F30: BolognaBowl | G30: FALSE | M30: Hey Listen and The Guy We Found in Nandos
A31: =IF(C31="","",MAX(A$1:A30)+1) -> 30 | B31: Liam | C31: Liam | D31: 5906 | E31: Chaos Chosen | F31: BolognaBowl | G31: FALSE | M31: Iconic Atomics
A32: =IF(C32="","",MAX(A$1:A31)+1) -> 31 | B32: Fackko | C32: Fackko | D32: 17893 | E32: Skaven | F32: BolognaBowl | G32: FALSE | M32: La Ruelle
A33: =IF(C33="","",MAX(A$1:A32)+1) -> 32 | B33: Gallo | C33: Gallo | D33: 20999 | E33: Necromantic Horror | F33: BolognaBowl | G33: FALSE | M33: Les Azes
A34: =IF(C34="","",MAX(A$1:A33)+1) -> 33 | B34: The_mighty_irush | C34: The_mighty_irush | D34: 31773 | E34: Lizardmen | F34: Cheltenham IGBB Raiders | G34: FALSE | M34: Let Me Atom
A35: =IF(C35="","",MAX(A$1:A34)+1) -> 34 | B35: Turboraptor | C35: Turboraptor | D35: 32565 | E35: Necromantic Horror | F35: Cheltenham IGBB Raiders | G35: FALSE | M35: Lutece Noobs
A36: =IF(C36="","",MAX(A$1:A35)+1) -> 35 | B36: Shadrak | C36: Shadrak | D36: 33014 | E36: Dark Elf | F36: Cheltenham IGBB Raiders | G36: FALSE | M36: Midtable Marauders
A37: =IF(C37="","",MAX(A$1:A36)+1) -> 36 | B37: Shortstuff | C37: Shortstuff | D37: 35135 | E37: Amazon | F37: Cheltenham IGBB Raiders | G37: FALSE | M37: Monstrous Tynemouth
A38: =IF(C38="","",MAX(A$1:A37)+1) -> 37 | B38: Pipey | C38: Pipey | D38: 5290 | E38: Human | F38: Chins Chumps and C.H.I.P.S. | G38: FALSE | M38: Murder Aces
A39: =IF(C39="","",MAX(A$1:A38)+1) -> 38 | B39: Mamapepe | C39: Mamapepe | D39: 10997 | E39: Shambling Undead | F39: Chins Chumps and C.H.I.P.S. | G39: FALSE | M39: Murder Jacks
A40: =IF(C40="","",MAX(A$1:A39)+1) -> 39 | B40: Jeeves | C40: Jeeves | D40: 11065 | E40: Dark Elf | F40: Chins Chumps and C.H.I.P.S. | G40: FALSE | M40: Murder Jokers
A41: =IF(C41="","",MAX(A$1:A40)+1) -> 40 | B41: Shunt | C41: Shunt | D41: 32097 | E41: Orc | F41: Chins Chumps and C.H.I.P.S. | G41: FALSE | M41: Murder Kings
A42: =IF(C42="","",MAX(A$1:A41)+1) -> 41 | B42: SilentKnight | C42: SilentKnight | D42: 25379 | E42: Gnome | F42: CLAW on Tour | G42: 1 | M42: Murder Queens
A43: =IF(C43="","",MAX(A$1:A42)+1) -> 42 | B43: Chorfling | C43: Chorfling | D43: 30719 | E43: Daemons of Khorne | F43: CLAW on Tour | G43: FALSE | M43: NOBBL Elite
A44: =IF(C44="","",MAX(A$1:A43)+1) -> 43 | B44: Camelchops | C44: Camelchops | D44: 32575 | E44: Necromantic Horror | F44: CLAW on Tour | G44: FALSE | M44: NOBBL Jesters
A45: =IF(C45="","",MAX(A$1:A44)+1) -> 44 | B45: Dusher1 | C45: Dusher1 | D45: 34399 | E45: Dark Elf | F45: CLAW on Tour | G45: FALSE | M45: North Yorkshire Table Top
A46: =IF(C46="","",MAX(A$1:A45)+1) -> 45 | B46: GingerB | C46: GingerB | D46: 31164 | E46: Dark Elf | F46: DBL Tropicana | G46: FALSE | M46: Old Man Monkeys Team
A47: =IF(C47="","",MAX(A$1:A46)+1) -> 46 | B47: CptOats | C47: CptOats | D47: 32547 | E47: Daemons of Khorne | F47: DBL Tropicana | G47: FALSE | M47: Orkshire
A48: =IF(C48="","",MAX(A$1:A47)+1) -> 47 | B48: Cyritz | C48: Cyritz | D48: 33240 | E48: Orc | F48: DBL Tropicana | G48: FALSE | M48: Orkshire Puddings
A49: =IF(C49="","",MAX(A$1:A48)+1) -> 48 | B49: Tyler_Swaft | C49: Tyler_Swaft | D49: 33323 | E49: Norse | F49: DBL Tropicana | G49: FALSE | M49: Salty Bowlers of London
A50: =IF(C50="","",MAX(A$1:A49)+1) -> 49 | B50: Dakyrus | C50: Dakyrus | D50: 25478 | E50: Human | F50: Deeside Double Skulls | G50: FALSE | M50: Seagulls 2: Electric Boogaloo
A51: =IF(C51="","",MAX(A$1:A50)+1) -> 50 | B51: Padster | C51: Padster | D51: 26810 | E51: Daemons of Khorne | F51: Deeside Double Skulls | G51: FALSE | M51: Sheffield Stinkweasels
A52: =IF(C52="","",MAX(A$1:A51)+1) -> 51 | B52: LORD_BONAN | C52: LORD_BONAN | D52: 26811 | E52: Goblin | F52: Deeside Double Skulls | G52: 1 | M52: Shiretown Stuffers
A53: =IF(C53="","",MAX(A$1:A52)+1) -> 52 | B53: Earl_Burgomeister | C53: Earl_Burgomeister | D53: 28806 | E53: Orc | F53: Deeside Double Skulls | G53: FALSE | M53: Smoggies UTFB
A54: =IF(C54="","",MAX(A$1:A53)+1) -> 53 | B54: EnglishChris | C54: EnglishChris | D54: 19342 | E54: Wood Elf | F54: Dice In The Alley | G54: FALSE | M54: Snake Eyes and GFIs
A55: =IF(C55="","",MAX(A$1:A54)+1) -> 54 | B55: Beigelantern | C55: Beigelantern | D55: 28467 | E55: Human | F55: Dice In The Alley | G55: FALSE | M55: Steph, Stig and The Baldies
A56: =IF(C56="","",MAX(A$1:A55)+1) -> 55 | B56: Fluffy_Kraken | C56: Fluffy_Kraken | D56: 30646 | E56: Necromantic Horror | F56: Dice In The Alley | G56: FALSE | M56: Sutton Immortals
A57: =IF(C57="","",MAX(A$1:A56)+1) -> 56 | B57: Rhicheese | C57: Rhicheese | D57: 37392 | E57: Lizardmen | F57: Dice In The Alley | G57: FALSE | M57: T and Three Sugars
A58: =IF(C58="","",MAX(A$1:A57)+1) -> 57 | B58: Whiskeymancer | C58: Whiskeymancer | D58: 30079 | E58: Orc | F58: Dice on Tour Team 1 | G58: FALSE | M58: Tacklezone Pirates
A59: =IF(C59="","",MAX(A$1:A58)+1) -> 58 | B59: PhilGC | C59: PhilGC | D59: 32166 | E59: Elf Union | F59: Dice on Tour Team 1 | G59: FALSE | M59: Tactics and Theatrics
A60: =IF(C60="","",MAX(A$1:A59)+1) -> 59 | B60: Maca1066 | C60: Maca1066 | D60: 32282 | E60: Imperial Nobility | F60: Dice on Tour Team 1 | G60: FALSE | M60: TCC: A Up Me Ducks
A61: =IF(C61="","",MAX(A$1:A60)+1) -> 60 | B61: Syntaxerror | C61: Syntaxerror | D61: 32970 | E61: Skaven | F61: Dice on Tour Team 1 | G61: FALSE | M61: TCC: BoBin for Ducks
A62: =IF(C62="","",MAX(A$1:A61)+1) -> 61 | B62: Tstyx | C62: Tstyx | D62: 31116 | E62: Necromantic Horror | F62: Doom League | G62: FALSE | M62: Team Miss Next Game
A63: =IF(C63="","",MAX(A$1:A62)+1) -> 62 | B63: Feasteater | C63: Feasteater | D63: 34169 | E63: Human | F63: Doom League | G63: FALSE | M63: Team Republic Chill Squad
A64: =IF(C64="","",MAX(A$1:A63)+1) -> 63 | B64: Jamelius | C64: Jamelius | D64: 35341 | E64: Chaos Dwarf | F64: Doom League | G64: FALSE | M64: Team Republic Tryhards
A65: =IF(C65="","",MAX(A$1:A64)+1) -> 64 | B65: Chubooga | C65: Non-NAF | D65: NEW | E65: Daemons of Khorne | F65: Doom League | G65: FALSE | M65: Team TimeOut
A66: =IF(C66="","",MAX(A$1:A65)+1) -> 65 | B66: MartinVanquish | C66: MartinVanquish | D66: 23214 | E66: Skaven | F66: Dragons | G66: FALSE | M66: Team Wales
A67: =IF(C67="","",MAX(A$1:A66)+1) -> 66 | B67: Skab | C67: Skab | D67: 25780 | E67: Orc | F67: Dragons | G67: FALSE | M67: TeamW
A68: =IF(C68="","",MAX(A$1:A67)+1) -> 67 | B68: ThatOtherAsianGuy | C68: ThatOtherAsianGuy | D68: 25859 | E68: Lizardmen | F68: Dragons | G68: FALSE | M68: The Democratic Republic of Yorkshire
A69: =IF(C69="","",MAX(A$1:A68)+1) -> 68 | B69: Aaaardvark101 | C69: Aaaardvark101 | D69: 29815 | E69: Necromantic Horror | F69: Dragons | G69: FALSE | M69: The Fellowship of the Ball
A70: =IF(C70="","",MAX(A$1:A69)+1) -> 69 | B70: Yurinator | C70: Yurinator | D70: 25299 | E70: Lizardmen | F70: Dutch Pirates | G70: FALSE | M70: The GoBBLed
A71: =IF(C71="","",MAX(A$1:A70)+1) -> 70 | B71: Edwin | C71: Edwin | D71: 25301 | E71: Chaos Dwarf | F71: Dutch Pirates | G71: FALSE | M71: The GoBBLers
A72: =IF(C72="","",MAX(A$1:A71)+1) -> 71 | B72: Joost | C72: Joost | D72: 28257 | E72: Amazon | F72: Dutch Pirates | G72: FALSE | M72: The Merry Men
A73: =IF(C73="","",MAX(A$1:A72)+1) -> 72 | B73: HenningEksteen | C73: HenningEksteen | D73: 33351 | E73: Orc | F73: Dutch Pirates | G73: FALSE | M73: Two Guys One Dice Cup
A74: =IF(C74="","",MAX(A$1:A73)+1) -> 73 | B74: Loynster | C74: Loynster | D74: 24104 | E74: Dark Elf | F74: ECBBL Aspiring Adequates | G74: FALSE | M74: UKBBL Team A
A75: =IF(C75="","",MAX(A$1:A74)+1) -> 74 | B75: Steairey | C75: Steairey | D75: 25887 | E75: Necromantic Horror | F75: ECBBL Aspiring Adequates | G75: FALSE | M75: Waterbowl Team Z
A76: =IF(C76="","",MAX(A$1:A75)+1) -> 75 | B76: Ahzek | C76: Ahzek | D76: 25975 | E76: Orc | F76: ECBBL Aspiring Adequates | G76: FALSE | M76: Wrekin Wraiders
A77: =IF(C77="","",MAX(A$1:A76)+1) -> 76 | B77: Taltal | C77: Taltal | D77: 28178 | E77: Lizardmen | F77: ECBBL Aspiring Adequates | G77: FALSE | M77: Sann Clan
A78: =IF(C78="","",MAX(A$1:A77)+1) -> 77 | B78: Vmcat | C78: Vmcat | D78: 1621 | E78: Chaos Chosen | F78: ECBBL Blackshirts | G78: FALSE
A79: =IF(C79="","",MAX(A$1:A78)+1) -> 78 | B79: Bsking | C79: Bsking | D79: 13571 | E79: Human | F79: ECBBL Blackshirts | G79: FALSE
A80: =IF(C80="","",MAX(A$1:A79)+1) -> 79 | B80: Heff | C80: Heff | D80: 17316 | E80: Orc | F80: ECBBL Blackshirts | G80: FALSE
A81: =IF(C81="","",MAX(A$1:A80)+1) -> 80 | B81: Masterful | C81: Masterful | D81: 28740 | E81: Tomb Kings | F81: ECBBL Blackshirts | G81: FALSE
A82: =IF(C82="","",MAX(A$1:A81)+1) -> 81 | B82: King_Ghidra | C82: King_Ghidra | D82: 17948 | E82: Elf Union | F82: ECBBL Ten-Tackles | G82: FALSE
A83: =IF(C83="","",MAX(A$1:A82)+1) -> 82 | B83: Bbart | C83: Bbart | D83: 21576 | E83: Skaven | F83: ECBBL Ten-Tackles | G83: FALSE
A84: =IF(C84="","",MAX(A$1:A83)+1) -> 83 | B84: BartK | C84: BartK | D84: 25878 | E84: Orc | F84: ECBBL Ten-Tackles | G84: FALSE
A85: =IF(C85="","",MAX(A$1:A84)+1) -> 84 | B85: JuJuu | C85: JuJuu | D85: 26658 | E85: Chaos Chosen | F85: ECBBL Ten-Tackles | G85: FALSE
A86: =IF(C86="","",MAX(A$1:A85)+1) -> 85 | B86: Yudlugar | C86: Yudlugar | D86: 28903 | E86: Goblin | F86: Elyud Dimkok | G86: 1
A87: =IF(C87="","",MAX(A$1:A86)+1) -> 86 | B87: DimmyGee | C87: DimmyGee | D87: 32027 | E87: Orc | F87: Elyud Dimkok | G87: FALSE
A88: =IF(C88="","",MAX(A$1:A87)+1) -> 87 | B88: Hankok | C88: Hankok | D88: 32028 | E88: Shambling Undead | F88: Elyud Dimkok | G88: FALSE
A89: =IF(C89="","",MAX(A$1:A88)+1) -> 88 | B89: Elyod | C89: Elyod | D89: 35749 | E89: Vampire | F89: Elyud Dimkok | G89: FALSE
A90: =IF(C90="","",MAX(A$1:A89)+1) -> 89 | B90: SickAsEggs | C90: SickAsEggs | D90: 29300 | E90: Necromantic Horror | F90: Famous Tomb Guardians | G90: FALSE
A91: =IF(C91="","",MAX(A$1:A90)+1) -> 90 | B91: Keithabix | C91: Keithabix | D91: 34396 | E91: Gnome | F91: Famous Tomb Guardians | G91: 1
A92: =IF(C92="","",MAX(A$1:A91)+1) -> 91 | B92: Archcoach_Ferdinand | C92: Non-NAF | D92: NEW | E92: Goblin | F92: Famous Tomb Guardians | G92: 1
A93: =IF(C93="","",MAX(A$1:A92)+1) -> 92 | B93: Tulkus | C93: Non-NAF | D93: NEW | E93: Amazon | F93: Famous Tomb Guardians | G93: FALSE
A94: =IF(C94="","",MAX(A$1:A93)+1) -> 93 | B94: Don_Vito | C94: Don_Vito | D94: 10434 | E94: Skaven | F94: Fellowship of the GBBL | G94: FALSE
A95: =IF(C95="","",MAX(A$1:A94)+1) -> 94 | B95: Wookiee1972 | C95: Wookiee1972 | D95: 20558 | E95: Imperial Nobility | F95: Fellowship of the GBBL | G95: FALSE
A96: =IF(C96="","",MAX(A$1:A95)+1) -> 95 | B96: Calfykid | C96: Calfykid | D96: 23570 | E96: Nurgle | F96: Fellowship of the GBBL | G96: FALSE
A97: =IF(C97="","",MAX(A$1:A96)+1) -> 96 | B97: Whisky_Pip | C97: Non-NAF | D97: NEW | E97: Orc | F97: Fellowship of the GBBL | G97: FALSE
A98: =IF(C98="","",MAX(A$1:A97)+1) -> 97 | B98: Spooner | C98: Spooner | D98: 22037 | E98: Chaos Chosen | F98: Granite City Seagulls | G98: FALSE
A99: =IF(C99="","",MAX(A$1:A98)+1) -> 98 | B99: Fredmanwalking | C99: Fredmanwalking | D99: 37101 | E99: Dwarf | F99: Granite City Seagulls | G99: FALSE
A100: =IF(C100="","",MAX(A$1:A99)+1) -> 99 | B100: Stonethrowingdevil | C100: Stonethrowingdevil | D100: 37677 | E100: Skaven | F100: Granite City Seagulls | G100: FALSE
A101: =IF(C101="","",MAX(A$1:A100)+1) -> 100 | B101: Europanda | C101: Europanda | D101: 38578 | E101: Orc | F101: Granite City Seagulls | G101: FALSE
A102: =IF(C102="","",MAX(A$1:A101)+1) -> 101 | B102: MadeofWelsh | C102: MadeofWelsh | D102: 12184 | E102: Chaos Chosen | F102: HEBBL Team A | G102: FALSE
A103: =IF(C103="","",MAX(A$1:A102)+1) -> 102 | B103: Ploppy_McPloppy | C103: Ploppy_McPloppy | D103: 16417 | E103: Black Orc | F103: HEBBL Team A | G103: FALSE
A104: =IF(C104="","",MAX(A$1:A103)+1) -> 103 | B104: Littlespoon | C104: Littlespoon | D104: 23259 | E104: Elf Union | F104: HEBBL Team A | G104: FALSE
A105: =IF(C105="","",MAX(A$1:A104)+1) -> 104 | B105: Orklabe | C105: Orklabe | D105: 24342 | E105: Dark Elf | F105: HEBBL Team A | G105: FALSE
A106: =IF(C106="","",MAX(A$1:A105)+1) -> 105 | B106: Vulture_Squadron | C106: Vulture_Squadron | D106: 7192 | E106: Necromantic Horror | F106: HEBBL Team B | G106: FALSE
A107: =IF(C107="","",MAX(A$1:A106)+1) -> 106 | B107: 3_Dice_Uphill | C107: 3_Dice_Uphill | D107: 28608 | E107: High Elf | F107: HEBBL Team B | G107: FALSE
A108: =IF(C108="","",MAX(A$1:A107)+1) -> 107 | B108: Mazza86 | C108: Mazza86 | D108: 30866 | E108: Norse | F108: HEBBL Team B | G108: FALSE
A109: =IF(C109="","",MAX(A$1:A108)+1) -> 108 | B109: HEBBL Team B #4 | C109: HEBBL Team B #4 | E109: Amazon | F109: HEBBL Team B | G109: FALSE
A110: =IF(C110="","",MAX(A$1:A109)+1) -> 109 | B110: El_Duderino | C110: El_Duderino | D110: 20700 | E110: Goblin | F110: Hell n El Productions | G110: 1
A111: =IF(C111="","",MAX(A$1:A110)+1) -> 110 | B111: Fallingdownjoe | C111: Fallingdownjoe | D111: 22584 | E111: Gnome | F111: Hell n El Productions | G111: 1
A112: =IF(C112="","",MAX(A$1:A111)+1) -> 111 | B112: Raging82 | C112: Raging82 | D112: 23925 | E112: Snotling | F112: Hell n El Productions | G112: 1
A113: =IF(C113="","",MAX(A$1:A112)+1) -> 112 | B113: DrHellboy_ | C113: DrHellboy_ | D113: 26611 | E113: Ogre | F113: Hell n El Productions | G113: 1
A114: =IF(C114="","",MAX(A$1:A113)+1) -> 113 | B114: AndyDavo | C114: AndyDavo | D114: 19726 | E114: Orc | F114: Hey Listen and The Guy We Found in Nandos | G114: FALSE
A115: =IF(C115="","",MAX(A$1:A114)+1) -> 114 | B115: DizzyBess | C115: DizzyBess | D115: 29611 | E115: Gnome | F115: Hey Listen and The Guy We Found in Nandos | G115: 1
A116: =IF(C116="","",MAX(A$1:A115)+1) -> 115 | B116: Cauleeflower | C116: Cauleeflower | D116: 32010 | E116: Necromantic Horror | F116: Hey Listen and The Guy We Found in Nandos | G116: FALSE
A117: =IF(C117="","",MAX(A$1:A116)+1) -> 116 | B117: SeriouslyImAGiraffe | C117: SeriouslyImAGiraffe | D117: 33340 | E117: Amazon | F117: Hey Listen and The Guy We Found in Nandos | G117: FALSE
A118: =IF(C118="","",MAX(A$1:A117)+1) -> 117 | B118: Duffins | C118: Duffins | D118: 24329 | E118: Goblin | F118: Iconic Atomics | G118: 1
A119: =IF(C119="","",MAX(A$1:A118)+1) -> 118 | B119: Winterb0rn | C119: Winterb0rn | D119: 30495 | E119: Daemons of Khorne | F119: Iconic Atomics | G119: FALSE
A120: =IF(C120="","",MAX(A$1:A119)+1) -> 119 | B120: TateRolls1s | C120: TateRolls1s | D120: 34587 | E120: Orc | F120: Iconic Atomics | G120: FALSE
A121: =IF(C121="","",MAX(A$1:A120)+1) -> 120 | B121: ArcherJ | C121: ArcherJ | D121: 35624 | E121: Dwarf | F121: Iconic Atomics | G121: FALSE
A122: =IF(C122="","",MAX(A$1:A121)+1) -> 121 | B122: LouisX | C122: LouisX | D122: 264 | E122: Tomb Kings | F122: La Ruelle | G122: FALSE
A123: =IF(C123="","",MAX(A$1:A122)+1) -> 122 | B123: Laraigne | C123: Laraigne | D123: 3225 | E123: Human | F123: La Ruelle | G123: FALSE
A124: =IF(C124="","",MAX(A$1:A123)+1) -> 123 | B124: Haktar | C124: Haktar | D124: 8734 | E124: Necromantic Horror | F124: La Ruelle | G124: FALSE
A125: =IF(C125="","",MAX(A$1:A124)+1) -> 124 | B125: Fondu | C125: Fondu | D125: 1184 | E125: Chaos Dwarf | F125: La Ruelle | G125: FALSE
A126: =IF(C126="","",MAX(A$1:A125)+1) -> 125 | B126: Galladur | C126: Galladur | D126: 11134 | E126: Human | F126: Les Azes | G126: FALSE
A127: =IF(C127="","",MAX(A$1:A126)+1) -> 126 | B127: Silkoun | C127: Silkoun | D127: 14616 | E127: Amazon | F127: Les Azes | G127: FALSE
A128: =IF(C128="","",MAX(A$1:A127)+1) -> 127 | B128: Biereforever | C128: Biereforever | D128: 21487 | E128: Norse | F128: Les Azes | G128: FALSE
A129: =IF(C129="","",MAX(A$1:A128)+1) -> 128 | B129: Oklaoma | C129: Oklaoma | D129: 22126 | E129: Orc | F129: Les Azes | G129: FALSE
A130: =IF(C130="","",MAX(A$1:A129)+1) -> 129 | B130: Rubble | C130: Rubble | D130: 32495 | E130: Orc | F130: Let Me Atom | G130: FALSE
A131: =IF(C131="","",MAX(A$1:A130)+1) -> 130 | B131: Tomfoolery | C131: Tomfoolery | D131: 32496 | E131: Amazon | F131: Let Me Atom | G131: FALSE
A132: =IF(C132="","",MAX(A$1:A131)+1) -> 131 | B132: MrGreen | C132: MrGreen | D132: 32585 | E132: Ogre | F132: Let Me Atom | G132: 1
A133: =IF(C133="","",MAX(A$1:A132)+1) -> 132 | B133: Blackduke | C133: Blackduke | D133: 34585 | E133: Vampire | F133: Let Me Atom | G133: FALSE
A134: =IF(C134="","",MAX(A$1:A133)+1) -> 133 | B134: Maitre_tactac | C134: Maitre_tactac | D134: 372 | E134: Black Orc | F134: Lutece Noobs | G134: FALSE
A135: =IF(C135="","",MAX(A$1:A134)+1) -> 134 | B135: Nicap | C135: Nicap | D135: 6984 | E135: Dark Elf | F135: Lutece Noobs | G135: FALSE
A136: =IF(C136="","",MAX(A$1:A135)+1) -> 135 | B136: OON | C136: OON | D136: 8861 | E136: Skaven | F136: Lutece Noobs | G136: FALSE
A137: =IF(C137="","",MAX(A$1:A136)+1) -> 136 | B137: Zahiko | C137: Zahiko | D137: 13997 | E137: Orc | F137: Lutece Noobs | G137: FALSE
A138: =IF(C138="","",MAX(A$1:A137)+1) -> 137 | B138: Firebreather | C138: Firebreather | D138: 83 | E138: Skaven | F138: Midtable Marauders | G138: FALSE
A139: =IF(C139="","",MAX(A$1:A138)+1) -> 138 | B139: Fireolli | C139: Fireolli | D139: 9672 | E139: Human | F139: Midtable Marauders | G139: FALSE
A140: =IF(C140="","",MAX(A$1:A139)+1) -> 139 | B140: Ringbeard | C140: Ringbeard | D140: 21949 | E140: Chaos Chosen | F140: Midtable Marauders | G140: FALSE
A141: =IF(C141="","",MAX(A$1:A140)+1) -> 140 | B141: Spob | C141: Spob | D141: 22121 | E141: Amazon | F141: Midtable Marauders | G141: FALSE
A142: =IF(C142="","",MAX(A$1:A141)+1) -> 141 | B142: Wynters_Dad | C142: Wynters_Dad | D142: 30943 | E142: Wood Elf | F142: Monstrous Tynemouth | G142: FALSE
A143: =IF(C143="","",MAX(A$1:A142)+1) -> 142 | B143: Lpoolcookie | C143: Lpoolcookie | D143: 31511 | E143: Vampire | F143: Monstrous Tynemouth | G143: FALSE
A144: =IF(C144="","",MAX(A$1:A143)+1) -> 143 | B144: Pillowfists | C144: Pillowfists | D144: 32380 | E144: High Elf | F144: Monstrous Tynemouth | G144: FALSE
A145: =IF(C145="","",MAX(A$1:A144)+1) -> 144 | B145: Macster | C145: Macster | D145: 32827 | E145: Orc | F145: Monstrous Tynemouth | G145: FALSE
A146: =IF(C146="","",MAX(A$1:A145)+1) -> 145 | B146: Purdindas | C146: Purdindas | D146: 10831 | E146: Necromantic Horror | F146: Murder Aces | G146: FALSE
A147: =IF(C147="","",MAX(A$1:A146)+1) -> 146 | B147: Sporran | C147: Sporran | D147: 23600 | E147: Orc | F147: Murder Aces | G147: FALSE
A148: =IF(C148="","",MAX(A$1:A147)+1) -> 147 | B148: Gerdleah | C148: Gerdleah | D148: 26793 | E148: Human | F148: Murder Aces | G148: FALSE
A149: =IF(C149="","",MAX(A$1:A148)+1) -> 148 | B149: Bb_jock | C149: Bb_jock | D149: 30617 | E149: Slann | F149: Murder Aces | G149: FALSE
A150: =IF(C150="","",MAX(A$1:A149)+1) -> 149 | B150: Orcthadontist | C150: Orcthadontist | D150: 29221 | E150: Orc | F150: Murder Jacks | G150: FALSE
A151: =IF(C151="","",MAX(A$1:A150)+1) -> 150 | B151: WillPower | C151: WillPower | D151: 29222 | E151: Shambling Undead | F151: Murder Jacks | G151: FALSE
A152: =IF(C152="","",MAX(A$1:A151)+1) -> 151 | B152: Mortal_Wombat | C152: Mortal_Wombat | D152: 30649 | E152: Dark Elf | F152: Murder Jacks | G152: FALSE
A153: =IF(C153="","",MAX(A$1:A152)+1) -> 152 | B153: Aldpoagus | C153: Aldpoagus | D153: 32193 | E153: Underworld Denizens | F153: Murder Jacks | G153: FALSE
A154: =IF(C154="","",MAX(A$1:A153)+1) -> 153 | B154: Badgie | C154: Badgie | D154: 32100 | E154: Human | F154: Murder Jokers | G154: FALSE
A155: =IF(C155="","",MAX(A$1:A154)+1) -> 154 | B155: HighlandEnoch | C155: HighlandEnoch | D155: 32191 | E155: Lizardmen | F155: Murder Jokers | G155: FALSE
A156: =IF(C156="","",MAX(A$1:A155)+1) -> 155 | B156: Fleetmacwood | C156: Fleetmacwood | D156: 33736 | E156: Amazon | F156: Murder Jokers | G156: FALSE
A157: =IF(C157="","",MAX(A$1:A156)+1) -> 156 | B157: Thebunneh | C157: Thebunneh | D157: 35683 | E157: Shambling Undead | F157: Murder Jokers | G157: FALSE
A158: =IF(C158="","",MAX(A$1:A157)+1) -> 157 | B158: SpaceGandalf | C158: SpaceGandalf | D158: 22176 | E158: Daemons of Khorne | F158: Murder Kings | G158: FALSE
A159: =IF(C159="","",MAX(A$1:A158)+1) -> 158 | B159: ChrisRaff88 | C159: ChrisRaff88 | D159: 26092 | E159: Orc | F159: Murder Kings | G159: FALSE
A160: =IF(C160="","",MAX(A$1:A159)+1) -> 159 | B160: AMSFELD | C160: AMSFELD | D160: 27575 | E160: Wood Elf | F160: Murder Kings | G160: FALSE
A161: =IF(C161="","",MAX(A$1:A160)+1) -> 160 | B161: I_done_goofd | C161: I_done_goofd | D161: 28490 | E161: Tomb Kings | F161: Murder Kings | G161: FALSE
A162: =IF(C162="","",MAX(A$1:A161)+1) -> 161 | B162: LordGarlack | C162: LordGarlack | D162: 16591 | E162: Shambling Undead | F162: Murder Queens | G162: FALSE
A163: =IF(C163="","",MAX(A$1:A162)+1) -> 162 | B163: L0rdgibby | C163: L0rdgibby | D163: 26089 | E163: Orc | F163: Murder Queens | G163: FALSE
A164: =IF(C164="","",MAX(A$1:A163)+1) -> 163 | B164: Gizmo3k | C164: Gizmo3k | D164: 31535 | E164: Necromantic Horror | F164: Murder Queens | G164: FALSE
A165: =IF(C165="","",MAX(A$1:A164)+1) -> 164 | B165: Pbowman | C165: Pbowman | D165: 34295 | E165: Amazon | F165: Murder Queens | G165: FALSE
A166: =IF(C166="","",MAX(A$1:A165)+1) -> 165 | B166: Wobert | C166: Wobert | D166: 20177 | E166: Black Orc | F166: NOBBL Elite | G166: FALSE
A167: =IF(C167="","",MAX(A$1:A166)+1) -> 166 | B167: Starkey | C167: Starkey | D167: 31960 | E167: Chaos Renegade | F167: NOBBL Elite | G167: FALSE
A168: =IF(C168="","",MAX(A$1:A167)+1) -> 167 | B168: ScalesnScars | C168: ScalesnScars | D168: 32372 | E168: High Elf | F168: NOBBL Elite | G168: FALSE
A169: =IF(C169="","",MAX(A$1:A168)+1) -> 168 | B169: Jago21 | C169: Jago21 | D169: 34159 | E169: Lizardmen | F169: NOBBL Elite | G169: FALSE
A170: =IF(C170="","",MAX(A$1:A169)+1) -> 169 | B170: Papa_laza_rou | C170: Papa_laza_rou | D170: 29966 | E170: Vampire | F170: NOBBL Jesters | G170: FALSE
A171: =IF(C171="","",MAX(A$1:A170)+1) -> 170 | B171: pedro_laserbeard | C171: pedro_laserbeard | D171: 32175 | E171: Norse | F171: NOBBL Jesters | G171: FALSE
A172: =IF(C172="","",MAX(A$1:A171)+1) -> 171 | B172: Artful_Dodger | C172: Artful_Dodger | D172: 32252 | E172: Dark Elf | F172: NOBBL Jesters | G172: FALSE
A173: =IF(C173="","",MAX(A$1:A172)+1) -> 172 | B173: Ens1ferum | C173: Ens1ferum | D173: 33948 | E173: Orc | F173: NOBBL Jesters | G173: FALSE
A174: =IF(C174="","",MAX(A$1:A173)+1) -> 173 | B174: Cerberus85 | C174: Cerberus85 | D174: 29548 | E174: Old World Alliance | F174: North Yorkshire Table Top | G174: FALSE
A175: =IF(C175="","",MAX(A$1:A174)+1) -> 174 | B175: Spic929 | C175: Spic929 | D175: 31704 | E175: Lizardmen | F175: North Yorkshire Table Top | G175: FALSE
A176: =IF(C176="","",MAX(A$1:A175)+1) -> 175 | B176: edwith1d | C176: edwith1d | D176: 34139 | E176: Elf Union | F176: North Yorkshire Table Top | G176: FALSE
A177: =IF(C177="","",MAX(A$1:A176)+1) -> 176 | B177: SpaceEcho | C177: SpaceEcho | D177: 34990 | E177: Shambling Undead | F177: North Yorkshire Table Top | G177: FALSE
A178: =IF(C178="","",MAX(A$1:A177)+1) -> 177 | B178: Old_Man_Monkey | C178: Old_Man_Monkey | D178: 1814 | E178: Norse | F178: Old Man Monkeys Team | G178: FALSE
A179: =IF(C179="","",MAX(A$1:A178)+1) -> 178 | B179: Lord_Bojo | C179: Lord_Bojo | D179: 7539 | E179: Goblin | F179: Old Man Monkeys Team | G179: 1
A180: =IF(C180="","",MAX(A$1:A179)+1) -> 179 | B180: Cromfrance | C180: Cromfrance | D180: 13555 | E180: Black Orc | F180: Old Man Monkeys Team | G180: FALSE
A181: =IF(C181="","",MAX(A$1:A180)+1) -> 180 | B181: Divergent84 | C181: Divergent84 | D181: 38615 | E181: Daemons of Khorne | F181: Old Man Monkeys Team | G181: FALSE
A182: =IF(C182="","",MAX(A$1:A181)+1) -> 181 | B182: Laser_Owl | C182: Laser_Owl | D182: 26278 | E182: Human | F182: Orkshire | G182: FALSE
A183: =IF(C183="","",MAX(A$1:A182)+1) -> 182 | B183: Burtblahblahblah | C183: Burtblahblahblah | D183: 26897 | E183: Orc | F183: Orkshire | G183: FALSE
A184: =IF(C184="","",MAX(A$1:A183)+1) -> 183 | B184: McFaff | C184: McFaff | D184: 33390 | E184: Necromantic Horror | F184: Orkshire | G184: FALSE
A185: =IF(C185="","",MAX(A$1:A184)+1) -> 184 | B185: Falesh | C185: Falesh | D185: 35692 | E185: Wood Elf | F185: Orkshire | G185: FALSE
A186: =IF(C186="","",MAX(A$1:A185)+1) -> 185 | B186: Fiddlesticks | C186: Fiddlesticks | D186: 24310 | E186: Orc | F186: Orkshire Puddings | G186: FALSE
A187: =IF(C187="","",MAX(A$1:A186)+1) -> 186 | B187: Rydog | C187: Rydog | D187: 26315 | E187: Human | F187: Orkshire Puddings | G187: FALSE
A188: =IF(C188="","",MAX(A$1:A187)+1) -> 187 | B188: TomTheOwl | C188: TomTheOwl | D188: 32514 | E188: Dark Elf | F188: Orkshire Puddings | G188: FALSE
A189: =IF(C189="","",MAX(A$1:A188)+1) -> 188 | B189: Twoshedzz | C189: Twoshedzz | D189: 32613 | E189: Chaos Chosen | F189: Orkshire Puddings | G189: FALSE
A190: =IF(C190="","",MAX(A$1:A189)+1) -> 189 | B190: Saltymurcutt | C190: Saltymurcutt | D190: 30556 | E190: Orc | F190: Salty Bowlers of London | G190: FALSE
A191: =IF(C191="","",MAX(A$1:A190)+1) -> 190 | B191: Grim_Jim | C191: Grim_Jim | D191: 30938 | E191: Shambling Undead | F191: Salty Bowlers of London | G191: FALSE
A192: =IF(C192="","",MAX(A$1:A191)+1) -> 191 | B192: Salontiger | C192: Salontiger | D192: 31398 | E192: Human | F192: Salty Bowlers of London | G192: FALSE
A193: =IF(C193="","",MAX(A$1:A192)+1) -> 192 | B193: Oranj | C193: Oranj | D193: 35010 | E193: Lizardmen | F193: Salty Bowlers of London | G193: FALSE
A194: =IF(C194="","",MAX(A$1:A193)+1) -> 193 | B194: Mournival | C194: Mournival | D194: 23496 | E194: Slann | F194: Seagulls 2: Electric Boogaloo | G194: FALSE
A195: =IF(C195="","",MAX(A$1:A194)+1) -> 194 | B195: Markymarc | C195: Markymarc | D195: 25254 | E195: Orc | F195: Seagulls 2: Electric Boogaloo | G195: FALSE
A196: =IF(C196="","",MAX(A$1:A195)+1) -> 195 | B196: Shriyke | C196: Shriyke | D196: 30033 | E196: Lizardmen | F196: Seagulls 2: Electric Boogaloo | G196: FALSE
A197: =IF(C197="","",MAX(A$1:A196)+1) -> 196 | B197: Fullfatbeard | C197: Fullfatbeard | D197: 30916 | E197: Vampire | F197: Seagulls 2: Electric Boogaloo | G197: FALSE
A198: =IF(C198="","",MAX(A$1:A197)+1) -> 197 | B198: Littleleadperson | C198: Littleleadperson | D198: 23767 | E198: Necromantic Horror | F198: Sheffield Stinkweasels | G198: FALSE
A199: =IF(C199="","",MAX(A$1:A198)+1) -> 198 | B199: Nodgefodgekins | C199: Nodgefodgekins | D199: 25323 | E199: Ogre | F199: Sheffield Stinkweasels | G199: 1
A200: =IF(C200="","",MAX(A$1:A199)+1) -> 199 | B200: Kyrkedalechris | C200: Kyrkedalechris | D200: 30788 | E200: Daemons of Khorne | F200: Sheffield Stinkweasels | G200: FALSE
... 145 more rows

Sheet Table
A1: Player | B1: Points | C1: TD For | D1: TD Against | E1: TD Net | F1: Cas For | G1: Cas Against | H1: Cas Net | I1: Bonus1 | J1: Bonus2 | K1: Wins | L1: Draws | M1: Losses | N1: Opp Score | P1: Group
A2: ScalesnScars | B2: 6 | C2: 7 | D2: 2 | E2: 5 | F2: 4 | G2: 6 | H2: -2 | I2: 4 | J2: 5 | K2: 3 | N2: 11 | P2: NOBBL Elite
A3: Warka | B3: 6 | C3: 7 | D3: 4 | E3: 3 | F3: 5 | G3: 8 | H3: -3 | I3: 1 | J3: 5 | K3: 3 | N3: 11 | P3: Steph, Stig and The Baldies
A4: PhilGC | B4: 6 | C4: 7 | D4: 3 | E4: 4 | F4: 5 | G4: 1 | H4: 4 | I4: 3 | J4: 5 | K4: 3 | N4: 9 | P4: Dice on Tour Team 1
A5: Gitgrinder | B5: 6 | C5: 5 | D5: 1 | E5: 4 | F5: 3 | G5: 6 | H5: -3 | I5: 5 | J5: 4 | K5: 3 | N5: 9 | P5: The Merry Men
A6: Deepfruit | B6: 6 | C6: 5 | D6: 2 | E6: 3 | F6: 7 | G6: 3 | H6: 4 | I6: 7 | J6: 4 | K6: 3 | N6: 9 | P6: Awesome Party People Part Deux
A7: SpaceEcho | B7: 6 | C7: 7 | D7: 3 | E7: 4 | F7: 4 | G7: 7 | H7: -3 | I7: 5 | J7: 4 | K7: 3 | N7: 8 | P7: North Yorkshire Table Top
A8: Wookiee1972 | B8: 6 | C8: 7 | D8: 3 | E8: 4 | F8: 3 | G8: 7 | H8: -4 | I8: 6 | J8: 4 | K8: 3 | N8: 8 | P8: Fellowship of the GBBL
A9: Ploppy_McPloppy | B9: 6 | C9: 8 | D9: 5 | E9: 3 | F9: 6 | G9: 6 | H9: 0 | I9: 5 | J9: 4 | K9: 3 | N9: 8 | P9: HEBBL Team A
A10: Masterful | B10: 5 | C10: 6 | D10: 4 | E10: 2 | F10: 5 | G10: 6 | H10: -1 | I10: 6 | J10: 3 | K10: 2 | L10: 1 | N10: 13 | P10: ECBBL Blackshirts
A11: TheBymster | B11: 5 | C11: 7 | D11: 3 | E11: 4 | F11: 4 | G11: 5 | H11: -1 | I11: 4 | J11: 9 | K11: 2 | L11: 1 | N11: 12 | P11: Wrekin Wraiders
A12: Jayward | B12: 5 | C12: 6 | D12: 3 | E12: 3 | F12: 6 | G12: 4 | H12: 2 | I12: 4 | J12: 6 | K12: 2 | L12: 1 | N12: 11 | P12: Team Wales
A13: Tyler_Swaft | B13: 5 | C13: 7 | D13: 2 | E13: 5 | F13: 4 | G13: 5 | H13: -1 | I13: 0 | J13: 5 | K13: 2 | L13: 1 | N13: 10 | P13: DBL Tropicana
A14: Joemanji | B14: 5 | C14: 8 | D14: 3 | E14: 5 | F14: 1 | G14: 6 | H14: -5 | I14: 4 | J14: 3 | K14: 2 | L14: 1 | N14: 10 | P14: All The Presidents Men
A15: HipsterPotter | B15: 5 | C15: 7 | D15: 3 | E15: 4 | F15: 5 | G15: 3 | H15: 2 | I15: 3 | J15: 4 | K15: 2 | L15: 1 | N15: 10 | P15: Two Guys One Dice Cup
A16: Mr_Mezcal | B16: 5 | C16: 8 | D16: 4 | E16: 4 | F16: 6 | G16: 4 | H16: 2 | I16: 2 | J16: 2 | K16: 2 | L16: 1 | N16: 10 | P16: Smoggies UTFB
A17: Earl_Burgomeister | B17: 5 | C17: 6 | D17: 3 | E17: 3 | F17: 8 | G17: 4 | H17: 4 | I17: 6 | J17: 3 | K17: 2 | L17: 1 | N17: 10 | P17: Deeside Double Skulls
A18: Jordellfb | B18: 5 | C18: 7 | D18: 4 | E18: 3 | F18: 3 | G18: 5 | H18: -2 | I18: 7 | J18: 2 | K18: 2 | L18: 1 | N18: 10 | P18: Awesome Party People Part Deux
A19: Spob | B19: 5 | C19: 5 | D19: 2 | E19: 3 | F19: 3 | G19: 5 | H19: -2 | I19: 7 | J19: 5 | K19: 2 | L19: 1 | N19: 10 | P19: Midtable Marauders
A20: Stephen82 | B20: 5 | C20: 7 | D20: 4 | E20: 3 | F20: 3 | G20: 6 | H20: -3 | I20: 5 | J20: 3 | K20: 2 | L20: 1 | N20: 10 | P20: Steph, Stig and The Baldies
A21: Fromherashes | B21: 5 | C21: 5 | D21: 2 | E21: 3 | F21: 2 | G21: 8 | H21: -6 | I21: 7 | J21: 3 | K21: 2 | L21: 1 | N21: 10 | P21: Two Guys One Dice Cup
A22: Bashto | B22: 5 | C22: 4 | D22: 2 | E22: 2 | F22: 6 | G22: 3 | H22: 3 | I22: 6 | J22: 5 | K22: 2 | L22: 1 | N22: 10 | P22: Tactics and Theatrics
A23: JKB | B23: 5 | C23: 8 | D23: 6 | E23: 2 | F23: 5 | G23: 4 | H23: 1 | I23: 1 | J23: 5 | K23: 2 | L23: 1 | N23: 10 | P23: TCC: A Up Me Ducks
A24: Speedingbullet | B24: 5 | C24: 4 | D24: 2 | E24: 2 | F24: 4 | G24: 4 | H24: 0 | I24: 6 | J24: 6 | K24: 2 | L24: 1 | N24: 10 | P24: Wrekin Wraiders
A25: Nodgefodgekins | B25: 5 | C25: 7 | D25: 5 | E25: 2 | F25: 3 | G25: 5 | H25: -2 | I25: 4 | J25: 4 | K25: 2 | L25: 1 | N25: 10 | P25: Sheffield Stinkweasels
A26: Vagabond1982uk | B26: 5 | C26: 5 | D26: 1 | E26: 4 | F26: 7 | G26: 5 | H26: 2 | I26: 3 | J26: 2 | K26: 2 | L26: 1 | N26: 9 | P26: Waterbowl Team Z
A27: Mr_Zay | B27: 5 | C27: 7 | D27: 4 | E27: 3 | F27: 6 | G27: 3 | H27: 3 | I27: 5 | J27: 5 | K27: 2 | L27: 1 | N27: 9 | P27: The Fellowship of the Ball
A28: HexBaron | B28: 5 | C28: 5 | D28: 2 | E28: 3 | F28: 5 | G28: 4 | H28: 1 | I28: 5 | J28: 3 | K28: 2 | L28: 1 | N28: 9 | P28: Bang Average Blood Bowlers
A29: edwith1d | B29: 5 | C29: 4 | D29: 1 | E29: 3 | F29: 3 | G29: 4 | H29: -1 | I29: 4 | J29: 7 | K29: 2 | L29: 1 | N29: 9 | P29: North Yorkshire Table Top
A30: Spic929 | B30: 5 | C30: 4 | D30: 2 | E30: 2 | F30: 6 | G30: 5 | H30: 1 | I30: 4 | J30: 2 | K30: 2 | L30: 1 | N30: 9 | P30: North Yorkshire Table Top
A31: GreenSkinPhil | B31: 5 | C31: 6 | D31: 4 | E31: 2 | F31: 3 | G31: 3 | H31: 0 | I31: 4 | J31: 5 | K31: 2 | L31: 1 | N31: 9 | P31: Team Republic Tryhards
A32: Pegleg | B32: 5 | C32: 5 | D32: 0 | E32: 5 | F32: 4 | G32: 2 | H32: 2 | I32: 3 | J32: 5 | K32: 2 | L32: 1 | N32: 8 | P32: Sann Clan
A33: Raging82 | B33: 5 | C33: 9 | D33: 6 | E33: 3 | F33: 3 | G33: 6 | H33: -3 | I33: 4 | J33: 4 | K33: 2 | L33: 1 | N33: 8 | P33: Hell n El Productions
A34: Elplanet4 | B34: 5 | C34: 7 | D34: 3 | E34: 4 | F34: 4 | G34: 4 | H34: 0 | I34: 5 | J34: 6 | K34: 2 | L34: 1 | N34: 7 | P34: The GoBBLers
A35: Shaniepoo1 | B35: 5 | C35: 8 | D35: 5 | E35: 3 | F35: 4 | G35: 4 | H35: 0 | I35: 1 | J35: 3 | K35: 2 | L35: 1 | N35: 7 | P35: Awesome Party People
A36: Indibro | B36: 5 | C36: 6 | D36: 3 | E36: 3 | F36: 4 | G36: 5 | H36: -1 | I36: 5 | J36: 6 | K36: 2 | L36: 1 | N36: 7 | P36: TCC: A Up Me Ducks
A37: Steairey | B37: 5 | C37: 7 | D37: 5 | E37: 2 | F37: 5 | G37: 4 | H37: 1 | I37: 6 | J37: 6 | K37: 2 | L37: 1 | N37: 7 | P37: ECBBL Aspiring Adequates
A38: AWT | B38: 5 | C38: 6 | D38: 4 | E38: 2 | F38: 2 | G38: 6 | H38: -4 | I38: 5 | J38: 6 | K38: 2 | L38: 1 | N38: 7 | P38: The Democratic Republic of Yorkshire
A39: Silkoun | B39: 5 | C39: 9 | D39: 6 | E39: 3 | F39: 5 | G39: 4 | H39: 1 | I39: 5 | J39: 8 | K39: 2 | L39: 1 | N39: 5 | P39: Les Azes
A40: Bb_jock | B40: 4 | C40: 6 | D40: 3 | E40: 3 | F40: 3 | G40: 4 | H40: -1 | I40: 6 | J40: 5 | K40: 2 | M40: 1 | N40: 12 | P40: Murder Aces
A41: Geminus_Calvariae | B41: 4 | C41: 4 | D41: 2 | E41: 2 | F41: 7 | G41: 6 | H41: 1 | I41: 5 | J41: 2 | K41: 2 | M41: 1 | N41: 12 | P41: Smoggies UTFB
A42: Galladur | B42: 4 | C42: 4 | D42: 3 | E42: 1 | F42: 5 | G42: 4 | H42: 1 | I42: 5 | J42: 6 | K42: 1 | L42: 2 | N42: 12 | P42: Les Azes
A43: Nobbla | B43: 4 | C43: 7 | D43: 4 | E43: 3 | F43: 7 | G43: 2 | H43: 5 | I43: 1 | J43: 3 | K43: 2 | M43: 1 | N43: 11 | P43: Awesome Party People Part Deux
A44: Sizzler | B44: 4 | C44: 5 | D44: 2 | E44: 3 | F44: 4 | G44: 3 | H44: 1 | I44: 5 | J44: 5 | K44: 2 | M44: 1 | N44: 11 | P44: Waterbowl Team Z
A45: DrTechnoTrousers | B45: 4 | C45: 5 | D45: 3 | E45: 2 | F45: 6 | G45: 1 | H45: 5 | I45: 5 | J45: 5 | K45: 1 | L45: 2 | N45: 11 | P45: Bang Average Blood Bowlers
A46: HighlandEnoch | B46: 4 | C46: 6 | D46: 4 | E46: 2 | F46: 2 | G46: 4 | H46: -2 | I46: 2 | J46: 5 | K46: 1 | L46: 2 | N46: 11 | P46: Murder Jokers
A47: Firebreather | B47: 4 | C47: 4 | D47: 3 | E47: 1 | F47: 3 | G47: 4 | H47: -1 | I47: 2 | J47: 2 | K47: 1 | L47: 2 | N47: 11 | P47: Midtable Marauders
A48: Dusher1 | B48: 4 | C48: 3 | D48: 2 | E48: 1 | F48: 5 | G48: 7 | H48: -2 | I48: 3 | J48: 3 | K48: 1 | L48: 2 | N48: 11 | P48: CLAW on Tour
A49: Fleetmacwood | B49: 4 | C49: 4 | D49: 4 | E49: 0 | F49: 5 | G49: 5 | H49: 0 | I49: 4 | J49: 2 | K49: 2 | M49: 1 | N49: 11 | P49: Murder Jokers
A50: Deeferdan | B50: 4 | C50: 8 | D50: 5 | E50: 3 | F50: 6 | G50: 5 | H50: 1 | I50: 6 | J50: 4 | K50: 1 | L50: 2 | N50: 10 | P50: The Fellowship of the Ball
A51: GingerB | B51: 4 | C51: 7 | D51: 4 | E51: 3 | F51: 5 | G51: 4 | H51: 1 | I51: 3 | J51: 2 | K51: 2 | M51: 1 | N51: 10 | P51: DBL Tropicana
A52: Mamapepe | B52: 4 | C52: 6 | D52: 4 | E52: 2 | F52: 2 | G52: 5 | H52: -3 | I52: 4 | J52: 6 | K52: 1 | L52: 2 | N52: 10 | P52: Chins Chumps and C.H.I.P.S.
A53: Edwin | B53: 4 | C53: 4 | D53: 3 | E53: 1 | F53: 4 | G53: 1 | H53: 3 | I53: 2 | J53: 5 | K53: 1 | L53: 2 | N53: 10 | P53: Dutch Pirates
A54: Divergent84 | B54: 4 | C54: 5 | D54: 4 | E54: 1 | F54: 8 | G54: 6 | H54: 2 | I54: 6 | J54: 4 | K54: 1 | L54: 2 | N54: 10 | P54: Old Man Monkeys Team
A55: Mournival | B55: 4 | C55: 6 | D55: 5 | E55: 1 | F55: 5 | G55: 4 | H55: 1 | I55: 2 | J55: 4 | K55: 1 | L55: 2 | N55: 10 | P55: Seagulls 2: Electric Boogaloo
A56: Owletta | B56: 4 | C56: 6 | D56: 5 | E56: 1 | F56: 3 | G56: 3 | H56: 0 | I56: 5 | J56: 3 | K56: 1 | L56: 2 | N56: 10 | P56: T and Three Sugars
A57: Gerdleah | B57: 4 | C57: 4 | D57: 3 | E57: 1 | F57: 6 | G57: 6 | H57: 0 | I57: 3 | J57: 5 | K57: 2 | M57: 1 | N57: 10 | P57: Murder Aces
A58: Slimjono | B58: 4 | C58: 5 | D58: 4 | E58: 1 | F58: 8 | G58: 9 | H58: -1 | I58: 6 | J58: 5 | K58: 2 | M58: 1 | N58: 10 | P58: The Democratic Republic of Yorkshire
A59: BigMace | B59: 4 | C59: 3 | D59: 2 | E59: 1 | F59: 4 | G59: 5 | H59: -1 | I59: 6 | J59: 6 | K59: 1 | L59: 2 | N59: 10 | P59: 2 Die Docks
A60: Snowtroll | B60: 4 | C60: 5 | D60: 4 | E60: 1 | F60: 2 | G60: 6 | H60: -4 | I60: 3 | J60: 1 | K60: 2 | M60: 1 | N60: 10 | P60: UKBBL Team A
A61: Nippylongskar | B61: 4 | C61: 6 | D61: 5 | E61: 1 | F61: 3 | G61: 7 | H61: -4 | I61: 4 | J61: 4 | K61: 1 | L61: 2 | N61: 10 | P61: Tacklezone Pirates
A62: Sam_Clark | B62: 4 | C62: 6 | D62: 6 | E62: 0 | F62: 5 | G62: 2 | H62: 3 | I62: 4 | J62: 6 | K62: 2 | M62: 1 | N62: 10 | P62: ABBL
A63: Wobert | B63: 4 | C63: 7 | D63: 7 | E63: 0 | F63: 6 | G63: 4 | H63: 2 | I63: 6 | J63: 4 | K63: 2 | M63: 1 | N63: 10 | P63: NOBBL Elite
A64: Calfykid | B64: 4 | C64: 5 | D64: 5 | E64: 0 | F64: 4 | G64: 2 | H64: 2 | I64: 5 | J64: 7 | K64: 2 | M64: 1 | N64: 10 | P64: Fellowship of the GBBL
A65: Spooner | B65: 4 | C65: 5 | D65: 5 | E65: 0 | F65: 5 | G65: 7 | H65: -2 | I65: 3 | J65: 8 | K65: 2 | M65: 1 | N65: 10 | P65: Granite City Seagulls
A66: Lewi88 | B66: 4 | C66: 5 | D66: 5 | E66: 0 | F66: 3 | G66: 5 | H66: -2 | I66: 7 | J66: 4 | K66: 2 | M66: 1 | N66: 10 | P66: UKBBL Team A
A67: Pipey | B67: 4 | C67: 5 | D67: 3 | E67: 2 | F67: 6 | G67: 1 | H67: 5 | I67: 8 | J67: 4 | K67: 2 | M67: 1 | N67: 9 | P67: Chins Chumps and C.H.I.P.S.
A68: Stonethrowingdevil | B68: 4 | C68: 5 | D68: 3 | E68: 2 | F68: 7 | G68: 5 | H68: 2 | I68: 4 | J68: 5 | K68: 1 | L68: 2 | N68: 9 | P68: Granite City Seagulls
A69: Feasteater | B69: 4 | C69: 4 | D69: 2 | E69: 2 | F69: 5 | G69: 3 | H69: 2 | I69: 8 | J69: 6 | K69: 1 | L69: 2 | N69: 9 | P69: Doom League
A70: Littlespoon | B70: 4 | C70: 5 | D70: 3 | E70: 2 | F70: 7 | G70: 8 | H70: -1 | I70: 5 | J70: 6 | K70: 2 | M70: 1 | N70: 9 | P70: HEBBL Team A
A71: WoodyWoodPecker | B71: 4 | C71: 6 | D71: 4 | E71: 2 | F71: 4 | G71: 5 | H71: -1 | I71: 4 | J71: 3 | K71: 1 | L71: 2 | N71: 9 | P71: Smoggies UTFB
A72: SpaceGandalf | B72: 4 | C72: 6 | D72: 4 | E72: 2 | F72: 3 | G72: 8 | H72: -5 | I72: 3 | J72: 5 | K72: 2 | M72: 1 | N72: 9 | P72: Murder Kings
A73: Vido | B73: 4 | C73: 3 | D73: 2 | E73: 1 | F73: 6 | G73: 3 | H73: 3 | I73: 5 | J73: 8 | K73: 2 | M73: 1 | N73: 9 | P73: 2 Die Docks
A74: Padster | B74: 4 | C74: 5 | D74: 4 | E74: 1 | F74: 5 | G74: 2 | H74: 3 | I74: 4 | J74: 4 | K74: 1 | L74: 2 | N74: 9 | P74: Deeside Double Skulls
A75: Artful_Dodger | B75: 4 | C75: 5 | D75: 4 | E75: 1 | F75: 5 | G75: 4 | H75: 1 | I75: 7 | J75: 3 | K75: 1 | L75: 2 | N75: 9 | P75: NOBBL Jesters
A76: Shortstack | B76: 4 | C76: 5 | D76: 4 | E76: 1 | F76: 6 | G76: 5 | H76: 1 | I76: 6 | J76: 4 | K76: 2 | M76: 1 | N76: 9 | P76: Sutton Immortals
A77: Saltymurcutt | B77: 4 | C77: 5 | D77: 4 | E77: 1 | F77: 4 | G77: 4 | H77: 0 | I77: 5 | J77: 5 | K77: 1 | L77: 2 | N77: 9 | P77: Salty Bowlers of London
A78: Fullfatbeard | B78: 4 | C78: 5 | D78: 4 | E78: 1 | F78: 4 | G78: 5 | H78: -1 | I78: 5 | J78: 6 | K78: 2 | M78: 1 | N78: 9 | P78: Seagulls 2: Electric Boogaloo
A79: Jago21 | B79: 4 | C79: 2 | D79: 1 | E79: 1 | F79: 4 | G79: 7 | H79: -3 | I79: 7 | J79: 5 | K79: 2 | M79: 1 | N79: 9 | P79: NOBBL Elite
A80: Vulture_Squadron | B80: 4 | C80: 5 | D80: 4 | E80: 1 | F80: 1 | G80: 6 | H80: -5 | I80: 4 | J80: 3 | K80: 2 | M80: 1 | N80: 9 | P80: HEBBL Team B
A81: Ringbeard | B81: 4 | C81: 5 | D81: 5 | E81: 0 | F81: 4 | G81: 6 | H81: -2 | I81: 2 | J81: 5 | K81: 2 | M81: 1 | N81: 9 | P81: Midtable Marauders
A82: Orcthadontist | B82: 4 | C82: 7 | D82: 4 | E82: 3 | F82: 6 | G82: 5 | H82: 1 | I82: 6 | J82: 3 | K82: 1 | L82: 2 | N82: 8 | P82: Murder Jacks
A83: Cerberus85 | B83: 4 | C83: 3 | D83: 1 | E83: 2 | F83: 4 | G83: 2 | H83: 2 | I83: 4 | J83: 6 | K83: 1 | L83: 2 | N83: 8 | P83: North Yorkshire Table Top
A84: Elyod | B84: 4 | C84: 5 | D84: 3 | E84: 2 | F84: 7 | G84: 6 | H84: 1 | I84: 7 | J84: 5 | K84: 1 | L84: 2 | N84: 8 | P84: Elyud Dimkok
A85: Camelchops | B85: 4 | C85: 3 | D85: 1 | E85: 2 | F85: 5 | G85: 4 | H85: 1 | I85: 4 | J85: 3 | K85: 1 | L85: 2 | N85: 8 | P85: CLAW on Tour
A86: Levinas | B86: 4 | C86: 5 | D86: 3 | E86: 2 | F86: 5 | G86: 5 | H86: 0 | I86: 3 | J86: 3 | K86: 1 | L86: 2 | N86: 8 | P86: Waterbowl Team Z
A87: ChrisRaff88 | B87: 4 | C87: 4 | D87: 2 | E87: 2 | F87: 4 | G87: 4 | H87: 0 | I87: 7 | J87: 6 | K87: 2 | M87: 1 | N87: 8 | P87: Murder Kings
A88: Whisky_Pip | B88: 4 | C88: 7 | D88: 5 | E88: 2 | F88: 3 | G88: 5 | H88: -2 | I88: 6 | J88: 2 | K88: 1 | L88: 2 | N88: 8 | P88: Fellowship of the GBBL
A89: Breakmonker | B89: 4 | C89: 4 | D89: 2 | E89: 2 | F89: 3 | G89: 5 | H89: -2 | I89: 6 | J89: 7 | K89: 1 | L89: 2 | N89: 8 | P89: Tactics and Theatrics
A90: BROCKdodge | B90: 4 | C90: 7 | D90: 6 | E90: 1 | F90: 6 | G90: 3 | H90: 3 | I90: 3 | J90: 6 | K90: 1 | L90: 2 | N90: 8 | P90: The GoBBLers
A91: Stick_with_poo_on_the_end | B91: 4 | C91: 6 | D91: 5 | E91: 1 | F91: 6 | G91: 3 | H91: 3 | I91: 6 | J91: 5 | K91: 2 | M91: 1 | N91: 8 | P91: Steph, Stig and The Baldies
A92: Liam | B92: 4 | C92: 5 | D92: 4 | E92: 1 | F92: 5 | G92: 4 | H92: 1 | I92: 4 | J92: 6 | K92: 2 | M92: 1 | N92: 8 | P92: BolognaBowl
A93: Goldengate | B93: 4 | C93: 5 | D93: 4 | E93: 1 | F93: 5 | G93: 4 | H93: 1 | I93: 4 | J93: 3 | K93: 1 | L93: 2 | N93: 8 | P93: Wrekin Wraiders
A94: Fackko | B94: 4 | C94: 7 | D94: 6 | E94: 1 | F94: 2 | G94: 5 | H94: -3 | I94: 6 | J94: 7 | K94: 1 | L94: 2 | N94: 8 | P94: BolognaBowl
A95: Chorfling | B95: 4 | C95: 6 | D95: 5 | E95: 1 | F95: 3 | G95: 6 | H95: -3 | I95: 3 | J95: 6 | K95: 1 | L95: 2 | N95: 8 | P95: CLAW on Tour
A96: The_mighty_irush | B96: 4 | C96: 4 | D96: 4 | E96: 0 | F96: 6 | G96: 3 | H96: 3 | I96: 6 | J96: 6 | K96: 2 | M96: 1 | N96: 8 | P96: Cheltenham IGBB Raiders
A97: Outkast | B97: 4 | C97: 6 | D97: 3 | E97: 3 | F97: 5 | G97: 4 | H97: 1 | I97: 6 | J97: 6 | K97: 1 | L97: 2 | N97: 7 | P97: Team Republic Tryhards
A98: Whiskeymancer | B98: 4 | C98: 6 | D98: 4 | E98: 2 | F98: 7 | G98: 6 | H98: 1 | I98: 6 | J98: 7 | K98: 2 | M98: 1 | N98: 7 | P98: Dice on Tour Team 1
A99: Stewbacca | B99: 4 | C99: 6 | D99: 4 | E99: 2 | F99: 6 | G99: 5 | H99: 1 | I99: 2 | J99: 6 | K99: 2 | M99: 1 | N99: 7 | P99: Sann Clan
A100: Douglowe | B100: 4 | C100: 5 | D100: 4 | E100: 1 | F100: 6 | G100: 4 | H100: 2 | I100: 3 | J100: 4 | K100: 2 | M100: 1 | N100: 7 | P100: Waterbowl Team Z
A101: Gcoleman | B101: 4 | C101: 4 | D101: 3 | E101: 1 | F101: 7 | G101: 6 | H101: 1 | I101: 4 | J101: 9 | K101: 1 | L101: 2 | N101: 7 | P101: Team Wales
A102: EnglishChris | B102: 4 | C102: 3 | D102: 2 | E102: 1 | F102: 5 | G102: 5 | H102: 0 | I102: 4 | J102: 4 | K102: 1 | L102: 2 | N102: 7 | P102: Dice In The Alley
A103: Ens1ferum | B103: 4 | C103: 3 | D103: 2 | E103: 1 | F103: 2 | G103: 2 | H103: 0 | I103: 2 | J103: 3 | K103: 1 | L103: 2 | N103: 7 | P103: NOBBL Jesters
A104: ICY-Bee | B104: 4 | C104: 5 | D104: 4 | E104: 1 | F104: 6 | G104: 7 | H104: -1 | I104: 3 | J104: 6 | K104: 1 | L104: 2 | N104: 7 | P104: The GoBBLers
A105: JBone | B105: 4 | C105: 4 | D105: 4 | E105: 0 | F105: 6 | G105: 6 | H105: 0 | I105: 5 | J105: 8 | K105: 2 | M105: 1 | N105: 7 | P105: Tacklezone Pirates
A106: Maitre_tactac | B106: 4 | C106: 7 | D106: 5 | E106: 2 | F106: 4 | G106: 6 | H106: -2 | I106: 2 | J106: 3 | K106: 2 | M106: 1 | N106: 6 | P106: Lutece Noobs
A107: Celt | B107: 4 | C107: 4 | D107: 3 | E107: 1 | F107: 7 | G107: 3 | H107: 4 | I107: 1 | J107: 5 | K107: 1 | L107: 2 | N107: 6 | P107: Team Wales
A108: Dragonborn | B108: 4 | C108: 5 | D108: 4 | E108: 1 | F108: 5 | G108: 6 | H108: -1 | I108: 6 | J108: 6 | K108: 2 | M108: 1 | N108: 6 | P108: Wrekin Wraiders
A109: The_Fritch | B109: 4 | C109: 6 | D109: 5 | E109: 1 | F109: 4 | G109: 3 | H109: 1 | I109: 3 | J109: 3 | K109: 2 | M109: 1 | N109: 5 | P109: TCC: BoBin for Ducks
A110: N'Sh'Koben | B110: 4 | C110: 6 | D110: 5 | E110: 1 | F110: 7 | G110: 7 | H110: 0 | I110: 3 | J110: 7 | K110: 2 | M110: 1 | N110: 5 | P110: ABBL
A111: HuntlyLoon | B111: 4 | C111: 5 | D111: 4 | E111: 1 | F111: 4 | G111: 4 | H111: 0 | I111: 7 | J111: 3 | K111: 2 | M111: 1 | N111: 5 | P111: Two Guys One Dice Cup
A112: Europanda | B112: 4 | C112: 7 | D112: 6 | E112: 1 | F112: 2 | G112: 4 | H112: -2 | I112: 7 | J112: 5 | K112: 2 | M112: 1 | N112: 5 | P112: Granite City Seagulls
A113: Shortstuff | B113: 4 | C113: 3 | D113: 2 | E113: 1 | F113: 3 | G113: 6 | H113: -3 | I113: 6 | J113: 2 | K113: 2 | M113: 1 | N113: 5 | P113: Cheltenham IGBB Raiders
A114: Munch | B114: 3 | C114: 4 | D114: 4 | E114: 0 | F114: 6 | G114: 4 | H114: 2 | I114: 6 | J114: 5 | K114: 1 | L114: 1 | M114: 1 | N114: 14 | P114: Awesome Party People
A115: ThomasW | B115: 3 | C115: 5 | D115: 4 | E115: 1 | F115: 6 | G115: 3 | H115: 3 | I115: 3 | J115: 3 | K115: 1 | L115: 1 | M115: 1 | N115: 13 | P115: TeamW
A116: Ratmaninov | B116: 3 | C116: 5 | D116: 4 | E116: 1 | F116: 5 | G116: 3 | H116: 2 | I116: 5 | J116: 5 | K116: 1 | L116: 1 | M116: 1 | N116: 13 | P116: ABBL
A117: Gallo | B117: 3 | C117: 5 | D117: 5 | E117: 0 | F117: 4 | G117: 6 | H117: -2 | I117: 6 | J117: 3 | K117: 1 | L117: 1 | M117: 1 | N117: 13 | P117: BolognaBowl
A118: Old_Man_Monkey | B118: 3 | C118: 5 | D118: 6 | E118: -1 | F118: 6 | G118: 4 | H118: 2 | I118: 3 | J118: 4 | K118: 1 | L118: 1 | M118: 1 | N118: 13 | P118: Old Man Monkeys Team
A119: Rev | B119: 3 | C119: 3 | D119: 4 | E119: -1 | F119: 4 | G119: 3 | H119: 1 | I119: 5 | J119: 7 | K119: 1 | L119: 1 | M119: 1 | N119: 13 | P119: TCC: BoBin for Ducks
A120: TateRolls1s | B120: 3 | C120: 6 | D120: 4 | E120: 2 | F120: 3 | G120: 5 | H120: -2 | I120: 3 | J120: 4 | K120: 1 | L120: 1 | M120: 1 | N120: 12 | P120: Iconic Atomics
A121: Sporran | B121: 3 | C121: 5 | D121: 3 | E121: 2 | F121: 2 | G121: 5 | H121: -3 | I121: 4 | J121: 2 | K121: 1 | L121: 1 | M121: 1 | N121: 12 | P121: Murder Aces
A122: Barnacles | B122: 3 | C122: 6 | D122: 5 | E122: 1 | F122: 5 | G122: 6 | H122: -1 | I122: 5 | J122: 4 | K122: 1 | L122: 1 | M122: 1 | N122: 12 | P122: The GoBBLers
A123: Brickp | B123: 3 | C123: 4 | D123: 3 | E123: 1 | F123: 4 | G123: 5 | H123: -1 | I123: 8 | J123: 3 | K123: 1 | L123: 1 | M123: 1 | N123: 12 | P123: Team Republic Chill Squad
A124: Dayday | B124: 3 | C124: 4 | D124: 4 | E124: 0 | F124: 8 | G124: 5 | H124: 3 | I124: 4 | J124: 8 | L124: 3 | N124: 12 | P124: Bang Average Blood Bowlers
A125: Wulfyn | B125: 3 | C125: 3 | D125: 3 | E125: 0 | F125: 5 | G125: 4 | H125: 1 | I125: 4 | J125: 6 | K125: 1 | L125: 1 | M125: 1 | N125: 12 | P125: Tacklezone Pirates
A126: Fredmanwalking | B126: 3 | C126: 3 | D126: 4 | E126: -1 | F126: 3 | G126: 4 | H126: -1 | I126: 1 | J126: 5 | K126: 1 | L126: 1 | M126: 1 | N126: 12 | P126: Granite City Seagulls
A127: Jeeves | B127: 3 | C127: 3 | D127: 5 | E127: -2 | F127: 3 | G127: 3 | H127: 0 | I127: 4 | J127: 5 | K127: 1 | L127: 1 | M127: 1 | N127: 12 | P127: Chins Chumps and C.H.I.P.S.
A128: Fiddlesticks | B128: 3 | C128: 6 | D128: 5 | E128: 1 | F128: 7 | G128: 3 | H128: 4 | I128: 4 | J128: 2 | K128: 1 | L128: 1 | M128: 1 | N128: 11 | P128: Orkshire Puddings
A129: ThatOtherAsianGuy | B129: 3 | C129: 6 | D129: 5 | E129: 1 | F129: 5 | G129: 4 | H129: 1 | I129: 3 | J129: 3 | K129: 1 | L129: 1 | M129: 1 | N129: 11 | P129: Dragons
A130: HenningEksteen | B130: 3 | C130: 4 | D130: 4 | E130: 0 | F130: 4 | G130: 3 | H130: 1 | I130: 4 | J130: 5 | K130: 1 | L130: 1 | M130: 1 | N130: 11 | P130: Dutch Pirates
A131: Kyrkedalechris | B131: 3 | C131: 7 | D131: 7 | E131: 0 | F131: 6 | G131: 6 | H131: 0 | I131: 7 | J131: 7 | L131: 3 | N131: 11 | P131: Sheffield Stinkweasels
A132: Biereforever | B132: 3 | C132: 6 | D132: 6 | E132: 0 | F132: 6 | G132: 6 | H132: 0 | I132: 4 | J132: 6 | K132: 1 | L132: 1 | M132: 1 | N132: 11 | P132: Les Azes
A133: Lycos | B133: 3 | C133: 4 | D133: 4 | E133: 0 | F133: 3 | G133: 3 | H133: 0 | I133: 3 | J133: 7 | K133: 1 | L133: 1 | M133: 1 | N133: 11 | P133: All The Presidents Men
A134: Pbowman | B134: 3 | C134: 3 | D134: 3 | E134: 0 | F134: 4 | G134: 5 | H134: -1 | I134: 4 | J134: 6 | L134: 3 | N134: 11 | P134: Murder Queens
A135: Chilli | B135: 3 | C135: 5 | D135: 5 | E135: 0 | F135: 4 | G135: 5 | H135: -1 | I135: 6 | J135: 4 | K135: 1 | L135: 1 | M135: 1 | N135: 11 | P135: Two Guys One Dice Cup
A136: Elperas | B136: 3 | C136: 4 | D136: 5 | E136: -1 | F136: 1 | G136: 5 | H136: -4 | I136: 4 | J136: 1 | K136: 1 | L136: 1 | M136: 1 | N136: 11 | P136: Awesome Party People
A137: Dakyrus | B137: 3 | C137: 2 | D137: 4 | E137: -2 | F137: 2 | G137: 3 | H137: -1 | I137: 6 | J137: 6 | K137: 1 | L137: 1 | M137: 1 | N137: 11 | P137: Deeside Double Skulls
A138: TTGumption | B138: 3 | C138: 4 | D138: 4 | E138: 0 | F138: 8 | G138: 3 | H138: 5 | I138: 5 | J138: 2 | L138: 3 | N138: 10 | P138: Team Miss Next Game
A139: Purdindas | B139: 3 | C139: 2 | D139: 2 | E139: 0 | F139: 3 | G139: 2 | H139: 1 | I139: 6 | J139: 6 | K139: 1 | L139: 1 | M139: 1 | N139: 10 | P139: Murder Aces
A140: Tomfoolery | B140: 3 | C140: 7 | D140: 7 | E140: 0 | F140: 4 | G140: 3 | H140: 1 | I140: 5 | J140: 3 | L140: 3 | N140: 10 | P140: Let Me Atom
A141: DizzyBess | B141: 3 | C141: 2 | D141: 2 | E141: 0 | F141: 5 | G141: 5 | H141: 0 | I141: 3 | J141: 7 | L141: 3 | N141: 10 | P141: Hey Listen and The Guy We Found in Nandos
A142: Gingerballer | B142: 3 | C142: 2 | D142: 2 | E142: 0 | F142: 2 | G142: 2 | H142: 0 | I142: 5 | J142: 2 | L142: 3 | N142: 10 | P142: The GoBBLed
A143: SickAsEggs | B143: 3 | C143: 4 | D143: 4 | E143: 0 | F143: 4 | G143: 5 | H143: -1 | I143: 5 | J143: 7 | K143: 1 | L143: 1 | M143: 1 | N143: 10 | P143: Famous Tomb Guardians
A144: Gizmo3k | B144: 3 | C144: 5 | D144: 5 | E144: 0 | F144: 6 | G144: 8 | H144: -2 | I144: 8 | J144: 4 | L144: 3 | N144: 10 | P144: Murder Queens
A145: Hankok | B145: 3 | C145: 4 | D145: 4 | E145: 0 | F145: 5 | G145: 7 | H145: -2 | I145: 3 | J145: 5 | K145: 1 | L145: 1 | M145: 1 | N145: 10 | P145: Elyud Dimkok
A146: I_done_goofd | B146: 3 | C146: 5 | D146: 5 | E146: 0 | F146: 3 | G146: 5 | H146: -2 | I146: 8 | J146: 6 | L146: 3 | N146: 10 | P146: Murder Kings
A147: Kid_Cantcomplain | B147: 3 | C147: 4 | D147: 4 | E147: 0 | F147: 4 | G147: 7 | H147: -3 | I147: 5 | J147: 3 | K147: 1 | L147: 1 | M147: 1 | N147: 10 | P147: T and Three Sugars
A148: Oklaoma | B148: 3 | C148: 4 | D148: 5 | E148: -1 | F148: 4 | G148: 1 | H148: 3 | I148: 5 | J148: 4 | K148: 1 | L148: 1 | M148: 1 | N148: 10 | P148: Les Azes
A149: Twoshedzz | B149: 3 | C149: 4 | D149: 5 | E149: -1 | F149: 4 | G149: 4 | H149: 0 | I149: 5 | J149: 5 | K149: 1 | L149: 1 | M149: 1 | N149: 10 | P149: Orkshire Puddings
A150: Cornish | B150: 3 | C150: 4 | D150: 5 | E150: -1 | F150: 3 | G150: 4 | H150: -1 | I150: 7 | J150: 4 | K150: 1 | L150: 1 | M150: 1 | N150: 10 | P150: Shiretown Stuffers
A151: Daubs | B151: 3 | C151: 3 | D151: 4 | E151: -1 | F151: 2 | G151: 4 | H151: -2 | I151: 5 | J151: 4 | K151: 1 | L151: 1 | M151: 1 | N151: 10 | P151: The GoBBLed
A152: Zooey | B152: 3 | C152: 3 | D152: 5 | E152: -2 | F152: 2 | G152: 6 | H152: -4 | I152: 2 | J152: 4 | K152: 1 | L152: 1 | M152: 1 | N152: 10 | P152: Sheffield Stinkweasels
A153: Laser_Owl | B153: 3 | C153: 5 | D153: 4 | E153: 1 | F153: 7 | G153: 7 | H153: 0 | I153: 4 | J153: 7 | K153: 1 | L153: 1 | M153: 1 | N153: 9 | P153: Orkshire
A154: CharlieBanks | B154: 3 | C154: 6 | D154: 5 | E154: 1 | F154: 4 | G154: 6 | H154: -2 | I154: 4 | J154: 3 | K154: 1 | L154: 1 | M154: 1 | N154: 9 | P154: The Merry Men
A155: Aaaardvark101 | B155: 3 | C155: 7 | D155: 6 | E155: 1 | F155: 4 | G155: 6 | H155: -2 | I155: 5 | J155: 4 | K155: 1 | L155: 1 | M155: 1 | N155: 9 | P155: Dragons
A156: TomTheOwl | B156: 3 | C156: 5 | D156: 5 | E156: 0 | F156: 8 | G156: 4 | H156: 4 | I156: 6 | J156: 3 | L156: 3 | N156: 9 | P156: Orkshire Puddings
A157: Forgotmytea | B157: 3 | C157: 3 | D157: 3 | E157: 0 | F157: 7 | G157: 4 | H157: 3 | I157: 5 | J157: 7 | L157: 3 | N157: 9 | P157: Awesome Party People
A158: BartK | B158: 3 | C158: 4 | D158: 4 | E158: 0 | F158: 4 | G158: 3 | H158: 1 | I158: 4 | J158: 4 | K158: 1 | L158: 1 | M158: 1 | N158: 9 | P158: ECBBL Ten-Tackles
A159: DrHellboy_ | B159: 3 | C159: 5 | D159: 5 | E159: 0 | F159: 7 | G159: 6 | H159: 1 | I159: 4 | J159: 6 | K159: 1 | L159: 1 | M159: 1 | N159: 9 | P159: Hell n El Productions
A160: Wynters_Dad | B160: 3 | C160: 7 | D160: 7 | E160: 0 | F160: 5 | G160: 5 | H160: 0 | I160: 5 | J160: 4 | L160: 3 | N160: 9 | P160: Monstrous Tynemouth
A161: Fallingdownjoe | B161: 3 | C161: 4 | D161: 4 | E161: 0 | F161: 4 | G161: 4 | H161: 0 | I161: 5 | J161: 3 | K161: 1 | L161: 1 | M161: 1 | N161: 9 | P161: Hell n El Productions
A162: LordGarlack | B162: 3 | C162: 3 | D162: 3 | E162: 0 | F162: 6 | G162: 6 | H162: 0 | I162: 1 | J162: 4 | K162: 1 | L162: 1 | M162: 1 | N162: 9 | P162: Murder Queens
A163: 3_Dice_Uphill | B163: 3 | C163: 4 | D163: 4 | E163: 0 | F163: 7 | G163: 8 | H163: -1 | I163: 5 | J163: 2 | K163: 1 | L163: 1 | M163: 1 | N163: 9 | P163: HEBBL Team B
A164: JuJuu | B164: 3 | C164: 6 | D164: 6 | E164: 0 | F164: 0 | G164: 4 | H164: -4 | I164: 5 | J164: 4 | L164: 3 | N164: 9 | P164: ECBBL Ten-Tackles
A165: Salontiger | B165: 3 | C165: 4 | D165: 4 | E165: 0 | F165: 1 | G165: 6 | H165: -5 | I165: 3 | J165: 2 | K165: 1 | L165: 1 | M165: 1 | N165: 9 | P165: Salty Bowlers of London
A166: Vmcat | B166: 3 | C166: 7 | D166: 5 | E166: 2 | F166: 8 | G166: 6 | H166: 2 | I166: 5 | J166: 3 | K166: 1 | L166: 1 | M166: 1 | N166: 8 | P166: ECBBL Blackshirts
A167: HEBBL Team B #4 | B167: 3 | C167: 5 | D167: 4 | E167: 1 | F167: 4 | G167: 4 | H167: 0 | I167: 5 | J167: 5 | K167: 1 | L167: 1 | M167: 1 | N167: 8 | P167: HEBBL Team B
A168: 03philpota | B168: 3 | C168: 5 | D168: 4 | E168: 1 | F168: 3 | G168: 6 | H168: -3 | I168: 3 | J168: 4 | K168: 1 | L168: 1 | M168: 1 | N168: 8 | P168: ABBL
A169: Haktar | B169: 3 | C169: 5 | D169: 5 | E169: 0 | F169: 6 | G169: 3 | H169: 3 | I169: 5 | J169: 2 | K169: 1 | L169: 1 | M169: 1 | N169: 8 | P169: La Ruelle
A170: Shipaz | B170: 3 | C170: 4 | D170: 4 | E170: 0 | F170: 6 | G170: 6 | H170: 0 | I170: 2 | J170: 5 | K170: 1 | L170: 1 | M170: 1 | N170: 8 | P170: Snake Eyes and GFIs
A171: NickBell | B171: 3 | C171: 4 | D171: 4 | E171: 0 | F171: 6 | G171: 7 | H171: -1 | I171: 5 | J171: 5 | K171: 1 | L171: 1 | M171: 1 | N171: 8 | P171: 2 Die Docks
A172: Mefspores | B172: 3 | C172: 4 | D172: 4 | E172: 0 | F172: 4 | G172: 6 | H172: -2 | I172: 5 | J172: 5 | L172: 3 | N172: 8 | P172: Team Republic Chill Squad
A173: Falesh | B173: 3 | C173: 4 | D173: 4 | E173: 0 | F173: 4 | G173: 7 | H173: -3 | I173: 6 | J173: 7 | K173: 1 | L173: 1 | M173: 1 | N173: 8 | P173: Orkshire
A174: pedro_laserbeard | B174: 3 | C174: 6 | D174: 7 | E174: -1 | F174: 4 | G174: 4 | H174: 0 | I174: 6 | J174: 5 | K174: 1 | L174: 1 | M174: 1 | N174: 8 | P174: NOBBL Jesters
A175: Everybodys_Dead_Dave | B175: 3 | C175: 4 | D175: 6 | E175: -2 | F175: 5 | G175: 4 | H175: 1 | I175: 6 | J175: 3 | K175: 1 | L175: 1 | M175: 1 | N175: 8 | P175: Shiretown Stuffers
A176: Bloodtithe | B176: 3 | C176: 7 | D176: 6 | E176: 1 | F176: 7 | G176: 5 | H176: 2 | I176: 6 | J176: 6 | K176: 1 | L176: 1 | M176: 1 | N176: 7 | P176: Tactics and Theatrics
A177: PeteW | B177: 3 | C177: 4 | D177: 4 | E177: 0 | F177: 5 | G177: 2 | H177: 3 | I177: 6 | J177: 3 | K177: 1 | L177: 1 | M177: 1 | N177: 7 | P177: TeamW
A178: Oranj | B178: 3 | C178: 4 | D178: 4 | E178: 0 | F178: 6 | G178: 5 | H178: 1 | I178: 4 | J178: 4 | L178: 3 | N178: 7 | P178: Salty Bowlers of London
A179: King_Ghidra | B179: 3 | C179: 4 | D179: 4 | E179: 0 | F179: 4 | G179: 4 | H179: 0 | I179: 5 | J179: 3 | K179: 1 | L179: 1 | M179: 1 | N179: 7 | P179: ECBBL Ten-Tackles
A180: 8ulldog | B180: 3 | C180: 4 | D180: 4 | E180: 0 | F180: 7 | G180: 7 | H180: 0 | I180: 3 | J180: 6 | K180: 1 | L180: 1 | M180: 1 | N180: 7 | P180: 2 Die Docks
A181: Sparky | B181: 3 | C181: 4 | D181: 4 | E181: 0 | F181: 4 | G181: 5 | H181: -1 | I181: 7 | J181: 6 | K181: 1 | L181: 1 | M181: 1 | N181: 7 | P181: Sutton Immortals
A182: Bungeeman | B182: 3 | C182: 5 | D182: 5 | E182: 0 | F182: 3 | G182: 5 | H182: -2 | I182: 5 | J182: 4 | L182: 3 | N182: 7 | P182: TCC: BoBin for Ducks
A183: Obsydyan | B183: 3 | C183: 5 | D183: 6 | E183: -1 | F183: 2 | G183: 2 | H183: 0 | I183: 4 | J183: 5 | K183: 1 | L183: 1 | M183: 1 | N183: 7 | P183: T and Three Sugars
A184: Jamelius | B184: 3 | C184: 4 | D184: 5 | E184: -1 | F184: 3 | G184: 3 | H184: 0 | I184: 5 | J184: 5 | K184: 1 | L184: 1 | M184: 1 | N184: 7 | P184: Doom League
A185: Starkey | B185: 3 | C185: 5 | D185: 6 | E185: -1 | F185: 4 | G185: 6 | H185: -2 | I185: 4 | J185: 3 | K185: 1 | L185: 1 | M185: 1 | N185: 7 | P185: NOBBL Elite
A186: JimJimany | B186: 3 | C186: 3 | D186: 5 | E186: -2 | F186: 4 | G186: 1 | H186: 3 | I186: 8 | J186: 3 | K186: 1 | L186: 1 | M186: 1 | N186: 7 | P186: All The Presidents Men
A187: Torquemada | B187: 3 | C187: 5 | D187: 4 | E187: 1 | F187: 5 | G187: 6 | H187: -1 | I187: 2 | J187: 2 | K187: 1 | L187: 1 | M187: 1 | N187: 6 | P187: Team Republic Tryhards
A188: Burtblahblahblah | B188: 3 | C188: 4 | D188: 3 | E188: 1 | F188: 3 | G188: 7 | H188: -4 | I188: 3 | J188: 6 | K188: 1 | L188: 1 | M188: 1 | N188: 6 | P188: Orkshire
A189: Shriyke | B189: 3 | C189: 2 | D189: 2 | E189: 0 | F189: 4 | G189: 1 | H189: 3 | I189: 3 | J189: 2 | K189: 1 | L189: 1 | M189: 1 | N189: 6 | P189: Seagulls 2: Electric Boogaloo
A190: SilentKnight | B190: 3 | C190: 3 | D190: 3 | E190: 0 | F190: 6 | G190: 5 | H190: 1 | I190: 4 | J190: 7 | K190: 1 | L190: 1 | M190: 1 | N190: 6 | P190: CLAW on Tour
A191: Lamour | B191: 3 | C191: 5 | D191: 5 | E191: 0 | F191: 4 | G191: 4 | H191: 0 | I191: 5 | J191: 4 | K191: 1 | L191: 1 | M191: 1 | N191: 6 | P191: The Fellowship of the Ball
A192: Fingers | B192: 3 | C192: 7 | D192: 7 | E192: 0 | F192: 5 | G192: 5 | H192: 0 | I192: 6 | J192: 5 | L192: 3 | N192: 6 | P192: 2 Up 2 Down
A193: Mawph | B193: 3 | C193: 4 | D193: 4 | E193: 0 | F193: 3 | G193: 4 | H193: -1 | I193: 4 | J193: 3 | K193: 1 | L193: 1 | M193: 1 | N193: 6 | P193: Team TimeOut
A194: CoachKAS | B194: 3 | C194: 4 | D194: 4 | E194: 0 | F194: 6 | G194: 7 | H194: -1 | I194: 6 | J194: 4 | K194: 1 | L194: 1 | M194: 1 | N194: 6 | P194: Team Republic Chill Squad
A195: Nicap | B195: 3 | C195: 3 | D195: 3 | E195: 0 | F195: 2 | G195: 3 | H195: -1 | I195: 3 | J195: 6 | K195: 1 | L195: 1 | M195: 1 | N195: 6 | P195: Lutece Noobs
A196: Mazza86 | B196: 3 | C196: 4 | D196: 5 | E196: -1 | F196: 4 | G196: 7 | H196: -3 | I196: 4 | J196: 4 | K196: 1 | L196: 1 | M196: 1 | N196: 6 | P196: HEBBL Team B
A197: Aldpoagus | B197: 3 | C197: 7 | D197: 6 | E197: 1 | F197: 5 | G197: 5 | H197: 0 | I197: 4 | J197: 4 | K197: 1 | L197: 1 | M197: 1 | N197: 5 | P197: Murder Jacks
A198: Thulean | B198: 3 | C198: 8 | D198: 7 | E198: 1 | F198: 4 | G198: 6 | H198: -2 | I198: 6 | J198: 4 | K198: 1 | L198: 1 | M198: 1 | N198: 5 | P198: The Fellowship of the Ball
A199: Haychdee | B199: 3 | C199: 3 | D199: 3 | E199: 0 | F199: 4 | G199: 4 | H199: 0 | I199: 6 | J199: 4 | K199: 1 | L199: 1 | M199: 1 | N199: 5 | P199: Tactics and Theatrics
A200: Don_Vito | B200: 2 | C200: 4 | D200: 5 | E200: -1 | F200: 5 | G200: 8 | H200: -3 | I200: 4 | J200: 6 | L200: 2 | M200: 1 | N200: 13 | P200: Fellowship of the GBBL
... 105 more rows

Sheet Stunty
A1: Player | B1: Points | C1: TD For | D1: TD Against | E1: TD Net | F1: Cas For | G1: Cas Against | H1: Cas Net | I1: Bonus1 | J1: Bonus2 | K1: Wins | L1: Draws | M1: Losses | N1: Opp Score | O1: Race | P1: Group
A2: Nodgefodgekins | B2: 5 | C2: 7 | D2: 5 | E2: 2 | F2: 3 | G2: 5 | H2: -2 | I2: 4 | J2: 4 | K2: 2 | L2: 1 | N2: 10 | O2: Ogre | P2: Sheffield Stinkweasels
A3: Vagabond1982uk | B3: 5 | C3: 5 | D3: 1 | E3: 4 | F3: 7 | G3: 5 | H3: 2 | I3: 3 | J3: 2 | K3: 2 | L3: 1 | N3: 9 | O3: Ogre | P3: Waterbowl Team Z
A4: Raging82 | B4: 5 | C4: 9 | D4: 6 | E4: 3 | F4: 3 | G4: 6 | H4: -3 | I4: 4 | J4: 4 | K4: 2 | L4: 1 | N4: 8 | O4: Snotling | P4: Hell n El Productions
A5: Sizzler | B5: 4 | C5: 5 | D5: 2 | E5: 3 | F5: 4 | G5: 3 | H5: 1 | I5: 5 | J5: 5 | K5: 2 | M5: 1 | N5: 11 | O5: Halfling | P5: Waterbowl Team Z
A6: DrTechnoTrousers | B6: 4 | C6: 5 | D6: 3 | E6: 2 | F6: 6 | G6: 1 | H6: 5 | I6: 5 | J6: 5 | K6: 1 | L6: 2 | N6: 11 | O6: Ogre | P6: Bang Average Blood Bowlers
A7: Levinas | B7: 4 | C7: 5 | D7: 3 | E7: 2 | F7: 5 | G7: 5 | H7: 0 | I7: 3 | J7: 3 | K7: 1 | L7: 2 | N7: 8 | O7: Gnome | P7: Waterbowl Team Z
A8: Douglowe | B8: 4 | C8: 5 | D8: 4 | E8: 1 | F8: 6 | G8: 4 | H8: 2 | I8: 3 | J8: 4 | K8: 2 | M8: 1 | N8: 7 | O8: Snotling | P8: Waterbowl Team Z
A9: ThomasW | B9: 3 | C9: 5 | D9: 4 | E9: 1 | F9: 6 | G9: 3 | H9: 3 | I9: 3 | J9: 3 | K9: 1 | L9: 1 | M9: 1 | N9: 13 | O9: Ogre | P9: TeamW
A10: Elperas | B10: 3 | C10: 4 | D10: 5 | E10: -1 | F10: 1 | G10: 5 | H10: -4 | I10: 4 | J10: 1 | K10: 1 | L10: 1 | M10: 1 | N10: 11 | O10: Ogre | P10: Awesome Party People
A11: DizzyBess | B11: 3 | C11: 2 | D11: 2 | E11: 0 | F11: 5 | G11: 5 | H11: 0 | I11: 3 | J11: 7 | L11: 3 | N11: 10 | O11: Gnome | P11: Hey Listen and The Guy We Found in Nandos
A12: DrHellboy_ | B12: 3 | C12: 5 | D12: 5 | E12: 0 | F12: 7 | G12: 6 | H12: 1 | I12: 4 | J12: 6 | K12: 1 | L12: 1 | M12: 1 | N12: 9 | O12: Ogre | P12: Hell n El Productions
A13: Fallingdownjoe | B13: 3 | C13: 4 | D13: 4 | E13: 0 | F13: 4 | G13: 4 | H13: 0 | I13: 5 | J13: 3 | K13: 1 | L13: 1 | M13: 1 | N13: 9 | O13: Gnome | P13: Hell n El Productions
A14: Shipaz | B14: 3 | C14: 4 | D14: 4 | E14: 0 | F14: 6 | G14: 6 | H14: 0 | I14: 2 | J14: 5 | K14: 1 | L14: 1 | M14: 1 | N14: 8 | O14: Ogre | P14: Snake Eyes and GFIs
A15: PeteW | B15: 3 | C15: 4 | D15: 4 | E15: 0 | F15: 5 | G15: 2 | H15: 3 | I15: 6 | J15: 3 | K15: 1 | L15: 1 | M15: 1 | N15: 7 | O15: Goblin | P15: TeamW
A16: Bungeeman | B16: 3 | C16: 5 | D16: 5 | E16: 0 | F16: 3 | G16: 5 | H16: -2 | I16: 5 | J16: 4 | L16: 3 | N16: 7 | O16: Halfling | P16: TCC: BoBin for Ducks
A17: JimJimany | B17: 3 | C17: 3 | D17: 5 | E17: -2 | F17: 4 | G17: 1 | H17: 3 | I17: 8 | J17: 3 | K17: 1 | L17: 1 | M17: 1 | N17: 7 | O17: Gnome | P17: All The Presidents Men
A18: SilentKnight | B18: 3 | C18: 3 | D18: 3 | E18: 0 | F18: 6 | G18: 5 | H18: 1 | I18: 4 | J18: 7 | K18: 1 | L18: 1 | M18: 1 | N18: 6 | O18: Gnome | P18: CLAW on Tour
A19: Squigthrower | B19: 2 | C19: 5 | D19: 5 | E19: 0 | F19: 6 | G19: 5 | H19: 1 | I19: 5 | J19: 5 | K19: 1 | M19: 2 | N19: 9 | O19: Snotling | P19: 2 Up 2 Down
A20: Gorgoroth | B20: 2 | C20: 5 | D20: 6 | E20: -1 | F20: 8 | G20: 5 | H20: 3 | I20: 6 | J20: 3 | L20: 2 | M20: 1 | N20: 9 | O20: Gnome | P20: TeamW
A21: MrGreen | B21: 2 | C21: 5 | D21: 6 | E21: -1 | F21: 4 | G21: 4 | H21: 0 | I21: 4 | J21: 4 | L21: 2 | M21: 1 | N21: 9 | O21: Ogre | P21: Let Me Atom
A22: Insidious | B22: 2 | C22: 4 | D22: 5 | E22: -1 | F22: 2 | G22: 5 | H22: -3 | I22: 4 | J22: 7 | L22: 2 | M22: 1 | N22: 9 | O22: Ogre | P22: UKBBL Team A
A23: Lord_Bojo | B23: 2 | C23: 2 | D23: 4 | E23: -2 | F23: 6 | G23: 4 | H23: 2 | I23: 5 | J23: 3 | L23: 2 | M23: 1 | N23: 9 | O23: Goblin | P23: Old Man Monkeys Team
A24: Chicken23 | B24: 2 | C24: 3 | D24: 5 | E24: -2 | F24: 5 | G24: 4 | H24: 1 | I24: 2 | J24: 5 | L24: 2 | M24: 1 | N24: 9 | O24: Goblin | P24: Sann Clan
A25: Sann0638 | B25: 2 | C25: 5 | D25: 7 | E25: -2 | F25: 4 | G25: 6 | H25: -2 | I25: 1 | J25: 5 | K25: 1 | M25: 2 | N25: 9 | O25: Gnome | P25: Sann Clan
A26: Besters | B26: 2 | C26: 5 | D26: 6 | E26: -1 | F26: 5 | G26: 3 | H26: 2 | I26: 2 | J26: 4 | L26: 2 | M26: 1 | N26: 7 | O26: Snotling | P26: TeamW
A27: Yudlugar | B27: 1 | C27: 6 | D27: 9 | E27: -3 | F27: 6 | G27: 6 | H27: 0 | I27: 5 | J27: 4 | L27: 1 | M27: 2 | N27: 12 | O27: Goblin | P27: Elyud Dimkok
A28: Keithabix | B28: 1 | C28: 0 | D28: 3 | E28: -3 | F28: 5 | G28: 4 | H28: 1 | I28: 6 | J28: 4 | L28: 1 | M28: 2 | N28: 10 | O28: Gnome | P28: Famous Tomb Guardians
A29: Grashnak | B29: 1 | C29: 4 | D29: 6 | E29: -2 | F29: 7 | G29: 5 | H29: 2 | I29: 3 | J29: 1 | L29: 1 | M29: 2 | N29: 9 | O29: Gnome | P29: The GoBBLed
A30: Duffins | B30: 1 | C30: 5 | D30: 7 | E30: -2 | F30: 5 | G30: 6 | H30: -1 | I30: 6 | J30: 2 | L30: 1 | M30: 2 | N30: 8 | O30: Goblin | P30: Iconic Atomics
A31: Archcoach_Ferdinand | B31: 1 | C31: 2 | D31: 6 | E31: -4 | F31: 6 | G31: 8 | H31: -2 | I31: 4 | J31: 7 | L31: 1 | M31: 2 | N31: 8 | O31: Goblin | P31: Famous Tomb Guardians
A32: LORD_BONAN | B32: 0 | C32: 3 | D32: 8 | E32: -5 | F32: 5 | G32: 2 | H32: 3 | I32: 3 | J32: 6 | M32: 3 | N32: 11 | O32: Goblin | P32: Deeside Double Skulls
A33: El_Duderino | B33: 0 | C33: 3 | D33: 6 | E33: -3 | F33: 6 | G33: 4 | H33: 2 | I33: 7 | J33: 4 | M33: 3 | N33: 7 | O33: Goblin | P33: Hell n El Productions

Sheet GroupFixtures
A1: Round: 3 | C1: Home | D1: Away | M1: Points Before Games
A2: Swaps: 0 | C2: Murder Aces | D2: North Yorkshire Table Top | M2: Murder Aces | N2: 4
C3: Fellowship of the GBBL | D3: The GoBBLers | M3: North Yorkshire Table Top | N3: 4
C4: Smoggies UTFB | D4: Steph, Stig and The Baldies | M4: Fellowship of the GBBL | N4: 4
C5: Awesome Party People Part Deux | D5: Awesome Party People | M5: The GoBBLers | N5: 4
C6: All The Presidents Men | D6: Waterbowl Team Z | M6: Smoggies UTFB | N6: 4
C7: Wrekin Wraiders | D7: Murder Kings | M7: Steph, Stig and The Baldies | N7: 4
C8: Bang Average Blood Bowlers | D8: CLAW on Tour | M8: Awesome Party People Part Deux | N8: 4
C9: Midtable Marauders | D9: Tactics and Theatrics | M9: Awesome Party People | N9: 4
C10: Two Guys One Dice Cup | D10: Deeside Double Skulls | M10: All The Presidents Men | N10: 4
C11: NOBBL Elite | D11: Sutton Immortals | M11: Waterbowl Team Z | N11: 4
C12: Seagulls 2: Electric Boogaloo | D12: Dice on Tour Team 1 | M12: Wrekin Wraiders | N12: 4
C13: 2 Die Docks | D13: TCC: A Up Me Ducks | M13: Murder Kings | N13: 4
C14: Sheffield Stinkweasels | D14: Les Azes | M14: Bang Average Blood Bowlers | N14: 4
C15: The Fellowship of the Ball | D15: Murder Jokers | M15: CLAW on Tour | N15: 4
C16: Team Wales | D16: HEBBL Team B | M16: Midtable Marauders | N16: 3
C17: Sann Clan | D17: Chins Chumps and C.H.I.P.S. | M17: Tactics and Theatrics | N17: 3
C18: ECBBL Aspiring Adequates | D18: Granite City Seagulls | M18: Two Guys One Dice Cup | N18: 3
C19: Elyud Dimkok | D19: ABBL | M19: Deeside Double Skulls | N19: 3
C20: Team Republic Tryhards | D20: ECBBL Ten-Tackles | M20: NOBBL Elite | N20: 3
C21: The Merry Men | D21: TeamW | M21: Sutton Immortals | N21: 3
C22: Orkshire Puddings | D22: Old Man Monkeys Team | M22: Seagulls 2: Electric Boogaloo | N22: 3
C23: TCC: BoBin for Ducks | D23: Doom League | M23: Dice on Tour Team 1 | N23: 3
C24: Snake Eyes and GFIs | D24: UKBBL Team A | M24: 2 Die Docks | N24: 3
C25: T and Three Sugars | D25: Dice In The Alley | M25: TCC: A Up Me Ducks | N25: 3
C26: ECBBL Blackshirts | D26: The Democratic Republic of Yorkshire | M26: Sheffield Stinkweasels | N26: 2
C27: BolognaBowl | D27: Dragons | M27: Les Azes | N27: 2
C28: Dutch Pirates | D28: NOBBL Jesters | M28: The Fellowship of the Ball | N28: 2
C29: Iconic Atomics | D29: HEBBL Team A | M29: Murder Jokers | N29: 2
C30: Team Miss Next Game | D30: Tacklezone Pirates | M30: Team Wales | N30: 2
C31: Murder Queens | D31: Orkshire | M31: HEBBL Team B | N31: 2
C32: Hell n El Productions | D32: 2 Up 2 Down | M32: Sann Clan | N32: 2
C33: Team Republic Chill Squad | D33: Famous Tomb Guardians | M33: Chins Chumps and C.H.I.P.S. | N33: 2
C34: Let Me Atom | D34: Murder Jacks | M34: ECBBL Aspiring Adequates | N34: 2
C35: DBL Tropicana | D35: La Ruelle | M35: Granite City Seagulls | N35: 2
C36: Salty Bowlers of London | D36: Monstrous Tynemouth | M36: Elyud Dimkok | N36: 2
C37: Team TimeOut | D37: Cheltenham IGBB Raiders | M37: ABBL | N37: 2
C38: Shiretown Stuffers | D38: Lutece Noobs | M38: Team Republic Tryhards | N38: 2
C39: The GoBBLed | D39: Hey Listen and The Guy We Found in Nandos | M39: ECBBL Ten-Tackles | N39: 2
M40: The Merry Men | N40: 2
M41: TeamW | N41: 2
M42: Orkshire Puddings | N42: 2
M43: Old Man Monkeys Team | N43: 2
M44: TCC: BoBin for Ducks | N44: 2
M45: Doom League | N45: 2
M46: Snake Eyes and GFIs | N46: 2
M47: UKBBL Team A | N47: 2
M48: T and Three Sugars | N48: 2
M49: Dice In The Alley | N49: 2
M50: ECBBL Blackshirts | N50: 1
M51: The Democratic Republic of Yorkshire | N51: 1
M52: BolognaBowl | N52: 1
M53: Dragons | N53: 1
M54: Dutch Pirates | N54: 1
M55: NOBBL Jesters | N55: 1
M56: Iconic Atomics | N56: 1
M57: HEBBL Team A | N57: 1
M58: Team Miss Next Game | N58: 1
M59: Tacklezone Pirates | N59: 1
M60: Murder Queens | N60: 1
M61: Orkshire | N61: 1
M62: Hell n El Productions | N62: 1
M63: 2 Up 2 Down | N63: 1
M64: Team Republic Chill Squad | N64: 1
M65: Famous Tomb Guardians | N65: 1
M66: Let Me Atom | N66: 1
M67: Murder Jacks | N67: 1
M68: DBL Tropicana | N68: 0
M69: La Ruelle | N69: 0
M70: Salty Bowlers of London | N70: 0
M71: Monstrous Tynemouth | N71: 0
M72: Team TimeOut | N72: 0
M73: Cheltenham IGBB Raiders | N73: 0
M74: Shiretown Stuffers | N74: 0
M75: Lutece Noobs | N75: 0
M76: The GoBBLed | N76: 0
M77: Hey Listen and The Guy We Found in Nandos | N77: 0

Sheet GroupTable
A1: Group | B1: Points | C1: TD For | D1: TD Against | E1: Net TDs | F1: Cas For | G1: Cas Against | H1: Net Cas | I1: Group Total Bonus1 | J1: Group Total Bonus2 | K1: Group Wins | L1: Groups Draws | M1: Group Losses | N1: Individual Wins | O1: Individual Draws | P1: Individual Losses | Q1: Total Individual Points | R1: Opponent Score
A2: North Yorkshire Table Top | B2: 6 | C2: 18 | D2: 7 | E2: 11 | F2: 17 | G2: 18 | H2: -1 | I2: 17 | J2: 19 | K2: 3 | N2: 8 | O2: 4 | Q2: 20 | R2: 9
A3: Wrekin Wraiders | B3: 6 | C3: 21 | D3: 13 | E3: 8 | F3: 18 | G3: 19 | H3: -1 | I3: 20 | J3: 24 | K3: 3 | N3: 7 | O3: 4 | P3: 1 | Q3: 18 | R3: 9
A4: Steph, Stig and The Baldies | B4: 6 | C4: 25 | D4: 20 | E4: 5 | F4: 22 | G4: 23 | H4: -1 | I4: 14 | J4: 20 | K4: 3 | N4: 8 | O4: 1 | P4: 3 | Q4: 17 | R4: 11
A5: Awesome Party People Part Deux | B5: 6 | C5: 22 | D5: 16 | E5: 6 | F5: 17 | G5: 17 | H5: 0 | I5: 17 | J5: 13 | K5: 3 | N5: 7 | O5: 3 | P5: 2 | Q5: 17 | R5: 10
A6: Waterbowl Team Z | B6: 6 | C6: 20 | D6: 10 | E6: 10 | F6: 22 | G6: 17 | H6: 5 | I6: 14 | J6: 14 | K6: 3 | N6: 7 | O6: 3 | P6: 2 | Q6: 17 | R6: 7
A7: CLAW on Tour | B7: 6 | C7: 15 | D7: 11 | E7: 4 | F7: 19 | G7: 22 | H7: -3 | I7: 14 | J7: 19 | K7: 3 | N7: 4 | O7: 7 | P7: 1 | Q7: 15 | R7: 8
A8: NOBBL Elite | B8: 5 | C8: 21 | D8: 16 | E8: 5 | F8: 18 | G8: 23 | H8: -5 | I8: 21 | J8: 17 | K8: 2 | L8: 1 | N8: 8 | O8: 1 | P8: 3 | Q8: 17 | R8: 10
A9: Two Guys One Dice Cup | B9: 5 | C9: 22 | D9: 14 | E9: 8 | F9: 15 | G9: 20 | H9: -5 | I9: 23 | J9: 14 | K9: 2 | L9: 1 | N9: 7 | O9: 3 | P9: 2 | Q9: 17 | R9: 9
A10: Fellowship of the GBBL | B10: 5 | C10: 23 | D10: 18 | E10: 5 | F10: 15 | G10: 22 | H10: -7 | I10: 21 | J10: 19 | K10: 2 | L10: 1 | N10: 6 | O10: 4 | P10: 2 | Q10: 16 | R10: 11
A11: The GoBBLers | B11: 5 | C11: 25 | D11: 18 | E11: 7 | F11: 21 | G11: 20 | H11: 1 | I11: 16 | J11: 22 | K11: 2 | L11: 1 | N11: 5 | O11: 6 | P11: 1 | Q11: 16 | R11: 8
A12: 2 Die Docks | B12: 5 | C12: 14 | D12: 12 | E12: 2 | F12: 23 | G12: 22 | H12: 1 | I12: 19 | J12: 25 | K12: 2 | L12: 1 | N12: 5 | O12: 4 | P12: 3 | Q12: 14 | R12: 7
A13: Smoggies UTFB | B13: 4 | C13: 23 | D13: 17 | E13: 6 | F13: 22 | G13: 18 | H13: 4 | I13: 11 | J13: 9 | K13: 2 | M13: 1 | N13: 6 | O13: 3 | P13: 3 | Q13: 15 | R13: 11
A14: Midtable Marauders | B14: 4 | C14: 20 | D14: 18 | E14: 2 | F14: 15 | G14: 21 | H14: -6 | I14: 16 | J14: 18 | K14: 1 | L14: 2 | N14: 6 | O14: 3 | P14: 3 | Q14: 15 | R14: 10
A15: Les Azes | B15: 4 | C15: 23 | D15: 20 | E15: 3 | F15: 20 | G15: 15 | H15: 5 | I15: 19 | J15: 24 | K15: 2 | M15: 1 | N15: 5 | O15: 5 | P15: 2 | Q15: 15 | R15: 9
A16: Granite City Seagulls | B16: 4 | C16: 20 | D16: 18 | E16: 2 | F16: 17 | G16: 20 | H16: -3 | I16: 15 | J16: 23 | K16: 2 | M16: 1 | N16: 6 | O16: 3 | P16: 3 | Q16: 15 | R16: 9
A17: Tactics and Theatrics | B17: 4 | C17: 18 | D17: 13 | E17: 5 | F17: 20 | G17: 17 | H17: 3 | I17: 24 | J17: 22 | K17: 1 | L17: 2 | N17: 5 | O17: 5 | P17: 2 | Q17: 15 | R17: 6
A18: The Fellowship of the Ball | B18: 4 | C18: 28 | D18: 21 | E18: 7 | F18: 20 | G18: 18 | H18: 2 | I18: 22 | J18: 17 | K18: 2 | M18: 1 | N18: 5 | O18: 5 | P18: 2 | Q18: 15 | R18: 5
A19: Murder Aces | B19: 4 | C19: 17 | D19: 11 | E19: 6 | F19: 14 | G19: 17 | H19: -3 | I19: 19 | J19: 18 | K19: 2 | M19: 1 | N19: 6 | O19: 2 | P19: 4 | Q19: 14 | R19: 12
A20: Awesome Party People | B20: 4 | C20: 19 | D20: 17 | E20: 2 | F20: 18 | G20: 17 | H20: 1 | I20: 16 | J20: 16 | K20: 2 | M20: 1 | N20: 4 | O20: 6 | P20: 2 | Q20: 14 | R20: 12
A21: ABBL | B21: 4 | C21: 22 | D21: 19 | E21: 3 | F21: 20 | G21: 18 | H21: 2 | I21: 15 | J21: 22 | K21: 2 | M21: 1 | N21: 6 | O21: 2 | P21: 4 | Q21: 14 | R21: 9
A22: Team Republic Tryhards | B22: 4 | C22: 21 | D22: 16 | E22: 5 | F22: 17 | G22: 18 | H22: -1 | I22: 20 | J22: 19 | K22: 2 | M22: 1 | N22: 4 | O22: 6 | P22: 2 | Q22: 14 | R22: 8
A23: Bang Average Blood Bowlers | B23: 4 | C23: 17 | D23: 14 | E23: 3 | F23: 25 | G23: 15 | H23: 10 | I23: 16 | J23: 21 | K23: 2 | M23: 1 | N23: 3 | O23: 7 | P23: 2 | Q23: 13 | R23: 12
A24: Dice on Tour Team 1 | B24: 4 | C24: 21 | D24: 19 | E24: 2 | F24: 21 | G24: 17 | H24: 4 | I24: 15 | J24: 20 | K24: 1 | L24: 2 | N24: 5 | O24: 3 | P24: 4 | Q24: 13 | R24: 10
A25: All The Presidents Men | B25: 4 | C25: 18 | D25: 17 | E25: 1 | F25: 11 | G25: 16 | H25: -5 | I25: 17 | J25: 17 | K25: 2 | M25: 1 | N25: 4 | O25: 5 | P25: 3 | Q25: 13 | R25: 10
A26: Seagulls 2: Electric Boogaloo | B26: 4 | C26: 17 | D26: 16 | E26: 1 | F26: 19 | G26: 19 | H26: 0 | I26: 13 | J26: 15 | K26: 1 | L26: 2 | N26: 5 | O26: 3 | P26: 4 | Q26: 13 | R26: 8
A27: The Merry Men | B27: 4 | C27: 20 | D27: 19 | E27: 1 | F27: 17 | G27: 22 | H27: -5 | I27: 22 | J27: 22 | K27: 2 | M27: 1 | N27: 4 | O27: 5 | P27: 3 | Q27: 13 | R27: 8
A28: UKBBL Team A | B28: 4 | C28: 19 | D28: 21 | E28: -2 | F28: 11 | G28: 18 | H28: -7 | I28: 18 | J28: 16 | K28: 2 | M28: 1 | N28: 4 | O28: 4 | P28: 4 | Q28: 12 | R28: 12
A29: Murder Kings | B29: 4 | C29: 17 | D29: 15 | E29: 2 | F29: 15 | G29: 19 | H29: -4 | I29: 21 | J29: 18 | K29: 2 | M29: 1 | N29: 4 | O29: 4 | P29: 4 | Q29: 12 | R29: 9
A30: T and Three Sugars | B30: 4 | C30: 19 | D30: 20 | E30: -1 | F30: 13 | G30: 18 | H30: -5 | I30: 20 | J30: 15 | K30: 2 | M30: 1 | N30: 3 | O30: 6 | P30: 3 | Q30: 12 | R30: 9
A31: BolognaBowl | B31: 3 | C31: 20 | D31: 21 | E31: -1 | F31: 16 | G31: 19 | H31: -3 | I31: 19 | J31: 19 | K31: 1 | L31: 1 | M31: 1 | N31: 5 | O31: 3 | P31: 4 | Q31: 13 | R31: 10
A32: The Democratic Republic of Yorkshire | B32: 3 | C32: 21 | D32: 18 | E32: 3 | F32: 21 | G32: 22 | H32: -1 | I32: 21 | J32: 19 | K32: 1 | L32: 1 | M32: 1 | N32: 6 | O32: 1 | P32: 5 | Q32: 13 | R32: 9
A33: Chins Chumps and C.H.I.P.S. | B33: 3 | C33: 18 | D33: 17 | E33: 1 | F33: 16 | G33: 12 | H33: 4 | I33: 18 | J33: 20 | K33: 1 | L33: 1 | M33: 1 | N33: 5 | O33: 3 | P33: 4 | Q33: 13 | R33: 9
A34: Sann Clan | B34: 3 | C34: 19 | D34: 16 | E34: 3 | F34: 19 | G34: 17 | H34: 2 | I34: 8 | J34: 21 | K34: 1 | L34: 1 | M34: 1 | N34: 5 | O34: 3 | P34: 4 | Q34: 13 | R34: 8
A35: Team Wales | B35: 3 | C35: 16 | D35: 16 | E35: 0 | F35: 25 | G35: 16 | H35: 9 | I35: 17 | J35: 25 | K35: 1 | L35: 1 | M35: 1 | N35: 4 | O35: 5 | P35: 3 | Q35: 13 | R35: 8
A36: HEBBL Team B | B36: 3 | C36: 18 | D36: 17 | E36: 1 | F36: 16 | G36: 25 | H36: -9 | I36: 18 | J36: 14 | K36: 1 | L36: 1 | M36: 1 | N36: 5 | O36: 3 | P36: 4 | Q36: 13 | R36: 7
A37: Deeside Double Skulls | B37: 3 | C37: 16 | D37: 19 | E37: -3 | F37: 20 | G37: 11 | H37: 9 | I37: 19 | J37: 19 | K37: 1 | L37: 1 | M37: 1 | N37: 4 | O37: 4 | P37: 4 | Q37: 12 | R37: 12
A38: HEBBL Team A | B38: 3 | C38: 21 | D38: 22 | E38: -1 | F38: 21 | G38: 26 | H38: -5 | I38: 17 | J38: 20 | K38: 1 | L38: 1 | M38: 1 | N38: 6 | P38: 6 | Q38: 12 | R38: 10
A39: Tacklezone Pirates | B39: 3 | C39: 17 | D39: 19 | E39: -2 | F39: 19 | G39: 21 | H39: -2 | I39: 15 | J39: 24 | K39: 1 | L39: 1 | M39: 1 | N39: 4 | O39: 4 | P39: 4 | Q39: 12 | R39: 10
A40: TCC: A Up Me Ducks | B40: 3 | C40: 22 | D40: 22 | E40: 0 | F40: 20 | G40: 20 | H40: 0 | I40: 18 | J40: 18 | K40: 1 | L40: 1 | M40: 1 | N40: 5 | O40: 2 | P40: 5 | Q40: 12 | R40: 9
A41: NOBBL Jesters | B41: 3 | C41: 19 | D41: 20 | E41: -1 | F41: 15 | G41: 15 | H41: 0 | I41: 17 | J41: 15 | K41: 1 | L41: 1 | M41: 1 | N41: 3 | O41: 6 | P41: 3 | Q41: 12 | R41: 6
A42: Old Man Monkeys Team | B42: 3 | C42: 13 | D42: 17 | E42: -4 | F42: 23 | G42: 20 | H42: 3 | I42: 23 | J42: 18 | K42: 1 | L42: 1 | M42: 1 | N42: 2 | O42: 7 | P42: 3 | Q42: 11 | R42: 12
A43: Orkshire Puddings | B43: 3 | C43: 18 | D43: 19 | E43: -1 | F43: 21 | G43: 17 | H43: 4 | I43: 20 | J43: 15 | K43: 1 | L43: 1 | M43: 1 | N43: 2 | O43: 7 | P43: 3 | Q43: 11 | R43: 11
A44: Team Republic Chill Squad | B44: 3 | C44: 15 | D44: 14 | E44: 1 | F44: 17 | G44: 22 | H44: -5 | I44: 23 | J44: 15 | K44: 1 | L44: 1 | M44: 1 | N44: 3 | O44: 5 | P44: 4 | Q44: 11 | R44: 10
A45: TCC: BoBin for Ducks | B45: 3 | C45: 16 | D45: 18 | E45: -2 | F45: 11 | G45: 13 | H45: -2 | I45: 17 | J45: 20 | K45: 1 | L45: 1 | M45: 1 | N45: 3 | O45: 5 | P45: 4 | Q45: 11 | R45: 8
A46: Hell n El Productions | B46: 3 | C46: 21 | D46: 21 | E46: 0 | F46: 20 | G46: 20 | H46: 0 | I46: 20 | J46: 17 | K46: 1 | L46: 1 | M46: 1 | N46: 4 | O46: 3 | P46: 5 | Q46: 11 | R46: 7
A47: Doom League | B47: 3 | C47: 14 | D47: 15 | E47: -1 | F47: 13 | G47: 13 | H47: 0 | I47: 23 | J47: 22 | K47: 1 | L47: 1 | M47: 1 | N47: 3 | O47: 5 | P47: 4 | Q47: 11 | R47: 7
A48: Sutton Immortals | B48: 3 | C48: 16 | D48: 18 | E48: -2 | F48: 22 | G48: 17 | H48: 5 | I48: 20 | J48: 19 | K48: 1 | L48: 1 | M48: 1 | N48: 4 | O48: 3 | P48: 5 | Q48: 11 | R48: 7
A49: Orkshire | B49: 3 | C49: 18 | D49: 16 | E49: 2 | F49: 15 | G49: 25 | H49: -10 | I49: 17 | J49: 26 | K49: 1 | L49: 1 | M49: 1 | N49: 4 | O49: 3 | P49: 5 | Q49: 11 | R49: 5
A50: Murder Jacks | B50: 3 | C50: 23 | D50: 21 | E50: 2 | F50: 21 | G50: 15 | H50: 6 | I50: 23 | J50: 18 | K50: 1 | L50: 1 | M50: 1 | N50: 3 | O50: 5 | P50: 4 | Q50: 11 | R50: 4
A51: Sheffield Stinkweasels | B51: 2 | C51: 22 | D51: 25 | E51: -3 | F51: 18 | G51: 21 | H51: -3 | I51: 17 | J51: 21 | K51: 1 | M51: 2 | N51: 4 | O51: 5 | P51: 3 | Q51: 13 | R51: 13
A52: DBL Tropicana | B52: 2 | C52: 20 | D52: 16 | E52: 4 | F52: 19 | G52: 20 | H52: -1 | I52: 8 | J52: 15 | K52: 1 | M52: 2 | N52: 5 | O52: 3 | P52: 4 | Q52: 13 | R52: 10
A53: Murder Jokers | B53: 2 | C53: 17 | D53: 17 | E53: 0 | F53: 17 | G53: 19 | H53: -2 | I53: 18 | J53: 12 | K53: 1 | M53: 2 | N53: 3 | O53: 6 | P53: 3 | Q53: 12 | R53: 12
A54: Salty Bowlers of London | B54: 2 | C54: 17 | D54: 17 | E54: 0 | F54: 15 | G54: 19 | H54: -4 | I54: 14 | J54: 14 | K54: 1 | M54: 2 | N54: 3 | O54: 6 | P54: 3 | Q54: 12 | R54: 7
A55: TeamW | B55: 2 | C55: 19 | D55: 20 | E55: -1 | F55: 24 | G55: 13 | H55: 11 | I55: 17 | J55: 13 | K55: 1 | M55: 2 | N55: 2 | O55: 6 | P55: 4 | Q55: 10 | R55: 10
A56: Elyud Dimkok | B56: 2 | C56: 18 | D56: 20 | E56: -2 | F56: 23 | G56: 25 | H56: -2 | I56: 18 | J56: 18 | K56: 1 | M56: 2 | N56: 2 | O56: 6 | P56: 4 | Q56: 10 | R56: 10
A57: ECBBL Ten-Tackles | B57: 2 | C57: 17 | D57: 22 | E57: -5 | F57: 12 | G57: 15 | H57: -3 | I57: 20 | J57: 17 | K57: 1 | M57: 2 | N57: 2 | O57: 6 | P57: 4 | Q57: 10 | R57: 8
A58: ECBBL Aspiring Adequates | B58: 2 | C58: 23 | D58: 26 | E58: -3 | F58: 18 | G58: 20 | H58: -2 | I58: 20 | J58: 21 | K58: 1 | M58: 2 | N58: 3 | O58: 4 | P58: 5 | Q58: 10 | R58: 6
A59: The GoBBLed | B59: 2 | C59: 12 | D59: 15 | E59: -3 | F59: 16 | G59: 17 | H59: -1 | I59: 17 | J59: 12 | K59: 1 | M59: 2 | N59: 2 | O59: 5 | P59: 5 | Q59: 9 | R59: 9
A60: Snake Eyes and GFIs | B60: 2 | C60: 18 | D60: 22 | E60: -4 | F60: 17 | G60: 21 | H60: -4 | I60: 13 | J60: 22 | K60: 1 | M60: 2 | N60: 2 | O60: 5 | P60: 5 | Q60: 9 | R60: 7
A61: Lutece Noobs | B61: 2 | C61: 19 | D61: 21 | E61: -2 | F61: 15 | G61: 18 | H61: -3 | I61: 16 | J61: 21 | K61: 1 | M61: 2 | N61: 3 | O61: 3 | P61: 6 | Q61: 9 | R61: 6
A62: Dice In The Alley | B62: 2 | C62: 14 | D62: 20 | E62: -6 | F62: 18 | G62: 13 | H62: 5 | I62: 18 | J62: 15 | K62: 1 | M62: 2 | N62: 2 | O62: 4 | P62: 6 | Q62: 8 | R62: 11
A63: Dutch Pirates | B63: 1 | C63: 15 | D63: 19 | E63: -4 | F63: 20 | G63: 14 | H63: 6 | I63: 12 | J63: 19 | L63: 1 | M63: 2 | N63: 3 | O63: 4 | P63: 5 | Q63: 10 | R63: 10
A64: Murder Queens | B64: 1 | C64: 12 | D64: 18 | E64: -6 | F64: 20 | G64: 24 | H64: -4 | I64: 18 | J64: 16 | L64: 1 | M64: 2 | N64: 1 | O64: 7 | P64: 4 | Q64: 9 | R64: 12
A65: ECBBL Blackshirts | B65: 1 | C65: 18 | D65: 23 | E65: -5 | F65: 21 | G65: 21 | H65: 0 | I65: 20 | J65: 16 | L65: 1 | M65: 2 | N65: 3 | O65: 3 | P65: 6 | Q65: 9 | R65: 11
A66: Dragons | B66: 1 | C66: 19 | D66: 21 | E66: -2 | F66: 18 | G66: 16 | H66: 2 | I66: 18 | J66: 15 | L66: 1 | M66: 2 | N66: 3 | O66: 3 | P66: 6 | Q66: 9 | R66: 10
A67: Team TimeOut | B67: 1 | C67: 19 | D67: 22 | E67: -3 | F67: 23 | G67: 15 | H67: 8 | I67: 19 | J67: 17 | L67: 1 | M67: 2 | N67: 4 | O67: 1 | P67: 7 | Q67: 9 | R67: 7
A68: Cheltenham IGBB Raiders | B68: 1 | C68: 15 | D68: 20 | E68: -5 | F68: 16 | G68: 20 | H68: -4 | I68: 19 | J68: 15 | L68: 1 | M68: 2 | N68: 4 | O68: 1 | P68: 7 | Q68: 9 | R68: 7
A69: 2 Up 2 Down | B69: 1 | C69: 18 | D69: 21 | E69: -3 | F69: 20 | G69: 18 | H69: 2 | I69: 20 | J69: 17 | L69: 1 | M69: 2 | N69: 2 | O69: 5 | P69: 5 | Q69: 9 | R69: 6
A70: Iconic Atomics | B70: 1 | C70: 22 | D70: 23 | E70: -1 | F70: 21 | G70: 21 | H70: 0 | I70: 18 | J70: 14 | L70: 1 | M70: 2 | N70: 3 | O70: 2 | P70: 7 | Q70: 8 | R70: 10
A71: Team Miss Next Game | B71: 1 | C71: 16 | D71: 22 | E71: -6 | F71: 19 | G71: 15 | H71: 4 | I71: 20 | J71: 16 | L71: 1 | M71: 2 | N71: 1 | O71: 6 | P71: 5 | Q71: 8 | R71: 9
A72: Let Me Atom | B72: 1 | C72: 17 | D72: 24 | E72: -7 | F72: 19 | G72: 15 | H72: 4 | I72: 17 | J72: 13 | L72: 1 | M72: 2 | N72: 1 | O72: 5 | P72: 6 | Q72: 7 | R72: 10
A73: Famous Tomb Guardians | B73: 1 | C73: 7 | D73: 16 | E73: -9 | F73: 20 | G73: 22 | H73: -2 | I73: 19 | J73: 22 | L73: 1 | M73: 2 | N73: 1 | O73: 5 | P73: 6 | Q73: 7 | R73: 10
A74: Shiretown Stuffers | B74: 0 | C74: 14 | D74: 26 | E74: -12 | F74: 20 | G74: 18 | H74: 2 | I74: 24 | J74: 16 | M74: 3 | N74: 2 | O74: 3 | P74: 7 | Q74: 7 | R74: 10
A75: La Ruelle | B75: 0 | C75: 16 | D75: 23 | E75: -7 | F75: 21 | G75: 16 | H75: 5 | I75: 17 | J75: 17 | M75: 3 | N75: 2 | O75: 3 | P75: 7 | Q75: 7 | R75: 8
A76: Monstrous Tynemouth | B76: 0 | C76: 14 | D76: 22 | E76: -8 | F76: 21 | G76: 20 | H76: 1 | I76: 21 | J76: 17 | M76: 3 | N76: 1 | O76: 4 | P76: 7 | Q76: 6 | R76: 10
A77: Hey Listen and The Guy We Found in Nandos | B77: 0 | C77: 8 | D77: 19 | E77: -11 | F77: 20 | G77: 16 | H77: 4 | I77: 15 | J77: 19 | M77: 3 | O77: 5 | P77: 7 | Q77: 5 | R77: 8

Sheet Presentation
A1: Round | B1: 2
A3: Board | B3: Home | C3: Away | D3: Home Team | E3: Away Team | F3: Home TD | G3: Away TD | H3: Home Cas | I3: Away Cas
A4: 1 | B4: =IF(A4="","",OFFSET(INDIRECT("Round"&Round&"!B1"),$A4,0)) -> HEBBL Team B #4 | C4: =IF(A4="","",OFFSET(INDIRECT("Round"&Round&"!c1"),$A4,0)) -> Bb_jock | D4: =IF(A4="","",OFFSET(INDIRECT("Round"&Round&"!n1"),$A4,0)) -> HEBBL Team B | E4: =IF(A4="","",OFFSET(INDIRECT("Round"&Round&"!o1"),$A4,0)) -> Murder Aces
A5: =IF(A4="",A3+1,IF(ROUNDUP(A4/TeamSize,0)=A4/TeamSize,"",A4+1)) -> 2 | B5: 3_Dice_Uphill | C5: Gerdleah | D5: HEBBL Team B | E5: Murder Aces
A6: 3 | B6: Vulture_Squadron | C6: Purdindas | D6: HEBBL Team B | E6: Murder Aces
A7: 4 | B7: Mazza86 | C7: Sporran | D7: HEBBL Team B | E7: Murder Aces
A9: 5 | B9: Whisky_Pip | C9: Galladur | D9: Fellowship of the GBBL | E9: Les Azes
A10: 6 | B10: Calfykid | C10: Biereforever | D10: Fellowship of the GBBL | E10: Les Azes
A11: 7 | B11: Wookiee1972 | C11: Oklaoma | D11: Fellowship of the GBBL | E11: Les Azes
A12: 8 | B12: Don_Vito | C12: Silkoun | D12: Fellowship of the GBBL | E12: Les Azes
A14: 9 | B14: Littleleadperson | C14: Douglowe | D14: Sheffield Stinkweasels | E14: Waterbowl Team Z
A15: 10 | B15: Nodgefodgekins | C15: Sizzler | D15: Sheffield Stinkweasels | E15: Waterbowl Team Z
A16: 11 | B16: Zooey | C16: Vagabond1982uk | D16: Sheffield Stinkweasels | E16: Waterbowl Team Z
A17: 12 | B17: Kyrkedalechris | C17: Levinas | D17: Sheffield Stinkweasels | E17: Waterbowl Team Z
A19: 13 | B19: Stick_with_poo_on_the_end | C19: 03philpota | D19: Steph, Stig and The Baldies | E19: ABBL
A20: 14 | B20: Warka | C20: Ratmaninov | D20: Steph, Stig and The Baldies | E20: ABBL
A21: 15 | B21: Stephen82 | C21: Sam_Clark | D21: Steph, Stig and The Baldies | E21: ABBL
A22: 16 | B22: Hardcore_Stig | C22: N'Sh'Koben | D22: Steph, Stig and The Baldies | E22: ABBL
A24: 17 | B24: HighlandEnoch | C24: TheBymster | D24: Murder Jokers | E24: Wrekin Wraiders
A25: 18 | B25: Fleetmacwood | C25: Dragonborn | D25: Murder Jokers | E25: Wrekin Wraiders
A26: 19 | B26: Badgie | C26: Speedingbullet | D26: Murder Jokers | E26: Wrekin Wraiders
A27: 20 | B27: Thebunneh | C27: Goldengate | D27: Murder Jokers | E27: Wrekin Wraiders
A29: 21 | B29: Elyod | C29: Barnacles | D29: Elyud Dimkok | E29: The GoBBLers
A30: 22 | B30: Hankok | C30: BROCKdodge | D30: Elyud Dimkok | E30: The GoBBLers
A31: 23 | B31: Yudlugar | C31: Elplanet4 | D31: Elyud Dimkok | E31: The GoBBLers
A32: 24 | B32: DimmyGee | C32: ICY-Bee | D32: Elyud Dimkok | E32: The GoBBLers
A34: 25 | B34: Divergent84 | C34: Spic929 | D34: Old Man Monkeys Team | E34: North Yorkshire Table Top
A35: 26 | B35: Old_Man_Monkey | C35: SpaceEcho | D35: Old Man Monkeys Team | E35: North Yorkshire Table Top
A36: 27 | B36: =IF(A36="","",OFFSET(INDIRECT("Round"&Round&"!B1"),$A36,0)) -> Cromfrance | C36: =IF(A36="","",OFFSET(INDIRECT("Round"&Round&"!c1"),$A36,0)) -> Cerberus85 | D36: =IF(A36="","",OFFSET(INDIRECT("Round"&Round&"!n1"),$A36,0)) -> Old Man Monkeys Team | E36: =IF(A36="","",OFFSET(INDIRECT("Round"&Round&"!o1"),$A36,0)) -> North Yorkshire Table Top
A37: =IF(A36="",A35+1,IF(ROUNDUP(A36/TeamSize,0)=A36/TeamSize,"",A36+1)) -> 28 | B37: Lord_Bojo | C37: edwith1d | D37: Old Man Monkeys Team | E37: North Yorkshire Table Top
A39: 29 | B39: SpaceGandalf | C39: Fiddlesticks | D39: Murder Kings | E39: Orkshire Puddings
A40: 30 | B40: ChrisRaff88 | C40: Twoshedzz | D40: Murder Kings | E40: Orkshire Puddings
A41: 31 | B41: I_done_goofd | C41: TomTheOwl | D41: Murder Kings | E41: Orkshire Puddings
A42: 32 | B42: AMSFELD | C42: Rydog | D42: Murder Kings | E42: Orkshire Puddings
A44: 33 | B44: Camelchops | C44: Outkast | D44: CLAW on Tour | E44: Team Republic Tryhards
A45: 34 | B45: Dusher1 | C45: GreenSkinPhil | D45: CLAW on Tour | E45: Team Republic Tryhards
A46: 35 | B46: Chorfling | C46: Stratford_ | D46: CLAW on Tour | E46: Team Republic Tryhards
A47: 36 | B47: SilentKnight | C47: Torquemada | D47: CLAW on Tour | E47: Team Republic Tryhards
A49: 37 | B49: ThomasW | C49: Joemanji | D49: TeamW | E49: All The Presidents Men
A50: 38 | B50: PeteW | C50: Lycos | D50: TeamW | E50: All The Presidents Men
A51: 39 | B51: Besters | C51: JimJimany | D51: TeamW | E51: All The Presidents Men
A52: 40 | B52: Gorgoroth | C52: Purplegoo | D52: TeamW | E52: All The Presidents Men
A54: 41 | B54: Shaniepoo1 | C54: Rev | D54: Awesome Party People | E54: TCC: BoBin for Ducks
A55: 42 | B55: Munch | C55: The_Fritch | D55: Awesome Party People | E55: TCC: BoBin for Ducks
A56: 43 | B56: Forgotmytea | C56: Bungeeman | D56: Awesome Party People | E56: TCC: BoBin for Ducks
A57: 44 | B57: Elperas | C57: Sean_M | D57: Awesome Party People | E57: TCC: BoBin for Ducks
A59: 45 | B59: Fredmanwalking | C59: HexBaron | D59: Granite City Seagulls | E59: Bang Average Blood Bowlers
A60: 46 | B60: Spooner | C60: DrTechnoTrousers | D60: Granite City Seagulls | E60: Bang Average Blood Bowlers
A61: 47 | B61: Stonethrowingdevil | C61: Dayday | D61: Granite City Seagulls | E61: Bang Average Blood Bowlers
A62: 48 | B62: Europanda | C62: Hendy | D62: Granite City Seagulls | E62: Bang Average Blood Bowlers
A64: 49 | B64: Owletta | C64: Mr_Mezcal | D64: T and Three Sugars | E64: Smoggies UTFB
A65: 50 | B65: Obsydyan | C65: Geminus_Calvariae | D65: T and Three Sugars | E65: Smoggies UTFB
A66: 51 | B66: Kid_Cantcomplain | C66: WoodyWoodPecker | D66: T and Three Sugars | E66: Smoggies UTFB
A67: 52 | B67: Boldfox | C67: GrumpyBoyle | D67: T and Three Sugars | E67: Smoggies UTFB
B68: =IF(A68="","",OFFSET(INDIRECT("Round"&Round&"!B1"),$A68,0)) ->  | C68: =IF(A68="","",OFFSET(INDIRECT("Round"&Round&"!c1"),$A68,0)) ->  | D68: =IF(A68="","",OFFSET(INDIRECT("Round"&Round&"!n1"),$A68,0)) ->  | E68: =IF(A68="","",OFFSET(INDIRECT("Round"&Round&"!o1"),$A68,0)) -> 
A69: =IF(A68="",A67+1,IF(ROUNDUP(A68/TeamSize,0)=A68/TeamSize,"",A68+1)) -> 53 | B69: Nobbla | C69: Lewi88 | D69: Awesome Party People Part Deux | E69: UKBBL Team A
A70: 54 | B70: Deepfruit | C70: Snowtroll | D70: Awesome Party People Part Deux | E70: UKBBL Team A
A71: 55 | B71: Jordellfb | C71: Insidious | D71: Awesome Party People Part Deux | E71: UKBBL Team A
A72: 56 | B72: Valen | C72: Khornight | D72: Awesome Party People Part Deux | E72: UKBBL Team A
A74: 57 | B74: Shortstack | C74: ArcherJ | D74: Sutton Immortals | E74: Iconic Atomics
A75: 58 | B75: Trollface | C75: TateRolls1s | D75: Sutton Immortals | E75: Iconic Atomics
A76: 59 | B76: Sparky | C76: Duffins | D76: Sutton Immortals | E76: Iconic Atomics
A77: 60 | B77: Boynamedsue | C77: Winterb0rn | D77: Sutton Immortals | E77: Iconic Atomics
A79: 61 | B79: Fromherashes | C79: Brickp | D79: Two Guys One Dice Cup | E79: Team Republic Chill Squad
A80: 62 | B80: HipsterPotter | C80: Mefspores | D80: Two Guys One Dice Cup | E80: Team Republic Chill Squad
A81: 63 | B81: Chilli | C81: CoachKAS | D81: Two Guys One Dice Cup | E81: Team Republic Chill Squad
A82: 64 | B82: HuntlyLoon | C82: Potatomancer | D82: Two Guys One Dice Cup | E82: Team Republic Chill Squad
A84: 65 | B84: Laser_Owl | C84: Earl_Burgomeister | D84: Orkshire | E84: Deeside Double Skulls
A85: 66 | B85: Falesh | C85: Dakyrus | D85: Orkshire | E85: Deeside Double Skulls
A86: 67 | B86: McFaff | C86: Padster | D86: Orkshire | E86: Deeside Double Skulls
A87: 68 | B87: Burtblahblahblah | C87: LORD_BONAN | D87: Orkshire | E87: Deeside Double Skulls
A89: 69 | B89: Spob | C89: Rubble | D89: Midtable Marauders | E89: Let Me Atom
A90: 70 | B90: Firebreather | C90: Tomfoolery | D90: Midtable Marauders | E90: Let Me Atom
A91: 71 | B91: Fireolli | C91: MrGreen | D91: Midtable Marauders | E91: Let Me Atom
A92: 72 | B92: Ringbeard | C92: Blackduke | D92: Midtable Marauders | E92: Let Me Atom
A94: 73 | B94: BigMace | C94: AWT | D94: 2 Die Docks | E94: The Democratic Republic of Yorkshire
A95: 74 | B95: 8ulldog | C95: Slimjono | D95: 2 Die Docks | E95: The Democratic Republic of Yorkshire
A96: 75 | B96: NickBell | C96: Loubega | D96: 2 Die Docks | E96: The Democratic Republic of Yorkshire
A97: 76 | B97: Vido | C97: Diaphite | D97: 2 Die Docks | E97: The Democratic Republic of Yorkshire
A99: 77 | B99: Masterful | C99: JKB | D99: ECBBL Blackshirts | E99: TCC: A Up Me Ducks
A100: 78 | B100: =IF(A100="","",OFFSET(INDIRECT("Round"&Round&"!B1"),$A100,0)) -> Bsking | C100: =IF(A100="","",OFFSET(INDIRECT("Round"&Round&"!c1"),$A100,0)) -> Indibro | D100: =IF(A100="","",OFFSET(INDIRECT("Round"&Round&"!n1"),$A100,0)) -> ECBBL Blackshirts | E100: =IF(A100="","",OFFSET(INDIRECT("Round"&Round&"!o1"),$A100,0)) -> TCC: A Up Me Ducks
A101: =IF(A100="",A99+1,IF(ROUNDUP(A100/TeamSize,0)=A100/TeamSize,"",A100+1)) -> 79 | B101: Vmcat | C101: Envoien | D101: ECBBL Blackshirts | E101: TCC: A Up Me Ducks
A102: 80 | B102: Heff | C102: SkraggDave | D102: ECBBL Blackshirts | E102: TCC: A Up Me Ducks
A104: 81 | B104: ScalesnScars | C104: DrHellboy_ | D104: NOBBL Elite | E104: Hell n El Productions
A105: 82 | B105: Wobert | C105: Raging82 | D105: NOBBL Elite | E105: Hell n El Productions
A106: 83 | B106: Jago21 | C106: Fallingdownjoe | D106: NOBBL Elite | E106: Hell n El Productions
A107: 84 | B107: Starkey | C107: El_Duderino | D107: NOBBL Elite | E107: Hell n El Productions
A109: 85 | B109: Fullfatbeard | C109: HenningEksteen | D109: Seagulls 2: Electric Boogaloo | E109: Dutch Pirates
A110: 86 | B110: Mournival | C110: Edwin | D110: Seagulls 2: Electric Boogaloo | E110: Dutch Pirates
A111: 87 | B111: Shriyke | C111: Joost | D111: Seagulls 2: Electric Boogaloo | E111: Dutch Pirates
A112: 88 | B112: Markymarc | C112: Yurinator | D112: Seagulls 2: Electric Boogaloo | E112: Dutch Pirates
A114: 89 | B114: Gallo | C114: PhilGC | D114: BolognaBowl | E114: Dice on Tour Team 1
A115: 90 | B115: Fackko | C115: Maca1066 | D115: BolognaBowl | E115: Dice on Tour Team 1
A116: 91 | B116: Liam | C116: Syntaxerror | D116: BolognaBowl | E116: Dice on Tour Team 1
A117: 92 | B117: Dirold | C117: Whiskeymancer | D117: BolognaBowl | E117: Dice on Tour Team 1
A119: 93 | B119: Bashto | C119: SickAsEggs | D119: Tactics and Theatrics | E119: Famous Tomb Guardians
A120: 94 | B120: Bloodtithe | C120: Tulkus | D120: Tactics and Theatrics | E120: Famous Tomb Guardians
A121: 95 | B121: Breakmonker | C121: Archcoach_Ferdinand | D121: Tactics and Theatrics | E121: Famous Tomb Guardians
A122: 96 | B122: Haychdee | C122: Keithabix | D122: Tactics and Theatrics | E122: Famous Tomb Guardians
A124: 97 | B124: Gitgrinder | C124: GingerB | D124: The Merry Men | E124: DBL Tropicana
A125: 98 | B125: Cjtaylor_uk | C125: Tyler_Swaft | D125: The Merry Men | E125: DBL Tropicana
A126: 99 | B126: Bogey105 | C126: Cyritz | D126: The Merry Men | E126: DBL Tropicana
A127: 100 | B127: CharlieBanks | C127: CptOats | D127: The Merry Men | E127: DBL Tropicana
A129: 101 | B129: Aaaardvark101 | C129: Artful_Dodger | D129: Dragons | E129: NOBBL Jesters
A130: 102 | B130: Skab | C130: Ens1ferum | D130: Dragons | E130: NOBBL Jesters
A131: 103 | B131: ThatOtherAsianGuy | C131: pedro_laserbeard | D131: Dragons | E131: NOBBL Jesters
A132: 104 | B132: =IF(A132="","",OFFSET(INDIRECT("Round"&Round&"!B1"),$A132,0)) -> MartinVanquish | C132: =IF(A132="","",OFFSET(INDIRECT("Round"&Round&"!c1"),$A132,0)) -> Papa_laza_rou | D132: =IF(A132="","",OFFSET(INDIRECT("Round"&Round&"!n1"),$A132,0)) -> Dragons | E132: =IF(A132="","",OFFSET(INDIRECT("Round"&Round&"!o1"),$A132,0)) -> NOBBL Jesters
A133: =IF(A132="",A131+1,IF(ROUNDUP(A132/TeamSize,0)=A132/TeamSize,"",A132+1)) -> 
A134: 105 | B134: Oranj | C134: Jeeves | D134: Salty Bowlers of London | E134: Chins Chumps and C.H.I.P.S.
A135: 106 | B135: Saltymurcutt | C135: Mamapepe | D135: Salty Bowlers of London | E135: Chins Chumps and C.H.I.P.S.
A136: 107 | B136: Salontiger | C136: Pipey | D136: Salty Bowlers of London | E136: Chins Chumps and C.H.I.P.S.
A137: 108 | B137: Grim_Jim | C137: Shunt | D137: Salty Bowlers of London | E137: Chins Chumps and C.H.I.P.S.
A139: 109 | B139: The_mighty_irush | C139: Jayward | D139: Cheltenham IGBB Raiders | E139: Team Wales
A140: 110 | B140: Turboraptor | C140: Gcoleman | D140: Cheltenham IGBB Raiders | E140: Team Wales
A141: 111 | B141: Shadrak | C141: Celt | D141: Cheltenham IGBB Raiders | E141: Team Wales
A142: 112 | B142: Shortstuff | C142: 20phoenix | D142: Cheltenham IGBB Raiders | E142: Team Wales
A144: 113 | B144: BartK | C144: Laraigne | D144: ECBBL Ten-Tackles | E144: La Ruelle
A145: 114 | B145: Bbart | C145: Haktar | D145: ECBBL Ten-Tackles | E145: La Ruelle
A146: 115 | B146: JuJuu | C146: Fondu | D146: ECBBL Ten-Tackles | E146: La Ruelle
A147: 116 | B147: King_Ghidra | C147: LouisX | D147: ECBBL Ten-Tackles | E147: La Ruelle
A149: 117 | B149: Steairey | C149: Lpoolcookie | D149: ECBBL Aspiring Adequates | E149: Monstrous Tynemouth
A150: 118 | B150: Ahzek | C150: Wynters_Dad | D150: ECBBL Aspiring Adequates | E150: Monstrous Tynemouth
A151: 119 | B151: Loynster | C151: Macster | D151: ECBBL Aspiring Adequates | E151: Monstrous Tynemouth
A152: 120 | B152: Taltal | C152: Pillowfists | D152: ECBBL Aspiring Adequates | E152: Monstrous Tynemouth
A154: 121 | B154: Mr_Zay | C154: Cornish | D154: The Fellowship of the Ball | E154: Shiretown Stuffers
A155: 122 | B155: Deeferdan | C155: Everybodys_Dead_Dave | D155: The Fellowship of the Ball | E155: Shiretown Stuffers
A156: 123 | B156: Thulean | C156: Whitey | D156: The Fellowship of the Ball | E156: Shiretown Stuffers
A157: 124 | B157: Lamour | C157: El_Spoonio | D157: The Fellowship of the Ball | E157: Shiretown Stuffers
A159: 125 | B159: Gingerballer | C159: Chicken23 | D159: The GoBBLed | E159: Sann Clan
A160: 126 | B160: Daubs | C160: Pegleg | D160: The GoBBLed | E160: Sann Clan
A161: 127 | B161: Grashnak | C161: Sann0638 | D161: The GoBBLed | E161: Sann Clan
A162: 128 | B162: Randypandy | C162: Stewbacca | D162: The GoBBLed | E162: Sann Clan
A164: 129 | B164: =IF(A164="","",OFFSET(INDIRECT("Round"&Round&"!B1"),$A164,0)) -> TTGumption | C164: =IF(A164="","",OFFSET(INDIRECT("Round"&Round&"!c1"),$A164,0)) -> Blockparty87 | D164: =IF(A164="","",OFFSET(INDIRECT("Round"&Round&"!n1"),$A164,0)) -> Team Miss Next Game | E164: =IF(A164="","",OFFSET(INDIRECT("Round"&Round&"!o1"),$A164,0)) -> 2 Up 2 Down
A165: =IF(A164="",A163+1,IF(ROUNDUP(A164/TeamSize,0)=A164/TeamSize,"",A164+1)) -> 130 | B165: Scouseboy | C165: Fingers | D165: Team Miss Next Game | E165: 2 Up 2 Down
A166: 131 | B166: Picnicmik | C166: Squigthrower | D166: Team Miss Next Game | E166: 2 Up 2 Down
A167: 132 | B167: Spleggy | C167: Bgmclean | D167: Team Miss Next Game | E167: 2 Up 2 Down
A169: 133 | B169: Tintenfisch | C169: Shipaz | D169: Team TimeOut | E169: Snake Eyes and GFIs
A170: 134 | B170: Killerpo | C170: GustyGarett | D170: Team TimeOut | E170: Snake Eyes and GFIs
A171: 135 | B171: Mawph | C171: DJCritch | D171: Team TimeOut | E171: Snake Eyes and GFIs
A172: 136 | B172: Commisionerref | C172: TheCowDaddy | D172: Team TimeOut | E172: Snake Eyes and GFIs
A174: 137 | B174: Wulfyn | C174: Ploppy_McPloppy | D174: Tacklezone Pirates | E174: HEBBL Team A
A175: 138 | B175: Nippylongskar | C175: MadeofWelsh | D175: Tacklezone Pirates | E175: HEBBL Team A
A176: 139 | B176: Alex_Pye | C176: Littlespoon | D176: Tacklezone Pirates | E176: HEBBL Team A
A177: 140 | B177: JBone | C177: Orklabe | D177: Tacklezone Pirates | E177: HEBBL Team A
A179: 141 | B179: Pbowman | C179: Orcthadontist | D179: Murder Queens | E179: Murder Jacks
A180: 142 | B180: Gizmo3k | C180: Mortal_Wombat | D180: Murder Queens | E180: Murder Jacks
A181: 143 | B181: LordGarlack | C181: WillPower | D181: Murder Queens | E181: Murder Jacks
A182: 144 | B182: L0rdgibby | C182: Aldpoagus | D182: Murder Queens | E182: Murder Jacks
B183: =IF(A183="","",OFFSET(INDIRECT("Round"&Round&"!B1"),$A183,0)) ->  | C183: =IF(A183="","",OFFSET(INDIRECT("Round"&Round&"!c1"),$A183,0)) ->  | D183: =IF(A183="","",OFFSET(INDIRECT("Round"&Round&"!n1"),$A183,0)) ->  | E183: =IF(A183="","",OFFSET(INDIRECT("Round"&Round&"!o1"),$A183,0)) -> 
A184: 145 | B184: OON | C184: EnglishChris | D184: Lutece Noobs | E184: Dice In The Alley
A185: 146 | B185: Zahiko | C185: Rhicheese | D185: Lutece Noobs | E185: Dice In The Alley
A186: 147 | B186: Nicap | C186: Fluffy_Kraken | D186: Lutece Noobs | E186: Dice In The Alley
A187: 148 | B187: Maitre_tactac | C187: Beigelantern | D187: Lutece Noobs | E187: Dice In The Alley
A189: 149 | B189: Feasteater | C189: DizzyBess | D189: Doom League | E189: Hey Listen and The Guy We Found in Nandos
A190: 150 | B190: Tstyx | C190: Cauleeflower | D190: Doom League | E190: Hey Listen and The Guy We Found in Nandos
A191: 151 | B191: Chubooga | C191: AndyDavo | D191: Doom League | E191: Hey Listen and The Guy We Found in Nandos
A192: 152 | B192: Jamelius | C192: SeriouslyImAGiraffe | D192: Doom League | E192: Hey Listen and The Guy We Found in Nandos
A194: 153 | B194: 0 | C194: 0 | D194: 0 | E194: 0
A195: 154 | B195: 0 | C195: 0 | D195: 0 | E195: 0
A196: 155 | B196: 0 | C196: 0 | D196: 0 | E196: 0
A197: 156 | B197: 0 | C197: 0 | D197: 0 | E197: 0
A199: 157 | B199: =IF(A199="","",OFFSET(INDIRECT("Round"&Round&"!B1"),$A199,0)) -> 0 | C199: =IF(A199="","",OFFSET(INDIRECT("Round"&Round&"!c1"),$A199,0)) -> 0 | D199: =IF(A199="","",OFFSET(INDIRECT("Round"&Round&"!n1"),$A199,0)) -> 0 | E199: =IF(A199="","",OFFSET(INDIRECT("Round"&Round&"!o1"),$A199,0)) -> 0
A200: 158 | B200: 0 | C200: 0 | D200: 0 | E200: 0
A201: 159 | B201: 0 | C201: 0 | D201: 0 | E201: 0
A202: 160 | B202: 0 | C202: 0 | D202: 0 | E202: 0
A204: 161 | B204: 0 | C204: 0 | D204: 0 | E204: 0
A205: 162 | B205: 0 | C205: 0 | D205: 0 | E205: 0
A206: 163 | B206: 0 | C206: 0 | D206: 0 | E206: 0
A207: 164 | B207: 0 | C207: 0 | D207: 0 | E207: 0
A209: 165 | B209: 0 | C209: 0 | D209: 0 | E209: 0
A210: 166 | B210: 0 | C210: 0 | D210: 0 | E210: 0
A211: 167 | B211: 0 | C211: 0 | D211: 0 | E211: 0
A212: 168 | B212: 0 | C212: 0 | D212: 0 | E212: 0
A214: 169 | B214: 0 | C214: 0 | D214: 0 | E214: 0
A215: 170 | B215: 0 | C215: 0 | D215: 0 | E215: 0
A216: 171 | B216: 0 | C216: 0 | D216: 0 | E216: 0
A217: 172 | B217: 0 | C217: 0 | D217: 0 | E217: 0
A219: 173 | B219: 0 | C219: 0 | D219: 0 | E219: 0
A220: 174 | B220: 0 | C220: 0 | D220: 0 | E220: 0
A221: 175 | B221: 0 | C221: 0 | D221: 0 | E221: 0
A222: 176 | B222: 0 | C222: 0 | D222: 0 | E222: 0
A224: 177 | B224: 0 | C224: 0 | D224: 0 | E224: 0
A225: 178 | B225: 0 | C225: 0 | D225: 0 | E225: 0
A226: 179 | B226: 0 | C226: 0 | D226: 0 | E226: 0
A227: 180 | B227: 0 | C227: 0 | D227: 0 | E227: 0
A229: =IF(A228="",A227+1,IF(ROUNDUP(A228/TeamSize,0)=A228/TeamSize,"",A228+1)) -> 181 | B229: 0 | C229: 0 | D229: 0 | E229: 0
A230: 182 | B230: 0 | C230: 0 | D230: 0 | E230: 0
A231: 183 | B231: 0 | C231: 0 | D231: 0 | E231: 0
A232: 184 | B232: 0 | C232: 0 | D232: 0 | E232: 0
A234: 185 | B234: 0 | C234: 0 | D234: 0 | E234: 0
A235: 186 | B235: 0 | C235: 0 | D235: 0 | E235: 0
A236: 187 | B236: 0 | C236: 0 | D236: 0 | E236: 0
A237: 188 | B237: 0 | C237: 0 | D237: 0 | E237: 0
A239: 189 | B239: 0 | C239: 0 | D239: 0 | E239: 0
A240: 190 | B240: 0 | C240: 0 | D240: 0 | E240: 0
A241: 191 | B241: 0 | C241: 0 | D241: 0 | E241: 0

Sheet Round1
B1: Home Player | C1: Away Player | D1: Home Points | E1: Away Points | F1: Home TD | G1: Away TD | H1: Home Cas | I1: Away Cas | J1: Home Bonus1 | K1: Away Bonus1 | L1: Home Bonus2 | M1: Away Bonus2 | N1: Home Group | O1: Away Group | S1: Points Before Games | V1: Points After Games | Y1: Group Results | Z1: Group | AA1: Points | AC1: Group Points Before Games | AF1: Group Points After Games
B2: Rhicheese | C2: Wookiee1972 | D2: =fctScore(F2,G2,H2,J2,L2) -> 0 | E2: =fctScore(G2,F2,I2,K2,M2) -> 2 | F2: 1 | G2: 2 | H2: 2 | I2: 1 | J2: 0 | K2: 3 | L2: 1 | M2: 2 | N2: Dice In The Alley | O2: Fellowship of the GBBL | S2: Biereforever | T2: 0 | V2: GingerB | W2: 2 | Z2: 2 Die Docks | AA2: 1 | AC2: Dice In The Alley | AD2: 0 | AF2: HEBBL Team B | AG2: 2
B3: EnglishChris | C3: Don_Vito | D3: =fctScore(F3,G3,H3,J3,L3) -> 1 | E3: =fctScore(G3,F3,I3,K3,M3) -> 1 | F3: 0 | G3: 0 | H3: 3 | I3: 1 | J3: 3 | K3: 1 | L3: 1 | M3: 1 | N3: Dice In The Alley | O3: Fellowship of the GBBL | S3: Papa_laza_rou | T3: 0 | V3: HEBBL Team B #4 | W3: 2 | Z3: 2 Up 2 Down | AA3: 0 | AC3: Fellowship of the GBBL | AD3: 0 | AF3: Murder Aces | AG3: 2
B4: Fluffy_Kraken | C4: Calfykid | D4: 0 | E4: 2 | F4: 2 | G4: 3 | H4: 1 | I4: 1 | J4: 3 | K4: 3 | L4: 1 | M4: 2 | N4: Dice In The Alley | O4: Fellowship of the GBBL | S4: Speedingbullet | T4: 0 | V4: Outkast | W4: 2 | Z4: ABBL | AA4: 2 | AC4: The Merry Men | AD4: 0 | AF4: Fellowship of the GBBL | AG4: 2
B5: Beigelantern | C5: Whisky_Pip | D5: 0 | E5: 2 | F5: 1 | G5: 3 | H5: 1 | I5: 0 | J5: 1 | K5: 2 | L5: 1 | M5: 2 | N5: Dice In The Alley | O5: Fellowship of the GBBL | S5: Saltymurcutt | T5: 0 | V5: SpaceGandalf | W5: 2 | Z5: All The Presidents Men | AA5: 2 | AC5: UKBBL Team A | AD5: 0 | AF5: Les Azes | AG5: 2
B6: Cjtaylor_uk | C6: Insidious | D6: 1 | E6: 1 | F6: 2 | G6: 2 | H6: 1 | I6: 0 | J6: 1 | K6: 1 | L6: 3 | M6: 1 | N6: The Merry Men | O6: UKBBL Team A | S6: Turboraptor | T6: 0 | V6: Stick_with_poo_on_the_end | W6: 2 | Z6: Awesome Party People | AA6: 2 | AC6: Team Republic Tryhards | AD6: 0 | AF6: Sheffield Stinkweasels | AG6: 2
B7: CharlieBanks | C7: Lewi88 | D7: 0 | E7: 2 | F7: 2 | G7: 3 | H7: 1 | I7: 1 | J7: 2 | K7: 2 | L7: 1 | M7: 0 | N7: The Merry Men | O7: UKBBL Team A | S7: Envoien | T7: 0 | V7: Fiddlesticks | W7: 2 | Z7: Awesome Party People Part Deux | AA7: 2 | AC7: La Ruelle | AD7: 0 | AF7: Waterbowl Team Z | AG7: 2
B8: Gitgrinder | C8: Khornight | D8: 2 | E8: 0 | F8: 2 | G8: 0 | H8: 1 | I8: 3 | J8: 2 | K8: 1 | L8: 2 | M8: 1 | N8: The Merry Men | O8: UKBBL Team A | S8: Vido | T8: 0 | V8: Camelchops | W8: 2 | Z8: Bang Average Blood Bowlers | AA8: 2 | AC8: Famous Tomb Guardians | AD8: 0 | AF8: Steph, Stig and The Baldies | AG8: 2
B9: Bogey105 | C9: Snowtroll | D9: 0 | E9: 2 | F9: 0 | G9: 1 | H9: 3 | I9: 0 | J9: 3 | K9: 0 | L9: 2 | M9: 1 | N9: The Merry Men | O9: UKBBL Team A | S9: DrHellboy_ | T9: 0 | V9: Earl_Burgomeister | W9: 2 | Z9: BolognaBowl | AA9: 1 | AC9: Sutton Immortals | AD9: 0 | AF9: ABBL | AG9: 2
B10: Outkast | C10: LouisX | D10: 2 | E10: 0 | F10: 3 | G10: 0 | H10: 2 | I10: 1 | J10: 3 | K10: 1 | L10: 2 | M10: 2 | N10: Team Republic Tryhards | O10: La Ruelle | S10: Insidious | T10: 0 | V10: ArcherJ | W10: 2 | Z10: Cheltenham IGBB Raiders | AA10: 0 | AC10: Murder Aces | AD10: 0 | AF10: Murder Jokers | AG10: 2
B11: Torquemada | C11: Laraigne | D11: 0 | E11: 2 | F11: 0 | G11: 2 | H11: 2 | I11: 2 | J11: 1 | K11: 3 | L11: 0 | M11: 2 | N11: Team Republic Tryhards | O11: La Ruelle | S11: Rhicheese | T11: 0 | V11: Nobbla | W11: 2 | Z11: Chins Chumps and C.H.I.P.S. | AA11: 0 | AC11: Doom League | AD11: 0 | AF11: Wrekin Wraiders | AG11: 2
B12: Stratford_ | C12: Haktar | D12: 1 | E12: 1 | F12: 2 | G12: 2 | H12: 1 | I12: 3 | J12: 3 | K12: 1 | L12: 2 | M12: 1 | N12: Team Republic Tryhards | O12: La Ruelle | S12: MartinVanquish | T12: 0 | V12: Spob | W12: 2 | Z12: CLAW on Tour | AA12: 2 | AC12: Midtable Marauders | AD12: 0 | AF12: Elyud Dimkok | AG12: 2
B13: GreenSkinPhil | C13: Fondu | D13: 2 | E13: 0 | F13: 3 | G13: 2 | H13: 1 | I13: 0 | J13: 2 | K13: 0 | L13: 2 | M13: 1 | N13: Team Republic Tryhards | O13: La Ruelle | S13: TheBymster | T13: 0 | V13: Douglowe | W13: 2 | Z13: DBL Tropicana | AA13: 0 | AC13: NOBBL Elite | AD13: 0 | AF13: The GoBBLers | AG13: 2
B14: Keithabix | C14: Shortstack | D14: 0 | E14: 2 | F14: 0 | G14: 2 | H14: 2 | I14: 2 | J14: 3 | K14: 3 | L14: 1 | M14: 0 | N14: Famous Tomb Guardians | O14: Sutton Immortals | S14: GingerB | T14: 0 | V14: 03philpota | W14: 2 | Z14: Deeside Double Skulls | AA14: 1 | AC14: Tacklezone Pirates | AD14: 0 | AF14: Old Man Monkeys Team | AG14: 2
B15: Archcoach_Ferdinand | C15: Trollface | D15: 1 | E15: 1 | F15: 2 | G15: 2 | H15: 1 | I15: 3 | J15: 2 | K15: 1 | L15: 2 | M15: 1 | N15: Famous Tomb Guardians | O15: Sutton Immortals | S15: Lamour | T15: 0 | V15: Shortstack | W15: 2 | Z15: Dice In The Alley | AA15: 0 | AC15: Wrekin Wraiders | AD15: 0 | AF15: North Yorkshire Table Top | AG15: 2
B16: SickAsEggs | C16: Boynamedsue | D16: 2 | E16: 0 | F16: 2 | G16: 1 | H16: 2 | I16: 2 | J16: 1 | K16: 1 | L16: 3 | M16: 1 | N16: Famous Tomb Guardians | O16: Sutton Immortals | S16: Ploppy_McPloppy | T16: 0 | V16: Brickp | W16: 2 | Z16: Dice on Tour Team 1 | AA16: 1 | AC16: Murder Jacks | AD16: 0 | AF16: Murder Kings | AG16: 2
B17: Tulkus | C17: Sparky | D17: 1 | E17: 1 | F17: 0 | G17: 0 | H17: 1 | I17: 1 | J17: 2 | K17: 3 | L17: 1 | M17: 1 | N17: Famous Tomb Guardians | O17: Sutton Immortals | S17: Earl_Burgomeister | T17: 0 | V17: Ratmaninov | W17: 2 | Z17: Doom League | AA17: 0 | AC17: Sheffield Stinkweasels | AD17: 0 | AF17: Orkshire Puddings | AG17: 2
B18: Gerdleah | C18: Chubooga | D18: 2 | E18: 0 | F18: 2 | G18: 1 | H18: 2 | I18: 1 | J18: 0 | K18: 3 | L18: 1 | M18: 2 | N18: Murder Aces | O18: Doom League | S18: Gorgoroth | T18: 0 | V18: ScalesnScars | W18: 2 | Z18: Dragons | AA18: 0 | AC18: Team Wales | AD18: 0 | AF18: CLAW on Tour | AG18: 2
B19: Bb_jock | C19: Jamelius | D19: 2 | E19: 0 | F19: 3 | G19: 1 | H19: 1 | I19: 1 | J19: 2 | K19: 1 | L19: 3 | M19: 2 | N19: Murder Aces | O19: Doom League | S19: Squigthrower | T19: 0 | V19: Bb_jock | W19: 2 | Z19: Dutch Pirates | AA19: 1 | AC19: Awesome Party People | AD19: 0 | AF19: Team Republic Tryhards | AG19: 2
B20: Purdindas | C20: Tstyx | D20: 2 | E20: 0 | F20: 1 | G20: 0 | H20: 1 | I20: 1 | J20: 3 | K20: 0 | L20: 1 | M20: 2 | N20: Murder Aces | O20: Doom League | S20: Fiddlesticks | T20: 0 | V20: Laraigne | W20: 2 | Z20: ECBBL Aspiring Adequates | AA20: 0 | AC20: Cheltenham IGBB Raiders | AD20: 0 | AF20: TeamW | AG20: 2
B21: Sporran | C21: Feasteater | D21: 1 | E21: 1 | F21: 1 | G21: 1 | H21: 0 | I21: 1 | J21: 1 | K21: 3 | L21: 0 | M21: 2 | N21: Murder Aces | O21: Doom League | S21: Cornish | T21: 0 | V21: Elyod | W21: 2 | Z21: ECBBL Blackshirts | AA21: 1 | AC21: TCC: BoBin for Ducks | AD21: 0 | AF21: All The Presidents Men | AG21: 2
B22: Ringbeard | C22: ScalesnScars | D22: 0 | E22: 2 | F22: 0 | G22: 2 | H22: 2 | I22: 2 | J22: 1 | K22: 2 | L22: 1 | M22: 3 | N22: Midtable Marauders | O22: NOBBL Elite | S22: Whitey | T22: 0 | V22: HighlandEnoch | W22: 2 | Z22: ECBBL Ten-Tackles | AA22: 0 | AC22: Team Miss Next Game | AD22: 0 | AF22: Awesome Party People | AG22: 2
B23: Firebreather | C23: Jago21 | D23: 2 | E23: 0 | F23: 1 | G23: 0 | H23: 1 | I23: 2 | J23: 0 | K23: 3 | L23: 0 | M23: 1 | N23: Midtable Marauders | O23: NOBBL Elite | S23: Gerdleah | T23: 0 | V23: ThomasW | W23: 2 | Z23: Elyud Dimkok | AA23: 2 | AC23: The GoBBLers | AD23: 0 | AF23: TCC: BoBin for Ducks | AG23: 2
B24: Spob | C24: Starkey | D24: 2 | E24: 0 | F24: 3 | G24: 1 | H24: 3 | I24: 1 | J24: 2 | K24: 2 | L24: 1 | M24: 0 | N24: Midtable Marauders | O24: NOBBL Elite | S24: Haychdee | T24: 0 | V24: Whisky_Pip | W24: 2 | Z24: Famous Tomb Guardians | AA24: 1 | AC24: Orkshire | AD24: 0 | AF24: Granite City Seagulls | AG24: 2
B25: Fireolli | C25: Wobert | D25: 0 | E25: 2 | F25: 2 | G25: 3 | H25: 2 | I25: 2 | J25: 1 | K25: 1 | L25: 2 | M25: 1 | N25: Midtable Marauders | O25: NOBBL Elite | S25: Lewi88 | T25: 0 | V25: Fullfatbeard | W25: 2 | Z25: Fellowship of the GBBL | AA25: 2 | AC25: Dutch Pirates | AD25: 0 | AF25: Bang Average Blood Bowlers | AG25: 2
B26: Nippylongskar | C26: Speedingbullet | D26: 1 | E26: 1 | F26: 2 | G26: 2 | H26: 1 | I26: 3 | J26: 2 | K26: 2 | L26: 0 | M26: 1 | N26: Tacklezone Pirates | O26: Wrekin Wraiders | S26: Daubs | T26: 0 | V26: Tintenfisch | W26: 2 | Z26: Granite City Seagulls | AA26: 2 | AC26: Orkshire Puddings | AD26: 0 | AF26: T and Three Sugars | AG26: 2
B27: JBone | C27: TheBymster | D27: 0 | E27: 2 | F27: 0 | G27: 2 | H27: 2 | I27: 1 | J27: 0 | K27: 2 | L27: 2 | M27: 3 | N27: Tacklezone Pirates | O27: Wrekin Wraiders | S27: HuntlyLoon | T27: 0 | V27: Laser_Owl | W27: 2 | Z27: HEBBL Team A | AA27: 0 | AC27: The Fellowship of the Ball | AD27: 0 | AF27: Smoggies UTFB | AG27: 2
B28: Wulfyn | C28: Goldengate | D28: 1 | E28: 1 | F28: 1 | G28: 1 | H28: 2 | I28: 1 | J28: 2 | K28: 2 | L28: 2 | M28: 0 | N28: Tacklezone Pirates | O28: Wrekin Wraiders | S28: Dayday | T28: 0 | V28: Aaaardvark101 | W28: 2 | Z28: HEBBL Team B | AA28: 2 | AC28: Snake Eyes and GFIs | AD28: 0 | AF28: Awesome Party People Part Deux | AG28: 2
B29: Alex_Pye | C29: Dragonborn | D29: 0 | E29: 2 | F29: 2 | G29: 3 | H29: 2 | I29: 3 | J29: 0 | K29: 1 | L29: 2 | M29: 1 | N29: Tacklezone Pirates | O29: Wrekin Wraiders | S29: BartK | T29: 0 | V29: TheBymster | W29: 2 | Z29: Hell n El Productions | AA29: 1 | AC29: Murder Jokers | AD29: 0 | AF29: UKBBL Team A | AG29: 2
B30: Orcthadontist | C30: Kyrkedalechris | D30: 1 | E30: 1 | F30: 3 | G30: 3 | H30: 3 | I30: 3 | J30: 1 | K30: 3 | L30: 0 | M30: 2 | N30: Murder Jacks | O30: Sheffield Stinkweasels | S30: Cjtaylor_uk | T30: 0 | V30: Mr_Mezcal | W30: 2 | Z30: Hey Listen and The Guy We Found in Nandos | AA30: 0 | AC30: Shiretown Stuffers | AD30: 0 | AF30: Sutton Immortals | AG30: 1
B31: Aldpoagus | C31: Littleleadperson | D31: 0 | E31: 2 | F31: 2 | G31: 3 | H31: 1 | I31: 3 | J31: 1 | K31: 1 | L31: 1 | M31: 2 | N31: Murder Jacks | O31: Sheffield Stinkweasels | S31: Ringbeard | T31: 0 | V31: Shaniepoo1 | W31: 2 | Z31: Iconic Atomics | AA31: 1 | AC31: Murder Kings | AD31: 0 | AF31: Iconic Atomics | AG31: 1
B32: Mortal_Wombat | C32: Zooey | D32: 0 | E32: 2 | F32: 0 | G32: 1 | H32: 2 | I32: 0 | J32: 1 | K32: 0 | L32: 3 | M32: 1 | N32: Murder Jacks | O32: Sheffield Stinkweasels | S32: Mr_Mezcal | T32: 0 | V32: Barnacles | W32: 2 | Z32: La Ruelle | AA32: 0 | AC32: Salty Bowlers of London | AD32: 0 | AF32: Two Guys One Dice Cup | AG32: 1
B33: WillPower | C33: Nodgefodgekins | D33: 0 | E33: 2 | F33: 2 | G33: 3 | H33: 2 | I33: 1 | J33: 2 | K33: 1 | L33: 0 | M33: 1 | N33: Murder Jacks | O33: Sheffield Stinkweasels | S33: Orcthadontist | T33: 0 | V33: Gitgrinder | W33: 2 | Z33: Les Azes | AA33: 2 | AC33: Bang Average Blood Bowlers | AD33: 0 | AF33: Team Republic Chill Squad | AG33: 1
B34: Celt | C34: Munch | D34: 1 | E34: 1 | F34: 1 | G34: 1 | H34: 1 | I34: 2 | J34: 1 | K34: 3 | L34: 1 | M34: 1 | N34: Team Wales | O34: Awesome Party People | S34: BROCKdodge | T34: 0 | V34: Fromherashes | W34: 2 | Z34: Let Me Atom | AA34: 1 | AC34: HEBBL Team B | AD34: 0 | AF34: Orkshire | AG34: 1
B35: Jayward | C35: Elperas | D35: 1 | E35: 1 | F35: 2 | G35: 2 | H35: 3 | I35: 0 | J35: 2 | K35: 0 | L35: 2 | M35: 1 | N35: Team Wales | O35: Awesome Party People | S35: Masterful | T35: 0 | V35: Joemanji | W35: 2 | Z35: Lutece Noobs | AA35: 0 | AC35: Hey Listen and The Guy We Found in Nandos | AD35: 0 | AF35: Deeside Double Skulls | AG35: 1
B36: Gcoleman | C36: Forgotmytea | D36: 1 | E36: 1 | F36: 1 | G36: 1 | H36: 3 | I36: 2 | J36: 2 | K36: 1 | L36: 3 | M36: 3 | N36: Team Wales | O36: Awesome Party People | S36: Blackduke | T36: 0 | V36: Rev | W36: 2 | Z36: Midtable Marauders | AA36: 1 | AC36: North Yorkshire Table Top | AD36: 0 | AF36: Midtable Marauders | AG36: 1
B37: 20phoenix | C37: Shaniepoo1 | D37: 0 | E37: 2 | F37: 1 | G37: 3 | H37: 2 | I37: 1 | J37: 3 | K37: 1 | L37: 3 | M37: 0 | N37: Team Wales | O37: Awesome Party People | S37: Bungeeman | T37: 0 | V37: The_Fritch | W37: 2 | Z37: Monstrous Tynemouth | AA37: 0 | AC37: The GoBBLed | AD37: 0 | AF37: Let Me Atom | AG37: 1
B38: Turboraptor | C38: Bungeeman | D38: 1 | E38: 1 | F38: 3 | G38: 3 | H38: 1 | I38: 1 | J38: 1 | K38: 2 | L38: 1 | M38: 3 | N38: Cheltenham IGBB Raiders | O38: TCC: BoBin for Ducks | S38: ScalesnScars | T38: 0 | V38: HenningEksteen | W38: 2 | Z38: Murder Aces | AA38: 2 | AC38: ECBBL Blackshirts | AD38: 0 | AF38: 2 Die Docks | AG38: 1
B39: Shadrak | C39: The_Fritch | D39: 0 | E39: 2 | F39: 1 | G39: 2 | H39: 0 | I39: 3 | J39: 0 | K39: 1 | L39: 1 | M39: 0 | N39: Cheltenham IGBB Raiders | O39: TCC: BoBin for Ducks | S39: Commisionerref | T39: 0 | V39: Deepfruit | W39: 2 | Z39: Murder Jacks | AA39: 0 | AC39: 2 Die Docks | AD39: 0 | AF39: ECBBL Blackshirts | AG39: 1
B40: Shortstuff | C40: Rev | D40: 0 | E40: 2 | F40: 0 | G40: 1 | H40: 0 | I40: 3 | J40: 3 | K40: 2 | L40: 0 | M40: 2 | N40: Cheltenham IGBB Raiders | O40: TCC: BoBin for Ducks | S40: Valen | T40: 0 | V40: Littleleadperson | W40: 2 | Z40: Murder Jokers | AA40: 2 | AC40: T and Three Sugars | AD40: 0 | AF40: The Democratic Republic of Yorkshire | AG40: 1
B41: The_mighty_irush | C41: Sean_M | D41: 2 | E41: 0 | F41: 2 | G41: 1 | H41: 2 | I41: 0 | J41: 2 | K41: 1 | L41: 2 | M41: 3 | N41: Cheltenham IGBB Raiders | O41: TCC: BoBin for Ducks | S41: Shunt | T41: 0 | V41: The_mighty_irush | W41: 2 | Z41: Murder Kings | AA41: 2 | AC41: NOBBL Jesters | AD41: 0 | AF41: TCC: A Up Me Ducks | AG41: 1
B42: Picnicmik | C42: BROCKdodge | D42: 0 | E42: 2 | F42: 2 | G42: 3 | H42: 1 | I42: 2 | J42: 0 | K42: 2 | L42: 2 | M42: 3 | N42: Team Miss Next Game | O42: The GoBBLers | S42: Keithabix | T42: 0 | V42: Twoshedzz | W42: 2 | Z42: Murder Queens | AA42: 0 | AC42: Team TimeOut | AD42: 0 | AF42: NOBBL Elite | AG42: 1
B43: Scouseboy | C43: Elplanet4 | D43: 1 | E43: 1 | F43: 2 | G43: 2 | H43: 1 | I43: 1 | J43: 2 | K43: 0 | L43: 0 | M43: 3 | N43: Team Miss Next Game | O43: The GoBBLers | S43: Bsking | T43: 0 | V43: PhilGC | W43: 2 | Z43: NOBBL Elite | AA43: 1 | AC43: ABBL | AD43: 0 | AF43: Hell n El Productions | AG43: 1
B44: Spleggy | C44: Barnacles | D44: 0 | E44: 2 | F44: 1 | G44: 3 | H44: 2 | I44: 1 | J44: 3 | K44: 1 | L44: 1 | M44: 0 | N44: Team Miss Next Game | O44: The GoBBLers | S44: Randypandy | T44: 0 | V44: PeteW | W44: 2 | Z44: NOBBL Jesters | AA44: 0 | AC44: Let Me Atom | AD44: 0 | AF44: Seagulls 2: Electric Boogaloo | AG44: 1
B45: TTGumption | C45: ICY-Bee | D45: 1 | E45: 1 | F45: 1 | G45: 1 | H45: 2 | I45: 1 | J45: 3 | K45: 2 | L45: 0 | M45: 1 | N45: Team Miss Next Game | O45: The GoBBLers | S45: JKB | T45: 0 | V45: BigMace | W45: 2 | Z45: North Yorkshire Table Top | AA45: 2 | AC45: Hell n El Productions | AD45: 0 | AF45: Dutch Pirates | AG45: 1
B46: Burtblahblahblah | C46: HenningEksteen | D46: 0 | E46: 2 | F46: 1 | G46: 2 | H46: 1 | I46: 3 | J46: 1 | K46: 1 | L46: 3 | M46: 2 | N46: Orkshire | O46: Dutch Pirates | S46: Cerberus85 | T46: 0 | V46: Fleetmacwood | W46: 2 | Z46: Old Man Monkeys Team | AA46: 2 | AC46: Lutece Noobs | AD46: 0 | AF46: BolognaBowl | AG46: 1
B47: Laser_Owl | C47: Yurinator | D47: 2 | E47: 0 | F47: 3 | G47: 1 | H47: 1 | I47: 2 | J47: 0 | K47: 0 | L47: 2 | M47: 1 | N47: Orkshire | O47: Dutch Pirates | S47: Shipaz | T47: 0 | V47: GreenSkinPhil | W47: 2 | Z47: Orkshire | AA47: 1 | AC47: Les Azes | AD47: 0 | AF47: Dice on Tour Team 1 | AG47: 1
B48: McFaff | C48: Edwin | D48: 0 | E48: 2 | F48: 1 | G48: 2 | H48: 1 | I48: 1 | J48: 1 | K48: 1 | L48: 3 | M48: 2 | N48: Orkshire | O48: Dutch Pirates | S48: PhilGC | T48: 0 | V48: BROCKdodge | W48: 2 | Z48: Orkshire Puddings | AA48: 2 | AC48: Team Republic Chill Squad | AD48: 0 | AF48: Tactics and Theatrics | AG48: 1
B49: Falesh | C49: Joost | D49: 2 | E49: 0 | F49: 2 | G49: 1 | H49: 1 | I49: 3 | J49: 2 | K49: 1 | L49: 2 | M49: 0 | N49: Orkshire | O49: Dutch Pirates | S49: Celt | T49: 0 | V49: Hankok | W49: 2 | Z49: Salty Bowlers of London | AA49: 0 | AC49: Dice on Tour Team 1 | AD49: 0 | AF49: Famous Tomb Guardians | AG49: 1
B50: Fiddlesticks | C50: Lamour | D50: 2 | E50: 0 | F50: 3 | G50: 1 | H50: 2 | I50: 0 | J50: 1 | K50: 2 | L50: 0 | M50: 3 | N50: Orkshire Puddings | O50: The Fellowship of the Ball | S50: DJCritch | T50: 0 | V50: Steairey | W50: 2 | Z50: Seagulls 2: Electric Boogaloo | AA50: 1 | AC50: Old Man Monkeys Team | AD50: 0 | AF50: The Merry Men | AG50: 0
B51: TomTheOwl | C51: Deeferdan | D51: 1 | E51: 1 | F51: 3 | G51: 3 | H51: 3 | I51: 3 | J51: 1 | K51: 3 | L51: 1 | M51: 1 | N51: Orkshire Puddings | O51: The Fellowship of the Ball | S51: Potatomancer | T51: 0 | V51: Owletta | W51: 2 | Z51: Sheffield Stinkweasels | AA51: 2 | AC51: Sann Clan | AD51: 0 | AF51: DBL Tropicana | AG51: 0
B52: Twoshedzz | C52: Thulean | D52: 2 | E52: 0 | F52: 3 | G52: 2 | H52: 2 | I52: 1 | J52: 0 | K52: 2 | L52: 0 | M52: 0 | N52: Orkshire Puddings | O52: The Fellowship of the Ball | S52: Steairey | T52: 0 | V52: JKB | W52: 2 | Z52: Shiretown Stuffers | AA52: 0 | AC52: TeamW | AD52: 0 | AF52: Dragons | AG52: 0
B53: Rydog | C53: Mr_Zay | D53: 0 | E53: 2 | F53: 1 | G53: 2 | H53: 1 | I53: 2 | J53: 2 | K53: 1 | L53: 1 | M53: 1 | N53: Orkshire Puddings | O53: The Fellowship of the Ball | S53: Hardcore_Stig | T53: 0 | V53: Gerdleah | W53: 2 | Z53: Smoggies UTFB | AA53: 2 | AC53: ECBBL Aspiring Adequates | AD53: 0 | AF53: NOBBL Jesters | AG53: 0
B54: Shipaz | C54: Thebunneh | D54: 1 | E54: 1 | F54: 1 | G54: 1 | H54: 3 | I54: 1 | J54: 1 | K54: 3 | L54: 1 | M54: 1 | N54: Snake Eyes and GFIs | O54: Murder Jokers | S54: Gizmo3k | T54: 0 | V54: Dragonborn | W54: 2 | Z54: Snake Eyes and GFIs | AA54: 0 | AC54: The Democratic Republic of Yorkshire | AD54: 0 | AF54: Salty Bowlers of London | AG54: 0
B55: DJCritch | C55: Fleetmacwood | D55: 0 | E55: 2 | F55: 1 | G55: 2 | H55: 2 | I55: 3 | J55: 1 | K55: 2 | L55: 1 | M55: 1 | N55: Snake Eyes and GFIs | O55: Murder Jokers | S55: Nobbla | T55: 0 | V55: Mr_Zay | W55: 2 | Z55: Steph, Stig and The Baldies | AA55: 2 | AC55: TCC: A Up Me Ducks | AD55: 0 | AF55: Chins Chumps and C.H.I.P.S. | AG55: 0
B56: TheCowDaddy | C56: HighlandEnoch | D56: 0 | E56: 2 | F56: 0 | G56: 2 | H56: 1 | I56: 1 | J56: 1 | K56: 0 | L56: 3 | M56: 2 | N56: Snake Eyes and GFIs | O56: Murder Jokers | S56: Hendy | T56: 0 | V56: Galladur | W56: 2 | Z56: Sutton Immortals | AA56: 1 | AC56: Iconic Atomics | AD56: 0 | AF56: Cheltenham IGBB Raiders | AG56: 0
B57: GustyGarett | C57: Badgie | D57: 1 | E57: 1 | F57: 1 | G57: 1 | H57: 1 | I57: 3 | J57: 2 | K57: 3 | L57: 1 | M57: 0 | N57: Snake Eyes and GFIs | O57: Murder Jokers | S57: Jago21 | T57: 0 | V57: Biereforever | W57: 2 | Z57: T and Three Sugars | AA57: 2 | AC57: Tactics and Theatrics | AD57: 0 | AF57: Team Wales | AG57: 0
B58: Cornish | C58: AMSFELD | D58: 2 | E58: 0 | F58: 1 | G58: 0 | H58: 0 | I58: 1 | J58: 3 | K58: 2 | L58: 2 | M58: 0 | N58: Shiretown Stuffers | O58: Murder Kings | S58: Bashto | T58: 0 | V58: SickAsEggs | W58: 2 | Z58: Tacklezone Pirates | AA58: 0 | AC58: Chins Chumps and C.H.I.P.S. | AD58: 0 | AF58: ECBBL Ten-Tackles | AG58: 0
B59: Whitey | C59: ChrisRaff88 | D59: 0 | E59: 2 | F59: 1 | G59: 2 | H59: 3 | I59: 2 | J59: 1 | K59: 2 | L59: 2 | M59: 3 | N59: Shiretown Stuffers | O59: Murder Kings | S59: Mefspores | T59: 0 | V59: Warka | W59: 2 | Z59: Tactics and Theatrics | AA59: 1 | AC59: Granite City Seagulls | AD59: 0 | AF59: La Ruelle | AG59: 0
B60: Everybodys_Dead_Dave | C60: I_done_goofd | D60: 1 | E60: 1 | F60: 2 | G60: 2 | H60: 1 | I60: 1 | J60: 2 | K60: 3 | L60: 2 | M60: 3 | N60: Shiretown Stuffers | O60: Murder Kings | S60: Outkast | T60: 0 | V60: DrHellboy_ | W60: 2 | Z60: TCC: A Up Me Ducks | AA60: 1 | AC60: Smoggies UTFB | AD60: 0 | AF60: ECBBL Aspiring Adequates | AG60: 0
B61: El_Spoonio | C61: SpaceGandalf | D61: 0 | E61: 2 | F61: 0 | G61: 3 | H61: 3 | I61: 1 | J61: 3 | K61: 1 | L61: 2 | M61: 2 | N61: Shiretown Stuffers | O61: Murder Kings | S61: NickBell | T61: 0 | V61: Calfykid | W61: 2 | Z61: TCC: BoBin for Ducks | AA61: 2 | AC61: Dragons | AD61: 0 | AF61: Monstrous Tynemouth | AG61: 0
B62: Saltymurcutt | C62: Dayday | D62: 1 | E62: 1 | F62: 1 | G62: 1 | H62: 2 | I62: 2 | J62: 2 | K62: 0 | L62: 2 | M62: 3 | N62: Salty Bowlers of London | O62: Bang Average Blood Bowlers | S62: Nippylongskar | T62: 0 | V62: Divergent84 | W62: 2 | Z62: Team Miss Next Game | AA62: 0 | AC62: ECBBL Ten-Tackles | AD62: 0 | AF62: The Fellowship of the Ball | AG62: 0
B63: Oranj | C63: Hendy | D63: 1 | E63: 1 | F63: 1 | G63: 1 | H63: 3 | I63: 2 | J63: 1 | K63: 1 | L63: 2 | M63: 1 | N63: Salty Bowlers of London | O63: Bang Average Blood Bowlers | S63: Starkey | T63: 0 | V63: Edwin | W63: 2 | Z63: Team Republic Chill Squad | AA63: 1 | AC63: All The Presidents Men | AD63: 0 | AF63: Shiretown Stuffers | AG63: 0
B64: Salontiger | C64: DrTechnoTrousers | D64: 1 | E64: 1 | F64: 2 | G64: 2 | H64: 0 | I64: 2 | J64: 1 | K64: 2 | L64: 1 | M64: 2 | N64: Salty Bowlers of London | O64: Bang Average Blood Bowlers | S64: Burtblahblahblah | T64: 0 | V64: Dusher1 | W64: 2 | Z64: Team Republic Tryhards | AA64: 2 | AC64: CLAW on Tour | AD64: 0 | AF64: The GoBBLed | AG64: 0
B65: Grim_Jim | C65: HexBaron | D65: 0 | E65: 2 | F65: 1 | G65: 2 | H65: 2 | I65: 1 | J65: 1 | K65: 0 | L65: 2 | M65: 1 | N65: Salty Bowlers of London | O65: Bang Average Blood Bowlers | S65: Fredmanwalking | T65: 0 | V65: Gallo | W65: 2 | Z65: Team TimeOut | AA65: 0 | AC65: Monstrous Tynemouth | AD65: 0 | AF65: Sann Clan | AG65: 0
B66: 3_Dice_Uphill | C66: AndyDavo | D66: 2 | E66: 0 | F66: 2 | G66: 1 | H66: 1 | I66: 3 | J66: 1 | K66: 1 | L66: 0 | M66: 1 | N66: HEBBL Team B | O66: Hey Listen and The Guy We Found in Nandos | S66: Aaaardvark101 | T66: 0 | V66: Oklaoma | W66: 2 | Z66: Team Wales | AA66: 0 | AC66: 2 Up 2 Down | AD66: 0 | AF66: Team Miss Next Game | AG66: 0
B67: HEBBL Team B #4 | C67: SeriouslyImAGiraffe | D67: =fctScore(F67,G67,H67,J67,L67) -> 2 | E67: =fctScore(G67,F67,I67,K67,M67) -> 0 | F67: 3 | G67: 0 | H67: 3 | I67: 1 | J67: 1 | K67: 2 | L67: 1 | M67: 2 | N67: HEBBL Team B | O67: Hey Listen and The Guy We Found in Nandos | S67: Lord_Bojo | T67: 0 | V67: Lpoolcookie | W67: 2 | Z67: TeamW | AA67: 2 | AC67: Elyud Dimkok | AD67: 0 | AF67: 2 Up 2 Down | AG67: 0
B68: Vulture_Squadron | C68: Cauleeflower | D68: 2 | E68: 0 | F68: 2 | G68: 1 | H68: 0 | I68: 2 | J68: 0 | K68: 0 | L68: 0 | M68: 1 | N68: HEBBL Team B | O68: Hey Listen and The Guy We Found in Nandos | S68: PeteW | T68: 0 | V68: Lewi88 | W68: 2 | Z68: The Democratic Republic of Yorkshire | AA68: 1 | AC68: Waterbowl Team Z | AD68: 0 | AF68: Team TimeOut | AG68: 0
B69: Mazza86 | C69: DizzyBess | D69: 1 | E69: 1 | F69: 1 | G69: 1 | H69: 2 | I69: 2 | J69: 1 | K69: 1 | L69: 2 | M69: 3 | N69: HEBBL Team B | O69: Hey Listen and The Guy We Found in Nandos | S69: MrGreen | T69: 0 | V69: Fredmanwalking | W69: 2 | Z69: The Fellowship of the Ball | AA69: 0 | AC69: Murder Queens | AD69: 0 | AF69: Snake Eyes and GFIs | AG69: 0
B70: Cerberus85 | C70: Daubs | D70: 1 | E70: 1 | F70: 1 | G70: 1 | H70: 2 | I70: 1 | J70: 0 | K70: 2 | L70: 1 | M70: 2 | N70: North Yorkshire Table Top | O70: The GoBBLed | S70: Purplegoo | T70: 0 | V70: Purdindas | W70: 2 | Z70: The GoBBLed | AA70: 0 | AC70: Awesome Party People Part Deux | AD70: 0 | AF70: Tacklezone Pirates | AG70: 0
B71: Spic929 | C71: Randypandy | D71: 2 | E71: 0 | F71: 1 | G71: 0 | H71: 2 | I71: 2 | J71: 1 | K71: 1 | L71: 2 | M71: 2 | N71: North Yorkshire Table Top | O71: The GoBBLed | S71: Spic929 | T71: 0 | V71: Stephen82 | W71: 2 | Z71: The GoBBLers | AA71: 2 | AC71: DBL Tropicana | AD71: 0 | AF71: HEBBL Team A | AG71: 0
B72: SpaceEcho | C72: Grashnak | D72: 2 | E72: 0 | F72: 3 | G72: 2 | H72: 1 | I72: 3 | J72: 2 | K72: 0 | L72: 0 | M72: 0 | N72: North Yorkshire Table Top | O72: The GoBBLed | S72: ArcherJ | T72: 0 | V72: Spic929 | W72: 2 | Z72: The Merry Men | AA72: 0 | AC72: HEBBL Team A | AD72: 0 | AF72: Murder Queens | AG72: 0
B73: edwith1d | C73: Gingerballer | D73: 1 | E73: 1 | F73: 1 | G73: 1 | H73: 0 | I73: 2 | J73: 1 | K73: 1 | L73: 2 | M73: 0 | N73: North Yorkshire Table Top | O73: The GoBBLed | S73: HenningEksteen | T73: 0 | V73: Jeeves | W73: 2 | Z73: Two Guys One Dice Cup | AA73: 1 | AC73: Steph, Stig and The Baldies | AD73: 0 | AF73: Murder Jacks | AG73: 0
B74: Masterful | C74: Vido | D74: 2 | E74: 0 | F74: 1 | G74: 0 | H74: 2 | I74: 2 | J74: 3 | K74: 1 | L74: 1 | M74: 3 | N74: ECBBL Blackshirts | O74: 2 Die Docks | S74: Hankok | T74: 0 | V74: Rubble | W74: 2 | Z74: UKBBL Team A | AA74: 2 | AC74: Two Guys One Dice Cup | AD74: 0 | AF74: Lutece Noobs | AG74: 0
B75: Bsking | C75: NickBell | D75: 1 | E75: 1 | F75: 1 | G75: 1 | H75: 3 | I75: 1 | J75: 2 | K75: 0 | L75: 1 | M75: 2 | N75: ECBBL Blackshirts | O75: 2 Die Docks | S75: Cromfrance | T75: 0 | V75: Wobert | W75: 2 | Z75: Waterbowl Team Z | AA75: 2 | AC75: BolognaBowl | AD75: 0 | AF75: Dice In The Alley | AG75: 0
B76: Heff | C76: BigMace | D76: 0 | E76: 2 | F76: 0 | G76: 1 | H76: 0 | I76: 1 | J76: 1 | K76: 2 | L76: 2 | M76: 3 | N76: ECBBL Blackshirts | O76: 2 Die Docks | S76: Khornight | T76: 0 | V76: Old_Man_Monkey | W76: 2 | Z76: Wrekin Wraiders | AA76: 2 | AC76: Seagulls 2: Electric Boogaloo | AD76: 0 | AF76: Doom League | AG76: 0
B77: Vmcat | C77: 8ulldog | D77: 1 | E77: 1 | F77: 2 | G77: 2 | H77: 2 | I77: 3 | J77: 1 | K77: 1 | L77: 2 | M77: 3 | N77: ECBBL Blackshirts | O77: 2 Die Docks | S77: MadeofWelsh | T77: 0 | V77: Sizzler | W77: 2 | Z77: Sann Clan | AA77: 0 | AC77: Deeside Double Skulls | AD77: 0 | AF77: Hey Listen and The Guy We Found in Nandos | AG77: 0
B78: Owletta | C78: Papa_laza_rou | D78: 2 | E78: 0 | F78: 3 | G78: 2 | H78: 1 | I78: 0 | J78: 2 | K78: 0 | L78: 1 | M78: 1 | N78: T and Three Sugars | O78: NOBBL Jesters | S78: SpaceEcho | T78: 0 | V78: Masterful | W78: 2
B79: Obsydyan | C79: pedro_laserbeard | D79: 1 | E79: 1 | F79: 3 | G79: 3 | H79: 1 | I79: 0 | J79: 1 | K79: 2 | L79: 3 | M79: 2 | N79: T and Three Sugars | O79: NOBBL Jesters | S79: Lycos | T79: 0 | V79: Sam_Clark | W79: 2
B80: Kid_Cantcomplain | C80: Ens1ferum | D80: 1 | E80: 1 | F80: 1 | G80: 1 | H80: 1 | I80: 2 | J80: 2 | K80: 0 | L80: 2 | M80: 0 | N80: T and Three Sugars | O80: NOBBL Jesters | S80: 3_Dice_Uphill | T80: 0 | V80: Firebreather | W80: 2
B81: Boldfox | C81: Artful_Dodger | D81: 1 | E81: 1 | F81: 1 | G81: 1 | H81: 1 | I81: 3 | J81: 2 | K81: 2 | L81: 3 | M81: 1 | N81: T and Three Sugars | O81: NOBBL Jesters | S81: Syntaxerror | T81: 0 | V81: AWT | W81: 2
B82: Commisionerref | C82: 03philpota | D82: 0 | E82: 2 | F82: 1 | G82: 3 | H82: 2 | I82: 2 | J82: 3 | K82: 2 | L82: 2 | M82: 1 | N82: Team TimeOut | O82: ABBL | S82: Jayward | T82: 0 | V82: HexBaron | W82: 2
B83: Tintenfisch | C83: N'Sh'Koben | D83: 2 | E83: 0 | F83: 2 | G83: 0 | H83: 1 | I83: 2 | J83: 0 | K83: 1 | L83: 0 | M83: 2 | N83: Team TimeOut | O83: ABBL | S83: Wookiee1972 | T83: 0 | V83: Spooner | W83: 2
B84: Killerpo | C84: Sam_Clark | D84: 0 | E84: 2 | F84: 1 | G84: 2 | H84: 1 | I84: 1 | J84: 2 | K84: 2 | L84: 2 | M84: 1 | N84: Team TimeOut | O84: ABBL | S84: JuJuu | T84: 0 | V84: Cornish | W84: 2
B85: Mawph | C85: Ratmaninov | D85: 0 | E85: 2 | F85: 0 | G85: 2 | H85: 1 | I85: 1 | J85: 2 | K85: 2 | L85: 2 | M85: 2 | N85: Team TimeOut | O85: ABBL | S85: SilentKnight | T85: 0 | V85: Wookiee1972 | W85: 2
B86: Blackduke | C86: DrHellboy_ | D86: 0 | E86: 2 | F86: 0 | G86: 1 | H86: 2 | I86: 2 | J86: 2 | K86: 2 | L86: 0 | M86: 2 | N86: Let Me Atom | O86: Hell n El Productions | S86: Laser_Owl | T86: 0 | V86: Bashto | W86: 2
B87: MrGreen | C87: Raging82 | D87: 1 | E87: 1 | F87: 3 | G87: 3 | H87: 2 | I87: 2 | J87: 2 | K87: 1 | L87: 2 | M87: 1 | N87: Let Me Atom | O87: Hell n El Productions | S87: pedro_laserbeard | T87: 0 | V87: Fackko | W87: 2
B88: Rubble | C88: El_Duderino | D88: 2 | E88: 0 | F88: 2 | G88: 1 | H88: 1 | I88: 1 | J88: 1 | K88: 3 | L88: 1 | M88: 0 | N88: Let Me Atom | O88: Hell n El Productions | S88: Maca1066 | T88: 0 | V88: Nodgefodgekins | W88: 2
B89: Tomfoolery | C89: Fallingdownjoe | D89: 1 | E89: 1 | F89: 2 | G89: 2 | H89: 2 | I89: 1 | J89: 0 | K89: 1 | L89: 2 | M89: 2 | N89: Let Me Atom | O89: Hell n El Productions | S89: Stonethrowingdevil | T89: 0 | V89: ChrisRaff88 | W89: 2
B90: Maitre_tactac | C90: Biereforever | D90: 0 | E90: 2 | F90: 2 | G90: 3 | H90: 2 | I90: 3 | J90: 1 | K90: 0 | L90: 0 | M90: 2 | N90: Lutece Noobs | O90: Les Azes | S90: AMSFELD | T90: 0 | V90: HipsterPotter | W90: 2
B91: Nicap | C91: Galladur | D91: 0 | E91: 2 | F91: 0 | G91: 1 | H91: 0 | I91: 1 | J91: 1 | K91: 2 | L91: 3 | M91: 2 | N91: Lutece Noobs | O91: Les Azes | S91: Vagabond1982uk | T91: 0 | V91: Ploppy_McPloppy | W91: 2
B92: OON | C92: Silkoun | D92: 1 | E92: 1 | F92: 3 | G92: 3 | H92: 2 | I92: 1 | J92: 2 | K92: 2 | L92: 1 | M92: 3 | N92: Lutece Noobs | O92: Les Azes | S92: Firebreather | T92: 0 | V92: Slimjono | W92: 2
B93: Zahiko | C93: Oklaoma | D93: 0 | E93: 2 | F93: 1 | G93: 2 | H93: 0 | I93: 0 | J93: 2 | K93: 1 | L93: 2 | M93: 1 | N93: Lutece Noobs | O93: Les Azes | S93: Tintenfisch | T93: 0 | V93: Geminus_Calvariae | W93: 2
B94: Potatomancer | C94: PhilGC | D94: 0 | E94: 2 | F94: 0 | G94: 1 | H94: 0 | I94: 1 | J94: 1 | K94: 2 | L94: 2 | M94: 0 | N94: Team Republic Chill Squad | O94: Dice on Tour Team 1 | S94: CoachKAS | T94: 0 | V94: SpaceEcho | W94: 2
B95: Mefspores | C95: Syntaxerror | D95: 1 | E95: 1 | F95: 2 | G95: 2 | H95: 1 | I95: 1 | J95: 2 | K95: 3 | L95: 3 | M95: 1 | N95: Team Republic Chill Squad | O95: Dice on Tour Team 1 | S95: LordGarlack | T95: 0 | V95: Zooey | W95: 2
B96: CoachKAS | C96: Maca1066 | D96: 1 | E96: 1 | F96: 1 | G96: 1 | H96: 2 | I96: 3 | J96: 1 | K96: 1 | L96: 1 | M96: 1 | N96: Team Republic Chill Squad | O96: Dice on Tour Team 1 | S96: Chilli | T96: 0 | V96: 3_Dice_Uphill | W96: 2
B97: Brickp | C97: Whiskeymancer | D97: 2 | E97: 0 | F97: 2 | G97: 0 | H97: 2 | I97: 2 | J97: 3 | K97: 3 | L97: 2 | M97: 3 | N97: Team Republic Chill Squad | O97: Dice on Tour Team 1 | S97: Heff | T97: 0 | V97: Falesh | W97: 2
B98: Lord_Bojo | C98: Chicken23 | D98: 1 | E98: 1 | F98: 1 | G98: 1 | H98: 3 | I98: 3 | J98: 2 | K98: 0 | L98: 1 | M98: 1 | N98: Old Man Monkeys Team | O98: Sann Clan | S98: HEBBL Team B #4 | T98: 0 | V98: Vulture_Squadron | W98: 2
B99: Cromfrance | C99: Pegleg | D99: 1 | E99: 1 | F99: 0 | G99: 0 | H99: 2 | I99: 2 | J99: 3 | K99: 0 | L99: 3 | M99: 2 | N99: Old Man Monkeys Team | O99: Sann Clan | S99: Jordellfb | T99: 0 | V99: Snowtroll | W99: 2
B100: Divergent84 | C100: Sann0638 | D100: 2 | E100: 0 | F100: 2 | G100: 1 | H100: 2 | I100: 2 | J100: 0 | K100: 1 | L100: 2 | M100: 2 | N100: Old Man Monkeys Team | O100: Sann Clan | S100: Thebunneh | T100: 0 | V100: Indibro | W100: 2
B101: Old_Man_Monkey | C101: Stewbacca | D101: 2 | E101: 0 | F101: 3 | G101: 2 | H101: 2 | I101: 2 | J101: 0 | K101: 0 | L101: 2 | M101: 2 | N101: Old Man Monkeys Team | O101: Sann Clan | S101: Mamapepe | T101: 0 | V101: Jayward | W101: 1
B102: Gorgoroth | C102: Steairey | D102: 0 | E102: 2 | F102: 1 | G102: 2 | H102: 2 | I102: 3 | J102: 1 | K102: 0 | L102: 2 | M102: 2 | N102: TeamW | O102: ECBBL Aspiring Adequates | S102: Gallo | T102: 0 | V102: Trollface | W102: 1
B103: PeteW | C103: Loynster | D103: 2 | E103: 0 | F103: 2 | G103: 1 | H103: 1 | I103: 0 | J103: 2 | K103: 2 | L103: 0 | M103: 2 | N103: TeamW | O103: ECBBL Aspiring Adequates | S103: Loynster | T103: 0 | V103: Haktar | W103: 1
B104: ThomasW | C104: Taltal | D104: 2 | E104: 0 | F104: 3 | G104: 1 | H104: 2 | I104: 2 | J104: 1 | K104: 0 | L104: 2 | M104: 2 | N104: TeamW | O104: ECBBL Aspiring Adequates | S104: Don_Vito | T104: 0 | V104: Speedingbullet | W104: 1
B105: Besters | C105: Ahzek | D105: 1 | E105: 1 | F105: 2 | G105: 2 | H105: 1 | I105: 1 | J105: 1 | K105: 1 | L105: 2 | M105: 2 | N105: TeamW | O105: ECBBL Aspiring Adequates | S105: CharlieBanks | T105: 0 | V105: Bsking | W105: 1
B106: AWT | C106: Envoien | D106: 2 | E106: 0 | F106: 2 | G106: 1 | H106: 0 | I106: 1 | J106: 1 | K106: 2 | L106: 1 | M106: 1 | N106: The Democratic Republic of Yorkshire | O106: TCC: A Up Me Ducks | S106: CptOats | T106: 0 | V106: Badgie | W106: 1
B107: Diaphite | C107: JKB | D107: 0 | E107: 2 | F107: 2 | G107: 3 | H107: 1 | I107: 2 | J107: 3 | K107: 0 | L107: 1 | M107: 1 | N107: The Democratic Republic of Yorkshire | O107: TCC: A Up Me Ducks | S107: DrTechnoTrousers | T107: 0 | V107: EnglishChris | W107: 1
B108: Loubega | C108: Indibro | D108: 0 | E108: 2 | F108: 1 | G108: 2 | H108: 3 | I108: 0 | J108: 1 | K108: 2 | L108: 2 | M108: 2 | N108: The Democratic Republic of Yorkshire | O108: TCC: A Up Me Ducks | S108: Maitre_tactac | T108: 0 | V108: Shipaz | W108: 1
B109: Slimjono | C109: SkraggDave | D109: 2 | E109: 0 | F109: 3 | G109: 2 | H109: 2 | I109: 3 | J109: 2 | K109: 3 | L109: 1 | M109: 0 | N109: The Democratic Republic of Yorkshire | O109: TCC: A Up Me Ducks | S109: AWT | T109: 0 | V109: DrTechnoTrousers | W109: 1
B110: ArcherJ | C110: Haychdee | D110: 2 | E110: 0 | F110: 2 | G110: 0 | H110: 2 | I110: 0 | J110: 0 | K110: 1 | L110: 1 | M110: 0 | N110: Iconic Atomics | O110: Tactics and Theatrics | S110: JimJimany | T110: 0 | V110: Gingerballer | W110: 1
B111: Winterb0rn | C111: Bashto | D111: 0 | E111: 2 | F111: 2 | G111: 3 | H111: 3 | I111: 2 | J111: 2 | K111: 1 | L111: 1 | M111: 2 | N111: Iconic Atomics | O111: Tactics and Theatrics | S111: Winterb0rn | T111: 0 | V111: Artful_Dodger | W111: 1
B112: Duffins | C112: Bloodtithe | D112: 1 | E112: 1 | F112: 3 | G112: 3 | H112: 2 | I112: 3 | J112: 2 | K112: 1 | L112: 0 | M112: 2 | N112: Iconic Atomics | O112: Tactics and Theatrics | S112: Gcoleman | T112: 0 | V112: Stonethrowingdevil | W112: 1
B113: TateRolls1s | C113: Breakmonker | D113: 1 | E113: 1 | F113: 1 | G113: 1 | H113: 1 | I113: 1 | J113: 2 | K113: 3 | L113: 1 | M113: 1 | N113: Iconic Atomics | O113: Tactics and Theatrics | S113: Raging82 | T113: 0 | V113: Tyler_Swaft | W113: 1
B114: Shunt | C114: Fredmanwalking | D114: 0 | E114: 2 | F114: 0 | G114: 1 | H114: 1 | I114: 1 | J114: 0 | K114: 1 | L114: 2 | M114: 3 | N114: Chins Chumps and C.H.I.P.S. | O114: Granite City Seagulls | S114: Fromherashes | T114: 0 | V114: Wulfyn | W114: 1
B115: Mamapepe | C115: Stonethrowingdevil | D115: 1 | E115: 1 | F115: 0 | G115: 0 | H115: 1 | I115: 3 | J115: 2 | K115: 3 | L115: 2 | M115: 2 | N115: Chins Chumps and C.H.I.P.S. | O115: Granite City Seagulls | S115: Vulture_Squadron | T115: 0 | V115: 8ulldog | W115: 1
B116: Pipey | C116: Spooner | D116: 0 | E116: 2 | F116: 1 | G116: 2 | H116: 2 | I116: 1 | J116: 3 | K116: 1 | L116: 2 | M116: 2 | N116: Chins Chumps and C.H.I.P.S. | O116: Granite City Seagulls | S116: McFaff | T116: 0 | V116: Obsydyan | W116: 1
B117: Jeeves | C117: Europanda | D117: 2 | E117: 0 | F117: 2 | G117: 1 | H117: 1 | I117: 1 | J117: 2 | K117: 3 | L117: 3 | M117: 2 | N117: Chins Chumps and C.H.I.P.S. | O117: Granite City Seagulls | S117: Shadrak | T117: 0 | V117: Vagabond1982uk | W117: 1
B118: Mr_Mezcal | C118: MartinVanquish | D118: 2 | E118: 0 | F118: 3 | G118: 1 | H118: 2 | I118: 3 | J118: 2 | K118: 2 | L118: 1 | M118: 0 | N118: Smoggies UTFB | O118: Dragons | S118: Calfykid | T118: 0 | V118: Munch | W118: 1
B119: GrumpyBoyle | C119: Aaaardvark101 | D119: 0 | E119: 2 | F119: 1 | G119: 3 | H119: 2 | I119: 1 | J119: 0 | K119: 3 | L119: 0 | M119: 1 | N119: Smoggies UTFB | O119: Dragons | S119: JBone | T119: 0 | V119: Skab | W119: 1
B120: Geminus_Calvariae | C120: ThatOtherAsianGuy | D120: 2 | E120: 0 | F120: 1 | G120: 0 | H120: 2 | I120: 3 | J120: 0 | K120: 0 | L120: 1 | M120: 2 | N120: Smoggies UTFB | O120: Dragons | S120: TheCowDaddy | T120: 0 | V120: OON | W120: 1
B121: WoodyWoodPecker | C121: Skab | D121: 1 | E121: 1 | F121: 2 | G121: 2 | H121: 0 | I121: 1 | J121: 1 | K121: 3 | L121: 2 | M121: 2 | N121: Smoggies UTFB | O121: Dragons | S121: Chubooga | T121: 0 | V121: Gcoleman | W121: 1
B122: BartK | C122: Purplegoo | D122: 1 | E122: 1 | F122: 2 | G122: 2 | H122: 1 | I122: 0 | J122: 1 | K122: 0 | L122: 0 | M122: 1 | N122: ECBBL Ten-Tackles | O122: All The Presidents Men | S122: Whisky_Pip | T122: 0 | V122: TTGumption | W122: 1
B123: JuJuu | C123: Lycos | D123: 1 | E123: 1 | F123: 2 | G123: 2 | H123: 0 | I123: 1 | J123: 2 | K123: 2 | L123: 1 | M123: 2 | N123: ECBBL Ten-Tackles | O123: All The Presidents Men | S123: Jamelius | T123: 0 | V123: BartK | W123: 1
B124: Bbart | C124: JimJimany | D124: 1 | E124: 1 | F124: 2 | G124: 2 | H124: 0 | I124: 1 | J124: 3 | K124: 2 | L124: 1 | M124: 2 | N124: ECBBL Ten-Tackles | O124: All The Presidents Men | S124: Sizzler | T124: 0 | V124: Lycos | W124: 1
B125: King_Ghidra | C125: Joemanji | D125: 0 | E125: 2 | F125: 1 | G125: 3 | H125: 3 | I125: 1 | J125: 2 | K125: 1 | L125: 0 | M125: 3 | N125: ECBBL Ten-Tackles | O125: All The Presidents Men | S125: GrumpyBoyle | T125: 0 | V125: Wynters_Dad | W125: 1
B126: SilentKnight | C126: Lpoolcookie | D126: 0 | E126: 2 | F126: 0 | G126: 1 | H126: 2 | I126: 2 | J126: 2 | K126: 2 | L126: 2 | M126: 1 | N126: CLAW on Tour | O126: Monstrous Tynemouth | S126: Padster | T126: 0 | V126: Cerberus85 | W126: 1
B127: Chorfling | C127: Wynters_Dad | D127: 1 | E127: 1 | F127: 2 | G127: 2 | H127: 1 | I127: 2 | J127: 0 | K127: 1 | L127: 1 | M127: 1 | N127: CLAW on Tour | O127: Monstrous Tynemouth | S127: Bloodtithe | T127: 0 | V127: Ens1ferum | W127: 1
B128: Dusher1 | C128: Macster | D128: 2 | E128: 0 | F128: 1 | G128: 0 | H128: 3 | I128: 3 | J128: 1 | K128: 2 | L128: 0 | M128: 2 | N128: CLAW on Tour | O128: Monstrous Tynemouth | S128: Breakmonker | T128: 0 | V128: Tomfoolery | W128: 1
B129: Camelchops | C129: Pillowfists | D129: 2 | E129: 0 | F129: 2 | G129: 0 | H129: 2 | I129: 0 | J129: 1 | K129: 2 | L129: 2 | M129: 0 | N129: CLAW on Tour | O129: Monstrous Tynemouth | S129: Markymarc | T129: 0 | V129: Maca1066 | W129: 1
B130: Squigthrower | C130: Hankok | D130: 0 | E130: 2 | F130: 0 | G130: 1 | H130: 2 | I130: 3 | J130: 2 | K130: 1 | L130: 1 | M130: 1 | N130: 2 Up 2 Down | O130: Elyud Dimkok | S130: Diaphite | T130: 0 | V130: Oranj | W130: 1
B131: Fingers | C131: Yudlugar | D131: =fctScore(F131,G131,H131,J131,L131) -> 1 | E131: =fctScore(G131,F131,I131,K131,M131) -> 1 | F131: 3 | G131: 3 | H131: 1 | I131: 1 | J131: 2 | K131: 2 | L131: 2 | M131: 1 | N131: 2 Up 2 Down | O131: Elyud Dimkok | S131: Grashnak | T131: 0 | V131: Levinas | W131: 1
B132: Blockparty87 | C132: DimmyGee | D132: 1 | E132: 1 | F132: 1 | G132: 1 | H132: 2 | I132: 1 | J132: 1 | K132: 1 | L132: 1 | M132: 0 | N132: 2 Up 2 Down | O132: Elyud Dimkok | S132: LouisX | T132: 0 | V132: Bloodtithe | W132: 1
B133: Bgmclean | C133: Elyod | D133: 0 | E133: 2 | F133: 1 | G133: 3 | H133: 2 | I133: 2 | J133: 2 | K133: 3 | L133: 2 | M133: 2 | N133: 2 Up 2 Down | O133: Elyud Dimkok | S133: Mazza86 | T133: 0 | V133: Cjtaylor_uk | W133: 1
B134: Vagabond1982uk | C134: Gizmo3k | D134: 1 | E134: 1 | F134: 1 | G134: 1 | H134: 3 | I134: 2 | J134: 0 | K134: 3 | L134: 0 | M134: 2 | N134: Waterbowl Team Z | O134: Murder Queens | S134: Duffins | T134: 0 | V134: JimJimany | W134: 1
B135: Sizzler | C135: LordGarlack | D135: 2 | E135: 0 | F135: 1 | G135: 0 | H135: 2 | I135: 2 | J135: 3 | K135: 1 | L135: 2 | M135: 1 | N135: Waterbowl Team Z | O135: Murder Queens | S135: Deeferdan | T135: 0 | V135: Blockparty87 | W135: 1
B136: Levinas | C136: Pbowman | D136: 1 | E136: 1 | F136: 1 | G136: 1 | H136: 2 | I136: 1 | J136: 0 | K136: 2 | L136: 0 | M136: 1 | N136: Waterbowl Team Z | O136: Murder Queens | S136: Wobert | T136: 0 | V136: Feasteater | W136: 1
B137: Douglowe | C137: L0rdgibby | D137: 2 | E137: 0 | F137: 2 | G137: 0 | H137: 2 | I137: 1 | J137: 1 | K137: 1 | L137: 0 | M137: 0 | N137: Waterbowl Team Z | O137: Murder Queens | S137: Killerpo | T137: 0 | V137: Saltymurcutt | W137: 1
B138: Valen | C138: GingerB | D138: 0 | E138: 2 | F138: 0 | G138: 3 | H138: 0 | I138: 3 | J138: 0 | K138: 1 | L138: 1 | M138: 1 | N138: Awesome Party People Part Deux | O138: DBL Tropicana | S138: BigMace | T138: 0 | V138: MrGreen | W138: 1
B139: Nobbla | C139: CptOats | D139: 2 | E139: 0 | F139: 2 | G139: 0 | H139: 3 | I139: 1 | J139: 0 | K139: 0 | L139: 3 | M139: 1 | N139: Awesome Party People Part Deux | O139: DBL Tropicana | S139: AndyDavo | T139: 0 | V139: Chicken23 | W139: 1
B140: Jordellfb | C140: Tyler_Swaft | D140: 1 | E140: 1 | F140: 2 | G140: 2 | H140: 0 | I140: 2 | J140: 3 | K140: 0 | L140: 0 | M140: 2 | N140: Awesome Party People Part Deux | O140: DBL Tropicana | S140: Yurinator | T140: 0 | V140: Mefspores | W140: 1
B141: Deepfruit | C141: Cyritz | D141: 2 | E141: 0 | F141: 2 | G141: 1 | H141: 2 | I141: 0 | J141: 3 | K141: 1 | L141: 0 | M141: 3 | N141: Awesome Party People Part Deux | O141: DBL Tropicana | S141: Orklabe | T141: 0 | V141: DizzyBess | W141: 1
B142: Ploppy_McPloppy | C142: Hardcore_Stig | D142: 2 | E142: 0 | F142: 3 | G142: 2 | H142: 2 | I142: 3 | J142: 1 | K142: 0 | L142: 3 | M142: 3 | N142: HEBBL Team A | O142: Steph, Stig and The Baldies | S142: Pbowman | T142: 0 | V142: TateRolls1s | W142: 1
B143: MadeofWelsh | C143: Stephen82 | D143: 0 | E143: 2 | F143: 1 | G143: 2 | H143: 2 | I143: 2 | J143: 0 | K143: 3 | L143: 3 | M143: 1 | N143: HEBBL Team A | O143: Steph, Stig and The Baldies | S143: El_Duderino | T143: 0 | V143: Mournival | W143: 1
B144: Orklabe | C144: Stick_with_poo_on_the_end | D144: 0 | E144: 2 | F144: 1 | G144: 3 | H144: 1 | I144: 3 | J144: 1 | K144: 3 | L144: 0 | M144: 1 | N144: HEBBL Team A | O144: Steph, Stig and The Baldies | S144: Deepfruit | T144: 0 | V144: Turboraptor | W144: 1
B145: Littlespoon | C145: Warka | D145: 0 | E145: 2 | F145: 1 | G145: 2 | H145: 3 | I145: 3 | J145: 3 | K145: 0 | L145: 3 | M145: 2 | N145: HEBBL Team A | O145: Steph, Stig and The Baldies | S145: Shortstuff | T145: 0 | V145: Bungeeman | W145: 1
B146: HuntlyLoon | C146: Gallo | D146: 0 | E146: 2 | F146: 0 | G146: 1 | H146: 2 | I146: 2 | J146: 2 | K146: 1 | L146: 1 | M146: 1 | N146: Two Guys One Dice Cup | O146: BolognaBowl | S146: Dakyrus | T146: 0 | V146: Scouseboy | W146: 1
B147: Chilli | C147: Fackko | D147: 0 | E147: 2 | F147: 1 | G147: 2 | H147: 2 | I147: 1 | J147: 1 | K147: 1 | L147: 2 | M147: 3 | N147: Two Guys One Dice Cup | O147: BolognaBowl | S147: Oranj | T147: 0 | V147: Cromfrance | W147: 1
B148: Fromherashes | C148: Dirold | D148: 2 | E148: 0 | F148: 2 | G148: 0 | H148: 1 | I148: 3 | J148: 2 | K148: 1 | L148: 1 | M148: 1 | N148: Two Guys One Dice Cup | O148: BolognaBowl | S148: SeriouslyImAGiraffe | T148: 0 | V148: Pegleg | W148: 1
B149: HipsterPotter | C149: Liam | D149: 2 | E149: 0 | F149: 3 | G149: 2 | H149: 1 | I149: 2 | J149: 3 | K149: 0 | L149: 2 | M149: 3 | N149: Two Guys One Dice Cup | O149: BolognaBowl | S149: Tstyx | T149: 0 | V149: Deeferdan | W149: 1
B150: Markymarc | C150: Earl_Burgomeister | D150: 0 | E150: 2 | F150: 0 | G150: 2 | H150: 1 | I150: 3 | J150: 1 | K150: 1 | L150: 2 | M150: 2 | N150: Seagulls 2: Electric Boogaloo | O150: Deeside Double Skulls | S150: Salontiger | T150: 0 | V150: TomTheOwl | W150: 1
B151: Mournival | C151: Padster | D151: 1 | E151: 1 | F151: 2 | G151: 2 | H151: 2 | I151: 2 | J151: 1 | K151: 1 | L151: 2 | M151: 3 | N151: Seagulls 2: Electric Boogaloo | O151: Deeside Double Skulls | S151: EnglishChris | T151: 0 | V151: Syntaxerror | W151: 1
B152: Shriyke | C152: Dakyrus | D152: 1 | E152: 1 | F152: 0 | G152: 0 | H152: 1 | I152: 1 | J152: 1 | K152: 2 | L152: 0 | M152: 1 | N152: Seagulls 2: Electric Boogaloo | O152: Deeside Double Skulls | S152: Picnicmik | T152: 0 | V152: Mazza86 | W152: 1
B153: Fullfatbeard | C153: LORD_BONAN | D153: 2 | E153: 0 | F153: 2 | G153: 0 | H153: 1 | I153: 2 | J153: 2 | K153: 1 | L153: 1 | M153: 1 | N153: Seagulls 2: Electric Boogaloo | O153: Deeside Double Skulls | S153: Aldpoagus | T153: 0 | V153: Tulkus | W153: 1
S154: Thulean | T154: 0 | V154: Fingers | W154: 1
S155: Kyrkedalechris | T155: 0 | V155: Raging82 | W155: 1
S156: Mournival | T156: 0 | V156: Dayday | W156: 1
S157: Fingers | T157: 0 | V157: Everybodys_Dead_Dave | W157: 1
S158: Ens1ferum | T158: 0 | V158: I_done_goofd | W158: 1
S159: Shortstack | T159: 0 | V159: Sparky | W159: 1
S160: Trollface | T160: 0 | V160: Kyrkedalechris | W160: 1
S161: Levinas | T161: 0 | V161: Lord_Bojo | W161: 1
S162: TomTheOwl | T162: 0 | V162: Besters | W162: 1
S163: Lpoolcookie | T163: 0 | V163: Ahzek | W163: 1
S164: Feasteater | T164: 0 | V164: Dakyrus | W164: 1
S165: Archcoach_Ferdinand | T165: 0 | V165: Breakmonker | W165: 1
S166: Geminus_Calvariae | T166: 0 | V166: Padster | W166: 1
S167: Torquemada | T167: 0 | V167: Elplanet4 | W167: 1
S168: Scouseboy | T168: 0 | V168: Orcthadontist | W168: 1
S169: Spob | T169: 0 | V169: Yudlugar | W169: 1
S170: Nicap | T170: 0 | V170: Shriyke | W170: 1
S171: Littlespoon | T171: 0 | V171: Duffins | W171: 1
S172: Elplanet4 | T172: 0 | V172: DimmyGee | W172: 1
S173: Munch | T173: 0 | V173: Fallingdownjoe | W173: 1
S174: Indibro | T174: 0 | V174: Bbart | W174: 1
S175: Bb_jock | T175: 0 | V175: Kid_Cantcomplain | W175: 1
S176: 8ulldog | T176: 0 | V176: CoachKAS | W176: 1
S177: Twoshedzz | T177: 0 | V177: Chorfling | W177: 1
S178: Edwin | T178: 0 | V178: Hendy | W178: 1
S179: Owletta | T179: 0 | V179: WoodyWoodPecker | W179: 1
S180: Douglowe | T180: 0 | V180: Silkoun | W180: 1
S181: Mortal_Wombat | T181: 0 | V181: Forgotmytea | W181: 1
S182: Shriyke | T182: 0 | V182: Daubs | W182: 1
S183: ChrisRaff88 | T183: 0 | V183: Purplegoo | W183: 1
S184: Galladur | T184: 0 | V184: ICY-Bee | W184: 1
S185: Boynamedsue | T185: 0 | V185: Pbowman | W185: 1
S186: The_Fritch | T186: 0 | V186: JuJuu | W186: 1
S187: Spleggy | T187: 0 | V187: Insidious | W187: 1
S188: Goldengate | T188: 0 | V188: Celt | W188: 1
S189: Rubble | T189: 0 | V189: Goldengate | W189: 1
S190: Fullfatbeard | T190: 0 | V190: Sporran | W190: 1
S191: ThatOtherAsianGuy | T191: 0 | V191: Vmcat | W191: 1
S192: Vmcat | T192: 0 | V192: pedro_laserbeard | W192: 1
S193: HipsterPotter | T193: 0 | V193: Gizmo3k | W193: 1
S194: Stratford_ | T194: 0 | V194: Jordellfb | W194: 1
S195: Bbart | T195: 0 | V195: Thebunneh | W195: 1
S196: Fallingdownjoe | T196: 0 | V196: Stratford_ | W196: 1
S197: GustyGarett | T197: 0 | V197: Salontiger | W197: 1
S198: Dragonborn | T198: 0 | V198: GustyGarett | W198: 1
S199: Laraigne | T199: 0 | V199: Boldfox | W199: 1
S200: Chorfling | T200: 0 | V200: Mamapepe | W200: 1
... 105 more rows

Sheet Round2
B1: Home Player | C1: Away Player | D1: Home Points | E1: Away Points | F1: Home TD | G1: Away TD | H1: Home Cas | I1: Away Cas | J1: Home Bonus1 | K1: Away Bonus1 | L1: Home Bonus2 | M1: Away Bonus2 | N1: Home Group | O1: Away Group | S1: Points Before Games | V1: Points After Games | Y1: Group Results | Z1: Group | AA1: Points | AC1: Group Points Before Games | AF1: Group Points After Games
B2: HEBBL Team B #4 | C2: Bb_jock | D2: =fctScore(F2,G2,H2,J2,L2) -> 0 | E2: =fctScore(G2,F2,I2,K2,M2) -> 2 | F2: 1 | G2: 3 | H2: 1 | I2: 0 | J2: 3 | K2: 1 | L2: 2 | M2: 1 | N2: HEBBL Team B | O2: Murder Aces | S2: GingerB | T2: 2 | V2: Bb_jock | W2: 4 | Z2: 2 Die Docks | AA2: 2 | AC2: HEBBL Team B | AD2: 2 | AF2: Murder Aces | AG2: 4
B3: 3_Dice_Uphill | C3: Gerdleah | D3: =fctScore(F3,G3,H3,J3,L3) -> 0 | E3: =fctScore(G3,F3,I3,K3,M3) -> 2 | F3: 1 | G3: 2 | H3: 3 | I3: 2 | J3: 2 | K3: 2 | L3: 2 | M3: 2 | N3: HEBBL Team B | O3: Murder Aces | S3: HEBBL Team B #4 | T3: 2 | V3: Earl_Burgomeister | W3: 4 | Z3: 2 Up 2 Down | AA3: 1 | AC3: Murder Aces | AD3: 2 | AF3: North Yorkshire Table Top | AG3: 4
B4: Vulture_Squadron | C4: Purdindas | D4: 2 | E4: 0 | F4: 2 | G4: 1 | H4: 0 | I4: 2 | J4: 2 | K4: 1 | L4: 1 | M4: 3 | N4: HEBBL Team B | O4: Murder Aces | S4: Outkast | T4: 2 | V4: Spob | W4: 4 | Z4: ABBL | AA4: 0 | AC4: Fellowship of the GBBL | AD4: 2 | AF4: Fellowship of the GBBL | AG4: 4
B5: Mazza86 | C5: Sporran | D5: 0 | E5: 2 | F5: 0 | G5: 3 | H5: 2 | I5: 2 | J5: 2 | K5: 1 | L5: 1 | M5: 0 | N5: HEBBL Team B | O5: Murder Aces | S5: SpaceGandalf | T5: 2 | V5: ScalesnScars | W5: 4 | Z5: All The Presidents Men | AA5: 2 | AC5: Les Azes | AD5: 2 | AF5: The GoBBLers | AG5: 4
B6: Whisky_Pip | C6: Galladur | D6: 1 | E6: 1 | F6: 1 | G6: 1 | H6: 2 | I6: 3 | J6: 2 | K6: 3 | L6: 0 | M6: 2 | N6: Fellowship of the GBBL | O6: Les Azes | S6: Stick_with_poo_on_the_end | T6: 2 | V6: Wookiee1972 | W6: 4 | Z6: Awesome Party People | AA6: 2 | AC6: Sheffield Stinkweasels | AD6: 2 | AF6: Smoggies UTFB | AG6: 4
B7: Calfykid | C7: Biereforever | D7: 2 | E7: 0 | F7: 2 | G7: 1 | H7: 2 | I7: 1 | J7: 1 | K7: 3 | L7: 3 | M7: 2 | N7: Fellowship of the GBBL | O7: Les Azes | S7: Fiddlesticks | T7: 2 | V7: Gerdleah | W7: 4 | Z7: Awesome Party People Part Deux | AA7: 2 | AC7: Waterbowl Team Z | AD7: 2 | AF7: Steph, Stig and The Baldies | AG7: 4
B8: Wookiee1972 | C8: Oklaoma | D8: 2 | E8: 0 | F8: 2 | G8: 0 | H8: 1 | I8: 3 | J8: 1 | K8: 2 | L8: 1 | M8: 1 | N8: Fellowship of the GBBL | O8: Les Azes | S8: Camelchops | T8: 2 | V8: Warka | W8: 4 | Z8: Bang Average Blood Bowlers | AA8: 2 | AC8: Steph, Stig and The Baldies | AD8: 2 | AF8: Awesome Party People Part Deux | AG8: 4
B9: Don_Vito | C9: Silkoun | D9: 0 | E9: 2 | F9: 2 | G9: 3 | H9: 1 | I9: 3 | J9: 0 | K9: 1 | L9: 3 | M9: 3 | N9: Fellowship of the GBBL | O9: Les Azes | S9: Earl_Burgomeister | T9: 2 | V9: Geminus_Calvariae | W9: 4 | Z9: BolognaBowl | AA9: 0 | AC9: ABBL | AD9: 2 | AF9: Awesome Party People | AG9: 4
B10: Littleleadperson | C10: Douglowe | D10: 0 | E10: 2 | F10: 1 | G10: 3 | H10: 3 | I10: 2 | J10: 0 | K10: 0 | L10: 2 | M10: 1 | N10: Sheffield Stinkweasels | O10: Waterbowl Team Z | S10: ArcherJ | T10: 2 | V10: Shortstack | W10: 4 | Z10: Cheltenham IGBB Raiders | AA10: 0 | AC10: Murder Jokers | AD10: 2 | AF10: All The Presidents Men | AG10: 4
B11: Nodgefodgekins | C11: Sizzler | D11: 2 | E11: 0 | F11: 2 | G11: 1 | H11: 0 | I11: 2 | J11: 1 | K11: 0 | L11: 2 | M11: 1 | N11: Sheffield Stinkweasels | O11: Waterbowl Team Z | S11: Nobbla | T11: 2 | V11: Gitgrinder | W11: 4 | Z11: Chins Chumps and C.H.I.P.S. | AA11: 2 | AC11: Wrekin Wraiders | AD11: 2 | AF11: Waterbowl Team Z | AG11: 4
B12: Zooey | C12: Vagabond1982uk | D12: 0 | E12: 2 | F12: 0 | G12: 3 | H12: 2 | I12: 3 | J12: 1 | K12: 2 | L12: 1 | M12: 2 | N12: Sheffield Stinkweasels | O12: Waterbowl Team Z | S12: Spob | T12: 2 | V12: Deepfruit | W12: 4 | Z12: CLAW on Tour | AA12: 2 | AC12: Elyud Dimkok | AD12: 2 | AF12: Wrekin Wraiders | AG12: 4
B13: Kyrkedalechris | C13: Levinas | D13: 1 | E13: 1 | F13: 2 | G13: 2 | H13: 1 | I13: 1 | J13: 1 | K13: 2 | L13: 2 | M13: 1 | N13: Sheffield Stinkweasels | O13: Waterbowl Team Z | S13: Douglowe | T13: 2 | V13: Fleetmacwood | W13: 4 | Z13: DBL Tropicana | AA13: 0 | AC13: The GoBBLers | AD13: 2 | AF13: Murder Kings | AG13: 4
B14: Stick_with_poo_on_the_end | C14: 03philpota | D14: 2 | E14: 0 | F14: 2 | G14: 1 | H14: 2 | I14: 0 | J14: 1 | K14: 0 | L14: 3 | M14: 3 | N14: Steph, Stig and The Baldies | O14: ABBL | S14: 03philpota | T14: 2 | V14: Calfykid | W14: 4 | Z14: Deeside Double Skulls | AA14: 2 | AC14: Old Man Monkeys Team | AD14: 2 | AF14: Bang Average Blood Bowlers | AG14: 4
B15: Warka | C15: Ratmaninov | D15: 2 | E15: 0 | F15: 3 | G15: 2 | H15: 0 | I15: 2 | J15: 1 | K15: 3 | L15: 1 | M15: 2 | N15: Steph, Stig and The Baldies | O15: ABBL | S15: Shortstack | T15: 2 | V15: Slimjono | W15: 4 | Z15: Dice In The Alley | AA15: 2 | AC15: North Yorkshire Table Top | AD15: 2 | AF15: CLAW on Tour | AG15: 4
B16: Stephen82 | C16: Sam_Clark | D16: 2 | E16: 0 | F16: 3 | G16: 1 | H16: 0 | I16: 2 | J16: 1 | K16: 2 | L16: 1 | M16: 3 | N16: Steph, Stig and The Baldies | O16: ABBL | S16: Brickp | T16: 2 | V16: Steairey | W16: 4 | Z16: Dice on Tour Team 1 | AA16: 2 | AC16: Murder Kings | AD16: 2 | AF16: Midtable Marauders | AG16: 3
B17: Hardcore_Stig | C17: N'Sh'Koben | D17: 0 | E17: 2 | F17: 1 | G17: 3 | H17: 3 | I17: 3 | J17: 0 | K17: 1 | L17: 1 | M17: 3 | N17: Steph, Stig and The Baldies | O17: ABBL | S17: Ratmaninov | T17: 2 | V17: Vulture_Squadron | W17: 4 | Z17: Doom League | AA17: 2 | AC17: Orkshire Puddings | AD17: 2 | AF17: Tactics and Theatrics | AG17: 3
B18: HighlandEnoch | C18: TheBymster | D18: 1 | E18: 1 | F18: 2 | G18: 2 | H18: 1 | I18: 1 | J18: 1 | K18: 1 | L18: 2 | M18: 3 | N18: Murder Jokers | O18: Wrekin Wraiders | S18: ScalesnScars | T18: 2 | V18: Nobbla | W18: 4 | Z18: Dragons | AA18: 1 | AC18: CLAW on Tour | AD18: 2 | AF18: Two Guys One Dice Cup | AG18: 3
B19: Fleetmacwood | C19: Dragonborn | D19: 2 | E19: 0 | F19: 1 | G19: 0 | H19: 1 | I19: 1 | J19: 1 | K19: 3 | L19: 1 | M19: 3 | N19: Murder Jokers | O19: Wrekin Wraiders | S19: Bb_jock | T19: 2 | V19: Douglowe | W19: 4 | Z19: Dutch Pirates | AA19: 0 | AC19: Team Republic Tryhards | AD19: 2 | AF19: Deeside Double Skulls | AG19: 3
B20: Badgie | C20: Speedingbullet | D20: 0 | E20: 2 | F20: 0 | G20: 1 | H20: 2 | I20: 1 | J20: 0 | K20: 3 | L20: 1 | M20: 3 | N20: Murder Jokers | O20: Wrekin Wraiders | S20: Laraigne | T20: 2 | V20: SpaceGandalf | W20: 4 | Z20: ECBBL Aspiring Adequates | AA20: 2 | AC20: TeamW | AD20: 2 | AF20: NOBBL Elite | AG20: 3
B21: Thebunneh | C21: Goldengate | D21: 0 | E21: 2 | F21: 1 | G21: 2 | H21: 1 | I21: 2 | J21: 1 | K21: 2 | L21: 0 | M21: 1 | N21: Murder Jokers | O21: Wrekin Wraiders | S21: Elyod | T21: 2 | V21: Stick_with_poo_on_the_end | W21: 4 | Z21: ECBBL Blackshirts | AA21: 0 | AC21: All The Presidents Men | AD21: 2 | AF21: Sutton Immortals | AG21: 3
B22: Elyod | C22: Barnacles | D22: 1 | E22: 1 | F22: 1 | G22: 1 | H22: 3 | I22: 2 | J22: 3 | K22: 1 | L22: 1 | M22: 2 | N22: Elyud Dimkok | O22: The GoBBLers | S22: HighlandEnoch | T22: 2 | V22: Fullfatbeard | W22: 4 | Z22: ECBBL Ten-Tackles | AA22: 2 | AC22: Awesome Party People | AD22: 2 | AF22: Seagulls 2: Electric Boogaloo | AG22: 3
B23: Hankok | C23: BROCKdodge | D23: 1 | E23: 1 | F23: 1 | G23: 1 | H23: 1 | I23: 3 | J23: 1 | K23: 1 | L23: 2 | M23: 1 | N23: Elyud Dimkok | O23: The GoBBLers | S23: ThomasW | T23: 2 | V23: ChrisRaff88 | W23: 4 | Z23: Elyud Dimkok | AA23: 0 | AC23: TCC: BoBin for Ducks | AD23: 2 | AF23: Dice on Tour Team 1 | AG23: 3
B24: Yudlugar | C24: Elplanet4 | D24: 0 | E24: 2 | F24: 1 | G24: 3 | H24: 2 | I24: 3 | J24: 1 | K24: 3 | L24: 2 | M24: 0 | N24: Elyud Dimkok | O24: The GoBBLers | S24: Whisky_Pip | T24: 2 | V24: Stephen82 | W24: 4 | Z24: Famous Tomb Guardians | AA24: 0 | AC24: Granite City Seagulls | AD24: 2 | AF24: 2 Die Docks | AG24: 3
B25: DimmyGee | C25: ICY-Bee | D25: 0 | E25: 2 | F25: 1 | G25: 2 | H25: 2 | I25: 3 | J25: 0 | K25: 1 | L25: 2 | M25: 2 | N25: Elyud Dimkok | O25: The GoBBLers | S25: Fullfatbeard | T25: 2 | V25: HexBaron | W25: 4 | Z25: Fellowship of the GBBL | AA25: 2 | AC25: Bang Average Blood Bowlers | AD25: 2 | AF25: TCC: A Up Me Ducks | AG25: 3
B26: Divergent84 | C26: Spic929 | D26: 1 | E26: 1 | F26: 1 | G26: 1 | H26: 3 | I26: 2 | J26: 3 | K26: 2 | L26: 2 | M26: 0 | N26: Old Man Monkeys Team | O26: North Yorkshire Table Top | S26: Tintenfisch | T26: 2 | V26: SpaceEcho | W26: 4 | Z26: Granite City Seagulls | AA26: 0 | AC26: T and Three Sugars | AD26: 2 | AF26: Sheffield Stinkweasels | AG26: 2
B27: Old_Man_Monkey | C27: SpaceEcho | D27: 0 | E27: 2 | F27: 1 | G27: 3 | H27: 2 | I27: 1 | J27: 1 | K27: 2 | L27: 2 | M27: 3 | N27: Old Man Monkeys Team | O27: North Yorkshire Table Top | S27: Laser_Owl | T27: 2 | V27: Fromherashes | W27: 4 | Z27: HEBBL Team A | AA27: 1 | AC27: Smoggies UTFB | AD27: 2 | AF27: Les Azes | AG27: 2
B28: Cromfrance | C28: Cerberus85 | D28: 0 | E28: 2 | F28: 0 | G28: 2 | H28: 1 | I28: 1 | J28: 3 | K28: 2 | L28: 2 | M28: 3 | N28: Old Man Monkeys Team | O28: North Yorkshire Table Top | S28: Aaaardvark101 | T28: 2 | V28: PhilGC | W28: 4 | Z28: HEBBL Team B | AA28: 0 | AC28: Awesome Party People Part Deux | AD28: 2 | AF28: The Fellowship of the Ball | AG28: 2
B29: Lord_Bojo | C29: edwith1d | D29: 0 | E29: 2 | F29: 0 | G29: 2 | H29: 0 | I29: 1 | J29: 3 | K29: 1 | L29: 1 | M29: 3 | N29: Old Man Monkeys Team | O29: North Yorkshire Table Top | S29: TheBymster | T29: 2 | V29: Bashto | W29: 4 | Z29: Hell n El Productions | AA29: 0 | AC29: UKBBL Team A | AD29: 2 | AF29: Murder Jokers | AG29: 2
B30: SpaceGandalf | C30: Fiddlesticks | D30: 2 | E30: 0 | F30: 2 | G30: 1 | H30: 0 | I30: 3 | J30: 1 | K30: 1 | L30: 1 | M30: 1 | N30: Murder Kings | O30: Orkshire Puddings | S30: Mr_Mezcal | T30: 2 | V30: Nodgefodgekins | W30: 4 | Z30: Hey Listen and The Guy We Found in Nandos | AA30: 0 | AC30: Sutton Immortals | AD30: 1 | AF30: Team Wales | AG30: 2
B31: ChrisRaff88 | C31: Twoshedzz | D31: 2 | E31: 0 | F31: 2 | G31: 0 | H31: 1 | I31: 1 | J31: 2 | K31: 3 | L31: 1 | M31: 3 | N31: Murder Kings | O31: Orkshire Puddings | S31: Shaniepoo1 | T31: 2 | V31: Indibro | W31: 4 | Z31: Iconic Atomics | AA31: 0 | AC31: Iconic Atomics | AD31: 1 | AF31: HEBBL Team B | AG31: 2
B32: I_done_goofd | C32: TomTheOwl | D32: 1 | E32: 1 | F32: 1 | G32: 1 | H32: 1 | I32: 2 | J32: 2 | K32: 3 | L32: 1 | M32: 0 | N32: Murder Kings | O32: Orkshire Puddings | S32: Barnacles | T32: 2 | V32: Ploppy_McPloppy | W32: 4 | Z32: La Ruelle | AA32: 0 | AC32: Two Guys One Dice Cup | AD32: 1 | AF32: Sann Clan | AG32: 2
B33: AMSFELD | C33: Rydog | D33: 1 | E33: 1 | F33: 1 | G33: 1 | H33: 1 | I33: 1 | J33: 0 | K33: 3 | L33: 1 | M33: 1 | N33: Murder Kings | O33: Orkshire Puddings | S33: Gitgrinder | T33: 2 | V33: Jayward | W33: 3 | Z33: Les Azes | AA33: 0 | AC33: Team Republic Chill Squad | AD33: 1 | AF33: Chins Chumps and C.H.I.P.S. | AG33: 2
B34: Camelchops | C34: Outkast | D34: 1 | E34: 1 | F34: 1 | G34: 1 | H34: 3 | I34: 3 | J34: 0 | K34: 1 | L34: 0 | M34: 1 | N34: CLAW on Tour | O34: Team Republic Tryhards | S34: Fromherashes | T34: 2 | V34: Mr_Mezcal | W34: 3 | Z34: Let Me Atom | AA34: 0 | AC34: Orkshire | AD34: 1 | AF34: ECBBL Aspiring Adequates | AG34: 2
B35: Dusher1 | C35: GreenSkinPhil | D35: 1 | E35: 1 | F35: 1 | G35: 1 | H35: 2 | I35: 1 | J35: 0 | K35: 1 | L35: 1 | M35: 3 | N35: CLAW on Tour | O35: Team Republic Tryhards | S35: Joemanji | T35: 2 | V35: ThomasW | W35: 3 | Z35: Lutece Noobs | AA35: 0 | AC35: Deeside Double Skulls | AD35: 1 | AF35: Granite City Seagulls | AG35: 2
B36: Chorfling | C36: Stratford_ | D36: 2 | E36: 0 | F36: 3 | G36: 2 | H36: 1 | I36: 1 | J36: 0 | K36: 2 | L36: 3 | M36: 3 | N36: CLAW on Tour | O36: Team Republic Tryhards | S36: Rev | T36: 2 | V36: HighlandEnoch | W36: 3 | Z36: Midtable Marauders | AA36: 2 | AC36: Midtable Marauders | AD36: 1 | AF36: Elyud Dimkok | AG36: 2
B37: SilentKnight | C37: Torquemada | D37: 1 | E37: 1 | F37: 2 | G37: 2 | H37: 2 | I37: 1 | J37: 1 | K37: 1 | L37: 3 | M37: 2 | N37: CLAW on Tour | O37: Team Republic Tryhards | S37: The_Fritch | T37: 2 | V37: TheBymster | W37: 3 | Z37: Monstrous Tynemouth | AA37: 0 | AC37: Let Me Atom | AD37: 1 | AF37: ABBL | AG37: 2
B38: ThomasW | C38: Joemanji | D38: 1 | E38: 1 | F38: 2 | G38: 2 | H38: 1 | I38: 0 | J38: 0 | K38: 3 | L38: 1 | M38: 0 | N38: TeamW | O38: All The Presidents Men | S38: HenningEksteen | T38: 2 | V38: Barnacles | W38: 3 | Z38: Murder Aces | AA38: 2 | AC38: 2 Die Docks | AD38: 1 | AF38: Team Republic Tryhards | AG38: 2
B39: PeteW | C39: Lycos | D39: 0 | E39: 2 | F39: 1 | G39: 2 | H39: 2 | I39: 1 | J39: 2 | K39: 1 | L39: 2 | M39: 2 | N39: TeamW | O39: All The Presidents Men | S39: Deepfruit | T39: 2 | V39: Joemanji | W39: 3 | Z39: Murder Jacks | AA39: 1 | AC39: ECBBL Blackshirts | AD39: 1 | AF39: ECBBL Ten-Tackles | AG39: 2
B40: Besters | C40: JimJimany | D40: 0 | E40: 2 | F40: 0 | G40: 1 | H40: 1 | I40: 2 | J40: 1 | K40: 3 | L40: 1 | M40: 1 | N40: TeamW | O40: All The Presidents Men | S40: Littleleadperson | T40: 2 | V40: Munch | W40: 3 | Z40: Murder Jokers | AA40: 0 | AC40: The Democratic Republic of Yorkshire | AD40: 1 | AF40: The Merry Men | AG40: 2
B41: Gorgoroth | C41: Purplegoo | D41: 1 | E41: 1 | F41: 1 | G41: 1 | H41: 3 | I41: 0 | J41: 2 | K41: 0 | L41: 0 | M41: 1 | N41: TeamW | O41: All The Presidents Men | S41: The_mighty_irush | T41: 2 | V41: Divergent84 | W41: 3 | Z41: Murder Kings | AA41: 2 | AC41: TCC: A Up Me Ducks | AD41: 1 | AF41: TeamW | AG41: 2
B42: Shaniepoo1 | C42: Rev | D42: 1 | E42: 1 | F42: 2 | G42: 2 | H42: 2 | I42: 0 | J42: 0 | K42: 1 | L42: 3 | M42: 2 | N42: Awesome Party People | O42: TCC: BoBin for Ducks | S42: Twoshedzz | T42: 2 | V42: Rev | W42: 3 | Z42: Murder Queens | AA42: 1 | AC42: NOBBL Elite | AD42: 1 | AF42: Orkshire Puddings | AG42: 2
B43: Munch | C43: The_Fritch | D43: 2 | E43: 0 | F43: 3 | G43: 2 | H43: 2 | I43: 0 | J43: 0 | K43: 1 | L43: 3 | M43: 1 | N43: Awesome Party People | O43: TCC: BoBin for Ducks | S43: PhilGC | T43: 2 | V43: Hankok | W43: 3 | Z43: NOBBL Elite | AA43: 2 | AC43: Hell n El Productions | AD43: 1 | AF43: Old Man Monkeys Team | AG43: 2
B44: Forgotmytea | C44: Bungeeman | D44: 1 | E44: 1 | F44: 1 | G44: 1 | H44: 2 | I44: 1 | J44: 3 | K44: 1 | L44: 3 | M44: 1 | N44: Awesome Party People | O44: TCC: BoBin for Ducks | S44: PeteW | T44: 2 | V44: Masterful | W44: 3 | Z44: NOBBL Jesters | AA44: 1 | AC44: Seagulls 2: Electric Boogaloo | AD44: 1 | AF44: TCC: BoBin for Ducks | AG44: 2
B45: Elperas | C45: Sean_M | D45: 2 | E45: 0 | F45: 1 | G45: 0 | H45: 0 | I45: 0 | J45: 3 | K45: 1 | L45: 0 | M45: 2 | N45: Awesome Party People | O45: TCC: BoBin for Ducks | S45: BigMace | T45: 2 | V45: Vagabond1982uk | W45: 3 | Z45: North Yorkshire Table Top | AA45: 2 | AC45: Dutch Pirates | AD45: 1 | AF45: Doom League | AG45: 2
B46: Fredmanwalking | C46: HexBaron | D46: 0 | E46: 2 | F46: 0 | G46: 2 | H46: 2 | I46: 1 | J46: 0 | K46: 3 | L46: 1 | M46: 0 | N46: Granite City Seagulls | O46: Bang Average Blood Bowlers | S46: Fleetmacwood | T46: 2 | V46: Tyler_Swaft | W46: 3 | Z46: Old Man Monkeys Team | AA46: 0 | AC46: BolognaBowl | AD46: 1 | AF46: Snake Eyes and GFIs | AG46: 2
B47: Spooner | C47: DrTechnoTrousers | D47: 0 | E47: 2 | F47: 1 | G47: 3 | H47: 1 | I47: 3 | J47: 2 | K47: 1 | L47: 3 | M47: 2 | N47: Granite City Seagulls | O47: Bang Average Blood Bowlers | S47: GreenSkinPhil | T47: 2 | V47: TateRolls1s | W47: 3 | Z47: Orkshire | AA47: 0 | AC47: Dice on Tour Team 1 | AD47: 1 | AF47: UKBBL Team A | AG47: 2
B48: Stonethrowingdevil | C48: Dayday | D48: 1 | E48: 1 | F48: 2 | G48: 2 | H48: 2 | I48: 3 | J48: 1 | K48: 3 | L48: 2 | M48: 2 | N48: Granite City Seagulls | O48: Bang Average Blood Bowlers | S48: BROCKdodge | T48: 2 | V48: Breakmonker | W48: 3 | Z48: Orkshire Puddings | AA48: 0 | AC48: Tactics and Theatrics | AD48: 1 | AF48: T and Three Sugars | AG48: 2
B49: Europanda | C49: Hendy | D49: 2 | E49: 0 | F49: 3 | G49: 2 | H49: 0 | I49: 2 | J49: 3 | K49: 0 | L49: 0 | M49: 1 | N49: Granite City Seagulls | O49: Bang Average Blood Bowlers | S49: Hankok | T49: 2 | V49: Jeeves | W49: 3 | Z49: Salty Bowlers of London | AA49: 0 | AC49: Famous Tomb Guardians | AD49: 1 | AF49: Dice In The Alley | AG49: 2
B50: Owletta | C50: Mr_Mezcal | D50: 1 | E50: 1 | F50: 2 | G50: 2 | H50: 0 | I50: 2 | J50: 1 | K50: 0 | L50: 2 | M50: 1 | N50: T and Three Sugars | O50: Smoggies UTFB | S50: Steairey | T50: 2 | V50: Mr_Zay | W50: 3 | Z50: Seagulls 2: Electric Boogaloo | AA50: 2 | AC50: The Merry Men | AD50: 0 | AF50: ECBBL Blackshirts | AG50: 1
B51: Obsydyan | C51: Geminus_Calvariae | D51: 0 | E51: 2 | F51: 0 | G51: 2 | H51: 1 | I51: 2 | J51: 2 | K51: 3 | L51: 0 | M51: 0 | N51: T and Three Sugars | O51: Smoggies UTFB | S51: Owletta | T51: 2 | V51: Galladur | W51: 3 | Z51: Sheffield Stinkweasels | AA51: 0 | AC51: DBL Tropicana | AD51: 0 | AF51: The Democratic Republic of Yorkshire | AG51: 1
B52: Kid_Cantcomplain | C52: WoodyWoodPecker | D52: 0 | E52: 2 | F52: 0 | G52: 2 | H52: 3 | I52: 2 | J52: 2 | K52: 1 | L52: 0 | M52: 0 | N52: T and Three Sugars | O52: Smoggies UTFB | S52: JKB | T52: 2 | V52: BartK | W52: 3 | Z52: Shiretown Stuffers | AA52: 0 | AC52: Dragons | AD52: 0 | AF52: BolognaBowl | AG52: 1
B53: Boldfox | C53: GrumpyBoyle | D53: 0 | E53: 2 | F53: 2 | G53: 3 | H53: 0 | I53: 2 | J53: 2 | K53: 0 | L53: 0 | M53: 1 | N53: T and Three Sugars | O53: Smoggies UTFB | S53: Gerdleah | T53: 2 | V53: Speedingbullet | W53: 3 | Z53: Smoggies UTFB | AA53: 2 | AC53: NOBBL Jesters | AD53: 0 | AF53: Dragons | AG53: 1
B54: Nobbla | C54: Lewi88 | D54: 2 | E54: 0 | F54: 3 | G54: 1 | H54: 2 | I54: 0 | J54: 0 | K54: 2 | L54: 0 | M54: 2 | N54: Awesome Party People Part Deux | O54: UKBBL Team A | S54: Dragonborn | T54: 2 | V54: Dusher1 | W54: 3 | Z54: Snake Eyes and GFIs | AA54: 2 | AC54: Salty Bowlers of London | AD54: 0 | AF54: Dutch Pirates | AG54: 1
B55: Deepfruit | C55: Snowtroll | D55: 2 | E55: 0 | F55: 2 | G55: 1 | H55: 2 | I55: 1 | J55: 2 | K55: 3 | L55: 1 | M55: 0 | N55: Awesome Party People Part Deux | O55: UKBBL Team A | S55: Mr_Zay | T55: 2 | V55: HipsterPotter | W55: 3 | Z55: Steph, Stig and The Baldies | AA55: 2 | AC55: Chins Chumps and C.H.I.P.S. | AD55: 0 | AF55: NOBBL Jesters | AG55: 1
B56: Jordellfb | C56: Insidious | D56: 2 | E56: 0 | F56: 2 | G56: 1 | H56: 1 | I56: 2 | J56: 2 | K56: 1 | L56: 0 | M56: 3 | N56: Awesome Party People Part Deux | O56: UKBBL Team A | S56: Galladur | T56: 2 | V56: Lycos | W56: 3 | Z56: Sutton Immortals | AA56: 2 | AC56: Cheltenham IGBB Raiders | AD56: 0 | AF56: Iconic Atomics | AG56: 1
B57: Valen | C57: Khornight | D57: 1 | E57: 1 | F57: 2 | G57: 2 | H57: 0 | I57: 1 | J57: 1 | K57: 1 | L57: 1 | M57: 1 | N57: Awesome Party People Part Deux | O57: UKBBL Team A | S57: Biereforever | T57: 2 | V57: GreenSkinPhil | W57: 3 | Z57: T and Three Sugars | AA57: 0 | AC57: Team Wales | AD57: 0 | AF57: HEBBL Team A | AG57: 1
B58: Shortstack | C58: ArcherJ | D58: 2 | E58: 0 | F58: 3 | G58: 2 | H58: 2 | I58: 2 | J58: 2 | K58: 2 | L58: 2 | M58: 2 | N58: Sutton Immortals | O58: Iconic Atomics | S58: SickAsEggs | T58: 2 | V58: Firebreather | W58: 3 | Z58: Tacklezone Pirates | AA58: 1 | AC58: ECBBL Ten-Tackles | AD58: 0 | AF58: Team Miss Next Game | AG58: 1
B59: Trollface | C59: TateRolls1s | D59: 0 | E59: 2 | F59: 0 | G59: 3 | H59: 2 | I59: 1 | J59: 3 | K59: 0 | L59: 0 | M59: 1 | N59: Sutton Immortals | O59: Iconic Atomics | S59: Warka | T59: 2 | V59: Fackko | W59: 3 | Z59: Tactics and Theatrics | AA59: 2 | AC59: La Ruelle | AD59: 0 | AF59: Tacklezone Pirates | AG59: 1
B60: Sparky | C60: Duffins | D60: 2 | E60: 0 | F60: 2 | G60: 1 | H60: 2 | I60: 2 | J60: 2 | K60: 2 | L60: 2 | M60: 2 | N60: Sutton Immortals | O60: Iconic Atomics | S60: DrHellboy_ | T60: 2 | V60: Cornish | W60: 3 | Z60: TCC: A Up Me Ducks | AA60: 2 | AC60: ECBBL Aspiring Adequates | AD60: 0 | AF60: Murder Queens | AG60: 1
B61: Boynamedsue | C61: Winterb0rn | D61: 2 | E61: 0 | F61: 3 | G61: 1 | H61: 2 | I61: 1 | J61: 0 | K61: 1 | L61: 1 | M61: 1 | N61: Sutton Immortals | O61: Iconic Atomics | S61: Calfykid | T61: 2 | V61: Jordellfb | W61: 3 | Z61: TCC: BoBin for Ducks | AA61: 0 | AC61: Monstrous Tynemouth | AD61: 0 | AF61: Orkshire | AG61: 1
B62: Fromherashes | C62: Brickp | D62: 2 | E62: 0 | F62: 1 | G62: 0 | H62: 1 | I62: 2 | J62: 3 | K62: 3 | L62: 2 | M62: 0 | N62: Two Guys One Dice Cup | O62: Team Republic Chill Squad | S62: Divergent84 | T62: 2 | V62: Outkast | W62: 3 | Z62: Team Miss Next Game | AA62: 1 | AC62: The Fellowship of the Ball | AD62: 0 | AF62: Hell n El Productions | AG62: 1
B63: HipsterPotter | C63: Mefspores | D63: 1 | E63: 1 | F63: 1 | G63: 1 | H63: 3 | I63: 1 | J63: 0 | K63: 1 | L63: 1 | M63: 2 | N63: Two Guys One Dice Cup | O63: Team Republic Chill Squad | S63: Edwin | T63: 2 | V63: Sporran | W63: 3 | Z63: Team Republic Chill Squad | AA63: 0 | AC63: Shiretown Stuffers | AD63: 0 | AF63: 2 Up 2 Down | AG63: 1
B64: Chilli | C64: CoachKAS | D64: 2 | E64: 0 | F64: 3 | G64: 2 | H64: 2 | I64: 3 | J64: 3 | K64: 2 | L64: 1 | M64: 3 | N64: Two Guys One Dice Cup | O64: Team Republic Chill Squad | S64: Dusher1 | T64: 2 | V64: Deeferdan | W64: 3 | Z64: Team Republic Tryhards | AA64: 0 | AC64: The GoBBLed | AD64: 0 | AF64: Team Republic Chill Squad | AG64: 1
B65: HuntlyLoon | C65: Potatomancer | D65: 2 | E65: 0 | F65: 2 | G65: 1 | H65: 1 | I65: 0 | J65: 2 | K65: 1 | L65: 2 | M65: 0 | N65: Two Guys One Dice Cup | O65: Team Republic Chill Squad | S65: Gallo | T65: 2 | V65: DrTechnoTrousers | W65: 3 | Z65: Team TimeOut | AA65: 0 | AC65: Sann Clan | AD65: 0 | AF65: Famous Tomb Guardians | AG65: 1
B66: Laser_Owl | C66: Earl_Burgomeister | D66: 0 | E66: 2 | F66: 1 | G66: 2 | H66: 3 | I66: 2 | J66: 2 | K66: 2 | L66: 3 | M66: 0 | N66: Orkshire | O66: Deeside Double Skulls | S66: Oklaoma | T66: 2 | V66: Camelchops | W66: 3 | Z66: Team Wales | AA66: 2 | AC66: Team Miss Next Game | AD66: 0 | AF66: Let Me Atom | AG66: 1
B67: Falesh | C67: Dakyrus | D67: =fctScore(F67,G67,H67,J67,L67) -> 0 | E67: =fctScore(G67,F67,I67,K67,M67) -> 2 | F67: 1 | G67: 2 | H67: 1 | I67: 1 | J67: 1 | K67: 1 | L67: 3 | M67: 3 | N67: Orkshire | O67: Deeside Double Skulls | S67: Lpoolcookie | T67: 2 | V67: Elplanet4 | W67: 3 | Z67: TeamW | AA67: 0 | AC67: 2 Up 2 Down | AD67: 0 | AF67: Murder Jacks | AG67: 1
B68: McFaff | C68: Padster | D68: 0 | E68: 2 | F68: 1 | G68: 2 | H68: 0 | I68: 2 | J68: 3 | K68: 0 | L68: 0 | M68: 1 | N68: Orkshire | O68: Deeside Double Skulls | S68: Lewi88 | T68: 2 | V68: Shaniepoo1 | W68: 3 | Z68: The Democratic Republic of Yorkshire | AA68: 0 | AC68: Team TimeOut | AD68: 0 | AF68: DBL Tropicana | AG68: 0
B69: Burtblahblahblah | C69: LORD_BONAN | D69: 2 | E69: 0 | F69: 3 | G69: 1 | H69: 0 | I69: 1 | J69: 1 | K69: 1 | L69: 2 | M69: 3 | N69: Orkshire | O69: Deeside Double Skulls | S69: Fredmanwalking | T69: 2 | V69: Elyod | W69: 3 | Z69: The Fellowship of the Ball | AA69: 2 | AC69: Snake Eyes and GFIs | AD69: 0 | AF69: La Ruelle | AG69: 0
B70: Spob | C70: Rubble | D70: 2 | E70: 0 | F70: 2 | G70: 1 | H70: 0 | I70: 3 | J70: 3 | K70: 1 | L70: 3 | M70: 2 | N70: Midtable Marauders | O70: Let Me Atom | S70: Purdindas | T70: 2 | V70: edwith1d | W70: 3 | Z70: The GoBBLed | AA70: 0 | AC70: Tacklezone Pirates | AD70: 0 | AF70: Salty Bowlers of London | AG70: 0
B71: Firebreather | C71: Tomfoolery | D71: 1 | E71: 1 | F71: 2 | G71: 2 | H71: 1 | I71: 2 | J71: 1 | K71: 3 | L71: 2 | M71: 0 | N71: Midtable Marauders | O71: Let Me Atom | S71: Stephen82 | T71: 2 | V71: Raging82 | W71: 3 | Z71: The GoBBLers | AA71: 2 | AC71: HEBBL Team A | AD71: 0 | AF71: Monstrous Tynemouth | AG71: 0
B72: Fireolli | C72: MrGreen | D72: 2 | E72: 0 | F72: 3 | G72: 2 | H72: 2 | I72: 1 | J72: 1 | K72: 2 | L72: 3 | M72: 0 | N72: Midtable Marauders | O72: Let Me Atom | S72: Spic929 | T72: 2 | V72: Whisky_Pip | W72: 3 | Z72: The Merry Men | AA72: 2 | AC72: Murder Queens | AD72: 0 | AF72: Team TimeOut | AG72: 0
B73: Ringbeard | C73: Blackduke | D73: 2 | E73: 0 | F73: 2 | G73: 1 | H73: 1 | I73: 2 | J73: 1 | K73: 2 | L73: 2 | M73: 0 | N73: Midtable Marauders | O73: Let Me Atom | S73: Jeeves | T73: 2 | V73: BROCKdodge | W73: 3 | Z73: Two Guys One Dice Cup | AA73: 2 | AC73: Murder Jacks | AD73: 0 | AF73: Cheltenham IGBB Raiders | AG73: 0
B74: BigMace | C74: AWT | D74: 1 | E74: 1 | F74: 1 | G74: 1 | H74: 2 | I74: 2 | J74: 2 | K74: 3 | L74: 2 | M74: 2 | N74: 2 Die Docks | O74: The Democratic Republic of Yorkshire | S74: Rubble | T74: 2 | V74: Artful_Dodger | W74: 3 | Z74: UKBBL Team A | AA74: 0 | AC74: Lutece Noobs | AD74: 0 | AF74: Shiretown Stuffers | AG74: 0
B75: 8ulldog | C75: Slimjono | D75: 0 | E75: 2 | F75: 0 | G75: 1 | H75: 3 | I75: 3 | J75: 2 | K75: 2 | L75: 1 | M75: 2 | N75: 2 Die Docks | O75: The Democratic Republic of Yorkshire | S75: Wobert | T75: 2 | V75: JKB | W75: 3 | Z75: Waterbowl Team Z | AA75: 2 | AC75: Dice In The Alley | AD75: 0 | AF75: Lutece Noobs | AG75: 0
B76: NickBell | C76: Loubega | D76: 2 | E76: 0 | F76: 2 | G76: 1 | H76: 2 | I76: 2 | J76: 3 | K76: 1 | L76: 1 | M76: 3 | N76: 2 Die Docks | O76: The Democratic Republic of Yorkshire | S76: Old_Man_Monkey | T76: 2 | V76: BigMace | W76: 3 | Z76: Wrekin Wraiders | AA76: 2 | AC76: Doom League | AD76: 0 | AF76: The GoBBLed | AG76: 0
B77: Vido | C77: Diaphite | D77: 2 | E77: 0 | F77: 1 | G77: 0 | H77: 2 | I77: 1 | J77: 2 | K77: 2 | L77: 2 | M77: 1 | N77: 2 Die Docks | O77: The Democratic Republic of Yorkshire | S77: Sizzler | T77: 2 | V77: Celt | W77: 3 | Z77: Sann Clan | AA77: 2 | AC77: Hey Listen and The Guy We Found in Nandos | AD77: 0 | AF77: Hey Listen and The Guy We Found in Nandos | AG77: 0
B78: Masterful | C78: JKB | D78: 1 | E78: 1 | F78: 3 | G78: 3 | H78: 0 | I78: 1 | J78: 1 | K78: 0 | L78: 2 | M78: 1 | N78: ECBBL Blackshirts | O78: TCC: A Up Me Ducks | S78: Masterful | T78: 2 | V78: Gcoleman | W78: 3
B79: Bsking | C79: Indibro | D79: 0 | E79: 2 | F79: 1 | G79: 3 | H79: 1 | I79: 1 | J79: 0 | K79: 3 | L79: 3 | M79: 3 | N79: ECBBL Blackshirts | O79: TCC: A Up Me Ducks | S79: Sam_Clark | T79: 2 | V79: Shipaz | W79: 3
B80: Vmcat | C80: Envoien | D80: 2 | E80: 0 | F80: 3 | G80: 0 | H80: 3 | I80: 3 | J80: 2 | K80: 2 | L80: 0 | M80: 2 | N80: ECBBL Blackshirts | O80: TCC: A Up Me Ducks | S80: Firebreather | T80: 2 | V80: Dakyrus | W80: 3
B81: Heff | C81: SkraggDave | D81: 0 | E81: 2 | F81: 1 | G81: 3 | H81: 3 | I81: 2 | J81: 3 | K81: 0 | L81: 2 | M81: 1 | N81: ECBBL Blackshirts | O81: TCC: A Up Me Ducks | S81: AWT | T81: 2 | V81: ICY-Bee | W81: 3
B82: ScalesnScars | C82: DrHellboy_ | D82: 2 | E82: 0 | F82: 3 | G82: 2 | H82: 1 | I82: 2 | J82: 2 | K82: 0 | L82: 1 | M82: 2 | N82: NOBBL Elite | O82: Hell n El Productions | S82: HexBaron | T82: 2 | V82: Owletta | W82: 3
B83: Wobert | C83: Raging82 | D83: 0 | E83: 2 | F83: 1 | G83: 3 | H83: 2 | I83: 1 | J83: 3 | K83: 2 | L83: 3 | M83: 2 | N83: NOBBL Elite | O83: Hell n El Productions | S83: Spooner | T83: 2 | V83: Chorfling | W83: 3
B84: Jago21 | C84: Fallingdownjoe | D84: 2 | E84: 0 | F84: 1 | G84: 0 | H84: 1 | I84: 3 | J84: 2 | K84: 3 | L84: 2 | M84: 1 | N84: NOBBL Elite | O84: Hell n El Productions | S84: Cornish | T84: 2 | V84: Spic929 | W84: 3
B85: Starkey | C85: El_Duderino | D85: 2 | E85: 0 | F85: 3 | G85: 2 | H85: 2 | I85: 3 | J85: 1 | K85: 1 | L85: 1 | M85: 2 | N85: NOBBL Elite | O85: Hell n El Productions | S85: Wookiee1972 | T85: 2 | V85: AWT | W85: 3
B86: Fullfatbeard | C86: HenningEksteen | D86: 2 | E86: 0 | F86: 2 | G86: 1 | H86: 2 | I86: 1 | J86: 2 | K86: 3 | L86: 2 | M86: 2 | N86: Seagulls 2: Electric Boogaloo | O86: Dutch Pirates | S86: Bashto | T86: 2 | V86: Nippylongskar | W86: 3
B87: Mournival | C87: Edwin | D87: 1 | E87: 1 | F87: 1 | G87: 1 | H87: 0 | I87: 1 | J87: 0 | K87: 1 | L87: 1 | M87: 1 | N87: Seagulls 2: Electric Boogaloo | O87: Dutch Pirates | S87: Fackko | T87: 2 | V87: Elperas | W87: 3
B88: Shriyke | C88: Joost | D88: 0 | E88: 2 | F88: 0 | G88: 2 | H88: 1 | I88: 0 | J88: 2 | K88: 1 | L88: 0 | M88: 2 | N88: Seagulls 2: Electric Boogaloo | O88: Dutch Pirates | S88: Nodgefodgekins | T88: 2 | V88: Cerberus85 | W88: 3
B89: Markymarc | C89: Yurinator | D89: 2 | E89: 0 | F89: 3 | G89: 0 | H89: 2 | I89: 3 | J89: 1 | K89: 2 | L89: 1 | M89: 2 | N89: Seagulls 2: Electric Boogaloo | O89: Dutch Pirates | S89: ChrisRaff88 | T89: 2 | V89: Bloodtithe | W89: 3
B90: Gallo | C90: PhilGC | D90: 0 | E90: 2 | F90: 2 | G90: 3 | H90: 0 | I90: 2 | J90: 3 | K90: 0 | L90: 1 | M90: 2 | N90: BolognaBowl | O90: Dice on Tour Team 1 | S90: HipsterPotter | T90: 2 | V90: Haktar | W90: 3
B91: Fackko | C91: Maca1066 | D91: 1 | E91: 1 | F91: 2 | G91: 2 | H91: 1 | I91: 2 | J91: 2 | K91: 1 | L91: 1 | M91: 2 | N91: BolognaBowl | O91: Dice on Tour Team 1 | S91: Ploppy_McPloppy | T91: 2 | V91: Pegleg | W91: 3
B92: Liam | C92: Syntaxerror | D92: 2 | E92: 0 | F92: 2 | G92: 1 | H92: 1 | I92: 2 | J92: 2 | K92: 0 | L92: 1 | M92: 1 | N92: BolognaBowl | O92: Dice on Tour Team 1 | S92: Slimjono | T92: 2 | V92: WoodyWoodPecker | W92: 3
B93: Dirold | C93: Whiskeymancer | D93: 0 | E93: 2 | F93: 1 | G93: 3 | H93: 1 | I93: 2 | J93: 1 | K93: 1 | L93: 1 | M93: 2 | N93: BolognaBowl | O93: Dice on Tour Team 1 | S93: Geminus_Calvariae | T93: 2 | V93: JimJimany | W93: 3
B94: Bashto | C94: SickAsEggs | D94: 2 | E94: 0 | F94: 1 | G94: 0 | H94: 3 | I94: 0 | J94: 3 | K94: 2 | L94: 2 | M94: 3 | N94: Tactics and Theatrics | O94: Famous Tomb Guardians | S94: SpaceEcho | T94: 2 | V94: Padster | W94: 3
B95: Bloodtithe | C95: Tulkus | D95: 2 | E95: 0 | F95: 2 | G95: 0 | H95: 2 | I95: 2 | J95: 2 | K95: 2 | L95: 1 | M95: 2 | N95: Tactics and Theatrics | O95: Famous Tomb Guardians | S95: Zooey | T95: 2 | V95: Silkoun | W95: 3
B96: Breakmonker | C96: Archcoach_Ferdinand | D96: 2 | E96: 0 | F96: 2 | G96: 0 | H96: 2 | I96: 3 | J96: 2 | K96: 2 | L96: 3 | M96: 2 | N96: Tactics and Theatrics | O96: Famous Tomb Guardians | S96: 3_Dice_Uphill | T96: 2 | V96: EnglishChris | W96: 3
B97: Haychdee | C97: Keithabix | D97: 1 | E97: 1 | F97: 0 | G97: 0 | H97: 1 | I97: 1 | J97: 3 | K97: 2 | L97: 2 | M97: 1 | N97: Tactics and Theatrics | O97: Famous Tomb Guardians | S97: Falesh | T97: 2 | V97: Edwin | W97: 3
B98: Gitgrinder | C98: GingerB | D98: 2 | E98: 0 | F98: 2 | G98: 1 | H98: 1 | I98: 0 | J98: 2 | K98: 1 | L98: 1 | M98: 1 | N98: The Merry Men | O98: DBL Tropicana | S98: Vulture_Squadron | T98: 2 | V98: Sparky | W98: 3
B99: Cjtaylor_uk | C99: Tyler_Swaft | D99: 0 | E99: 2 | F99: 0 | G99: 3 | H99: 3 | I99: 2 | J99: 2 | K99: 0 | L99: 3 | M99: 1 | N99: The Merry Men | O99: DBL Tropicana | S99: Snowtroll | T99: 2 | V99: Goldengate | W99: 3
B100: Bogey105 | C100: Cyritz | D100: 1 | E100: 1 | F100: 1 | G100: 1 | H100: 1 | I100: 2 | J100: 1 | K100: 0 | L100: 3 | M100: 1 | N100: The Merry Men | O100: DBL Tropicana | S100: Indibro | T100: 2 | V100: Ens1ferum | W100: 3
B101: CharlieBanks | C101: CptOats | D101: 2 | E101: 0 | F101: 3 | G101: 1 | H101: 2 | I101: 3 | J101: 1 | K101: 0 | L101: 1 | M101: 2 | N101: The Merry Men | O101: DBL Tropicana | S101: Jayward | T101: 1 | V101: Vmcat | W101: 3
B102: Aaaardvark101 | C102: Artful_Dodger | D102: 0 | E102: 2 | F102: 2 | G102: 3 | H102: 1 | I102: 2 | J102: 1 | K102: 3 | L102: 1 | M102: 0 | N102: Dragons | O102: NOBBL Jesters | S102: Trollface | T102: 1 | V102: NickBell | W102: 3
B103: Skab | C103: Ens1ferum | D103: 0 | E103: 2 | F103: 0 | G103: 1 | H103: 1 | I103: 0 | J103: 2 | K103: 1 | L103: 2 | M103: 1 | N103: Dragons | O103: NOBBL Jesters | S103: Haktar | T103: 1 | V103: Fiddlesticks | W103: 2
B104: ThatOtherAsianGuy | C104: pedro_laserbeard | D104: 2 | E104: 0 | F104: 3 | G104: 1 | H104: 1 | I104: 2 | J104: 2 | K104: 2 | L104: 1 | M104: 3 | N104: Dragons | O104: NOBBL Jesters | S104: Speedingbullet | T104: 1 | V104: Brickp | W104: 2
B105: MartinVanquish | C105: Papa_laza_rou | D105: 2 | E105: 0 | F105: 2 | G105: 1 | H105: 2 | I105: 1 | J105: 0 | K105: 1 | L105: 0 | M105: 2 | N105: Dragons | O105: NOBBL Jesters | S105: Bsking | T105: 1 | V105: Sizzler | W105: 2
B106: Oranj | C106: Jeeves | D106: 1 | E106: 1 | F106: 1 | G106: 1 | H106: 0 | I106: 2 | J106: 2 | K106: 0 | L106: 1 | M106: 0 | N106: Salty Bowlers of London | O106: Chins Chumps and C.H.I.P.S. | S106: Badgie | T106: 1 | V106: HenningEksteen | W106: 2
B107: Saltymurcutt | C107: Mamapepe | D107: 1 | E107: 1 | F107: 3 | G107: 3 | H107: 1 | I107: 0 | J107: 2 | K107: 0 | L107: 2 | M107: 2 | N107: Salty Bowlers of London | O107: Chins Chumps and C.H.I.P.S. | S107: EnglishChris | T107: 1 | V107: Biereforever | W107: 2
B108: Salontiger | C108: Pipey | D108: 0 | E108: 2 | F108: 0 | G108: 1 | H108: 0 | I108: 2 | J108: 1 | K108: 3 | L108: 1 | M108: 2 | N108: Salty Bowlers of London | O108: Chins Chumps and C.H.I.P.S. | S108: Shipaz | T108: 1 | V108: Mournival | W108: 2
B109: Grim_Jim | C109: Shunt | D109: 0 | E109: 2 | F109: 2 | G109: 3 | H109: 1 | I109: 2 | J109: 1 | K109: 1 | L109: 0 | M109: 3 | N109: Salty Bowlers of London | O109: Chins Chumps and C.H.I.P.S. | S109: DrTechnoTrousers | T109: 1 | V109: Gallo | W109: 2
B110: The_mighty_irush | C110: Jayward | D110: 0 | E110: 2 | F110: 0 | G110: 2 | H110: 3 | I110: 1 | J110: 1 | K110: 2 | L110: 1 | M110: 2 | N110: Cheltenham IGBB Raiders | O110: Team Wales | S110: Gingerballer | T110: 1 | V110: SickAsEggs | W110: 2
B111: Turboraptor | C111: Gcoleman | D111: 0 | E111: 2 | F111: 1 | G111: 2 | H111: 1 | I111: 1 | J111: 1 | K111: 1 | L111: 3 | M111: 3 | N111: Cheltenham IGBB Raiders | O111: Team Wales | S111: Artful_Dodger | T111: 1 | V111: Littleleadperson | W111: 2
B112: Shadrak | C112: Celt | D112: 0 | E112: 2 | F112: 1 | G112: 2 | H112: 1 | I112: 3 | J112: 2 | K112: 0 | L112: 0 | M112: 2 | N112: Cheltenham IGBB Raiders | O112: Team Wales | S112: Stonethrowingdevil | T112: 1 | V112: Sam_Clark | W112: 2
B113: Shortstuff | C113: 20phoenix | D113: 2 | E113: 0 | F113: 1 | G113: 0 | H113: 2 | I113: 0 | J113: 2 | K113: 2 | L113: 2 | M113: 0 | N113: Cheltenham IGBB Raiders | O113: Team Wales | S113: Tyler_Swaft | T113: 1 | V113: Old_Man_Monkey | W113: 2
B114: BartK | C114: Laraigne | D114: 2 | E114: 0 | F114: 1 | G114: 0 | H114: 2 | I114: 2 | J114: 1 | K114: 1 | L114: 3 | M114: 1 | N114: ECBBL Ten-Tackles | O114: La Ruelle | S114: Wulfyn | T114: 1 | V114: Fredmanwalking | W114: 2
B115: Bbart | C115: Haktar | D115: 0 | E115: 2 | F115: 1 | G115: 3 | H115: 2 | I115: 1 | J115: 0 | K115: 1 | L115: 3 | M115: 0 | N115: ECBBL Ten-Tackles | O115: La Ruelle | S115: 8ulldog | T115: 1 | V115: Twoshedzz | W115: 2
B116: JuJuu | C116: Fondu | D116: 1 | E116: 1 | F116: 2 | G116: 2 | H116: 0 | I116: 3 | J116: 1 | K116: 1 | L116: 2 | M116: 2 | N116: ECBBL Ten-Tackles | O116: La Ruelle | S116: Obsydyan | T116: 1 | V116: Lewi88 | W116: 2
B117: King_Ghidra | C117: LouisX | D117: 2 | E117: 0 | F117: 3 | G117: 1 | H117: 0 | I117: 1 | J117: 2 | K117: 2 | L117: 2 | M117: 2 | N117: ECBBL Ten-Tackles | O117: La Ruelle | S117: Vagabond1982uk | T117: 1 | V117: GingerB | W117: 2
B118: Steairey | C118: Lpoolcookie | D118: 2 | E118: 0 | F118: 3 | G118: 2 | H118: 0 | I118: 2 | J118: 3 | K118: 1 | L118: 3 | M118: 2 | N118: ECBBL Aspiring Adequates | O118: Monstrous Tynemouth | S118: Munch | T118: 1 | V118: Ratmaninov | W118: 2
B119: Ahzek | C119: Wynters_Dad | D119: 1 | E119: 1 | F119: 3 | G119: 3 | H119: 1 | I119: 2 | J119: 2 | K119: 2 | L119: 1 | M119: 1 | N119: ECBBL Aspiring Adequates | O119: Monstrous Tynemouth | S119: Skab | T119: 1 | V119: ArcherJ | W119: 2
B120: Loynster | C120: Macster | D120: 1 | E120: 1 | F120: 2 | G120: 2 | H120: 2 | I120: 1 | J120: 1 | K120: 2 | L120: 2 | M120: 2 | N120: ECBBL Aspiring Adequates | O120: Monstrous Tynemouth | S120: OON | T120: 1 | V120: Tintenfisch | W120: 2
B121: Taltal | C121: Pillowfists | D121: 2 | E121: 0 | F121: 3 | G121: 1 | H121: 3 | I121: 3 | J121: 2 | K121: 2 | L121: 2 | M121: 1 | N121: ECBBL Aspiring Adequates | O121: Monstrous Tynemouth | S121: Gcoleman | T121: 1 | V121: ThatOtherAsianGuy | W121: 2
B122: Mr_Zay | C122: Cornish | D122: 1 | E122: 1 | F122: 2 | G122: 2 | H122: 2 | I122: 1 | J122: 2 | K122: 3 | L122: 2 | M122: 1 | N122: The Fellowship of the Ball | O122: Shiretown Stuffers | S122: TTGumption | T122: 1 | V122: Aaaardvark101 | W122: 2
B123: Deeferdan | C123: Everybodys_Dead_Dave | D123: 2 | E123: 0 | F123: 3 | G123: 0 | H123: 1 | I123: 2 | J123: 1 | K123: 2 | L123: 3 | M123: 1 | N123: The Fellowship of the Ball | O123: Shiretown Stuffers | S123: BartK | T123: 1 | V123: TTGumption | W123: 2
B124: Thulean | C124: Whitey | D124: 2 | E124: 0 | F124: 3 | G124: 1 | H124: 2 | I124: 2 | J124: 2 | K124: 3 | L124: 2 | M124: 1 | N124: The Fellowship of the Ball | O124: Shiretown Stuffers | S124: Lycos | T124: 1 | V124: Lpoolcookie | W124: 2
B125: Lamour | C125: El_Spoonio | D125: 2 | E125: 0 | F125: 3 | G125: 1 | H125: 2 | I125: 1 | J125: 1 | K125: 2 | L125: 1 | M125: 1 | N125: The Fellowship of the Ball | O125: Shiretown Stuffers | S125: Wynters_Dad | T125: 1 | V125: Purdindas | W125: 2
B126: Gingerballer | C126: Chicken23 | D126: 1 | E126: 1 | F126: 1 | G126: 1 | H126: 0 | I126: 1 | J126: 1 | K126: 0 | L126: 0 | M126: 2 | N126: The GoBBLed | O126: Sann Clan | S126: Cerberus85 | T126: 1 | V126: Wynters_Dad | W126: 2
B127: Daubs | C127: Pegleg | D127: 0 | E127: 2 | F127: 0 | G127: 2 | H127: 0 | I127: 0 | J127: 3 | K127: 1 | L127: 1 | M127: 2 | N127: The GoBBLed | O127: Sann Clan | S127: Ens1ferum | T127: 1 | V127: Feasteater | W127: 2
B128: Grashnak | C128: Sann0638 | D128: 0 | E128: 2 | F128: 2 | G128: 3 | H128: 2 | I128: 2 | J128: 3 | K128: 0 | L128: 1 | M128: 2 | N128: The GoBBLed | O128: Sann Clan | S128: Tomfoolery | T128: 1 | V128: TomTheOwl | W128: 2
B129: Randypandy | C129: Stewbacca | D129: 0 | E129: 2 | F129: 0 | G129: 2 | H129: 1 | I129: 3 | J129: 1 | K129: 2 | L129: 1 | M129: 1 | N129: The GoBBLed | O129: Sann Clan | S129: Maca1066 | T129: 1 | V129: Gingerballer | W129: 2
B130: TTGumption | C130: Blockparty87 | D130: 1 | E130: 1 | F130: 1 | G130: 1 | H130: 3 | I130: 1 | J130: 1 | K130: 2 | L130: 2 | M130: 1 | N130: Team Miss Next Game | O130: 2 Up 2 Down | S130: Oranj | T130: 1 | V130: Forgotmytea | W130: 2
B131: Scouseboy | C131: Fingers | D131: =fctScore(F131,G131,H131,J131,L131) -> 1 | E131: =fctScore(G131,F131,I131,K131,M131) -> 1 | F131: 2 | G131: 2 | H131: 1 | I131: 1 | J131: 2 | K131: 2 | L131: 3 | M131: 2 | N131: Team Miss Next Game | O131: 2 Up 2 Down | S131: Levinas | T131: 1 | V131: Scouseboy | W131: 2
B132: Picnicmik | C132: Squigthrower | D132: 0 | E132: 2 | F132: 1 | G132: 3 | H132: 2 | I132: 2 | J132: 0 | K132: 1 | L132: 1 | M132: 2 | N132: Team Miss Next Game | O132: 2 Up 2 Down | S132: Bloodtithe | T132: 1 | V132: Falesh | W132: 2
B133: Spleggy | C133: Bgmclean | D133: 2 | E133: 0 | F133: 2 | G133: 1 | H133: 0 | I133: 2 | J133: 1 | K133: 2 | L133: 1 | M133: 0 | N133: Team Miss Next Game | O133: 2 Up 2 Down | S133: Cjtaylor_uk | T133: 1 | V133: Snowtroll | W133: 2
B134: Tintenfisch | C134: Shipaz | D134: 0 | E134: 2 | F134: 2 | G134: 3 | H134: 3 | I134: 1 | J134: 1 | K134: 1 | L134: 1 | M134: 2 | N134: Team TimeOut | O134: Snake Eyes and GFIs | S134: JimJimany | T134: 1 | V134: Wobert | W134: 2
B135: Killerpo | C135: GustyGarett | D135: 2 | E135: 0 | F135: 3 | G135: 2 | H135: 3 | I135: 0 | J135: 3 | K135: 2 | L135: 2 | M135: 3 | N135: Team TimeOut | O135: Snake Eyes and GFIs | S135: Blockparty87 | T135: 1 | V135: Spooner | W135: 2
B136: Mawph | C136: DJCritch | D136: 1 | E136: 1 | F136: 1 | G136: 1 | H136: 1 | I136: 0 | J136: 1 | K136: 1 | L136: 0 | M136: 3 | N136: Team TimeOut | O136: Snake Eyes and GFIs | S136: Feasteater | T136: 1 | V136: HEBBL Team B #4 | W136: 2
B137: Commisionerref | C137: TheCowDaddy | D137: 0 | E137: 2 | F137: 2 | G137: 3 | H137: 3 | I137: 2 | J137: 2 | K137: 2 | L137: 3 | M137: 2 | N137: Team TimeOut | O137: Snake Eyes and GFIs | S137: Saltymurcutt | T137: 1 | V137: SkraggDave | W137: 2
B138: Wulfyn | C138: Ploppy_McPloppy | D138: 0 | E138: 2 | F138: 1 | G138: 2 | H138: 2 | I138: 2 | J138: 0 | K138: 2 | L138: 1 | M138: 1 | N138: Tacklezone Pirates | O138: HEBBL Team A | S138: MrGreen | T138: 1 | V138: Laser_Owl | W138: 2
B139: Nippylongskar | C139: MadeofWelsh | D139: 2 | E139: 0 | F139: 2 | G139: 1 | H139: 1 | I139: 1 | J139: 1 | K139: 1 | L139: 1 | M139: 0 | N139: Tacklezone Pirates | O139: HEBBL Team A | S139: Chicken23 | T139: 1 | V139: Laraigne | W139: 2
B140: Alex_Pye | C140: Littlespoon | D140: 0 | E140: 2 | F140: 0 | G140: 2 | H140: 3 | I140: 1 | J140: 1 | K140: 0 | L140: 2 | M140: 2 | N140: Tacklezone Pirates | O140: HEBBL Team A | S140: Mefspores | T140: 1 | V140: 03philpota | W140: 2
B141: JBone | C141: Orklabe | D141: 2 | E141: 0 | F141: 3 | G141: 2 | H141: 2 | I141: 2 | J141: 3 | K141: 3 | L141: 3 | M141: 3 | N141: Tacklezone Pirates | O141: HEBBL Team A | S141: DizzyBess | T141: 1 | V141: Littlespoon | W141: 2
B142: Pbowman | C142: Orcthadontist | D142: 1 | E142: 1 | F142: 1 | G142: 1 | H142: 0 | I142: 1 | J142: 2 | K142: 3 | L142: 2 | M142: 0 | N142: Murder Queens | O142: Murder Jacks | S142: TateRolls1s | T142: 1 | V142: Markymarc | W142: 2
B143: Gizmo3k | C143: Mortal_Wombat | D143: 1 | E143: 1 | F143: 3 | G143: 3 | H143: 1 | I143: 2 | J143: 3 | K143: 2 | L143: 1 | M143: 2 | N143: Murder Queens | O143: Murder Jacks | S143: Mournival | T143: 1 | V143: Rubble | W143: 2
B144: LordGarlack | C144: WillPower | D144: 2 | E144: 0 | F144: 3 | G144: 2 | H144: 1 | I144: 2 | J144: 0 | K144: 2 | L144: 2 | M144: 2 | N144: Murder Queens | O144: Murder Jacks | S144: Turboraptor | T144: 1 | V144: Maca1066 | W144: 2
B145: L0rdgibby | C145: Aldpoagus | D145: 0 | E145: 2 | F145: 0 | G145: 2 | H145: 2 | I145: 3 | J145: 2 | K145: 2 | L145: 2 | M145: 1 | N145: Murder Queens | O145: Murder Jacks | S145: Bungeeman | T145: 1 | V145: PeteW | W145: 2
B146: OON | C146: EnglishChris | D146: 0 | E146: 2 | F146: 1 | G146: 2 | H146: 2 | I146: 1 | J146: 2 | K146: 1 | L146: 3 | M146: 0 | N146: Lutece Noobs | O146: Dice In The Alley | S146: Scouseboy | T146: 1 | V146: Tomfoolery | W146: 2
B147: Zahiko | C147: Rhicheese | D147: 0 | E147: 2 | F147: 1 | G147: 2 | H147: 1 | I147: 2 | J147: 1 | K147: 0 | L147: 3 | M147: 3 | N147: Lutece Noobs | O147: Dice In The Alley | S147: Cromfrance | T147: 1 | V147: Rhicheese | W147: 2
B148: Nicap | C148: Fluffy_Kraken | D148: 1 | E148: 1 | F148: 1 | G148: 1 | H148: 1 | I148: 2 | J148: 2 | K148: 3 | L148: 2 | M148: 0 | N148: Lutece Noobs | O148: Dice In The Alley | S148: Pegleg | T148: 1 | V148: Saltymurcutt | W148: 2
B149: Maitre_tactac | C149: Beigelantern | D149: 2 | E149: 0 | F149: 2 | G149: 1 | H149: 1 | I149: 1 | J149: 0 | K149: 0 | L149: 1 | M149: 1 | N149: Lutece Noobs | O149: Dice In The Alley | S149: Deeferdan | T149: 1 | V149: DrHellboy_ | W149: 2
B150: Feasteater | C150: DizzyBess | D150: 1 | E150: 1 | F150: 1 | G150: 1 | H150: 3 | I150: 2 | J150: 2 | K150: 1 | L150: 2 | M150: 3 | N150: Doom League | O150: Hey Listen and The Guy We Found in Nandos | S150: TomTheOwl | T150: 1 | V150: Levinas | W150: 2
B151: Tstyx | C151: Cauleeflower | D151: 1 | E151: 1 | F151: 1 | G151: 1 | H151: 1 | I151: 1 | J151: 3 | K151: 0 | L151: 2 | M151: 2 | N151: Doom League | O151: Hey Listen and The Guy We Found in Nandos | S151: Syntaxerror | T151: 1 | V151: Dayday | W151: 2
B152: Chubooga | C152: AndyDavo | D152: 2 | E152: 0 | F152: 2 | G152: 1 | H152: 1 | I152: 2 | J152: 1 | K152: 2 | L152: 2 | M152: 2 | N152: Doom League | O152: Hey Listen and The Guy We Found in Nandos | S152: Mazza86 | T152: 1 | V152: Stonethrowingdevil | W152: 2
B153: Jamelius | C153: SeriouslyImAGiraffe | D153: 2 | E153: 0 | F153: 2 | G153: 1 | H153: 0 | I153: 1 | J153: 2 | K153: 2 | L153: 3 | M153: 2 | N153: Doom League | O153: Hey Listen and The Guy We Found in Nandos | S153: Tulkus | T153: 1 | V153: Orcthadontist | W153: 2
S154: Fingers | T154: 1 | V154: Dragonborn | W154: 2
S155: Raging82 | T155: 1 | V155: Liam | W155: 2
S156: Dayday | T156: 1 | V156: Chilli | W156: 2
S157: Everybodys_Dead_Dave | T157: 1 | V157: Kyrkedalechris | W157: 2
S158: I_done_goofd | T158: 1 | V158: 3_Dice_Uphill | W158: 2
S159: Sparky | T159: 1 | V159: Oranj | W159: 2
S160: Kyrkedalechris | T160: 1 | V160: Jago21 | W160: 2
S161: Lord_Bojo | T161: 1 | V161: Pbowman | W161: 2
S162: Besters | T162: 1 | V162: Mefspores | W162: 2
S163: Ahzek | T163: 1 | V163: Europanda | W163: 2
S164: Dakyrus | T164: 1 | V164: Chubooga | W164: 2
S165: Breakmonker | T165: 1 | V165: Gizmo3k | W165: 2
S166: Padster | T166: 1 | V166: Mamapepe | W166: 2
S167: Elplanet4 | T167: 1 | V167: Purplegoo | W167: 2
S168: Orcthadontist | T168: 1 | V168: JuJuu | W168: 2
S169: Yudlugar | T169: 1 | V169: Oklaoma | W169: 2
S170: Shriyke | T170: 1 | V170: Ringbeard | W170: 2
S171: Duffins | T171: 1 | V171: Jamelius | W171: 2
S172: DimmyGee | T172: 1 | V172: Starkey | W172: 2
S173: Fallingdownjoe | T173: 1 | V173: Zooey | W173: 2
S174: Bbart | T174: 1 | V174: Joost | W174: 2
S175: Kid_Cantcomplain | T175: 1 | V175: Squigthrower | W175: 2
S176: CoachKAS | T176: 1 | V176: Killerpo | W176: 2
S177: Chorfling | T177: 1 | V177: Pipey | W177: 2
S178: Hendy | T178: 1 | V178: The_Fritch | W178: 2
S179: WoodyWoodPecker | T179: 1 | V179: King_Ghidra | W179: 2
S180: Silkoun | T180: 1 | V180: Fireolli | W180: 2
S181: Forgotmytea | T181: 1 | V181: Chicken23 | W181: 2
S182: Daubs | T182: 1 | V182: Vido | W182: 2
S183: Purplegoo | T183: 1 | V183: Sann0638 | W183: 2
S184: ICY-Bee | T184: 1 | V184: Taltal | W184: 2
S185: Pbowman | T185: 1 | V185: Fingers | W185: 2
S186: JuJuu | T186: 1 | V186: DizzyBess | W186: 2
S187: Insidious | T187: 1 | V187: I_done_goofd | W187: 2
S188: Celt | T188: 1 | V188: Ahzek | W188: 2
S189: Goldengate | T189: 1 | V189: Shortstuff | W189: 2
S190: Sporran | T190: 1 | V190: Blockparty87 | W190: 2
S191: Vmcat | T191: 1 | V191: Bungeeman | W191: 2
S192: pedro_laserbeard | T192: 1 | V192: The_mighty_irush | W192: 2
S193: Gizmo3k | T193: 1 | V193: GrumpyBoyle | W193: 2
S194: Jordellfb | T194: 1 | V194: MartinVanquish | W194: 2
S195: Thebunneh | T195: 1 | V195: JBone | W195: 2
S196: Stratford_ | T196: 1 | V196: Spleggy | W196: 2
S197: Salontiger | T197: 1 | V197: TheCowDaddy | W197: 2
S198: GustyGarett | T198: 1 | V198: Stewbacca | W198: 2
S199: Boldfox | T199: 1 | V199: Boynamedsue | W199: 2
S200: Mamapepe | T200: 1 | V200: Thulean | W200: 2
... 105 more rows

Sheet Round3
B1: Home Player | C1: Away Player | D1: Home Points | E1: Away Points | F1: Home TD | G1: Away TD | H1: Home Cas | I1: Away Cas | J1: Home Bonus1 | K1: Away Bonus1 | L1: Home Bonus2 | M1: Away Bonus2 | N1: Home Group | O1: Away Group | S1: Points Before Games | V1: Points After Games | Y1: Group Results | Z1: Group | AA1: Points | AC1: Group Points Before Games | AF1: Group Points After Games
B2: Bb_jock | C2: SpaceEcho | D2: =fctScore(F2,G2,H2,J2,L2) -> 0 | E2: =fctScore(G2,F2,I2,K2,M2) -> 2 | F2: 0 | G2: 1 | H2: 2 | I2: 2 | J2: 3 | K2: 1 | L2: 1 | M2: 1 | N2: Murder Aces | O2: North Yorkshire Table Top | S2: Bb_jock | T2: 4 | V2: ScalesnScars | W2: 6 | Z2: 2 Die Docks | AA2: 2 | AC2: Murder Aces | AD2: 4 | AF2: North Yorkshire Table Top | AG2: 6
B3: Gerdleah | C3: edwith1d | D3: =fctScore(F3,G3,H3,J3,L3) -> 0 | E3: =fctScore(G3,F3,I3,K3,M3) -> 2 | F3: 0 | G3: 1 | H3: 2 | I3: 2 | J3: 1 | K3: 2 | L3: 2 | M3: 2 | N3: Murder Aces | O3: North Yorkshire Table Top | S3: Earl_Burgomeister | T3: 4 | V3: Warka | W3: 6 | Z3: 2 Up 2 Down | AA3: 0 | AC3: North Yorkshire Table Top | AD3: 4 | AF3: Wrekin Wraiders | AG3: 6
B4: Sporran | C4: Spic929 | D4: 0 | E4: 2 | F4: 1 | G4: 2 | H4: 0 | I4: 2 | J4: 2 | K4: 1 | L4: 2 | M4: 0 | N4: Murder Aces | O4: North Yorkshire Table Top | S4: Spob | T4: 4 | V4: PhilGC | W4: 6 | Z4: ABBL | AA4: 2 | AC4: Fellowship of the GBBL | AD4: 4 | AF4: Steph, Stig and The Baldies | AG4: 6
B5: Purdindas | C5: Cerberus85 | D5: 1 | E5: 1 | F5: 0 | G5: 0 | H5: 0 | I5: 1 | J5: 2 | K5: 2 | L5: 2 | M5: 2 | N5: Murder Aces | O5: North Yorkshire Table Top | S5: ScalesnScars | T5: 4 | V5: Gitgrinder | W5: 6 | Z5: All The Presidents Men | AA5: 0 | AC5: The GoBBLers | AD5: 4 | AF5: Awesome Party People Part Deux | AG5: 6
B6: Wookiee1972 | C6: Barnacles | D6: 2 | E6: 0 | F6: 3 | G6: 2 | H6: 1 | I6: 2 | J6: 2 | K6: 3 | L6: 1 | M6: 2 | N6: Fellowship of the GBBL | O6: The GoBBLers | S6: Wookiee1972 | T6: 4 | V6: Deepfruit | W6: 6 | Z6: Awesome Party People | AA6: 0 | AC6: Smoggies UTFB | AD6: 4 | AF6: Waterbowl Team Z | AG6: 6
B7: Calfykid | C7: Elplanet4 | D7: 0 | E7: 2 | F7: 0 | G7: 2 | H7: 1 | I7: 0 | J7: 1 | K7: 2 | L7: 2 | M7: 3 | N7: Fellowship of the GBBL | O7: The GoBBLers | S7: Gerdleah | T7: 4 | V7: SpaceEcho | W7: 6 | Z7: Awesome Party People Part Deux | AA7: 2 | AC7: Steph, Stig and The Baldies | AD7: 4 | AF7: CLAW on Tour | AG7: 6
B8: Whisky_Pip | C8: BROCKdodge | D8: 1 | E8: 1 | F8: 3 | G8: 3 | H8: 1 | I8: 1 | J8: 2 | K8: 0 | L8: 0 | M8: 2 | N8: Fellowship of the GBBL | O8: The GoBBLers | S8: Warka | T8: 4 | V8: Wookiee1972 | W8: 6 | Z8: Bang Average Blood Bowlers | AA8: 0 | AC8: Awesome Party People Part Deux | AD8: 4 | AF8: NOBBL Elite | AG8: 5
B9: Don_Vito | C9: ICY-Bee | D9: 1 | E9: 1 | F9: 2 | G9: 2 | H9: 3 | I9: 2 | J9: 3 | K9: 0 | L9: 2 | M9: 3 | N9: Fellowship of the GBBL | O9: The GoBBLers | S9: Geminus_Calvariae | T9: 4 | V9: Ploppy_McPloppy | W9: 6 | Z9: BolognaBowl | AA9: 2 | AC9: Awesome Party People | AD9: 4 | AF9: Two Guys One Dice Cup | AG9: 5
B10: Geminus_Calvariae | C10: Warka | D10: 0 | E10: 2 | F10: 1 | G10: 2 | H10: 3 | I10: 2 | J10: 2 | K10: 0 | L10: 1 | M10: 2 | N10: Smoggies UTFB | O10: Steph, Stig and The Baldies | S10: Shortstack | T10: 4 | V10: Masterful | W10: 5 | Z10: Cheltenham IGBB Raiders | AA10: 1 | AC10: All The Presidents Men | AD10: 4 | AF10: Fellowship of the GBBL | AG10: 5
B11: Mr_Mezcal | C11: Stick_with_poo_on_the_end | D11: 2 | E11: 0 | F11: 3 | G11: 1 | H11: 2 | I11: 1 | J11: 0 | K11: 2 | L11: 0 | M11: 1 | N11: Smoggies UTFB | O11: Steph, Stig and The Baldies | S11: Gitgrinder | T11: 4 | V11: TheBymster | W11: 5 | Z11: Chins Chumps and C.H.I.P.S. | AA11: 1 | AC11: Waterbowl Team Z | AD11: 4 | AF11: The GoBBLers | AG11: 5
B12: WoodyWoodPecker | C12: Stephen82 | D12: 1 | E12: 1 | F12: 2 | G12: 2 | H12: 2 | I12: 1 | J12: 2 | K12: 1 | L12: 1 | M12: 1 | N12: Smoggies UTFB | O12: Steph, Stig and The Baldies | S12: Deepfruit | T12: 4 | V12: Jayward | W12: 5 | Z12: CLAW on Tour | AA12: 2 | AC12: Wrekin Wraiders | AD12: 4 | AF12: 2 Die Docks | AG12: 5
B13: GrumpyBoyle | C13: Hardcore_Stig | D13: 0 | E13: 2 | F13: 1 | G13: 2 | H13: 1 | I13: 2 | J13: 0 | K13: 2 | L13: 1 | M13: 3 | N13: Smoggies UTFB | O13: Steph, Stig and The Baldies | S13: Fleetmacwood | T13: 4 | V13: Tyler_Swaft | W13: 5 | Z13: DBL Tropicana | AA13: 2 | AC13: Murder Kings | AD13: 4 | AF13: Smoggies UTFB | AG13: 4
B14: Deepfruit | C14: Munch | D14: 2 | E14: 0 | F14: 1 | G14: 0 | H14: 3 | I14: 2 | J14: 2 | K14: 3 | L14: 3 | M14: 1 | N14: Awesome Party People Part Deux | O14: Awesome Party People | S14: Calfykid | T14: 4 | V14: Joemanji | W14: 5 | Z14: Deeside Double Skulls | AA14: 0 | AC14: Bang Average Blood Bowlers | AD14: 4 | AF14: Midtable Marauders | AG14: 4
B15: Nobbla | C15: Shaniepoo1 | D15: 0 | E15: 2 | F15: 2 | G15: 3 | H15: 2 | I15: 1 | J15: 1 | K15: 0 | L15: 0 | M15: 0 | N15: Awesome Party People Part Deux | O15: Awesome Party People | S15: Slimjono | T15: 4 | V15: HipsterPotter | W15: 5 | Z15: Dice In The Alley | AA15: 0 | AC15: CLAW on Tour | AD15: 4 | AF15: Les Azes | AG15: 4
B16: Jordellfb | C16: Elperas | D16: 2 | E16: 0 | F16: 3 | G16: 1 | H16: 2 | I16: 1 | J16: 2 | K16: 1 | L16: 2 | M16: 0 | N16: Awesome Party People Part Deux | O16: Awesome Party People | S16: Steairey | T16: 4 | V16: Mr_Mezcal | W16: 5 | Z16: Dice on Tour Team 1 | AA16: 1 | AC16: Midtable Marauders | AD16: 3 | AF16: Granite City Seagulls | AG16: 4
B17: Valen | C17: Forgotmytea | D17: 1 | E17: 1 | F17: 1 | G17: 1 | H17: 0 | I17: 3 | J17: 1 | K17: 1 | L17: 2 | M17: 1 | N17: Awesome Party People Part Deux | O17: Awesome Party People | S17: Vulture_Squadron | T17: 4 | V17: Earl_Burgomeister | W17: 5 | Z17: Doom League | AA17: 1 | AC17: Tactics and Theatrics | AD17: 3 | AF17: Tactics and Theatrics | AG17: 4
B18: Joemanji | C18: Douglowe | D18: 2 | E18: 0 | F18: 3 | G18: 0 | H18: 0 | I18: 2 | J18: 0 | K18: 2 | L18: 0 | M18: 3 | N18: All The Presidents Men | O18: Waterbowl Team Z | S18: Nobbla | T18: 4 | V18: Jordellfb | W18: 5 | Z18: Dragons | AA18: 0 | AC18: Two Guys One Dice Cup | AD18: 3 | AF18: The Fellowship of the Ball | AG18: 4
B19: Lycos | C19: Vagabond1982uk | D19: 0 | E19: 2 | F19: 0 | G19: 1 | H19: 1 | I19: 1 | J19: 0 | K19: 1 | L19: 3 | M19: 0 | N19: All The Presidents Men | O19: Waterbowl Team Z | S19: Douglowe | T19: 4 | V19: Spob | W19: 5 | Z19: Dutch Pirates | AA19: 0 | AC19: Deeside Double Skulls | AD19: 3 | AF19: Murder Aces | AG19: 4
B20: JimJimany | C20: Sizzler | D20: 0 | E20: 2 | F20: 0 | G20: 3 | H20: 1 | I20: 0 | J20: 3 | K20: 2 | L20: 0 | M20: 2 | N20: All The Presidents Men | O20: Waterbowl Team Z | S20: SpaceGandalf | T20: 4 | V20: Stephen82 | W20: 5 | Z20: ECBBL Aspiring Adequates | AA20: 0 | AC20: NOBBL Elite | AD20: 3 | AF20: Awesome Party People | AG20: 4
B21: Purplegoo | C21: Levinas | D21: 0 | E21: 2 | F21: 0 | G21: 2 | H21: 3 | I21: 2 | J21: 2 | K21: 1 | L21: 2 | M21: 2 | N21: All The Presidents Men | O21: Waterbowl Team Z | S21: Stick_with_poo_on_the_end | T21: 4 | V21: Fromherashes | W21: 5 | Z21: ECBBL Blackshirts | AA21: 0 | AC21: Sutton Immortals | AD21: 3 | AF21: ABBL | AG21: 4
B22: TheBymster | C22: SpaceGandalf | D22: 2 | E22: 0 | F22: 3 | G22: 1 | H22: 2 | I22: 2 | J22: 1 | K22: 1 | L22: 3 | M22: 2 | N22: Wrekin Wraiders | O22: Murder Kings | S22: Fullfatbeard | T22: 4 | V22: Bashto | W22: 5 | Z22: ECBBL Ten-Tackles | AA22: 0 | AC22: Seagulls 2: Electric Boogaloo | AD22: 3 | AF22: Team Republic Tryhards | AG22: 4
B23: Speedingbullet | C23: ChrisRaff88 | D23: 2 | E23: 0 | F23: 1 | G23: 0 | H23: 0 | I23: 1 | J23: 1 | K23: 3 | L23: 2 | M23: 2 | N23: Wrekin Wraiders | O23: Murder Kings | S23: ChrisRaff88 | T23: 4 | V23: JKB | W23: 5 | Z23: Elyud Dimkok | AA23: 0 | AC23: Dice on Tour Team 1 | AD23: 3 | AF23: Bang Average Blood Bowlers | AG23: 4
B24: Goldengate | C24: I_done_goofd | D24: 1 | E24: 1 | F24: 2 | G24: 2 | H24: 2 | I24: 1 | J24: 0 | K24: 3 | L24: 2 | M24: 2 | N24: Wrekin Wraiders | O24: Murder Kings | S24: Stephen82 | T24: 4 | V24: Speedingbullet | W24: 5 | Z24: Famous Tomb Guardians | AA24: 0 | AC24: 2 Die Docks | AD24: 3 | AF24: Dice on Tour Team 1 | AG24: 4
B25: Dragonborn | C25: AMSFELD | D25: 2 | E25: 0 | F25: 2 | G25: 1 | H25: 1 | I25: 3 | J25: 2 | K25: 1 | L25: 2 | M25: 0 | N25: Wrekin Wraiders | O25: Murder Kings | S25: HexBaron | T25: 4 | V25: Nodgefodgekins | W25: 5 | Z25: Fellowship of the GBBL | AA25: 1 | AC25: TCC: A Up Me Ducks | AD25: 3 | AF25: All The Presidents Men | AG25: 4
B26: HexBaron | C26: Dusher1 | D26: 1 | E26: 1 | F26: 1 | G26: 1 | H26: 3 | I26: 0 | J26: 2 | K26: 2 | L26: 2 | M26: 2 | N26: Bang Average Blood Bowlers | O26: CLAW on Tour | S26: SpaceEcho | T26: 4 | V26: Vagabond1982uk | W26: 5 | Z26: Granite City Seagulls | AA26: 2 | AC26: Sheffield Stinkweasels | AD26: 2 | AF26: Seagulls 2: Electric Boogaloo | AG26: 4
B27: DrTechnoTrousers | C27: Camelchops | D27: 1 | E27: 1 | F27: 0 | G27: 0 | H27: 1 | I27: 0 | J27: 2 | K27: 3 | L27: 1 | M27: 1 | N27: Bang Average Blood Bowlers | O27: CLAW on Tour | S27: Fromherashes | T27: 4 | V27: Mr_Zay | W27: 5 | Z27: HEBBL Team A | AA27: 2 | AC27: Les Azes | AD27: 2 | AF27: The Merry Men | AG27: 4
B28: Dayday | C28: Chorfling | D28: 1 | E28: 1 | F28: 1 | G28: 1 | H28: 3 | I28: 1 | J28: 1 | K28: 3 | L28: 3 | M28: 2 | N28: Bang Average Blood Bowlers | O28: CLAW on Tour | S28: PhilGC | T28: 4 | V28: HexBaron | W28: 5 | Z28: HEBBL Team B | AA28: 1 | AC28: The Fellowship of the Ball | AD28: 2 | AF28: UKBBL Team A | AG28: 4
B29: Hendy | C29: SilentKnight | D29: 0 | E29: 2 | F29: 0 | G29: 1 | H29: 2 | I29: 2 | J29: 1 | K29: 1 | L29: 3 | M29: 2 | N29: Bang Average Blood Bowlers | O29: CLAW on Tour | S29: Bashto | T29: 4 | V29: edwith1d | W29: 5 | Z29: Hell n El Productions | AA29: 2 | AC29: Murder Jokers | AD29: 2 | AF29: Murder Kings | AG29: 4
B30: Spob | C30: Bashto | D30: 1 | E30: 1 | F30: 0 | G30: 0 | H30: 0 | I30: 1 | J30: 2 | K30: 2 | L30: 1 | M30: 1 | N30: Midtable Marauders | O30: Tactics and Theatrics | S30: Nodgefodgekins | T30: 4 | V30: Spic929 | W30: 5 | Z30: Hey Listen and The Guy We Found in Nandos | AA30: 0 | AC30: Team Wales | AD30: 2 | AF30: T and Three Sugars | AG30: 4
B31: Firebreather | C31: Breakmonker | D31: 1 | E31: 1 | F31: 1 | G31: 1 | H31: 1 | I31: 0 | J31: 1 | K31: 1 | L31: 0 | M31: 3 | N31: Midtable Marauders | O31: Tactics and Theatrics | S31: Indibro | T31: 4 | V31: GreenSkinPhil | W31: 5 | Z31: Iconic Atomics | AA31: 0 | AC31: HEBBL Team B | AD31: 2 | AF31: BolognaBowl | AG31: 3
B32: Ringbeard | C32: Bloodtithe | D32: 2 | E32: 0 | F32: 3 | G32: 2 | H32: 1 | I32: 2 | J32: 0 | K32: 3 | L32: 2 | M32: 3 | N32: Midtable Marauders | O32: Tactics and Theatrics | S32: Ploppy_McPloppy | T32: 4 | V32: Pegleg | W32: 5 | Z32: La Ruelle | AA32: 0 | AC32: Sann Clan | AD32: 2 | AF32: The Democratic Republic of Yorkshire | AG32: 3
B33: Fireolli | C33: Haychdee | D33: 0 | E33: 2 | F33: 1 | G33: 3 | H33: 1 | I33: 3 | J33: 3 | K33: 2 | L33: 1 | M33: 2 | N33: Midtable Marauders | O33: Tactics and Theatrics | S33: Jayward | T33: 3 | V33: Raging82 | W33: 5 | Z33: Les Azes | AA33: 2 | AC33: Chins Chumps and C.H.I.P.S. | AD33: 2 | AF33: Chins Chumps and C.H.I.P.S. | AG33: 3
B34: Fromherashes | C34: Earl_Burgomeister | D34: 1 | E34: 1 | F34: 2 | G34: 2 | H34: 0 | I34: 3 | J34: 2 | K34: 3 | L34: 0 | M34: 1 | N34: Two Guys One Dice Cup | O34: Deeside Double Skulls | S34: Mr_Mezcal | T34: 3 | V34: Elplanet4 | W34: 5 | Z34: Let Me Atom | AA34: 0 | AC34: ECBBL Aspiring Adequates | AD34: 2 | AF34: Sann Clan | AG34: 3
B35: HipsterPotter | C35: Dakyrus | D35: 2 | E35: 0 | F35: 3 | G35: 0 | H35: 1 | I35: 0 | J35: 0 | K35: 3 | L35: 1 | M35: 2 | N35: Two Guys One Dice Cup | O35: Deeside Double Skulls | S35: ThomasW | T35: 3 | V35: Shaniepoo1 | W35: 5 | Z35: Lutece Noobs | AA35: 2 | AC35: Granite City Seagulls | AD35: 2 | AF35: Team Wales | AG35: 3
B36: Chilli | C36: Padster | D36: 1 | E36: 1 | F36: 1 | G36: 1 | H36: 0 | I36: 1 | J36: 2 | K36: 3 | L36: 1 | M36: 0 | N36: Two Guys One Dice Cup | O36: Deeside Double Skulls | S36: HighlandEnoch | T36: 3 | V36: Indibro | W36: 5 | Z36: Midtable Marauders | AA36: 1 | AC36: Elyud Dimkok | AD36: 2 | AF36: HEBBL Team B | AG36: 3
B37: HuntlyLoon | C37: LORD_BONAN | D37: 2 | E37: 0 | F37: 3 | G37: 2 | H37: 1 | I37: 2 | J37: 3 | K37: 1 | L37: 0 | M37: 2 | N37: Two Guys One Dice Cup | O37: Deeside Double Skulls | S37: TheBymster | T37: 3 | V37: Steairey | W37: 5 | Z37: Monstrous Tynemouth | AA37: 0 | AC37: ABBL | AD37: 2 | AF37: Deeside Double Skulls | AG37: 3
B38: ScalesnScars | C38: Shortstack | D38: 2 | E38: 0 | F38: 2 | G38: 0 | H38: 1 | I38: 2 | J38: 0 | K38: 1 | L38: 1 | M38: 2 | N38: NOBBL Elite | O38: Sutton Immortals | S38: Barnacles | T38: 3 | V38: AWT | W38: 5 | Z38: Murder Aces | AA38: 0 | AC38: Team Republic Tryhards | AD38: 2 | AF38: HEBBL Team A | AG38: 3
B39: Wobert | C39: Sparky | D39: 2 | E39: 0 | F39: 3 | G39: 2 | H39: 2 | I39: 1 | J39: 2 | K39: 2 | L39: 0 | M39: 3 | N39: NOBBL Elite | O39: Sutton Immortals | S39: Joemanji | T39: 3 | V39: Silkoun | W39: 5 | Z39: Murder Jacks | AA39: 2 | AC39: ECBBL Ten-Tackles | AD39: 2 | AF39: Tacklezone Pirates | AG39: 3
B40: Jago21 | C40: Boynamedsue | D40: 2 | E40: 0 | F40: 1 | G40: 0 | H40: 1 | I40: 3 | J40: 2 | K40: 1 | L40: 2 | M40: 3 | N40: NOBBL Elite | O40: Sutton Immortals | S40: Munch | T40: 3 | V40: Bb_jock | W40: 4 | Z40: Murder Jokers | AA40: 0 | AC40: The Merry Men | AD40: 2 | AF40: TCC: A Up Me Ducks | AG40: 3
B41: Starkey | C41: Trollface | D41: 1 | E41: 1 | F41: 1 | G41: 1 | H41: 1 | I41: 0 | J41: 1 | K41: 1 | L41: 2 | M41: 3 | N41: NOBBL Elite | O41: Sutton Immortals | S41: Divergent84 | T41: 3 | V41: Geminus_Calvariae | W41: 4 | Z41: Murder Kings | AA41: 0 | AC41: TeamW | AD41: 2 | AF41: NOBBL Jesters | AG41: 3
B42: Fullfatbeard | C42: PhilGC | D42: 0 | E42: 2 | F42: 1 | G42: 3 | H42: 1 | I42: 2 | J42: 1 | K42: 1 | L42: 3 | M42: 3 | N42: Seagulls 2: Electric Boogaloo | O42: Dice on Tour Team 1 | S42: Rev | T42: 3 | V42: Galladur | W42: 4 | Z42: Murder Queens | AA42: 0 | AC42: Orkshire Puddings | AD42: 2 | AF42: Old Man Monkeys Team | AG42: 3
B43: Mournival | C43: Maca1066 | D43: 2 | E43: 0 | F43: 3 | G43: 2 | H43: 3 | I43: 1 | J43: 1 | K43: 0 | L43: 1 | M43: 2 | N43: Seagulls 2: Electric Boogaloo | O43: Dice on Tour Team 1 | S43: Hankok | T43: 3 | V43: Nobbla | W43: 4 | Z43: NOBBL Elite | AA43: 2 | AC43: Old Man Monkeys Team | AD43: 2 | AF43: Orkshire Puddings | AG43: 3
B44: Markymarc | C44: Whiskeymancer | D44: 0 | E44: 2 | F44: 1 | G44: 3 | H44: 3 | I44: 3 | J44: 1 | K44: 2 | L44: 0 | M44: 2 | N44: Seagulls 2: Electric Boogaloo | O44: Dice on Tour Team 1 | S44: Masterful | T44: 3 | V44: Sizzler | W44: 4 | Z44: NOBBL Jesters | AA44: 2 | AC44: TCC: BoBin for Ducks | AD44: 2 | AF44: Team Republic Chill Squad | AG44: 3
B45: Shriyke | C45: Syntaxerror | D45: 2 | E45: 0 | F45: 2 | G45: 0 | H45: 2 | I45: 0 | J45: 0 | K45: 1 | L45: 2 | M45: 1 | N45: Seagulls 2: Electric Boogaloo | O45: Dice on Tour Team 1 | S45: Vagabond1982uk | T45: 3 | V45: DrTechnoTrousers | W45: 4 | Z45: North Yorkshire Table Top | AA45: 2 | AC45: Doom League | AD45: 2 | AF45: TCC: BoBin for Ducks | AG45: 3
B46: BigMace | C46: Indibro | D46: 1 | E46: 1 | F46: 1 | G46: 1 | H46: 1 | I46: 3 | J46: 2 | K46: 0 | L46: 1 | M46: 1 | N46: 2 Die Docks | O46: TCC: A Up Me Ducks | S46: Tyler_Swaft | T46: 3 | V46: HighlandEnoch | W46: 4 | Z46: Old Man Monkeys Team | AA46: 1 | AC46: Snake Eyes and GFIs | AD46: 2 | AF46: Hell n El Productions | AG46: 3
B47: NickBell | C47: JKB | D47: 0 | E47: 2 | F47: 1 | G47: 2 | H47: 3 | I47: 2 | J47: 2 | K47: 1 | L47: 2 | M47: 3 | N47: 2 Die Docks | O47: TCC: A Up Me Ducks | S47: TateRolls1s | T47: 3 | V47: Firebreather | W47: 4 | Z47: Orkshire | AA47: 2 | AC47: UKBBL Team A | AD47: 2 | AF47: Doom League | AG47: 3
B48: Vido | C48: SkraggDave | D48: 2 | E48: 0 | F48: 2 | G48: 1 | H48: 2 | I48: 0 | J48: 2 | K48: 3 | L48: 3 | M48: 1 | N48: 2 Die Docks | O48: TCC: A Up Me Ducks | S48: Breakmonker | T48: 3 | V48: Dusher1 | W48: 4 | Z48: Orkshire Puddings | AA48: 1 | AC48: T and Three Sugars | AD48: 2 | AF48: Sutton Immortals | AG48: 3
B49: 8ulldog | C49: Envoien | D49: 2 | E49: 0 | F49: 2 | G49: 1 | H49: 1 | I49: 2 | J49: 0 | K49: 2 | L49: 2 | M49: 2 | N49: 2 Die Docks | O49: TCC: A Up Me Ducks | S49: Jeeves | T49: 3 | V49: Fleetmacwood | W49: 4 | Z49: Salty Bowlers of London | AA49: 2 | AC49: Dice In The Alley | AD49: 2 | AF49: Orkshire | AG49: 3
B50: Nodgefodgekins | C50: Galladur | D50: 1 | E50: 1 | F50: 2 | G50: 2 | H50: 2 | I50: 1 | J50: 2 | K50: 0 | L50: 1 | M50: 2 | N50: Sheffield Stinkweasels | O50: Les Azes | S50: Mr_Zay | T50: 3 | V50: Deeferdan | W50: 4 | Z50: Seagulls 2: Electric Boogaloo | AA50: 1 | AC50: ECBBL Blackshirts | AD50: 1 | AF50: Murder Jacks | AG50: 3
B51: Littleleadperson | C51: Silkoun | D51: 0 | E51: 2 | F51: 1 | G51: 3 | H51: 1 | I51: 1 | J51: 3 | K51: 2 | L51: 2 | M51: 2 | N51: Sheffield Stinkweasels | O51: Les Azes | S51: Galladur | T51: 3 | V51: GingerB | W51: 4 | Z51: Sheffield Stinkweasels | AA51: 0 | AC51: The Democratic Republic of Yorkshire | AD51: 1 | AF51: Sheffield Stinkweasels | AG51: 2
B52: Kyrkedalechris | C52: Biereforever | D52: 1 | E52: 1 | F52: 2 | G52: 2 | H52: 2 | I52: 2 | J52: 3 | K52: 1 | L52: 3 | M52: 2 | N52: Sheffield Stinkweasels | O52: Les Azes | S52: BartK | T52: 3 | V52: Mamapepe | W52: 4 | Z52: Shiretown Stuffers | AA52: 0 | AC52: BolognaBowl | AD52: 1 | AF52: DBL Tropicana | AG52: 2
B53: Zooey | C53: Oklaoma | D53: 1 | E53: 1 | F53: 2 | G53: 2 | H53: 0 | I53: 1 | J53: 1 | K53: 2 | L53: 2 | M53: 2 | N53: Sheffield Stinkweasels | O53: Les Azes | S53: Speedingbullet | T53: 3 | V53: Edwin | W53: 4 | Z53: Smoggies UTFB | AA53: 0 | AC53: Dragons | AD53: 1 | AF53: Murder Jokers | AG53: 2
B54: Mr_Zay | C54: Fleetmacwood | D54: 2 | E54: 0 | F54: 3 | G54: 1 | H54: 2 | I54: 1 | J54: 2 | K54: 1 | L54: 2 | M54: 0 | N54: The Fellowship of the Ball | O54: Murder Jokers | S54: Dusher1 | T54: 3 | V54: Divergent84 | W54: 4 | Z54: Snake Eyes and GFIs | AA54: 0 | AC54: Dutch Pirates | AD54: 1 | AF54: Salty Bowlers of London | AG54: 2
B55: Deeferdan | C55: HighlandEnoch | D55: 1 | E55: 1 | F55: 2 | G55: 2 | H55: 2 | I55: 0 | J55: 2 | K55: 1 | L55: 0 | M55: 1 | N55: The Fellowship of the Ball | O55: Murder Jokers | S55: HipsterPotter | T55: 3 | V55: Mournival | W55: 4 | Z55: Steph, Stig and The Baldies | AA55: 2 | AC55: NOBBL Jesters | AD55: 1 | AF55: TeamW | AG55: 2
B56: Thulean | C56: Thebunneh | D56: 1 | E56: 1 | F56: 3 | G56: 3 | H56: 1 | I56: 2 | J56: 2 | K56: 2 | L56: 2 | M56: 2 | N56: The Fellowship of the Ball | O56: Murder Jokers | S56: Lycos | T56: 3 | V56: Owletta | W56: 4 | Z56: Sutton Immortals | AA56: 0 | AC56: Iconic Atomics | AD56: 1 | AF56: Elyud Dimkok | AG56: 2
B57: Lamour | C57: Badgie | D57: 1 | E57: 1 | F57: 1 | G57: 1 | H57: 2 | I57: 1 | J57: 2 | K57: 3 | L57: 0 | M57: 1 | N57: The Fellowship of the Ball | O57: Murder Jokers | S57: GreenSkinPhil | T57: 3 | V57: Gerdleah | W57: 4 | Z57: T and Three Sugars | AA57: 2 | AC57: HEBBL Team A | AD57: 1 | AF57: ECBBL Ten-Tackles | AG57: 2
B58: Jayward | C58: Vulture_Squadron | D58: 2 | E58: 0 | F58: 2 | G58: 1 | H58: 2 | I58: 1 | J58: 0 | K58: 2 | L58: 2 | M58: 2 | N58: Team Wales | O58: HEBBL Team B | S58: Firebreather | T58: 3 | V58: Slimjono | W58: 4 | Z58: Tacklezone Pirates | AA58: 2 | AC58: Team Miss Next Game | AD58: 1 | AF58: ECBBL Aspiring Adequates | AG58: 2
B59: Celt | C59: HEBBL Team B #4 | D59: 1 | E59: 1 | F59: 1 | G59: 1 | H59: 3 | I59: 0 | J59: 0 | K59: 1 | L59: 2 | M59: 2 | N59: Team Wales | O59: HEBBL Team B | S59: Fackko | T59: 3 | V59: BigMace | W59: 4 | Z59: Tactics and Theatrics | AA59: 1 | AC59: Tacklezone Pirates | AD59: 1 | AF59: The GoBBLed | AG59: 2
B60: Gcoleman | C60: 3_Dice_Uphill | D60: 1 | E60: 1 | F60: 1 | G60: 1 | H60: 3 | I60: 3 | J60: 1 | K60: 2 | L60: 3 | M60: 0 | N60: Team Wales | O60: HEBBL Team B | S60: Cornish | T60: 3 | V60: Snowtroll | W60: 4 | Z60: TCC: A Up Me Ducks | AA60: 0 | AC60: Murder Queens | AD60: 1 | AF60: Snake Eyes and GFIs | AG60: 2
B61: 20phoenix | C61: Mazza86 | D61: 0 | E61: 2 | F61: 1 | G61: 3 | H61: 3 | I61: 0 | J61: 3 | K61: 1 | L61: 2 | M61: 1 | N61: Team Wales | O61: HEBBL Team B | S61: Jordellfb | T61: 3 | V61: Nippylongskar | W61: 4 | Z61: TCC: BoBin for Ducks | AA61: 1 | AC61: Orkshire | AD61: 1 | AF61: Lutece Noobs | AG61: 2
B62: Pegleg | C62: Jeeves | D62: 2 | E62: 0 | F62: 3 | G62: 0 | H62: 2 | I62: 0 | J62: 2 | K62: 2 | L62: 1 | M62: 2 | N62: Sann Clan | O62: Chins Chumps and C.H.I.P.S. | S62: Outkast | T62: 3 | V62: Sam_Clark | W62: 4 | Z62: Team Miss Next Game | AA62: 0 | AC62: Hell n El Productions | AD62: 1 | AF62: Dice In The Alley | AG62: 2
B63: Chicken23 | C63: Mamapepe | D63: 0 | E63: 2 | F63: 1 | G63: 3 | H63: 1 | I63: 1 | J63: 2 | K63: 2 | L63: 2 | M63: 2 | N63: Sann Clan | O63: Chins Chumps and C.H.I.P.S. | S63: Sporran | T63: 3 | V63: Wobert | W63: 4 | Z63: Team Republic Chill Squad | AA63: 2 | AC63: 2 Up 2 Down | AD63: 1 | AF63: Dutch Pirates | AG63: 1
B64: Sann0638 | C64: Pipey | D64: 0 | E64: 2 | F64: 1 | G64: 3 | H64: 0 | I64: 2 | J64: 0 | K64: 2 | L64: 1 | M64: 0 | N64: Sann Clan | O64: Chins Chumps and C.H.I.P.S. | S64: Deeferdan | T64: 3 | V64: Calfykid | W64: 4 | Z64: Team Republic Tryhards | AA64: 2 | AC64: Team Republic Chill Squad | AD64: 1 | AF64: Murder Queens | AG64: 1
B65: Stewbacca | C65: Shunt | D65: 2 | E65: 0 | F65: 2 | G65: 1 | H65: 1 | I65: 2 | J65: 0 | K65: 1 | L65: 3 | M65: 0 | N65: Sann Clan | O65: Chins Chumps and C.H.I.P.S. | S65: DrTechnoTrousers | T65: 3 | V65: Spooner | W65: 4 | Z65: Team TimeOut | AA65: 1 | AC65: Famous Tomb Guardians | AD65: 1 | AF65: ECBBL Blackshirts | AG65: 1
B66: Steairey | C66: Fredmanwalking | D66: 1 | E66: 1 | F66: 2 | G66: 2 | H66: 2 | I66: 0 | J66: 3 | K66: 0 | L66: 1 | M66: 1 | N66: ECBBL Aspiring Adequates | O66: Granite City Seagulls | S66: Camelchops | T66: 3 | V66: Lewi88 | W66: 4 | Z66: Team Wales | AA66: 1 | AC66: Let Me Atom | AD66: 1 | AF66: Dragons | AG66: 1
B67: Taltal | C67: Spooner | D67: =fctScore(F67,G67,H67,J67,L67) -> 0 | E67: =fctScore(G67,F67,I67,K67,M67) -> 2 | F67: 1 | G67: 2 | H67: 2 | I67: 3 | J67: 3 | K67: 0 | L67: 1 | M67: 3 | N67: ECBBL Aspiring Adequates | O67: Granite City Seagulls | S67: Elplanet4 | T67: 3 | V67: Pipey | W67: 4 | Z67: TeamW | AA67: 0 | AC67: Murder Jacks | AD67: 1 | AF67: Team TimeOut | AG67: 1
B68: Ahzek | C68: Stonethrowingdevil | D68: 0 | E68: 2 | F68: 1 | G68: 3 | H68: 1 | I68: 2 | J68: 3 | K68: 0 | L68: 1 | M68: 1 | N68: ECBBL Aspiring Adequates | O68: Granite City Seagulls | S68: Shaniepoo1 | T68: 3 | V68: Stonethrowingdevil | W68: 4 | Z68: The Democratic Republic of Yorkshire | AA68: 2 | AC68: DBL Tropicana | AD68: 0 | AF68: Cheltenham IGBB Raiders | AG68: 1
B69: Loynster | C69: Europanda | D69: 0 | E69: 2 | F69: 2 | G69: 3 | H69: 1 | I69: 1 | J69: 0 | K69: 1 | L69: 2 | M69: 3 | N69: ECBBL Aspiring Adequates | O69: Granite City Seagulls | S69: Elyod | T69: 3 | V69: Feasteater | W69: 4 | Z69: The Fellowship of the Ball | AA69: 2 | AC69: La Ruelle | AD69: 0 | AF69: 2 Up 2 Down | AG69: 1
B70: Hankok | C70: Sam_Clark | D70: 0 | E70: 2 | F70: 2 | G70: 3 | H70: 1 | I70: 2 | J70: 1 | K70: 0 | L70: 2 | M70: 2 | N70: Elyud Dimkok | O70: ABBL | S70: edwith1d | T70: 3 | V70: Littlespoon | W70: 4 | Z70: The GoBBLed | AA70: 2 | AC70: Salty Bowlers of London | AD70: 0 | AF70: Iconic Atomics | AG70: 1
B71: Elyod | C71: Ratmaninov | D71: 1 | E71: 1 | F71: 1 | G71: 1 | H71: 2 | I71: 2 | J71: 1 | K71: 0 | L71: 2 | M71: 1 | N71: Elyud Dimkok | O71: ABBL | S71: Raging82 | T71: 3 | V71: WoodyWoodPecker | W71: 4 | Z71: The GoBBLers | AA71: 1 | AC71: Monstrous Tynemouth | AD71: 0 | AF71: Team Miss Next Game | AG71: 1
B72: DimmyGee | C72: 03philpota | D72: 1 | E72: 1 | F72: 1 | G72: 1 | H72: 2 | I72: 1 | J72: 2 | K72: 1 | L72: 2 | M72: 0 | N72: Elyud Dimkok | O72: ABBL | S72: Whisky_Pip | T72: 3 | V72: SpaceGandalf | W72: 4 | Z72: The Merry Men | AA72: 2 | AC72: Team TimeOut | AD72: 0 | AF72: Let Me Atom | AG72: 1
B73: Yudlugar | C73: N'Sh'Koben | D73: 0 | E73: 2 | F73: 2 | G73: 3 | H73: 3 | I73: 2 | J73: 2 | K73: 1 | L73: 1 | M73: 2 | N73: Elyud Dimkok | O73: ABBL | S73: BROCKdodge | T73: 3 | V73: Vido | W73: 4 | Z73: Two Guys One Dice Cup | AA73: 2 | AC73: Cheltenham IGBB Raiders | AD73: 0 | AF73: Famous Tomb Guardians | AG73: 1
B74: GreenSkinPhil | C74: BartK | D74: 2 | E74: 0 | F74: 2 | G74: 1 | H74: 1 | I74: 1 | J74: 1 | K74: 2 | L74: 0 | M74: 1 | N74: Team Republic Tryhards | O74: ECBBL Ten-Tackles | S74: Artful_Dodger | T74: 3 | V74: Padster | W74: 4 | Z74: UKBBL Team A | AA74: 2 | AC74: Shiretown Stuffers | AD74: 0 | AF74: Shiretown Stuffers | AG74: 0
B75: Outkast | C75: JuJuu | D75: 1 | E75: 1 | F75: 2 | G75: 2 | H75: 0 | I75: 0 | J75: 2 | K75: 2 | L75: 3 | M75: 1 | N75: Team Republic Tryhards | O75: ECBBL Ten-Tackles | S75: JKB | T75: 3 | V75: Artful_Dodger | W75: 4 | Z75: Waterbowl Team Z | AA75: 2 | AC75: Lutece Noobs | AD75: 0 | AF75: La Ruelle | AG75: 0
B76: Stratford_ | C76: King_Ghidra | D76: 1 | E76: 1 | F76: 0 | G76: 0 | H76: 2 | I76: 1 | J76: 3 | K76: 1 | L76: 1 | M76: 1 | N76: Team Republic Tryhards | O76: ECBBL Ten-Tackles | S76: BigMace | T76: 3 | V76: Shortstack | W76: 4 | Z76: Wrekin Wraiders | AA76: 2 | AC76: The GoBBLed | AD76: 0 | AF76: Monstrous Tynemouth | AG76: 0
B77: Torquemada | C77: Bbart | D77: 2 | E77: 0 | F77: 3 | G77: 0 | H77: 2 | I77: 2 | J77: 0 | K77: 3 | L77: 0 | M77: 2 | N77: Team Republic Tryhards | O77: ECBBL Ten-Tackles | S77: Celt | T77: 3 | V77: Saltymurcutt | W77: 4 | Z77: Sann Clan | AA77: 1 | AC77: Hey Listen and The Guy We Found in Nandos | AD77: 0 | AF77: Hey Listen and The Guy We Found in Nandos | AG77: 0
B78: Gitgrinder | C78: ThomasW | D78: 2 | E78: 0 | F78: 1 | G78: 0 | H78: 1 | I78: 3 | J78: 1 | K78: 2 | L78: 1 | M78: 0 | N78: The Merry Men | O78: TeamW | S78: Gcoleman | T78: 3 | V78: Fullfatbeard | W78: 4
B79: CharlieBanks | C79: PeteW | D79: 1 | E79: 1 | F79: 1 | G79: 1 | H79: 1 | I79: 2 | J79: 1 | K79: 2 | L79: 1 | M79: 1 | N79: The Merry Men | O79: TeamW | S79: Shipaz | T79: 3 | V79: Jago21 | W79: 4
B80: Cjtaylor_uk | C80: Gorgoroth | D80: 1 | E80: 1 | F80: 3 | G80: 3 | H80: 2 | I80: 3 | J80: 3 | K80: 3 | L80: 2 | M80: 1 | N80: The Merry Men | O80: TeamW | S80: Dakyrus | T80: 3 | V80: Vulture_Squadron | W80: 4
B81: Bogey105 | C81: Besters | D81: 1 | E81: 1 | F81: 3 | G81: 3 | H81: 0 | I81: 3 | J81: 3 | K81: 0 | L81: 2 | M81: 1 | N81: The Merry Men | O81: TeamW | S81: ICY-Bee | T81: 3 | V81: Ringbeard | W81: 4
B82: Fiddlesticks | C82: Divergent84 | D82: 1 | E82: 1 | F82: 2 | G82: 2 | H82: 2 | I82: 3 | J82: 2 | K82: 3 | L82: 1 | M82: 0 | N82: Orkshire Puddings | O82: Old Man Monkeys Team | S82: Owletta | T82: 3 | V82: Orcthadontist | W82: 4
B83: Twoshedzz | C83: Old_Man_Monkey | D83: 1 | E83: 1 | F83: 1 | G83: 1 | H83: 1 | I83: 2 | J83: 2 | K83: 2 | L83: 2 | M83: 0 | N83: Orkshire Puddings | O83: Old Man Monkeys Team | S83: Chorfling | T83: 3 | V83: Cerberus85 | W83: 4
B84: TomTheOwl | C84: Cromfrance | D84: 1 | E84: 1 | F84: 1 | G84: 1 | H84: 3 | I84: 0 | J84: 2 | K84: 3 | L84: 2 | M84: 2 | N84: Orkshire Puddings | O84: Old Man Monkeys Team | S84: Spic929 | T84: 3 | V84: Elyod | W84: 4
B85: Rydog | C85: Lord_Bojo | D85: 1 | E85: 1 | F85: 1 | G85: 1 | H85: 0 | I85: 3 | J85: 0 | K85: 0 | L85: 3 | M85: 1 | N85: Orkshire Puddings | O85: Old Man Monkeys Team | S85: AWT | T85: 3 | V85: Camelchops | W85: 4
B86: Rev | C86: Feasteater | D86: 0 | E86: 2 | F86: 0 | G86: 2 | H86: 1 | I86: 1 | J86: 2 | K86: 3 | L86: 3 | M86: 2 | N86: TCC: BoBin for Ducks | O86: Doom League | S86: Nippylongskar | T86: 3 | V86: Levinas | W86: 4
B87: The_Fritch | C87: Chubooga | D87: 2 | E87: 0 | F87: 2 | G87: 1 | H87: 1 | I87: 1 | J87: 1 | K87: 1 | L87: 2 | M87: 2 | N87: TCC: BoBin for Ducks | O87: Doom League | S87: Elperas | T87: 3 | V87: ChrisRaff88 | W87: 4
B88: Bungeeman | C88: Jamelius | D88: 1 | E88: 1 | F88: 1 | G88: 1 | H88: 1 | I88: 2 | J88: 2 | K88: 2 | L88: 0 | M88: 0 | N88: TCC: BoBin for Ducks | O88: Doom League | S88: Cerberus85 | T88: 3 | V88: Whisky_Pip | W88: 4
B89: Sean_M | C89: Tstyx | D89: 1 | E89: 1 | F89: 1 | G89: 1 | H89: 0 | I89: 0 | J89: 2 | K89: 2 | L89: 1 | M89: 1 | N89: TCC: BoBin for Ducks | O89: Doom League | S89: Bloodtithe | T89: 3 | V89: Breakmonker | W89: 4
B90: Shipaz | C90: Lewi88 | D90: 0 | E90: 2 | F90: 0 | G90: 1 | H90: 2 | I90: 2 | J90: 0 | K90: 3 | L90: 2 | M90: 2 | N90: Snake Eyes and GFIs | O90: UKBBL Team A | S90: Haktar | T90: 3 | V90: BROCKdodge | W90: 4
B91: TheCowDaddy | C91: Snowtroll | D91: 0 | E91: 2 | F91: 2 | G91: 3 | H91: 1 | I91: 1 | J91: 1 | K91: 0 | L91: 0 | M91: 0 | N91: Snake Eyes and GFIs | O91: UKBBL Team A | S91: Pegleg | T91: 3 | V91: Stick_with_poo_on_the_end | W91: 4
B92: DJCritch | C92: Khornight | D92: 1 | E92: 1 | F92: 3 | G92: 3 | H92: 1 | I92: 0 | J92: 0 | K92: 2 | L92: 2 | M92: 2 | N92: Snake Eyes and GFIs | O92: UKBBL Team A | S92: WoodyWoodPecker | T92: 3 | V92: Liam | W92: 4
B93: GustyGarett | C93: Insidious | D93: 1 | E93: 1 | F93: 1 | G93: 1 | H93: 3 | I93: 0 | J93: 1 | K93: 2 | L93: 2 | M93: 3 | N93: Snake Eyes and GFIs | O93: UKBBL Team A | S93: JimJimany | T93: 3 | V93: Goldengate | W93: 4
B94: Owletta | C94: EnglishChris | D94: 1 | E94: 1 | F94: 1 | G94: 1 | H94: 2 | I94: 1 | J94: 2 | K94: 0 | L94: 0 | M94: 3 | N94: T and Three Sugars | O94: Dice In The Alley | S94: Padster | T94: 3 | V94: Fackko | W94: 4
B95: Kid_Cantcomplain | C95: Rhicheese | D95: 2 | E95: 0 | F95: 3 | G95: 1 | H95: 0 | I95: 3 | J95: 1 | K95: 3 | L95: 1 | M95: 2 | N95: T and Three Sugars | O95: Dice In The Alley | S95: Silkoun | T95: 3 | V95: Chorfling | W95: 4
B96: Boldfox | C96: Fluffy_Kraken | D96: 1 | E96: 1 | F96: 1 | G96: 1 | H96: 3 | I96: 1 | J96: 2 | K96: 3 | L96: 1 | M96: 1 | N96: T and Three Sugars | O96: Dice In The Alley | S96: EnglishChris | T96: 3 | V96: The_mighty_irush | W96: 4
B97: Obsydyan | C97: Beigelantern | D97: 2 | E97: 0 | F97: 2 | G97: 1 | H97: 0 | I97: 0 | J97: 1 | K97: 1 | L97: 2 | M97: 1 | N97: T and Three Sugars | O97: Dice In The Alley | S97: Edwin | T97: 3 | V97: Outkast | W97: 4
B98: Masterful | C98: Slimjono | D98: 2 | E98: 0 | F98: 2 | G98: 1 | H98: 3 | I98: 3 | J98: 2 | K98: 2 | L98: 0 | M98: 2 | N98: ECBBL Blackshirts | O98: The Democratic Republic of Yorkshire | S98: Sparky | T98: 3 | V98: Whiskeymancer | W98: 4
B99: Vmcat | C99: AWT | D99: 0 | E99: 2 | F99: 2 | G99: 3 | H99: 3 | I99: 0 | J99: 2 | K99: 1 | L99: 1 | M99: 3 | N99: ECBBL Blackshirts | O99: The Democratic Republic of Yorkshire | S99: Goldengate | T99: 3 | V99: Stewbacca | W99: 4
B100: Bsking | C100: Loubega | D100: 0 | E100: 2 | F100: 2 | G100: 3 | H100: 0 | I100: 3 | J100: 2 | K100: 2 | L100: 1 | M100: 1 | N100: ECBBL Blackshirts | O100: The Democratic Republic of Yorkshire | S100: Ens1ferum | T100: 3 | V100: Douglowe | W100: 4
B101: Heff | C101: Diaphite | D101: 0 | E101: 2 | F101: 0 | G101: 3 | H101: 1 | I101: 1 | J101: 1 | K101: 1 | L101: 1 | M101: 0 | N101: ECBBL Blackshirts | O101: The Democratic Republic of Yorkshire | S101: Vmcat | T101: 3 | V101: Gcoleman | W101: 4
B102: Fackko | C102: ThatOtherAsianGuy | D102: 1 | E102: 1 | F102: 3 | G102: 3 | H102: 0 | I102: 1 | J102: 3 | K102: 1 | L102: 3 | M102: 0 | N102: BolognaBowl | O102: Dragons | S102: NickBell | T102: 3 | V102: EnglishChris | W102: 4
B103: Gallo | C103: Aaaardvark101 | D103: 1 | E103: 1 | F103: 2 | G103: 2 | H103: 2 | I103: 2 | J103: 2 | K103: 1 | L103: 1 | M103: 2 | N103: BolognaBowl | O103: Dragons | S103: Fiddlesticks | T103: 2 | V103: Ens1ferum | W103: 4
B104: Liam | C104: MartinVanquish | D104: 2 | E104: 0 | F104: 1 | G104: 0 | H104: 2 | I104: 1 | J104: 2 | K104: 2 | L104: 2 | M104: 1 | N104: BolognaBowl | O104: Dragons | S104: Brickp | T104: 2 | V104: ICY-Bee | W104: 4
B105: Dirold | C105: Skab | D105: 2 | E105: 0 | F105: 2 | G105: 1 | H105: 1 | I105: 1 | J105: 1 | K105: 1 | L105: 1 | M105: 3 | N105: BolognaBowl | O105: Dragons | S105: Sizzler | T105: 2 | V105: JBone | W105: 4
B106: Edwin | C106: Artful_Dodger | D106: 1 | E106: 1 | F106: 1 | G106: 1 | H106: 2 | I106: 0 | J106: 0 | K106: 2 | L106: 2 | M106: 2 | N106: Dutch Pirates | O106: NOBBL Jesters | S106: HenningEksteen | T106: 2 | V106: Maitre_tactac | W106: 4
B107: HenningEksteen | C107: Ens1ferum | D107: 1 | E107: 1 | F107: 1 | G107: 1 | H107: 0 | I107: 0 | J107: 0 | K107: 1 | L107: 1 | M107: 2 | N107: Dutch Pirates | O107: NOBBL Jesters | S107: Biereforever | T107: 2 | V107: Celt | W107: 4
B108: Joost | C108: pedro_laserbeard | D108: 0 | E108: 2 | F108: 1 | G108: 2 | H108: 2 | I108: 2 | J108: 2 | K108: 2 | L108: 2 | M108: 0 | N108: Dutch Pirates | O108: NOBBL Jesters | S108: Mournival | T108: 2 | V108: Dragonborn | W108: 4
B109: Yurinator | C109: Papa_laza_rou | D109: 1 | E109: 1 | F109: 2 | G109: 2 | H109: 2 | I109: 3 | J109: 0 | K109: 1 | L109: 2 | M109: 1 | N109: Dutch Pirates | O109: NOBBL Jesters | S109: Gallo | T109: 2 | V109: The_Fritch | W109: 4
B110: TateRolls1s | C110: Ploppy_McPloppy | D110: 0 | E110: 2 | F110: 2 | G110: 3 | H110: 1 | I110: 2 | J110: 1 | K110: 2 | L110: 2 | M110: 0 | N110: Iconic Atomics | O110: HEBBL Team A | S110: SickAsEggs | T110: 2 | V110: N'Sh'Koben | W110: 4
B111: ArcherJ | C111: Littlespoon | D111: 0 | E111: 2 | F111: 1 | G111: 2 | H111: 2 | I111: 3 | J111: 2 | K111: 2 | L111: 3 | M111: 1 | N111: Iconic Atomics | O111: HEBBL Team A | S111: Littleleadperson | T111: 2 | V111: HuntlyLoon | W111: 4
B112: Duffins | C112: MadeofWelsh | D112: 0 | E112: 2 | F112: 1 | G112: 2 | H112: 1 | I112: 1 | J112: 2 | K112: 1 | L112: 0 | M112: 2 | N112: Iconic Atomics | O112: HEBBL Team A | S112: Sam_Clark | T112: 2 | V112: Europanda | W112: 4
B113: Winterb0rn | C113: Orklabe | D113: 2 | E113: 0 | F113: 3 | G113: 1 | H113: 3 | I113: 1 | J113: 2 | K113: 1 | L113: 0 | M113: 2 | N113: Iconic Atomics | O113: HEBBL Team A | S113: Old_Man_Monkey | T113: 2 | V113: Shortstuff | W113: 4
B114: TTGumption | C114: Nippylongskar | D114: 1 | E114: 1 | F114: 2 | G114: 2 | H114: 3 | I114: 1 | J114: 1 | K114: 1 | L114: 0 | M114: 3 | N114: Team Miss Next Game | O114: Tacklezone Pirates | S114: Fredmanwalking | T114: 2 | V114: Munch | W114: 3
B115: Scouseboy | C115: JBone | D115: 0 | E115: 2 | F115: 0 | G115: 1 | H115: 3 | I115: 2 | J115: 2 | K115: 2 | L115: 3 | M115: 3 | N115: Team Miss Next Game | O115: Tacklezone Pirates | S115: Twoshedzz | T115: 2 | V115: ThomasW | W115: 3
B116: Spleggy | C116: Wulfyn | D116: 0 | E116: 2 | F116: 0 | G116: 1 | H116: 1 | I116: 1 | J116: 2 | K116: 2 | L116: 2 | M116: 3 | N116: Team Miss Next Game | O116: Tacklezone Pirates | S116: Lewi88 | T116: 2 | V116: Ratmaninov | W116: 3
B117: Picnicmik | C117: Alex_Pye | D117: 1 | E117: 1 | F117: 2 | G117: 2 | H117: 0 | I117: 0 | J117: 3 | K117: 1 | L117: 1 | M117: 2 | N117: Team Miss Next Game | O117: Tacklezone Pirates | S117: GingerB | T117: 2 | V117: Gallo | W117: 3
B118: Pbowman | C118: Falesh | D118: 1 | E118: 1 | F118: 1 | G118: 1 | H118: 3 | I118: 2 | J118: 0 | K118: 3 | L118: 3 | M118: 2 | N118: Murder Queens | O118: Orkshire | S118: Ratmaninov | T118: 2 | V118: Old_Man_Monkey | W118: 3
B119: Gizmo3k | C119: Laser_Owl | D119: 1 | E119: 1 | F119: 1 | G119: 1 | H119: 3 | I119: 3 | J119: 2 | K119: 2 | L119: 1 | M119: 2 | N119: Murder Queens | O119: Orkshire | S119: ArcherJ | T119: 2 | V119: Rev | W119: 3
B120: LordGarlack | C120: Burtblahblahblah | D120: 1 | E120: 1 | F120: 0 | G120: 0 | H120: 3 | I120: 2 | J120: 0 | K120: 1 | L120: 1 | M120: 1 | N120: Murder Queens | O120: Orkshire | S120: Tintenfisch | T120: 2 | V120: TateRolls1s | W120: 3
B121: L0rdgibby | C121: McFaff | D121: 0 | E121: 2 | F121: 1 | G121: 3 | H121: 1 | I121: 0 | J121: 2 | K121: 0 | L121: 0 | M121: 3 | N121: Murder Queens | O121: Orkshire | S121: ThatOtherAsianGuy | T121: 2 | V121: Sporran | W121: 3
B122: Raging82 | C122: Squigthrower | D122: 2 | E122: 0 | F122: 3 | G122: 2 | H122: 0 | I122: 2 | J122: 1 | K122: 2 | L122: 1 | M122: 2 | N122: Hell n El Productions | O122: 2 Up 2 Down | S122: Aaaardvark101 | T122: 2 | V122: Barnacles | W122: 3
B123: DrHellboy_ | C123: Fingers | D123: 1 | E123: 1 | F123: 2 | G123: 2 | H123: 3 | I123: 3 | J123: 2 | K123: 2 | L123: 2 | M123: 1 | N123: Hell n El Productions | O123: 2 Up 2 Down | S123: TTGumption | T123: 2 | V123: Brickp | W123: 3
B124: Fallingdownjoe | C124: Blockparty87 | D124: 2 | E124: 0 | F124: 2 | G124: 1 | H124: 0 | I124: 1 | J124: 1 | K124: 0 | L124: 0 | M124: 1 | N124: Hell n El Productions | O124: 2 Up 2 Down | S124: Lpoolcookie | T124: 2 | V124: Dayday | W124: 3
B125: El_Duderino | C125: Bgmclean | D125: 0 | E125: 2 | F125: 0 | G125: 1 | H125: 2 | I125: 1 | J125: 3 | K125: 2 | L125: 2 | M125: 2 | N125: Hell n El Productions | O125: 2 Up 2 Down | S125: Purdindas | T125: 2 | V125: Wulfyn | W125: 3
B126: Brickp | C126: SickAsEggs | D126: 1 | E126: 1 | F126: 2 | G126: 2 | H126: 0 | I126: 2 | J126: 2 | K126: 2 | L126: 1 | M126: 1 | N126: Team Republic Chill Squad | O126: Famous Tomb Guardians | S126: Wynters_Dad | T126: 2 | V126: Fredmanwalking | W126: 3
B127: Mefspores | C127: Tulkus | D127: 1 | E127: 1 | F127: 1 | G127: 1 | H127: 2 | I127: 2 | J127: 2 | K127: 0 | L127: 0 | M127: 1 | N127: Team Republic Chill Squad | O127: Famous Tomb Guardians | S127: Feasteater | T127: 2 | V127: Jeeves | W127: 3
B128: CoachKAS | C128: Keithabix | D128: 2 | E128: 0 | F128: 1 | G128: 0 | H128: 1 | I128: 2 | J128: 3 | K128: 1 | L128: 0 | M128: 2 | N128: Team Republic Chill Squad | O128: Famous Tomb Guardians | S128: TomTheOwl | T128: 2 | V128: Fiddlesticks | W128: 3
B129: Potatomancer | C129: Archcoach_Ferdinand | D129: 2 | E129: 0 | F129: 2 | G129: 0 | H129: 3 | I129: 2 | J129: 2 | K129: 0 | L129: 1 | M129: 3 | N129: Team Republic Chill Squad | O129: Famous Tomb Guardians | S129: Gingerballer | T129: 2 | V129: ThatOtherAsianGuy | W129: 3
B130: Rubble | C130: Orcthadontist | D130: 0 | E130: 2 | F130: 0 | G130: 3 | H130: 2 | I130: 2 | J130: 0 | K130: 2 | L130: 2 | M130: 3 | N130: Let Me Atom | O130: Murder Jacks | S130: Forgotmytea | T130: 2 | V130: HenningEksteen | W130: 3
B131: Tomfoolery | C131: Aldpoagus | D131: =fctScore(F131,G131,H131,J131,L131) -> 1 | E131: =fctScore(G131,F131,I131,K131,M131) -> 1 | F131: 3 | G131: 3 | H131: 0 | I131: 1 | J131: 2 | K131: 1 | L131: 1 | M131: 2 | N131: Let Me Atom | O131: Murder Jacks | S131: Scouseboy | T131: 2 | V131: Kyrkedalechris | W131: 3
B132: MrGreen | C132: Mortal_Wombat | D132: 1 | E132: 1 | F132: 0 | G132: 0 | H132: 1 | I132: 0 | J132: 0 | K132: 3 | L132: 2 | M132: 2 | N132: Let Me Atom | O132: Murder Jacks | S132: Falesh | T132: 2 | V132: Biereforever | W132: 3
B133: Blackduke | C133: WillPower | D133: 0 | E133: 2 | F133: 1 | G133: 2 | H133: 1 | I133: 2 | J133: 2 | K133: 3 | L133: 1 | M133: 2 | N133: Let Me Atom | O133: Murder Jacks | S133: Snowtroll | T133: 2 | V133: Lycos | W133: 3
B134: Tyler_Swaft | C134: Haktar | D134: 2 | E134: 0 | F134: 2 | G134: 0 | H134: 0 | I134: 2 | J134: 0 | K134: 3 | L134: 2 | M134: 1 | N134: DBL Tropicana | O134: La Ruelle | S134: Wobert | T134: 2 | V134: Pbowman | W134: 3
B135: GingerB | C135: Laraigne | D135: 2 | E135: 0 | F135: 3 | G135: 2 | H135: 2 | I135: 3 | J135: 1 | K135: 1 | L135: 0 | M135: 1 | N135: DBL Tropicana | O135: La Ruelle | S135: Spooner | T135: 2 | V135: Chilli | W135: 3
B136: Cyritz | C136: Fondu | D136: 1 | E136: 1 | F136: 2 | G136: 2 | H136: 2 | I136: 1 | J136: 2 | K136: 1 | L136: 0 | M136: 2 | N136: DBL Tropicana | O136: La Ruelle | S136: HEBBL Team B #4 | T136: 2 | V136: Elperas | W136: 3
B137: CptOats | C137: LouisX | D137: 2 | E137: 0 | F137: 1 | G137: 0 | H137: 2 | I137: 2 | J137: 2 | K137: 2 | L137: 1 | M137: 2 | N137: DBL Tropicana | O137: La Ruelle | S137: SkraggDave | T137: 2 | V137: Dakyrus | W137: 3
B138: Saltymurcutt | C138: Lpoolcookie | D138: 2 | E138: 0 | F138: 1 | G138: 0 | H138: 1 | I138: 2 | J138: 1 | K138: 1 | L138: 1 | M138: 1 | N138: Salty Bowlers of London | O138: Monstrous Tynemouth | S138: Laser_Owl | T138: 2 | V138: TTGumption | W138: 3
B139: Oranj | C139: Wynters_Dad | D139: 1 | E139: 1 | F139: 2 | G139: 2 | H139: 3 | I139: 1 | J139: 1 | K139: 2 | L139: 1 | M139: 2 | N139: Salty Bowlers of London | O139: Monstrous Tynemouth | S139: Laraigne | T139: 2 | V139: Purdindas | W139: 3
B140: Salontiger | C140: Macster | D140: 2 | E140: 0 | F140: 2 | G140: 1 | H140: 1 | I140: 2 | J140: 1 | K140: 1 | L140: 0 | M140: 2 | N140: Salty Bowlers of London | O140: Monstrous Tynemouth | S140: 03philpota | T140: 2 | V140: Tomfoolery | W140: 3
B141: Grim_Jim | C141: Pillowfists | D141: 2 | E141: 0 | F141: 1 | G141: 0 | H141: 1 | I141: 1 | J141: 0 | K141: 3 | L141: 1 | M141: 2 | N141: Salty Bowlers of London | O141: Monstrous Tynemouth | S141: Littlespoon | T141: 2 | V141: DizzyBess | W141: 3
B142: Tintenfisch | C142: Shortstuff | D142: 0 | E142: 2 | F142: 1 | G142: 2 | H142: 3 | I142: 1 | J142: 2 | K142: 1 | L142: 0 | M142: 0 | N142: Team TimeOut | O142: Cheltenham IGBB Raiders | S142: Markymarc | T142: 2 | V142: Gingerballer | W142: 3
B143: Killerpo | C143: The_mighty_irush | D143: 0 | E143: 2 | F143: 1 | G143: 2 | H143: 2 | I143: 1 | J143: 1 | K143: 3 | L143: 2 | M143: 3 | N143: Team TimeOut | O143: Cheltenham IGBB Raiders | S143: Rubble | T143: 2 | V143: SickAsEggs | W143: 3
B144: Mawph | C144: Turboraptor | D144: 2 | E144: 0 | F144: 3 | G144: 1 | H144: 1 | I144: 3 | J144: 1 | K144: 1 | L144: 1 | M144: 0 | N144: Team TimeOut | O144: Cheltenham IGBB Raiders | S144: Maca1066 | T144: 2 | V144: Gizmo3k | W144: 3
B145: Commisionerref | C145: Shadrak | D145: 2 | E145: 0 | F145: 2 | G145: 1 | H145: 2 | I145: 1 | J145: 1 | K145: 2 | L145: 2 | M145: 2 | N145: Team TimeOut | O145: Cheltenham IGBB Raiders | S145: PeteW | T145: 2 | V145: Hankok | W145: 3
B146: Cornish | C146: Maitre_tactac | D146: 0 | E146: 2 | F146: 1 | G146: 3 | H146: 2 | I146: 1 | J146: 1 | K146: 1 | L146: 1 | M146: 2 | N146: Shiretown Stuffers | O146: Lutece Noobs | S146: Tomfoolery | T146: 2 | V146: I_done_goofd | W146: 3
B147: Everybodys_Dead_Dave | C147: OON | D147: 2 | E147: 0 | F147: 2 | G147: 1 | H147: 2 | I147: 2 | J147: 2 | K147: 2 | L147: 0 | M147: 1 | N147: Shiretown Stuffers | O147: Lutece Noobs | S147: Rhicheese | T147: 2 | V147: Kid_Cantcomplain | W147: 3
B148: Whitey | C148: Nicap | D148: 0 | E148: 2 | F148: 1 | G148: 2 | H148: 0 | I148: 1 | J148: 0 | K148: 0 | L148: 1 | M148: 1 | N148: Shiretown Stuffers | O148: Lutece Noobs | S148: Saltymurcutt | T148: 2 | V148: Oklaoma | W148: 3
B149: El_Spoonio | C149: Zahiko | D149: 1 | E149: 1 | F149: 2 | G149: 2 | H149: 3 | I149: 2 | J149: 2 | K149: 2 | L149: 2 | M149: 2 | N149: Shiretown Stuffers | O149: Lutece Noobs | S149: DrHellboy_ | T149: 2 | V149: Twoshedzz | W149: 3
B150: Gingerballer | C150: DizzyBess | D150: 1 | E150: 1 | F150: 0 | G150: 0 | H150: 0 | I150: 1 | J150: 3 | K150: 1 | L150: 2 | M150: 1 | N150: The GoBBLed | O150: Hey Listen and The Guy We Found in Nandos | S150: Levinas | T150: 2 | V150: Cornish | W150: 3
B151: Daubs | C151: Cauleeflower | D151: 2 | E151: 0 | F151: 2 | G151: 1 | H151: 1 | I151: 2 | J151: 0 | K151: 2 | L151: 1 | M151: 0 | N151: The GoBBLed | O151: Hey Listen and The Guy We Found in Nandos | S151: Dayday | T151: 2 | V151: Daubs | W151: 3
B152: Grashnak | C152: AndyDavo | D152: 1 | E152: 1 | F152: 0 | G152: 0 | H152: 2 | I152: 2 | J152: 0 | K152: 1 | L152: 0 | M152: 2 | N152: The GoBBLed | O152: Hey Listen and The Guy We Found in Nandos | S152: Stonethrowingdevil | T152: 2 | V152: Zooey | W152: 3
B153: Randypandy | C153: SeriouslyImAGiraffe | D153: 2 | E153: 0 | F153: 3 | G153: 0 | H153: 2 | I153: 1 | J153: 2 | K153: 2 | L153: 2 | M153: 0 | N153: The GoBBLed | O153: Hey Listen and The Guy We Found in Nandos | S153: Orcthadontist | T153: 2 | V153: Laser_Owl | W153: 3
S154: Dragonborn | T154: 2 | V154: CharlieBanks | W154: 3
S155: Liam | T155: 2 | V155: Aaaardvark101 | W155: 3
S156: Chilli | T156: 2 | V156: TomTheOwl | W156: 3
S157: Kyrkedalechris | T157: 2 | V157: Forgotmytea | W157: 3
S158: 3_Dice_Uphill | T158: 2 | V158: BartK | W158: 3
S159: Oranj | T159: 2 | V159: DrHellboy_ | W159: 3
S160: Jago21 | T160: 2 | V160: Wynters_Dad | W160: 3
S161: Pbowman | T161: 2 | V161: Fallingdownjoe | W161: 3
S162: Mefspores | T162: 2 | V162: LordGarlack | W162: 3
S163: Europanda | T163: 2 | V163: 3_Dice_Uphill | W163: 3
S164: Chubooga | T164: 2 | V164: JuJuu | W164: 3
S165: Gizmo3k | T165: 2 | V165: Salontiger | W165: 3
S166: Mamapepe | T166: 2 | V166: Vmcat | W166: 3
S167: Purplegoo | T167: 2 | V167: HEBBL Team B #4 | W167: 3
S168: JuJuu | T168: 2 | V168: 03philpota | W168: 3
S169: Oklaoma | T169: 2 | V169: Haktar | W169: 3
S170: Ringbeard | T170: 2 | V170: Shipaz | W170: 3
S171: Jamelius | T171: 2 | V171: NickBell | W171: 3
S172: Starkey | T172: 2 | V172: Mefspores | W172: 3
S173: Zooey | T173: 2 | V173: Falesh | W173: 3
S174: Joost | T174: 2 | V174: pedro_laserbeard | W174: 3
S175: Squigthrower | T175: 2 | V175: Everybodys_Dead_Dave | W175: 3
S176: Killerpo | T176: 2 | V176: Bloodtithe | W176: 3
S177: Pipey | T177: 2 | V177: PeteW | W177: 3
S178: The_Fritch | T178: 2 | V178: Oranj | W178: 3
S179: King_Ghidra | T179: 2 | V179: King_Ghidra | W179: 3
S180: Fireolli | T180: 2 | V180: 8ulldog | W180: 3
S181: Chicken23 | T181: 2 | V181: Sparky | W181: 3
S182: Vido | T182: 2 | V182: Bungeeman | W182: 3
S183: Sann0638 | T183: 2 | V183: Obsydyan | W183: 3
S184: Taltal | T184: 2 | V184: Jamelius | W184: 3
S185: Fingers | T185: 2 | V185: Starkey | W185: 3
S186: DizzyBess | T186: 2 | V186: JimJimany | W186: 3
S187: I_done_goofd | T187: 2 | V187: Torquemada | W187: 3
S188: Ahzek | T188: 2 | V188: Burtblahblahblah | W188: 3
S189: Shortstuff | T189: 2 | V189: Shriyke | W189: 3
S190: Blockparty87 | T190: 2 | V190: SilentKnight | W190: 3
S191: Bungeeman | T191: 2 | V191: Lamour | W191: 3
S192: The_mighty_irush | T192: 2 | V192: Fingers | W192: 3
S193: GrumpyBoyle | T193: 2 | V193: Mawph | W193: 3
S194: MartinVanquish | T194: 2 | V194: CoachKAS | W194: 3
S195: JBone | T195: 2 | V195: Nicap | W195: 3
S196: Spleggy | T196: 2 | V196: Mazza86 | W196: 3
S197: TheCowDaddy | T197: 2 | V197: Aldpoagus | W197: 3
S198: Stewbacca | T198: 2 | V198: Thulean | W198: 3
S199: Boynamedsue | T199: 2 | V199: Haychdee | W199: 3
S200: Thulean | T200: 2 | V200: Don_Vito | W200: 2
... 105 more rows

Sheet Round4

Sheet Round5

Sheet Round6

Sheet Round7

Sheet Round8

Sheet Round9

Sheet GroupMatrix
B1: 2 Die Docks | C1: 2 Up 2 Down | D1: ABBL | E1: All The Presidents Men | F1: Awesome Party People | G1: Awesome Party People Part Deux | H1: Bang Average Blood Bowlers | I1: BolognaBowl | J1: Cheltenham IGBB Raiders | K1: Chins Chumps and C.H.I.P.S. | L1: CLAW on Tour | M1: DBL Tropicana | N1: Deeside Double Skulls | O1: Dice In The Alley | P1: Dice on Tour Team 1 | Q1: Doom League | R1: Dragons | S1: Dutch Pirates | T1: ECBBL Aspiring Adequates | U1: ECBBL Blackshirts | V1: ECBBL Ten-Tackles | W1: Elyud Dimkok | X1: Famous Tomb Guardians | Y1: Fellowship of the GBBL | Z1: Granite City Seagulls | AA1: HEBBL Team A | AB1: HEBBL Team B | AC1: Hell n El Productions | AD1: Hey Listen and The Guy We Found in Nandos | AE1: Iconic Atomics | AF1: La Ruelle | AG1: Les Azes | AH1: Let Me Atom | AI1: Lutece Noobs | AJ1: Midtable Marauders | AK1: Monstrous Tynemouth | AL1: Murder Aces | AM1: Murder Jacks | AN1: Murder Jokers | AO1: Murder Kings | AP1: Murder Queens | AQ1: NOBBL Elite | AR1: NOBBL Jesters | AS1: North Yorkshire Table Top | AT1: Old Man Monkeys Team | AU1: Orkshire | AV1: Orkshire Puddings | AW1: Salty Bowlers of London | AX1: Seagulls 2: Electric Boogaloo | AY1: Sheffield Stinkweasels | AZ1: Shiretown Stuffers | BA1: Smoggies UTFB | BB1: Snake Eyes and GFIs | BC1: Steph, Stig and The Baldies | BD1: Sutton Immortals | BE1: T and Three Sugars | BF1: Tacklezone Pirates | BG1: Tactics and Theatrics | BH1: TCC: A Up Me Ducks | BI1: TCC: BoBin for Ducks | BJ1: Team Miss Next Game | BK1: Team Republic Chill Squad | BL1: Team Republic Tryhards | BM1: Team TimeOut | BN1: Team Wales | BO1: TeamW | BP1: The Democratic Republic of Yorkshire | BQ1: The Fellowship of the Ball | BR1: The GoBBLed | BS1: The GoBBLers | BT1: The Merry Men | BU1: Two Guys One Dice Cup | BV1: UKBBL Team A | BW1: Waterbowl Team Z | BX1: Wrekin Wraiders | BY1: Sann Clan
A2: 2 Die Docks | U2: Rd 1 - 1 | BH2: Rd 3 - 2 | BP2: Rd 2 - 2
A3: 2 Up 2 Down | W3: Rd 1 - 0 | AC3: Rd 3 - 0 | BJ3: Rd 2 - 1
A4: ABBL | W4: Rd 3 - 2 | BC4: Rd 2 - 0 | BM4: Rd 1 - 2
A5: All The Presidents Men | V5: Rd 1 - 2 | BO5: Rd 2 - 2 | BW5: Rd 3 - 0
A6: Awesome Party People | G6: Rd 3 - 0 | BI6: Rd 2 - 2 | BN6: Rd 1 - 2
A7: Awesome Party People Part Deux | F7: Rd 3 - 2 | M7: Rd 1 - 2 | BV7: Rd 2 - 2
A8: Bang Average Blood Bowlers | L8: Rd 3 - 0 | Z8: Rd 2 - 2 | AW8: Rd 1 - 2
A9: BolognaBowl | P9: Rd 2 - 0 | R9: Rd 3 - 2 | BU9: Rd 1 - 1
A10: Cheltenham IGBB Raiders | BI10: Rd 1 - 0 | BM10: Rd 3 - 1 | BN10: Rd 2 - 0
A11: Chins Chumps and C.H.I.P.S. | Z11: Rd 1 - 0 | AW11: Rd 2 - 2 | BY11: Rd 3 - 1
A12: CLAW on Tour | H12: Rd 3 - 2 | AK12: Rd 1 - 2 | BL12: Rd 2 - 2
A13: DBL Tropicana | G13: Rd 1 - 0 | AF13: Rd 3 - 2 | BT13: Rd 2 - 0
A14: Deeside Double Skulls | AU14: Rd 2 - 2 | AX14: Rd 1 - 1 | BU14: Rd 3 - 0
A15: Dice In The Alley | Y15: Rd 1 - 0 | AI15: Rd 2 - 2 | BE15: Rd 3 - 0
A16: Dice on Tour Team 1 | I16: Rd 2 - 2 | AX16: Rd 3 - 1 | BK16: Rd 1 - 1
A17: Doom League | AD17: Rd 2 - 2 | AL17: Rd 1 - 0 | BI17: Rd 3 - 1
A18: Dragons | I18: Rd 3 - 0 | AR18: Rd 2 - 1 | BA18: Rd 1 - 0
A19: Dutch Pirates | AR19: Rd 3 - 0 | AU19: Rd 1 - 1 | AX19: Rd 2 - 0
A20: ECBBL Aspiring Adequates | Z20: Rd 3 - 0 | AK20: Rd 2 - 2 | BO20: Rd 1 - 0
A21: ECBBL Blackshirts | B21: Rd 1 - 1 | BH21: Rd 2 - 0 | BP21: Rd 3 - 0
A22: ECBBL Ten-Tackles | E22: Rd 1 - 0 | AF22: Rd 2 - 2 | BL22: Rd 3 - 0
A23: Elyud Dimkok | C23: Rd 1 - 2 | D23: Rd 3 - 0 | BS23: Rd 2 - 0
A24: Famous Tomb Guardians | BD24: Rd 1 - 1 | BG24: Rd 2 - 0 | BK24: Rd 3 - 0
A25: Fellowship of the GBBL | O25: Rd 1 - 2 | AG25: Rd 2 - 2 | BS25: Rd 3 - 1
A26: Granite City Seagulls | H26: Rd 2 - 0 | K26: Rd 1 - 2 | T26: Rd 3 - 2
A27: HEBBL Team A | AE27: Rd 3 - 2 | BC27: Rd 1 - 0 | BF27: Rd 2 - 1
A28: HEBBL Team B | AD28: Rd 1 - 2 | AL28: Rd 2 - 0 | BN28: Rd 3 - 1
A29: Hell n El Productions | C29: Rd 3 - 2 | AH29: Rd 1 - 1 | AQ29: Rd 2 - 0
A30: Hey Listen and The Guy We Found in Nandos | Q30: Rd 2 - 0 | AB30: Rd 1 - 0 | BR30: Rd 3 - 0
A31: Iconic Atomics | AA31: Rd 3 - 0 | BD31: Rd 2 - 0 | BG31: Rd 1 - 1
A32: La Ruelle | M32: Rd 3 - 0 | V32: Rd 2 - 0 | BL32: Rd 1 - 0
A33: Les Azes | Y33: Rd 2 - 0 | AI33: Rd 1 - 2 | AY33: Rd 3 - 2
A34: Let Me Atom | AC34: Rd 1 - 1 | AJ34: Rd 2 - 0 | AM34: Rd 3 - 0
A35: Lutece Noobs | O35: Rd 2 - 0 | AG35: Rd 1 - 0 | AZ35: Rd 3 - 2
A36: Midtable Marauders | AH36: Rd 2 - 2 | AQ36: Rd 1 - 1 | BG36: Rd 3 - 1
A37: Monstrous Tynemouth | L37: Rd 1 - 0 | T37: Rd 2 - 0 | AW37: Rd 3 - 0
A38: Murder Aces | Q38: Rd 1 - 2 | AB38: Rd 2 - 2 | AS38: Rd 3 - 0
A39: Murder Jacks | AH39: Rd 3 - 2 | AP39: Rd 2 - 1 | AY39: Rd 1 - 0
A40: Murder Jokers | BB40: Rd 1 - 2 | BQ40: Rd 3 - 0 | BX40: Rd 2 - 0
A41: Murder Kings | AV41: Rd 2 - 2 | AZ41: Rd 1 - 2 | BX41: Rd 3 - 0
A42: Murder Queens | AM42: Rd 2 - 1 | AU42: Rd 3 - 0 | BW42: Rd 1 - 0
A43: NOBBL Elite | AC43: Rd 2 - 2 | AJ43: Rd 1 - 1 | BD43: Rd 3 - 2
A44: NOBBL Jesters | R44: Rd 2 - 1 | S44: Rd 3 - 2 | BE44: Rd 1 - 0
A45: North Yorkshire Table Top | AL45: Rd 3 - 2 | AT45: Rd 2 - 2 | BR45: Rd 1 - 2
A46: Old Man Monkeys Team | AS46: Rd 2 - 0 | AV46: Rd 3 - 1 | BY46: Rd 1 - 2
A47: Orkshire | N47: Rd 2 - 0 | S47: Rd 1 - 1 | AP47: Rd 3 - 2
A48: Orkshire Puddings | AO48: Rd 2 - 0 | AT48: Rd 3 - 1 | BQ48: Rd 1 - 2
A49: Salty Bowlers of London | H49: Rd 1 - 0 | K49: Rd 2 - 0 | AK49: Rd 3 - 2
A50: Seagulls 2: Electric Boogaloo | N50: Rd 1 - 1 | P50: Rd 3 - 1 | S50: Rd 2 - 2
A51: Sheffield Stinkweasels | AG51: Rd 3 - 0 | AM51: Rd 1 - 2 | BW51: Rd 2 - 0
A52: Shiretown Stuffers | AI52: Rd 3 - 0 | AO52: Rd 1 - 0 | BQ52: Rd 2 - 0
A53: Smoggies UTFB | R53: Rd 1 - 2 | BC53: Rd 3 - 0 | BE53: Rd 2 - 2
A54: Snake Eyes and GFIs | AN54: Rd 1 - 0 | BM54: Rd 2 - 2 | BV54: Rd 3 - 0
A55: Steph, Stig and The Baldies | D55: Rd 2 - 2 | AA55: Rd 1 - 2 | BA55: Rd 3 - 2
A56: Sutton Immortals | X56: Rd 1 - 1 | AE56: Rd 2 - 2 | AQ56: Rd 3 - 0
A57: T and Three Sugars | O57: Rd 3 - 2 | AR57: Rd 1 - 2 | BA57: Rd 2 - 0
A58: Tacklezone Pirates | AA58: Rd 2 - 1 | BJ58: Rd 3 - 2 | BX58: Rd 1 - 0
A59: Tactics and Theatrics | X59: Rd 2 - 2 | AE59: Rd 1 - 1 | AJ59: Rd 3 - 1
A60: TCC: A Up Me Ducks | B60: Rd 3 - 0 | U60: Rd 2 - 2 | BP60: Rd 1 - 1
A61: TCC: BoBin for Ducks | F61: Rd 2 - 0 | J61: Rd 1 - 2 | Q61: Rd 3 - 1
A62: Team Miss Next Game | C62: Rd 2 - 1 | BF62: Rd 3 - 0 | BS62: Rd 1 - 0
A63: Team Republic Chill Squad | P63: Rd 1 - 1 | X63: Rd 3 - 2 | BU63: Rd 2 - 0
A64: Team Republic Tryhards | L64: Rd 2 - 0 | V64: Rd 3 - 2 | AF64: Rd 1 - 2
A65: Team TimeOut | D65: Rd 1 - 0 | J65: Rd 3 - 1 | BB65: Rd 2 - 0
A66: Team Wales | F66: Rd 1 - 0 | J66: Rd 2 - 2 | AB66: Rd 3 - 1
A67: TeamW | E67: Rd 2 - 0 | T67: Rd 1 - 2 | BT67: Rd 3 - 0
A68: The Democratic Republic of Yorkshire | B68: Rd 2 - 0 | U68: Rd 3 - 2 | BH68: Rd 1 - 1
A69: The Fellowship of the Ball | AN69: Rd 3 - 2 | AV69: Rd 1 - 0 | AZ69: Rd 2 - 2
A70: The GoBBLed | AD70: Rd 3 - 2 | AS70: Rd 1 - 0 | BY70: Rd 2 - 0
A71: The GoBBLers | W71: Rd 2 - 2 | Y71: Rd 3 - 1 | BJ71: Rd 1 - 2
A72: The Merry Men | M72: Rd 2 - 2 | BO72: Rd 3 - 2 | BV72: Rd 1 - 0
A73: Two Guys One Dice Cup | I73: Rd 1 - 1 | N73: Rd 3 - 2 | BK73: Rd 2 - 2
A74: UKBBL Team A | G74: Rd 2 - 0 | BB74: Rd 3 - 2 | BT74: Rd 1 - 2
A75: Waterbowl Team Z | E75: Rd 3 - 2 | AP75: Rd 1 - 2 | AY75: Rd 2 - 2
A76: Wrekin Wraiders | AN76: Rd 2 - 2 | AO76: Rd 3 - 2 | BF76: Rd 1 - 2
A77: Sann Clan | K77: Rd 3 - 1 | AT77: Rd 1 - 0 | BR77: Rd 2 - 2

Sheet Matrix
B1: 8ulldog | C1: BigMace | D1: Vido | E1: NickBell | F1: Bgmclean | G1: Blockparty87 | H1: Squigthrower | I1: Fingers | J1: 03philpota | K1: N'Sh'Koben | L1: Ratmaninov | M1: Sam_Clark | N1: Lycos | O1: Joemanji | P1: Purplegoo | Q1: JimJimany | R1: Shaniepoo1 | S1: Munch | T1: Forgotmytea | U1: Elperas | V1: Valen | W1: Jordellfb | X1: Nobbla | Y1: Deepfruit | Z1: Dayday | AA1: Hendy | AB1: DrTechnoTrousers | AC1: HexBaron | AD1: Dirold | AE1: Liam | AF1: Fackko | AG1: Gallo | AH1: The_mighty_irush | AI1: Turboraptor | AJ1: Shadrak | AK1: Shortstuff | AL1: Pipey | AM1: Mamapepe | AN1: Jeeves | AO1: Shunt | AP1: SilentKnight | AQ1: Chorfling | AR1: Camelchops | AS1: Dusher1 | AT1: GingerB | AU1: CptOats | AV1: Cyritz | AW1: Tyler_Swaft | AX1: Dakyrus | AY1: Padster | AZ1: LORD_BONAN | BA1: Earl_Burgomeister | BB1: EnglishChris | BC1: Beigelantern | BD1: Fluffy_Kraken | BE1: Rhicheese | BF1: Whiskeymancer | BG1: PhilGC | BH1: Maca1066 | BI1: Syntaxerror | BJ1: Tstyx | BK1: Feasteater | BL1: Jamelius | BM1: Chubooga | BN1: MartinVanquish | BO1: Skab | BP1: ThatOtherAsianGuy | BQ1: Aaaardvark101 | BR1: Yurinator | BS1: Edwin | BT1: Joost | BU1: HenningEksteen | BV1: Loynster | BW1: Steairey | BX1: Ahzek | BY1: Taltal | BZ1: Vmcat | CA1: Bsking | CB1: Heff | CC1: Masterful | CD1: King_Ghidra | CE1: Bbart | CF1: BartK | CG1: JuJuu | CH1: Yudlugar | CI1: DimmyGee | CJ1: Hankok | CK1: Elyod | CL1: SickAsEggs | CM1: Keithabix | CN1: Archcoach_Ferdinand | CO1: Tulkus | CP1: Don_Vito | CQ1: Wookiee1972 | CR1: Calfykid | CS1: Whisky_Pip | CT1: Spooner | CU1: Fredmanwalking | CV1: Stonethrowingdevil | CW1: Europanda | CX1: MadeofWelsh | CY1: Ploppy_McPloppy | CZ1: Littlespoon | DA1: Orklabe | DB1: Vulture_Squadron | DC1: 3_Dice_Uphill | DD1: Mazza86 | DE1: HEBBL Team B #4 | DF1: El_Duderino | DG1: Fallingdownjoe | DH1: Raging82 | DI1: DrHellboy_ | DJ1: AndyDavo | DK1: DizzyBess | DL1: Cauleeflower | DM1: SeriouslyImAGiraffe | DN1: Duffins | DO1: Winterb0rn | DP1: TateRolls1s | DQ1: ArcherJ | DR1: LouisX | DS1: Laraigne | DT1: Haktar | DU1: Fondu | DV1: Galladur | DW1: Silkoun | DX1: Biereforever | DY1: Oklaoma | DZ1: Rubble | EA1: Tomfoolery | EB1: MrGreen | EC1: Blackduke | ED1: Maitre_tactac | EE1: Nicap | EF1: OON | EG1: Zahiko | EH1: Firebreather | EI1: Fireolli | EJ1: Ringbeard | EK1: Spob | EL1: Wynters_Dad | EM1: Lpoolcookie | EN1: Pillowfists | EO1: Macster | EP1: Purdindas | EQ1: Sporran | ER1: Gerdleah | ES1: Bb_jock | ET1: Orcthadontist | EU1: WillPower | EV1: Mortal_Wombat | EW1: Aldpoagus | EX1: Badgie | EY1: HighlandEnoch | EZ1: Fleetmacwood | FA1: Thebunneh | FB1: SpaceGandalf | FC1: ChrisRaff88 | FD1: AMSFELD | FE1: I_done_goofd | FF1: LordGarlack | FG1: L0rdgibby | FH1: Gizmo3k | FI1: Pbowman | FJ1: Wobert | FK1: Starkey | FL1: ScalesnScars | FM1: Jago21 | FN1: Papa_laza_rou | FO1: pedro_laserbeard | FP1: Artful_Dodger | FQ1: Ens1ferum | FR1: Cerberus85 | FS1: Spic929 | FT1: edwith1d | FU1: SpaceEcho | FV1: Old_Man_Monkey | FW1: Lord_Bojo | FX1: Cromfrance | FY1: Divergent84 | FZ1: Laser_Owl | GA1: Burtblahblahblah | GB1: McFaff | GC1: Falesh | GD1: Fiddlesticks | GE1: Rydog | GF1: TomTheOwl | GG1: Twoshedzz | GH1: Saltymurcutt | GI1: Grim_Jim | GJ1: Salontiger | GK1: Oranj | GL1: Mournival | GM1: Markymarc | GN1: Shriyke | GO1: Fullfatbeard | GP1: Littleleadperson | GQ1: Nodgefodgekins | GR1: Kyrkedalechris | GS1: Zooey | GT1: Cornish | GU1: Whitey | GV1: Everybodys_Dead_Dave | GW1: El_Spoonio | GX1: Mr_Mezcal | GY1: GrumpyBoyle | GZ1: WoodyWoodPecker | HA1: Geminus_Calvariae | HB1: TheCowDaddy | HC1: Shipaz | HD1: DJCritch | HE1: GustyGarett | HF1: Stick_with_poo_on_the_end | HG1: Warka | HH1: Stephen82 | HI1: Hardcore_Stig | HJ1: Sparky | HK1: Boynamedsue | HL1: Trollface | HM1: Shortstack | HN1: Boldfox | HO1: Kid_Cantcomplain | HP1: Obsydyan | HQ1: Owletta | HR1: Nippylongskar | HS1: JBone | HT1: Wulfyn | HU1: Alex_Pye | HV1: Haychdee | HW1: Breakmonker | HX1: Bloodtithe | HY1: Bashto | HZ1: Indibro | IA1: SkraggDave | IB1: Envoien | IC1: JKB | ID1: Bungeeman | IE1: The_Fritch | IF1: Sean_M | IG1: Rev | IH1: Spleggy | II1: Scouseboy | IJ1: Picnicmik | IK1: TTGumption | IL1: Potatomancer | IM1: Mefspores | IN1: Brickp | IO1: CoachKAS | IP1: GreenSkinPhil | IQ1: Torquemada | IR1: Stratford_ | IS1: Outkast | IT1: Mawph | IU1: Tintenfisch | IV1: Killerpo | IW1: Commisionerref | IX1: Gcoleman | IY1: Celt | IZ1: 20phoenix | JA1: Jayward | JB1: Besters | JC1: Gorgoroth | JD1: PeteW | JE1: ThomasW | JF1: Slimjono | JG1: Loubega | JH1: AWT | JI1: Diaphite | JJ1: Deeferdan | JK1: Mr_Zay | JL1: Lamour | JM1: Thulean | JN1: Randypandy | JO1: Daubs | JP1: Gingerballer | JQ1: Grashnak | JR1: Barnacles | JS1: BROCKdodge | JT1: ICY-Bee | JU1: Elplanet4 | JV1: Cjtaylor_uk | JW1: CharlieBanks | JX1: Bogey105 | JY1: Gitgrinder | JZ1: Chilli | KA1: Fromherashes | KB1: HipsterPotter | KC1: HuntlyLoon | KD1: Insidious | KE1: Khornight | KF1: Lewi88 | KG1: Snowtroll | KH1: Levinas | KI1: Sizzler | KJ1: Vagabond1982uk | KK1: Douglowe | KL1: Speedingbullet | KM1: Dragonborn | KN1: Goldengate | KO1: TheBymster | KP1: Sann0638 | KQ1: Pegleg | KR1: Chicken23 | KS1: Stewbacca | KT1: Purplechest | KU1: DimmyGee | KV1: NecroGnome | KW1: Hankok | KX1: Fromherashes | KY1: GWI1874 | KZ1: Markymarc | LA1: Chilli | LB1: Voodoo_Conversions | LC1: MontagneBlitz | LD1: BigRed | LE1: Gizasix66 | LF1: TheShepherd | LG1: Atlas04 | LH1: Celt | LI1: Nonumber | LJ1: Skab | LK1: FluffyTheAlien | LL1: MartinVanquish | LM1: ThatOtherAsianGuy | LN1: TheFear | LO1: TheBymster | LP1: Dragonborn | LQ1: Speedingbullet | LR1: Spleggy | LS1: Picnicmik | LT1: Scouseboy | LU1: EdWith1DEd | LV1: Slimjono | LW1: Tommonstrosity | LX1: Hammertimehamilton | LY1: Darkstar | LZ1: Loubega | MA1: AWT | MB1: Rinjani | MC1: Tomlin | MD1: Sprinter | ME1: Baki | MF1: Kuei-Jin | MG1: Stimme
A2: 8ulldog | BZ2: R1, 1 - 1 | DC2: R1, 2 - 0 | FO2: R1, 0 - 2 | FU2: R1, 0 - 2 | GJ2: R5, 0 - 2 | HR2: R1, 1 - 1 | IB2: R3, 2 - 0 | JF2: R2, 0 - 2 | LC2: R6, 2 - 0 | LW2: R3, 0 - 2
A3: BigMace | CB3: R1, 2 - 0 | DE3: R1, 1 - 1 | FP3: R1, 0 - 2 | FS3: R1, 0 - 2 | GH3: R5, 0 - 2 | HS3: R1, 2 - 0 | HZ3: R3, 1 - 1 | JH3: R2, 1 - 1 | JI3: R2, 0 - 2 | LE3: R6, 0 - 2 | LV3: R3, 0 - 2
A4: Vido | CC4: R1, 0 - 2 | DD4: R1, 0 - 2 | FQ4: R1, 1 - 1 | FT4: R1, 1 - 1 | GK4: R5, 0 - 2 | HT4: R1, 2 - 0 | IA4: R3, 2 - 0 | JH4: R2, 2 - 0 | JI4: R2, 2 - 0 | LB4: R6, 2 - 0 | LY4: R3, 2 - 0
A5: NickBell | CA5: R1, 1 - 1 | DB5: R1, 0 - 2 | FN5: R1, 0 - 2 | FR5: R1, 1 - 1 | GI5: R5, 1 - 1 | HU5: R1, 0 - 2 | IC5: R3, 0 - 2 | JG5: R2, 2 - 0 | LD5: R6, 2 - 0 | LX5: R3, 1 - 1
A6: Bgmclean | CK6: R1, 0 - 2 | DF6: R3, 2 - 0 | DM6: R2, 0 - 2 | HQ6: R6, 2 - 0 | IH6: R2, 0 - 2 | IJ6: R1, 0 - 2 | IO6: R1, 2 - 0 | JO6: R4, 2 - 0 | KQ6: R1, 1 - 1
A7: Blockparty87 | CI7: R1, 1 - 1 | DG7: R3, 0 - 2 | DL7: R2, 0 - 2 | HP7: R6, 1 - 1 | IH7: R1, 0 - 2 | IK7: R2, 1 - 1 | IL7: R1, 2 - 0 | JN7: R4, 2 - 0 | KR7: R1, 2 - 0
A8: Squigthrower | CJ8: R1, 0 - 2 | DH8: R3, 0 - 2 | DK8: R2, 2 - 0 | HO8: R6, 2 - 0 | II8: R1, 0 - 2 | IJ8: R2, 2 - 0 | IN8: R1, 2 - 0 | JQ8: R4, 2 - 0 | KS8: R1, 2 - 0
A9: Fingers | CH9: R1, 1 - 1 | DI9: R3, 1 - 1 | DJ9: R2, 0 - 2 | HN9: R6, 0 - 2 | II9: R2, 1 - 1 | IK9: R1, 1 - 1 | IM9: R1, 0 - 2 | JP9: R4, 1 - 1 | KP9: R1, 0 - 2
A10: 03philpota | CI10: R3, 1 - 1 | DM10: R6, 1 - 1 | FA10: R3, 0 - 2 | GI10: R4, 2 - 0 | HF10: R2, 0 - 2 | IW10: R1, 2 - 0 | JJ10: R5, 2 - 0 | JT10: R1, 1 - 1 | KH10: R1, 1 - 1
A11: N'Sh'Koben | CH11: R3, 2 - 0 | DL11: R6, 0 - 2 | EX11: R3, 2 - 0 | GK11: R4, 0 - 2 | HI11: R2, 2 - 0 | IU11: R1, 0 - 2 | JM11: R5, 2 - 0 | JR11: R1, 0 - 2 | KK11: R1, 2 - 0
A12: Ratmaninov | CK12: R3, 1 - 1 | DK12: R6, 0 - 2 | EY12: R3, 1 - 1 | GJ12: R4, 0 - 2 | HG12: R2, 0 - 2 | IT12: R1, 2 - 0 | JL12: R5, 2 - 0 | JS12: R1, 1 - 1 | KI12: R1, 1 - 1
A13: Sam_Clark | CJ13: R3, 2 - 0 | DJ13: R6, 0 - 2 | EZ13: R3, 0 - 2 | GH13: R4, 2 - 0 | HH13: R2, 0 - 2 | IV13: R1, 2 - 0 | JK13: R5, 1 - 1 | JU13: R1, 2 - 0 | KJ13: R1, 2 - 0
A14: Lycos | CG14: R1, 1 - 1 | CZ14: R6, 2 - 0 | FF14: R1, 2 - 0 | GZ14: R4, 1 - 1 | HL14: R1, 2 - 0 | IW14: R3, 2 - 0 | JD14: R2, 2 - 0 | KJ14: R3, 0 - 2 | KM14: R1, 1 - 1
A15: Joemanji | CD15: R1, 2 - 0 | CY15: R6, 0 - 2 | FI15: R1, 2 - 0 | GX15: R4, 2 - 0 | HK15: R1, 2 - 0 | IV15: R3, 2 - 0 | JE15: R2, 1 - 1 | KK15: R3, 2 - 0 | KN15: R1, 1 - 1
A16: Purplegoo | CF16: R1, 1 - 1 | DA16: R6, 0 - 2 | FG16: R1, 2 - 0 | HA16: R4, 2 - 0 | HJ16: R1, 0 - 2 | IU16: R3, 2 - 0 | JC16: R2, 1 - 1 | KH16: R3, 0 - 2 | KO16: R1, 1 - 1
A17: JimJimany | CE17: R1, 1 - 1 | CX17: R6, 1 - 1 | FH17: R1, 0 - 2 | GY17: R4, 0 - 2 | HM17: R1, 2 - 0 | IT17: R3, 0 - 2 | JB17: R2, 2 - 0 | KI17: R3, 0 - 2 | KL17: R1, 0 - 2
A18: Shaniepoo1 | X18: R3, 2 - 0 | ET18: R6, 2 - 0 | FE18: R1, 0 - 2 | IA18: R1, 2 - 0 | IG18: R2, 1 - 1 | IZ18: R1, 2 - 0 | JD18: R5, 1 - 1 | MA18: R4, 0 - 2
A19: Munch | Y19: R3, 0 - 2 | EU19: R6, 1 - 1 | FB19: R1, 0 - 2 | IB19: R1, 0 - 2 | IE19: R2, 2 - 0 | IY19: R1, 1 - 1 | JC19: R5, 0 - 2 | MC19: R4, 0 - 2
A20: Forgotmytea | V20: R3, 1 - 1 | EW20: R6, 2 - 0 | FC20: R1, 2 - 0 | IC20: R1, 0 - 2 | ID20: R2, 1 - 1 | IX20: R1, 1 - 1 | JE20: R5, 1 - 1 | LZ20: R4, 0 - 2
A21: Elperas | W21: R3, 0 - 2 | CW21: R3, 2 - 0 | EV21: R6, 2 - 0 | FD21: R1, 0 - 2 | HZ21: R1, 2 - 0 | IF21: R2, 2 - 0 | JA21: R1, 1 - 1 | JB21: R5, 1 - 1 | MB21: R4, 0 - 2
A22: Valen | T22: R3, 1 - 1 | AT22: R1, 0 - 2 | FX22: R4, 2 - 0 | GH22: R1, 2 - 0 | GM22: R5, 2 - 0 | JE22: R1, 0 - 2 | JL22: R1, 1 - 1 | KE22: R2, 1 - 1 | KF22: R3, 1 - 1 | KR22: R1, 2 - 0
A23: Jordellfb | U23: R3, 2 - 0 | AW23: R1, 1 - 1 | FV23: R4, 1 - 1 | GJ23: R1, 0 - 2 | GL23: R5, 2 - 0 | JD23: R1, 1 - 1 | JM23: R1, 0 - 2 | KD23: R2, 2 - 0 | KG23: R3, 2 - 0 | KP23: R1, 1 - 1
A24: Nobbla | R24: R3, 0 - 2 | AU24: R1, 2 - 0 | FY24: R4, 0 - 2 | GI24: R1, 0 - 2 | GO24: R5, 0 - 2 | JC24: R1, 2 - 0 | JK24: R1, 1 - 1 | KE24: R3, 0 - 2 | KF24: R2, 2 - 0 | KS24: R1, 2 - 0
A25: Deepfruit | S25: R3, 2 - 0 | AV25: R1, 2 - 0 | FW25: R4, 0 - 2 | GK25: R1, 0 - 2 | GN25: R5, 0 - 2 | JB25: R1, 0 - 2 | JJ25: R1, 2 - 0 | KD25: R3, 0 - 2 | KG25: R2, 2 - 0 | KQ25: R1, 2 - 0
A26: Dayday | AQ26: R3, 1 - 1 | CV26: R2, 1 - 1 | DS26: R5, 0 - 2 | GH26: R1, 1 - 1 | GO26: R6, 1 - 1 | KO26: R4, 0 - 2 | ME26: R2, 1 - 1
A27: Hendy | AP27: R3, 0 - 2 | CW27: R2, 0 - 2 | DR27: R5, 1 - 1 | GK27: R1, 1 - 1 | GN27: R6, 2 - 0 | KL27: R4, 0 - 2 | MG27: R2, 1 - 1
A28: DrTechnoTrousers | AR28: R3, 1 - 1 | CT28: R2, 2 - 0 | DT28: R5, 0 - 2 | GJ28: R1, 1 - 1 | GL28: R6, 1 - 1 | KN28: R4, 1 - 1 | MD28: R2, 0 - 2
A29: HexBaron | AS29: R3, 1 - 1 | CU29: R2, 2 - 0 | DU29: R5, 2 - 0 | GI29: R1, 2 - 0 | GM29: R6, 2 - 0 | KM29: R4, 0 - 2 | MF29: R2, 0 - 2
A30: Dirold | BF30: R2, 0 - 2 | BO30: R3, 2 - 0 | EV30: R1, 2 - 0 | GP30: R1, 1 - 1 | IJ30: R4, 2 - 0 | IU30: R2, 1 - 1 | JB30: R3, 1 - 1 | JI30: R5, 1 - 1 | JQ30: R6, 0 - 2 | KA30: R1, 0 - 2
A31: Liam | BI31: R2, 2 - 0 | BN31: R3, 2 - 0 | ET31: R1, 0 - 2 | GQ31: R1, 0 - 2 | IK31: R4, 2 - 0 | IT31: R2, 0 - 2 | JD31: R3, 2 - 0 | JH31: R5, 2 - 0 | JO31: R6, 0 - 2 | KB31: R1, 0 - 2
A32: Fackko | BH32: R2, 1 - 1 | BP32: R3, 1 - 1 | EU32: R1, 1 - 1 | GR32: R1, 1 - 1 | II32: R4, 0 - 2 | IV32: R2, 0 - 2 | JE32: R3, 0 - 2 | JG32: R5, 2 - 0 | JP32: R6, 1 - 1 | JZ32: R1, 2 - 0
A33: Gallo | BG33: R2, 0 - 2 | BQ33: R3, 1 - 1 | EW33: R1, 1 - 1 | GS33: R1, 1 - 1 | IH33: R4, 0 - 2 | IW33: R2, 0 - 2 | JC33: R3, 2 - 0 | JF33: R5, 2 - 0 | JN33: R6, 0 - 2 | KC33: R1, 2 - 0
A34: The_mighty_irush | DH34: R4, 1 - 1 | EH34: R1, 2 - 0 | FK34: R1, 0 - 2 | IE34: R3, 1 - 1 | IF34: R1, 2 - 0 | IV34: R3, 2 - 0 | JA34: R2, 0 - 2 | KH34: R1, 0 - 2 | LG34: R6, 1 - 1 | LQ34: R2, 0 - 2
A35: Turboraptor | DF35: R4, 2 - 0 | EK35: R1, 0 - 2 | FJ35: R1, 1 - 1 | ID35: R1, 1 - 1 | IF35: R3, 2 - 0 | IT35: R3, 0 - 2 | IX35: R2, 0 - 2 | KJ35: R1, 2 - 0 | LH35: R6, 2 - 0 | LO35: R2, 2 - 0
A36: Shadrak | DI36: R4, 0 - 2 | EJ36: R1, 0 - 2 | FL36: R1, 1 - 1 | IE36: R1, 0 - 2 | IG36: R3, 2 - 0 | IW36: R3, 0 - 2 | IY36: R2, 0 - 2 | KK36: R1, 1 - 1 | LF36: R6, 0 - 2 | LP36: R2, 2 - 0
A37: Shortstuff | DG37: R4, 0 - 2 | EI37: R1, 0 - 2 | FM37: R1, 1 - 1 | ID37: R3, 2 - 0 | IG37: R1, 0 - 2 | IU37: R3, 2 - 0 | IZ37: R2, 2 - 0 | KI37: R1, 2 - 0 | LI37: R6, 1 - 1 | LN37: R2, 1 - 1
A38: Pipey | CT38: R1, 0 - 2 | EL38: R5, 2 - 0 | FM38: R1, 2 - 0 | GJ38: R2, 2 - 0 | HQ38: R1, 0 - 2 | IX38: R1, 0 - 2 | IY38: R4, 1 - 1 | KP38: R3, 2 - 0 | LV38: R2, 2 - 0 | MG38: R6, 1 - 1
A39: Mamapepe | CV39: R1, 1 - 1 | EO39: R5, 2 - 0 | FJ39: R1, 2 - 0 | GH39: R2, 1 - 1 | HO39: R1, 0 - 2 | IZ39: R1, 1 - 1 | JA39: R4, 1 - 1 | KR39: R3, 2 - 0 | LW39: R2, 2 - 0 | MD39: R6, 0 - 2
A40: Jeeves | CW40: R1, 2 - 0 | EN40: R5, 1 - 1 | FK40: R1, 2 - 0 | GK40: R2, 1 - 1 | HP40: R1, 2 - 0 | IX40: R4, 0 - 2 | JA40: R1, 1 - 1 | KQ40: R3, 0 - 2 | LX40: R2, 2 - 0 | MF40: R6, 1 - 1
A41: Shunt | CU41: R1, 0 - 2 | EM41: R5, 1 - 1 | FL41: R1, 1 - 1 | GI41: R2, 2 - 0 | HN41: R1, 2 - 0 | IY41: R1, 2 - 0 | IZ41: R4, 1 - 1 | KS41: R3, 0 - 2 | LY41: R2, 2 - 0 | ME41: R6, 2 - 0
A42: SilentKnight | AA42: R3, 2 - 0 | EM42: R1, 0 - 2 | EU42: R3, 2 - 0 | HE42: R1, 2 - 0 | HW42: R1, 2 - 0 | IQ42: R2, 1 - 1 | IY42: R1, 1 - 1 | JE42: R6, 0 - 2 | JG42: R1, 0 - 2
A43: Chorfling | Z43: R3, 1 - 1 | EL43: R1, 1 - 1 | EV43: R3, 0 - 2 | HC43: R1, 1 - 1 | HV43: R1, 2 - 0 | IR43: R2, 2 - 0 | JA43: R1, 0 - 2 | JC43: R6, 2 - 0 | JI43: R1, 0 - 2
A44: Camelchops | AB44: R3, 1 - 1 | EN44: R1, 2 - 0 | EW44: R3, 0 - 2 | HD44: R1, 0 - 2 | HY44: R1, 2 - 0 | IS44: R2, 1 - 1 | IZ44: R1, 0 - 2 | JD44: R6, 1 - 1 | JH44: R1, 2 - 0
A45: Dusher1 | AC45: R3, 1 - 1 | EO45: R1, 2 - 0 | ET45: R3, 2 - 0 | HB45: R1, 2 - 0 | HX45: R1, 1 - 1 | IP45: R2, 1 - 1 | IX45: R1, 0 - 2 | JB45: R6, 1 - 1 | JF45: R1, 0 - 2
A46: GingerB | V46: R1, 2 - 0 | DC46: R1, 1 - 1 | DH46: R1, 2 - 0 | DS46: R3, 2 - 0 | FE46: R2, 0 - 2 | GE46: R1, 2 - 0 | JM46: R6, 0 - 2 | JY46: R2, 0 - 2 | KI46: R4, 2 - 0 | LB46: R3, 0 - 2
A47: CptOats | X47: R1, 0 - 2 | DE47: R1, 0 - 2 | DG47: R1, 0 - 2 | DR47: R3, 2 - 0 | FD47: R2, 0 - 2 | GF47: R1, 2 - 0 | JL47: R6, 0 - 2 | JW47: R2, 0 - 2 | KJ47: R4, 0 - 2 | LE47: R3, 0 - 2
A48: Cyritz | Y48: R1, 0 - 2 | DD48: R1, 1 - 1 | DF48: R1, 0 - 2 | DU48: R3, 1 - 1 | FC48: R2, 0 - 2 | GD48: R1, 0 - 2 | JK48: R6, 1 - 1 | JX48: R2, 1 - 1 | KH48: R4, 0 - 2 | LC48: R3, 2 - 0
A49: Tyler_Swaft | W49: R1, 1 - 1 | DB49: R1, 1 - 1 | DI49: R1, 2 - 0 | DT49: R3, 2 - 0 | FB49: R2, 1 - 1 | GG49: R1, 2 - 0 | JJ49: R6, 1 - 1 | JV49: R2, 2 - 0 | KK49: R4, 0 - 2 | LD49: R3, 2 - 0
A50: Dakyrus | EW50: R5, 0 - 2 | FE50: R1, 1 - 1 | GA50: R6, 2 - 0 | GC50: R2, 2 - 0 | GN50: R1, 1 - 1 | HQ50: R1, 0 - 2 | HS50: R2, 0 - 2 | JK50: R3, 0 - 2 | KB50: R3, 0 - 2
A51: Padster | EU51: R5, 2 - 0 | FB51: R1, 2 - 0 | GB51: R2, 2 - 0 | GC51: R6, 1 - 1 | GL51: R1, 1 - 1 | HO51: R1, 1 - 1 | HR51: R2, 0 - 2 | JM51: R3, 0 - 2 | JZ51: R3, 1 - 1
A52: LORD_BONAN | EV52: R5, 2 - 0 | FC52: R1, 1 - 1 | FZ52: R6, 0 - 2 | GA52: R2, 0 - 2 | GO52: R1, 0 - 2 | HP52: R1, 0 - 2 | HU52: R2, 2 - 0 | JJ52: R3, 0 - 2 | KC52: R3, 0 - 2
A53: Earl_Burgomeister | ET53: R5, 2 - 0 | FD53: R1, 2 - 0 | FZ53: R2, 2 - 0 | GB53: R6, 2 - 0 | GM53: R1, 2 - 0 | HN53: R1, 1 - 1 | HT53: R2, 0 - 2 | JL53: R3, 2 - 0 | KA53: R3, 1 - 1
A54: EnglishChris | CP54: R1, 1 - 1 | EF54: R2, 2 - 0 | FF54: R3, 2 - 0 | GK54: R1, 1 - 1 | GR54: R1, 0 - 2 | GW54: R2, 0 - 2 | HQ54: R3, 1 - 1 | KQ54: R6, 0 - 2 | LN54: R5, 0 - 2
A55: Beigelantern | CS55: R1, 0 - 2 | ED55: R2, 0 - 2 | FI55: R3, 2 - 0 | GJ55: R1, 1 - 1 | GP55: R1, 0 - 2 | GV55: R2, 1 - 1 | HP55: R3, 0 - 2 | KP55: R6, 0 - 2 | LO55: R5, 0 - 2
A56: Fluffy_Kraken | CR56: R1, 0 - 2 | EE56: R2, 1 - 1 | FH56: R3, 0 - 2 | GH56: R1, 0 - 2 | GS56: R1, 0 - 2 | GT56: R2, 1 - 1 | HN56: R3, 1 - 1 | KR56: R6, 0 - 2 | LP56: R5, 2 - 0
A57: Rhicheese | CQ57: R1, 0 - 2 | EG57: R2, 2 - 0 | FG57: R3, 0 - 2 | GI57: R1, 2 - 0 | GQ57: R1, 0 - 2 | GU57: R2, 2 - 0 | HO57: R3, 0 - 2 | KS57: R6, 1 - 1 | LQ57: R5, 1 - 1
A58: Whiskeymancer | AD58: R2, 2 - 0 | DQ58: R1, 2 - 0 | FH58: R1, 0 - 2 | GM58: R3, 2 - 0 | HF58: R5, 1 - 1 | IN58: R1, 0 - 2 | IY58: R1, 0 - 2 | JL58: R1, 0 - 2 | JS58: R2, 2 - 0 | KD58: R6, 2 - 0 | LR58: R4, 0 - 2
A59: PhilGC | AG59: R2, 2 - 0 | DN59: R1, 2 - 0 | FG59: R1, 1 - 1 | GO59: R3, 2 - 0 | HG59: R5, 2 - 0 | IL59: R1, 2 - 0 | JA59: R1, 1 - 1 | JM59: R1, 1 - 1 | JR59: R2, 1 - 1 | KG59: R6, 2 - 0 | LT59: R4, 0 - 2
A60: Maca1066 | AF60: R2, 1 - 1 | DP60: R1, 2 - 0 | FI60: R1, 0 - 2 | GL60: R3, 0 - 2 | HI60: R5, 2 - 0 | IO60: R1, 1 - 1 | IZ60: R1, 1 - 1 | JJ60: R1, 0 - 2 | JU60: R2, 0 - 2 | KF60: R6, 2 - 0 | LS60: R4, 1 - 1
A61: Syntaxerror | AE61: R2, 0 - 2 | DO61: R1, 2 - 0 | FF61: R1, 0 - 2 | GN61: R3, 0 - 2 | HH61: R5, 0 - 2 | IM61: R1, 1 - 1 | IX61: R1, 1 - 1 | JK61: R1, 0 - 2 | JT61: R2, 1 - 1 | KE61: R6, 1 - 1 | LU61: R4, 2 - 0
A62: Tstyx | DL62: R2, 1 - 1 | EG62: R4, 2 - 0 | EK62: R6, 2 - 0 | EP62: R1, 0 - 2 | EQ62: R1, 0 - 2 | HG62: R3, 1 - 1 | IF62: R3, 1 - 1 | JB62: R2, 0 - 2 | JY62: R5, 0 - 2 | KK62: R1, 2 - 0
A63: Feasteater | DK63: R2, 1 - 1 | EF63: R4, 0 - 2 | EH63: R6, 0 - 2 | EP63: R1, 0 - 2 | EQ63: R1, 1 - 1 | HI63: R3, 0 - 2 | IG63: R3, 2 - 0 | JC63: R2, 2 - 0 | JX63: R5, 1 - 1 | KI63: R1, 0 - 2
A64: Jamelius | DM64: R2, 2 - 0 | ED64: R4, 1 - 1 | EJ64: R6, 1 - 1 | ER64: R1, 0 - 2 | ES64: R1, 0 - 2 | HF64: R3, 0 - 2 | ID64: R3, 1 - 1 | JD64: R2, 2 - 0 | JV64: R5, 0 - 2 | KH64: R1, 2 - 0
A65: Chubooga | DJ65: R2, 2 - 0 | EE65: R4, 0 - 2 | EI65: R6, 2 - 0 | ER65: R1, 0 - 2 | ES65: R1, 0 - 2 | HH65: R3, 1 - 1 | IE65: R3, 0 - 2 | JE65: R2, 2 - 0 | JW65: R5, 1 - 1 | KJ65: R1, 0 - 2
A66: MartinVanquish | AE66: R3, 0 - 2 | FK66: R1, 2 - 0 | FN66: R2, 2 - 0 | GG66: R4, 2 - 0 | GX66: R1, 0 - 2 | HA66: R3, 2 - 0 | HE66: R5, 1 - 1 | HR66: R1, 2 - 0 | IF66: R6, 2 - 0 | JQ66: R1, 2 - 0
A67: Skab | AD67: R3, 0 - 2 | FL67: R1, 0 - 2 | FQ67: R2, 0 - 2 | GE67: R4, 0 - 2 | GY67: R3, 1 - 1 | GZ67: R1, 1 - 1 | HD67: R5, 1 - 1 | HS67: R1, 1 - 1 | IG67: R6, 0 - 2 | JN67: R1, 0 - 2
A68: ThatOtherAsianGuy | AF68: R3, 1 - 1 | FJ68: R1, 1 - 1 | FO68: R2, 2 - 0 | GF68: R4, 0 - 2 | GZ68: R3, 2 - 0 | HA68: R1, 0 - 2 | HB68: R5, 2 - 0 | HT68: R1, 1 - 1 | IE68: R6, 2 - 0 | JO68: R1, 2 - 0
A69: Aaaardvark101 | AG69: R3, 1 - 1 | FM69: R1, 2 - 0 | FP69: R2, 0 - 2 | GD69: R4, 1 - 1 | GX69: R3, 0 - 2 | GY69: R1, 2 - 0 | HC69: R5, 1 - 1 | HU69: R1, 2 - 0 | ID69: R6, 2 - 0 | JP69: R1, 1 - 1
A70: Yurinator | DZ70: R1, 2 - 0 | FJ70: R4, 1 - 1 | FN70: R3, 1 - 1 | FO70: R6, 0 - 2 | FZ70: R1, 0 - 2 | GM70: R2, 0 - 2 | HQ70: R3, 2 - 0 | JK70: R1, 2 - 0 | JZ70: R5, 2 - 0 | LG70: R2, 2 - 0
A71: Edwin | EC71: R1, 1 - 1 | FK71: R4, 0 - 2 | FP71: R3, 1 - 1 | GB71: R1, 2 - 0 | GL71: R2, 1 - 1 | HO71: R3, 2 - 0 | JL71: R1, 2 - 0 | KB71: R5, 0 - 2 | LI71: R2, 2 - 0
A72: Joost | EA72: R1, 2 - 0 | FM72: R4, 0 - 2 | FO72: R3, 0 - 2 | FQ72: R6, 1 - 1 | GC72: R1, 0 - 2 | GN72: R2, 2 - 0 | HP72: R3, 1 - 1 | JJ72: R1, 2 - 0 | KC72: R5, 2 - 0 | LH72: R2, 0 - 2
A73: HenningEksteen | EB73: R1, 1 - 1 | FL73: R4, 0 - 2 | FN73: R6, 2 - 0 | FQ73: R3, 1 - 1 | GA73: R1, 2 - 0 | GO73: R2, 0 - 2 | HN73: R3, 1 - 1 | JM73: R1, 1 - 1 | KA73: R5, 1 - 1 | LF73: R2, 0 - 2
A74: Loynster | CW74: R3, 0 - 2 | DO74: R6, 1 - 1 | DU74: R1, 2 - 0 | EO74: R2, 1 - 1 | IO74: R1, 0 - 2 | JD74: R1, 0 - 2 | JI74: R3, 2 - 0 | JU74: R4, 2 - 0 | KC74: R1, 1 - 1 | KM74: R1, 1 - 1
A75: Steairey | CU75: R3, 1 - 1 | DQ75: R6, 0 - 2 | DR75: R1, 1 - 1 | EM75: R2, 2 - 0 | IN75: R1, 1 - 1 | JC75: R1, 2 - 0 | JH75: R3, 2 - 0 | JS75: R4, 2 - 0 | JZ75: R1, 0 - 2 | KN75: R1, 0 - 2
A76: Ahzek | CV76: R3, 0 - 2 | DN76: R6, 1 - 1 | DS76: R1, 1 - 1 | EL76: R2, 1 - 1 | IL76: R1, 1 - 1 | JB76: R1, 1 - 1 | JG76: R3, 2 - 0 | JT76: R4, 0 - 2 | KA76: R1, 2 - 0 | KL76: R1, 0 - 2
A77: Taltal | CT77: R3, 0 - 2 | DP77: R6, 0 - 2 | DT77: R1, 2 - 0 | EN77: R2, 2 - 0 | IM77: R1, 0 - 2 | JE77: R1, 0 - 2 | JF77: R3, 2 - 0 | JR77: R4, 1 - 1 | KB77: R1, 1 - 1 | KO77: R1, 1 - 1
A78: Vmcat | B78: R1, 1 - 1 | GU78: R1, 2 - 0 | IB78: R2, 2 - 0 | IU78: R4, 1 - 1 | JH78: R3, 0 - 2 | KT78: R3, 1 - 1 | LE78: R2, 2 - 0 | MC78: R5, 2 - 0
A79: Bsking | E79: R1, 1 - 1 | GT79: R1, 1 - 1 | HZ79: R2, 0 - 2 | IT79: R4, 1 - 1 | JG79: R3, 0 - 2 | KV79: R3, 0 - 2 | LD79: R2, 2 - 0 | MB79: R5, 1 - 1
A80: Heff | C80: R1, 0 - 2 | GV80: R1, 1 - 1 | IA80: R2, 0 - 2 | IW80: R4, 0 - 2 | JI80: R3, 0 - 2 | KU80: R3, 0 - 2 | LB80: R2, 0 - 2 | MA80: R5, 1 - 1
A81: Masterful | D81: R1, 2 - 0 | GW81: R1, 2 - 0 | IC81: R2, 1 - 1 | IV81: R4, 1 - 1 | JF81: R3, 2 - 0 | KW81: R3, 1 - 1 | LC81: R2, 2 - 0 | LZ81: R5, 0 - 2
A82: King_Ghidra | O82: R1, 0 - 2 | DR82: R2, 2 - 0 | EE82: R1, 1 - 1 | FI82: R5, 0 - 2 | HZ82: R1, 1 - 1 | IR82: R3, 1 - 1 | JX82: R6, 0 - 2 | KN82: R1, 1 - 1 | LK82: R3, 1 - 1 | LY82: R4, 0 - 2
A83: Bbart | Q83: R1, 1 - 1 | DT83: R2, 0 - 2 | ED83: R1, 0 - 2 | FG83: R5, 0 - 2 | IA83: R1, 0 - 2 | IQ83: R3, 0 - 2 | JW83: R6, 0 - 2 | KM83: R1, 0 - 2 | LL83: R3, 2 - 0 | LX83: R4, 2 - 0
A84: BartK | P84: R1, 1 - 1 | DS84: R2, 2 - 0 | EG84: R1, 0 - 2 | FF84: R5, 0 - 2 | IC84: R1, 1 - 1 | IP84: R3, 0 - 2 | JY84: R6, 2 - 0 | KO84: R1, 0 - 2 | LM84: R3, 2 - 0 | LW84: R4, 0 - 2
A85: JuJuu | N85: R1, 1 - 1 | DU85: R2, 1 - 1 | EF85: R1, 0 - 2 | FH85: R5, 2 - 0 | IB85: R1, 0 - 2 | IS85: R3, 1 - 1 | JV85: R6, 2 - 0 | KL85: R1, 2 - 0 | LJ85: R3, 0 - 2 | LV85: R4, 2 - 0
A86: Yudlugar | I86: R1, 1 - 1 | K86: R3, 0 - 2 | DI86: R3, 2 - 0 | DR86: R6, 0 - 2 | EJ86: R1, 1 - 1 | FC86: R4, 2 - 0 | IH86: R1, 1 - 1 | IM86: R5, 0 - 2 | IR86: R1, 1 - 1 | JU86: R2, 0 - 2 | KD86: R2, 2 - 0
A87: DimmyGee | G87: R1, 1 - 1 | J87: R3, 1 - 1 | DF87: R3, 0 - 2 | DU87: R6, 0 - 2 | EI87: R1, 1 - 1 | FD87: R4, 0 - 2 | II87: R1, 1 - 1 | IL87: R5, 0 - 2 | IQ87: R1, 1 - 1 | JT87: R2, 0 - 2 | KG87: R2, 1 - 1
A88: Hankok | H88: R1, 2 - 0 | M88: R3, 0 - 2 | DG88: R3, 0 - 2 | DT88: R6, 1 - 1 | EH88: R1, 2 - 0 | FE88: R4, 0 - 2 | IJ88: R1, 0 - 2 | IO88: R5, 0 - 2 | IS88: R1, 2 - 0 | JS88: R2, 1 - 1 | KF88: R2, 2 - 0
A89: Elyod | F89: R1, 2 - 0 | L89: R3, 1 - 1 | DH89: R3, 1 - 1 | DS89: R6, 1 - 1 | EK89: R1, 1 - 1 | FB89: R4, 0 - 2 | IK89: R1, 2 - 0 | IN89: R5, 2 - 0 | IP89: R1, 0 - 2 | JR89: R2, 1 - 1 | KE89: R2, 2 - 0
A90: SickAsEggs | DQ90: R3, 2 - 0 | FL90: R1, 1 - 1 | HH90: R1, 0 - 2 | HJ90: R5, 2 - 0 | HK90: R1, 2 - 0 | HS90: R6, 2 - 0 | HY90: R2, 0 - 2 | IN90: R3, 1 - 1 | JE90: R1, 1 - 1
A91: Keithabix | DP91: R3, 2 - 0 | FM91: R1, 0 - 2 | HI91: R1, 1 - 1 | HM91: R1, 0 - 2 | HT91: R6, 1 - 1 | HV91: R2, 1 - 1 | IO91: R3, 0 - 2 | JD91: R1, 1 - 1
A92: Archcoach_Ferdinand | DO92: R3, 0 - 2 | FK92: R1, 0 - 2 | HG92: R1, 2 - 0 | HL92: R1, 1 - 1 | HU92: R6, 2 - 0 | HW92: R2, 0 - 2 | IL92: R3, 0 - 2 | JB92: R1, 2 - 0
A93: Tulkus | DN93: R3, 2 - 0 | FJ93: R1, 0 - 2 | HF93: R1, 2 - 0 | HJ93: R1, 1 - 1 | HK93: R5, 2 - 0 | HR93: R6, 1 - 1 | HX93: R2, 0 - 2 | IM93: R3, 1 - 1 | JC93: R1, 2 - 0
A94: Don_Vito | BB94: R1, 1 - 1 | DW94: R2, 0 - 2 | DY94: R6, 0 - 2 | GA94: R5, 2 - 0 | GN94: R3, 0 - 2 | GO94: R1, 1 - 1 | HA94: R1, 0 - 2 | JT94: R3, 1 - 1
A95: Wookiee1972 | BE95: R1, 2 - 0 | CW95: R1, 0 - 2 | DV95: R6, 1 - 1 | DY95: R2, 2 - 0 | GB95: R5, 2 - 0 | GL95: R1, 0 - 2 | GM95: R3, 0 - 2 | GY95: R1, 1 - 1 | JR95: R3, 2 - 0
A96: Calfykid | BD96: R1, 2 - 0 | DX96: R2, 2 - 0 | GC96: R5, 2 - 0 | GM96: R1, 0 - 2 | GO96: R3, 1 - 1 | GX96: R1, 0 - 2 | JU96: R3, 0 - 2
A97: Whisky_Pip | BC97: R1, 2 - 0 | DV97: R2, 1 - 1 | DW97: R6, 0 - 2 | FZ97: R5, 0 - 2 | GL97: R3, 1 - 1 | GN97: R1, 2 - 0 | GZ97: R1, 1 - 1 | JS97: R3, 1 - 1
A98: Spooner | AB98: R2, 0 - 2 | AL98: R1, 2 - 0 | BY98: R3, 2 - 0 | CZ98: R1, 0 - 2 | DN98: R4, 2 - 0 | GC98: R1, 0 - 2 | IV98: R1, 2 - 0 | KA98: R6, 1 - 1 | KI98: R5, 2 - 0 | KU98: R2, 0 - 2
A99: Fredmanwalking | AC99: R2, 0 - 2 | AO99: R1, 2 - 0 | BW99: R3, 1 - 1 | DA99: R1, 1 - 1 | DQ99: R4, 0 - 2 | GA99: R1, 2 - 0 | IT99: R1, 2 - 0 | JZ99: R6, 2 - 0 | KH99: R5, 1 - 1 | KW99: R2, 1 - 1
A100: Stonethrowingdevil | Z100: R2, 1 - 1 | AM100: R1, 1 - 1 | BX100: R3, 2 - 0 | CX100: R1, 2 - 0 | DO100: R4, 1 - 1 | GB100: R1, 0 - 2 | IU100: R1, 0 - 2 | KB100: R6, 1 - 1 | KK100: R5, 0 - 2 | KV100: R2, 1 - 1
A101: Europanda | AA101: R2, 2 - 0 | AN101: R1, 0 - 2 | BV101: R3, 2 - 0 | CY101: R1, 0 - 2 | DP101: R4, 1 - 1 | FZ101: R1, 2 - 0 | IW101: R1, 0 - 2 | KC101: R6, 2 - 0 | KJ101: R5, 2 - 0 | KT101: R2, 0 - 2
A102: MadeofWelsh | DH102: R2, 0 - 2 | DN102: R3, 2 - 0 | DR102: R1, 2 - 0 | EF102: R3, 0 - 2 | EM102: R1, 1 - 1 | EY102: R4, 2 - 0 | HH102: R1, 0 - 2 | HR102: R2, 0 - 2 | KD102: R1, 0 - 2 | KG102: R5, 2 - 0
A103: Ploppy_McPloppy | CW103: R1, 2 - 0 | DG103: R2, 1 - 1 | DP103: R3, 2 - 0 | DU103: R1, 1 - 1 | EE103: R3, 2 - 0 | EN103: R1, 2 - 0 | FA103: R4, 0 - 2 | HI103: R1, 2 - 0 | HT103: R2, 2 - 0 | KE103: R1, 1 - 1 | KF103: R5, 2 - 0
A104: Littlespoon | DI104: R2, 0 - 2 | DQ104: R3, 2 - 0 | DT104: R1, 0 - 2 | ED104: R3, 1 - 1 | EO104: R1, 2 - 0 | EX104: R4, 1 - 1 | HG104: R1, 0 - 2 | HU104: R2, 2 - 0 | KE104: R5, 2 - 0 | KG104: R1, 2 - 0
A105: Orklabe | DF105: R2, 0 - 2 | DO105: R3, 0 - 2 | DS105: R1, 0 - 2 | EG105: R3, 2 - 0 | EL105: R1, 1 - 1 | EZ105: R4, 2 - 0 | HF105: R1, 0 - 2 | HS105: R2, 0 - 2 | KD105: R5, 2 - 0 | KF105: R1, 1 - 1
A106: Vulture_Squadron | DL106: R1, 2 - 0 | EF106: R1, 0 - 2 | EP106: R2, 2 - 0 | FA106: R1, 0 - 2 | FT106: R2, 0 - 2 | FX106: R6, 2 - 0 | GE106: R3, 0 - 2 | HL106: R4, 2 - 0 | ID106: R5, 0 - 2 | JA106: R3, 0 - 2
A107: 3_Dice_Uphill | DJ107: R1, 2 - 0 | EE107: R1, 0 - 2 | ER107: R2, 0 - 2 | EX107: R1, 1 - 1 | FS107: R2, 2 - 0 | FV107: R6, 2 - 0 | GD107: R3, 1 - 1 | HM107: R4, 2 - 0 | IE107: R5, 0 - 2 | IX107: R3, 1 - 1
A108: Mazza86 | DK108: R1, 1 - 1 | EG108: R1, 0 - 2 | EQ108: R2, 0 - 2 | EY108: R1, 1 - 1 | FU108: R2, 2 - 0 | FY108: R6, 2 - 0 | GF108: R3, 1 - 1 | HK108: R4, 2 - 0 | IF108: R5, 0 - 2 | IZ108: R3, 2 - 0
A109: HEBBL Team B #4 | DM109: R1, 2 - 0 | ED109: R1, 0 - 2 | ES109: R2, 0 - 2 | EZ109: R1, 0 - 2 | FR109: R2, 1 - 1 | FW109: R6, 2 - 0 | GG109: R3, 0 - 2 | HJ109: R4, 0 - 2 | IG109: R5, 1 - 1 | IY109: R3, 1 - 1
A110: El_Duderino | F110: R3, 0 - 2 | DA110: R2, 2 - 0 | DZ110: R1, 0 - 2 | EC110: R1, 2 - 0 | FK110: R2, 0 - 2 | GE110: R5, 0 - 2 | IA110: R6, 1 - 1 | KN110: R1, 1 - 1 | KW110: R1, 1 - 0
A111: Fallingdownjoe | G111: R3, 2 - 0 | CY111: R2, 1 - 1 | DZ111: R1, 2 - 0 | EA111: R1, 1 - 1 | FM111: R2, 0 - 2 | GG111: R5, 2 - 0 | IB111: R6, 0 - 2 | KO111: R1, 2 - 0 | KU111: R1, 2 - 0
A112: Raging82 | H112: R3, 2 - 0 | CX112: R2, 2 - 0 | EB112: R1, 1 - 1 | FJ112: R2, 2 - 0 | GD112: R5, 1 - 1 | HZ112: R6, 2 - 0 | KM112: R1, 0 - 2 | KV112: R1, 0 - 2
A113: DrHellboy_ | I113: R3, 1 - 1 | CZ113: R2, 2 - 0 | EA113: R1, 2 - 0 | EC113: R1, 2 - 0 | FL113: R2, 0 - 2 | GF113: R5, 1 - 1 | IC113: R6, 1 - 1 | KL113: R1, 0 - 2 | KT113: R1, 2 - 0
A114: AndyDavo | BM114: R2, 0 - 2 | DC114: R1, 0 - 2 | ER114: R1, 1 - 1 | GP114: R1, 0 - 2 | HI114: R1, 2 - 0 | HY114: R3, 1 - 1 | IP114: R4, 0 - 2 | JQ114: R3, 1 - 1 | JX114: R1, 1 - 1 | KN114: R5, 0 - 2
A115: DizzyBess | BK115: R2, 1 - 1 | DD115: R1, 1 - 1 | ES115: R1, 2 - 0 | GS115: R1, 0 - 2 | HH115: R1, 0 - 2 | HW115: R3, 0 - 2 | IR115: R4, 2 - 0 | JP115: R3, 1 - 1 | JY115: R1, 2 - 0 | KM115: R5, 0 - 2
A116: Cauleeflower | BJ116: R2, 1 - 1 | DB116: R1, 0 - 2 | EP116: R1, 0 - 2 | GR116: R1, 0 - 2 | HF116: R1, 2 - 0 | HX116: R3, 0 - 2 | IS116: R4, 0 - 2 | JO116: R3, 0 - 2 | JW116: R1, 2 - 0 | KO116: R5, 0 - 2
A117: SeriouslyImAGiraffe | BL117: R2, 0 - 2 | DE117: R1, 0 - 2 | EQ117: R1, 2 - 0 | GQ117: R1, 0 - 2 | HG117: R1, 2 - 0 | HV117: R3, 1 - 1 | IQ117: R4, 2 - 0 | JN117: R3, 0 - 2 | JV117: R1, 2 - 0 | KL117: R5, 1 - 1
A118: Duffins | CX118: R3, 0 - 2 | EM118: R1, 1 - 1 | EW118: R2, 2 - 0 | HJ118: R2, 0 - 2 | HK118: R1, 0 - 2 | HS118: R1, 1 - 1 | HX118: R1, 1 - 1 | LE118: R5, 2 - 0
A119: Winterb0rn | DA119: R3, 2 - 0 | EO119: R1, 0 - 2 | ET119: R2, 2 - 0 | HJ119: R1, 2 - 0 | HK119: R2, 0 - 2 | HT119: R1, 1 - 1 | HY119: R1, 0 - 2 | LB119: R5, 2 - 0
A120: TateRolls1s | CW120: R4, 1 - 1 | CY120: R3, 0 - 2 | EN120: R1, 1 - 1 | EU120: R2, 2 - 0 | HL120: R2, 2 - 0 | HR120: R1, 2 - 0 | HW120: R1, 1 - 1 | LC120: R5, 2 - 0
A121: ArcherJ | CZ121: R3, 0 - 2 | EL121: R1, 0 - 2 | EV121: R2, 2 - 0 | HM121: R2, 0 - 2 | HU121: R1, 0 - 2 | HV121: R1, 2 - 0 | LD121: R5, 2 - 0
A122: LouisX | AU122: R3, 0 - 2 | CD122: R2, 0 - 2 | CX122: R1, 0 - 2 | GR122: R1, 2 - 0 | II122: R1, 2 - 0 | IJ122: R3, 2 - 0 | IS122: R1, 0 - 2 | JZ122: R2, 1 - 1 | LH122: R4, 0 - 2
A123: Laraigne | AT123: R3, 0 - 2 | CF123: R2, 0 - 2 | DA123: R1, 2 - 0 | GQ123: R1, 1 - 1 | IK123: R1, 1 - 1 | IQ123: R1, 2 - 0 | KC123: R2, 2 - 0 | LF123: R4, 1 - 1
A124: Haktar | AW124: R3, 0 - 2 | CE124: R2, 2 - 0 | CZ124: R1, 2 - 0 | GP124: R1, 0 - 2 | II124: R3, 2 - 0 | IJ124: R1, 0 - 2 | IR124: R1, 1 - 1 | KB124: R2, 0 - 2 | LI124: R4, 0 - 2
A125: Fondu | AV125: R3, 1 - 1 | CG125: R2, 1 - 1 | CY125: R1, 1 - 1 | GS125: R1, 1 - 1 | IH125: R1, 0 - 2 | IP125: R1, 0 - 2 | KA125: R2, 0 - 2 | LG125: R4, 0 - 2
... 156 more rows

Sheet Numbers
A1: Position
A2: 1
A3: 2
A4: 3
A5: 4
A6: 5
A7: 6
A8: 7
A9: 8
A10: 9
A11: 10
A12: 11
A13: 12
A14: 13
A15: 14
A16: 15
A17: 16
A18: 17
A19: 18
A20: 19
A21: 20
A22: 21
A23: 22
A24: 23
A25: 24
A26: 25
A27: 26
A28: 27
A29: 28
A30: 29
A31: 30
A32: 31
A33: 32
A34: 33
A35: 34
A36: 35
A37: 36
A38: 37
A39: 38
A40: 39
A41: 40
A42: 41
A43: 42
A44: 43
A45: 44
A46: 45
A47: 46
A48: 47
A49: 48
A50: 49
A51: 50
A52: 51
A53: 52
A54: 53
A55: 54
A56: 55
A57: 56
A58: 57
A59: 58
A60: 59
A61: 60
A62: 61
A63: 62
A64: 63
A65: 64
A66: 65
A67: 66
A68: 67
A69: 68
A70: 69
A71: 70
A72: 71
A73: 72
A74: 73
A75: 74
A76: 75
A77: 76
A78: 77
A79: 78
A80: 79
A81: 80
A82: 81
A83: 82
A84: 83
A85: 84
A86: 85
A87: 86
A88: 87
A89: 88
A90: 89
A91: 90
A92: 91
A93: 92
A94: 93
A95: 94
A96: 95
A97: 96
A98: 97
A99: 98
A100: 99
A101: 100
A102: 101
A103: 102
A104: 103
A105: 104
A106: 105
A107: 106
A108: 107
A109: 108
A110: 109
A111: 110
A112: 111
A113: 112
A114: 113
A115: 114
A116: 115
A117: 116
A118: 117
A119: 118
A120: 119
A121: 120
A122: 121
A123: 122
A124: 123
A125: 124
A126: 125
A127: 126
A128: 127
A129: 128
A130: 129
A131: 130
A132: 131
A133: 132
A134: 133
A135: 134
A136: 135
A137: 136
A138: 137
A139: 138
A140: 139
A141: 140
A142: 141
A143: 142
A144: 143
A145: 144
A146: 145
A147: 146
A148: 147
A149: 148
A150: 149
A151: 150
A152: 151
A153: 152
A154: 153
A155: 154
A156: 155
A157: 156
A158: 157
A159: 158
A160: 159
A161: 160
A162: 161
A163: 162
A164: 163
A165: 164
A166: 165
A167: 166
A168: 167
A169: 168
A170: 169
A171: 170
A172: 171
A173: 172
A174: 173
A175: 174
A176: 175
A177: 176
A178: 177
A179: 178
A180: 179
A181: 180
A182: 181
A183: 182
A184: 183
A185: 184
A186: 185
A187: 186
A188: 187
A189: 188
A190: 189
A191: 190
A192: 191
A193: 192
A194: 193
A195: 194
A196: 195
A197: 196
A198: 197
A199: 198
A200: 199
... 105 more rows

Sheet NAF
A1: <?xml version="1.0" encoding="UTF-8"?>
A2: <nafReport xmlns:blo="http://www.bloodbowl.net">
A3: <organiser>me</organiser>
A4: <coaches>
A5: <coach>
A6: <name>8ulldog</name>
A7: <number>18620</number>
A8: <team>Orc</team>
A9: </coach>
A10: <coach>
A11: <name>BigMace</name>
A12: <number>32560</number>
A13: <team>Chaos Renegade</team>
A14: </coach>
A15: <coach>
A16: <name>Vido</name>
A17: <number>35807</number>
A18: <team>Necromantic Horror</team>
A19: </coach>
A20: <coach>
A21: <name>NickBell</name>
A22: <number>36131</number>
A23: <team>Dark Elf</team>
A24: </coach>
A25: <coach>
A26: <name>Bgmclean</name>
A27: <number>26021</number>
A28: <team>Amazon</team>
A29: </coach>
A30: <coach>
A31: <name>Blockparty87</name>
A32: <number>29052</number>
A33: <team>Halfling</team>
A34: </coach>
A35: <coach>
A36: <name>Squigthrower</name>
A37: <number>30295</number>
A38: <team>Snotling</team>
A39: </coach>
A40: <coach>
A41: <name>Fingers</name>
A42: <number>33910</number>
A43: <team>Necromantic Horror</team>
A44: </coach>
A45: <coach>
A46: <name>03philpota</name>
A47: <number>30042</number>
A48: <team>Elf Union</team>
A49: </coach>
A65: <coach>
A66: <name>Lycos</name>
A67: <number>2870</number>
A68: <team>Vampire</team>
A69: </coach>
A70: <coach>
A71: <name>Joemanji</name>
A72: <number>3312</number>
A73: <team>Amazon</team>
A74: </coach>
A75: <coach>
A76: <name>Purplegoo</name>
A77: <number>11777</number>
A78: <team>Tomb Kings</team>
A79: </coach>
A80: <coach>
A81: <name>JimJimany</name>
A82: <number>12403</number>
A83: <team>Gnome</team>
A84: </coach>
A85: <coach>
A86: <name>Shaniepoo1</name>
A87: <number>1123</number>
A88: <team>Nurgle</team>
A89: </coach>
A90: <coach>
A91: <name>Munch</name>
A92: <number>20554</number>
A93: <team>Human</team>
A94: </coach>
A95: <coach>
A96: <name>Forgotmytea</name>
A97: <number>26717</number>
A98: <team>Dark Elf</team>
A99: </coach>
A100: <coach>
A101: <name>Elperas</name>
A102: <number>22362</number>
A103: <team>Ogre</team>
A104: </coach>
A105: <coach>
A106: <name>Valen</name>
A107: <number>1538</number>
A108: <team>Necromantic Horror</team>
A109: </coach>
A110: <coach>
A111: <name>Jordellfb</name>
A112: <number>2085</number>
A113: <team>Lizardmen</team>
A114: </coach>
A115: <coach>
A116: <name>Nobbla</name>
A117: <number>19741</number>
A118: <team>Orc</team>
A119: </coach>
A120: <coach>
A121: <name>Deepfruit</name>
A122: <number>19742</number>
A123: <team>Skaven</team>
A124: </coach>
A125: <coach>
A126: <name>Dayday</name>
A127: <number>26629</number>
A128: <team>Lizardmen</team>
A129: </coach>
A130: <coach>
A131: <name>Hendy</name>
A132: <number>30511</number>
A133: <team>Orc</team>
A134: </coach>
A135: <coach>
A136: <name>DrTechnoTrousers</name>
A137: <number>32137</number>
A138: <team>Ogre</team>
A139: </coach>
A140: <coach>
A141: <name>HexBaron</name>
A142: <number>32494</number>
A143: <team>Norse</team>
A144: </coach>
A145: <coach>
A146: <name>Dirold</name>
A147: <number>5900</number>
A148: <team>Amazon</team>
A149: </coach>
A150: <coach>
A151: <name>Liam</name>
A152: <number>5906</number>
A153: <team>Chaos Chosen</team>
A154: </coach>
A155: <coach>
A156: <name>Fackko</name>
A157: <number>17893</number>
A158: <team>Skaven</team>
A159: </coach>
A160: <coach>
A161: <name>Gallo</name>
A162: <number>20999</number>
A163: <team>Necromantic Horror</team>
A164: </coach>
A165: <coach>
A166: <name>The_mighty_irush</name>
A167: <number>31773</number>
A168: <team>Lizardmen</team>
A169: </coach>
A170: <coach>
A171: <name>Turboraptor</name>
A172: <number>32565</number>
A173: <team>Necromantic Horror</team>
A174: </coach>
A175: <coach>
A176: <name>Shadrak</name>
A177: <number>33014</number>
A178: <team>Dark Elf</team>
A179: </coach>
A180: <coach>
A181: <name>Shortstuff</name>
A182: <number>35135</number>
A183: <team>Amazon</team>
A184: </coach>
A185: <coach>
A186: <name>Pipey</name>
A187: <number>5290</number>
A188: <team>Human</team>
A189: </coach>
A190: <coach>
A191: <name>Mamapepe</name>
A192: <number>10997</number>
A193: <team>Shambling Undead</team>
A194: </coach>
A195: <coach>
A196: <name>Jeeves</name>
A197: <number>11065</number>
A198: <team>Dark Elf</team>
A199: </coach>
A200: <coach>
A201: <name>Shunt</name>
A202: <number>32097</number>
A203: <team>Orc</team>
A204: </coach>
A205: <coach>
A206: <name>SilentKnight</name>
A207: <number>25379</number>
A208: <team>Gnome</team>
A209: </coach>
A210: <coach>
A211: <name>Chorfling</name>
A212: <number>30719</number>
A213: <team>Daemons of Khorne</team>
A214: </coach>
A215: <coach>
... 4174 more rows

Sheet Working
Z1: Latest Rd: | AA1: 3
Z2: Players: | AA2: =COUNTA(Players!B:B)-1 -> 304 | AE2: Max Score | AF2: =Setup!B19*TeamSize*Setup!B19+Setup!B19 -> 0
Z3: Display | AA3: 14 | AB3: Columns
Z4: Enter | AA4: 7 | AB4: Columns
Z5: Max random | AA5: 3
Z6: Number of Groups | AA6: =COUNTA(Players!M:M)-1 -> 76 | AE6: Group
AE7: Individual
Z8: Group display | AA8: 18 | AB8: columns
AC10: Cumulative
AA11: Amazon | AG11: Entry Data
AA12: Black Orc | AE12: Initial Display Columns | AG12: Player
AA13: Bretonnian | AE13: Player | AG13: Points
AA14: Chaos Chosen | AE14: Points | AG14: TD
AA15: Chaos Dwarf | AE15: TD For | AG15: Cas
AA16: Chaos Renegade | AE16: Cas For | AG16: =Setup!E3 -> Bonus1 | AH16: Bonus1 Name
AA17: Dark Elf | AE17: =Working!AG16 -> Bonus1 | AG17: =Setup!E4 -> Bonus2 | AH17: Bonus2 Name
AA18: Daemons of Khorne | AE18: =Working!AG17 -> Bonus2 | AG18: Group
AA19: Dwarf | AE19: TD Against
AA20: Elf Union | AE20: Cas Against
AA21: Gnome | AE21: TD Net
AA22: Goblin | AE22: Cas Net
AA23: Halfling | AE23: Wins
AA24: High Elf | AE24: Draws
AA25: Human | AE25: Losses
AA26: Imperial Nobility | AE26: Opp Score
AA27: Lizardmen | AE27: Group
AA28: Multiple Races | AE28: Accelerated
AA29: Necromantic Horror
AA30: Norse
AA31: Nurgle
AA32: Ogre
AA33: Old World Alliance
AA34: Orc
AA35: Shambling Undead
AA36: Skaven
AA37: Slann
AA38: Snotling
AA39: Tomb Kings
AA40: Underworld Denizens
AA41: Vampire
AA42: Wood Elf

Sheet ChangeLog
B1: This spreadsheet is based on one by Kaper on an Excel forum: http://www.excelforum.com/excel-programming-vba-macros/1105569-swiss-pairing-algorithm-in-excel-to-organize-a-chess-tournament.html
B2: Massive thanks due to him!
B3: The original was used for Chess, and it has been adapted to work for Blood Bowl by sann0638 (Mike Davies)
A5: Version | B5: Summary | C5: Date | D5: Notes
A6: 1.0 | B6: Multi-sheet version of the chess | C6: 2016-06-19
A7: 1.1 | B7: Remove Black and White stuff | C7: 2016-06-19
A8: 1.2 | B8: Change to TDs to generate points | C8: 2016-06-19
B9: Got the Swiss working properly | C9: 2016-06-19 | D9: Published.
A10: 1.3 | B10: More help information. | C10: 2016-06-20
B11: Added Table | C11: 2016-06-20
B12: Added Opponent Score | C12: 2016-06-20
A13: 2.1 | B13: Big overhaul to where info stored | C13: 2016-06-21
A14: 2.2 | B14: Putting in the Score formula | C14: 2016-06-21 | D14: Published.
A15: 3.1 | B15: Added all tiebreaker columns | C15: 2016-06-22
B16: Realised opponent score was wrong, fixed it. | C16: 2016-06-22
A17: 3.2 | B17: Fixed problem with sorting the table. | C17: 2016-06-23 | D17: Published.
A18: 3.3 | B18: Tiebreakers implemented | C18: 2016-06-24
B19: NAF Upload file | C19: 2016-06-24 | D19: Published.
A20: 4.1 | B20: Group results and matrix added | C20: 2016-06-25
B21: Group results fully implemented | C21: 2016-06-26
A22: 4.2 | B22: Fixed net casualties | C22: 2016-06-28
A23: 4.3 | B23: Tiebreakers corrected, yet again! | C23: 2016-09-17 | D23: Published.
A24: 4.4 | B24: Group results corrected, groups added to table | C24: 2016-09-17
B25: Removed need for Groups to be in there, corrected number of players. | C25: 2016-09-18 | D25: Published.
A26: 5.0 | B26: Mostly working Group Swiss | C26: 2016-09-21
A27: 5.1 | B27: Working Group Swiss. | C27: 2016-09-21 | D27: Published.
A28: 5.2 | B28: Fixed problem with more than 100 coaches. | C28: 2016-09-25
B29: Tidied up tabs. | C29: 2016-09-25 | D29: Published.
A30: 7.1 | B30: Back to playing – added in a tab to show the Stunty Cup. Spent some time trying to add in extra Bonuses, but there were too many knock-on effects, so parked that one. 2 should be enough for people!
A31: 8 | B31: Getting sorted for Eurobowl 2018. Added a Presentation tab for putting on websites and the like and also for printing to enter results, plus some colour coding.
A32: 9.1 | B32: Post Eurobowl 2018. A variable was needed to be restated to allow pauses between running the various macros.
A33: 9.2 | B33: Cleaned up the variables a bit. Getting ready for Eurobowl/Europen 2020 in Poland! | C33: 2020-03-01 | D33: Published.
A34: 9.3 | B34: Various tweaks following Bob feedback | C34: 2020-03-12
B35: Accelerated Swiss implemented, though currently it takes the point away after 2 rounds
B36: Presentation made variable size for team size
A37: 10.1 | B37: Blood Bowl 2020! | C37: 2021-04-06 | D37: Published.
A38: 11.1 | B38: Non-NAF functionality added
B39: Multiple races functionality added (not finished yet, thinking about it)
